Workbook

Sheet مرتب 155
ASH2: =[5]الخصومات!E8 -> 0
A3: 1 | ASK3: =[5]الخصومات!E10 -> 0 | ASM3: =[5]الخصومات!E9 -> 0 | ASS3: =[5]الخصومات!E9 -> 0
ASB4: =[5]الخصومات!E15 -> 0 | ASI4: =[5]الخصومات!E12 -> 0
B5: اسم السيد المعلم | C5: الوظيفة على الكادر | D5: الوظيفة | F5: نوع المرتب 1 | G5: نوع المرتب 2 | H5: م | I5: استحقاقـــــــــــــــــــــــات الأجــــــــــــــــــــــــور الأساســــــــــــــــــــــية | BS5: استحقاقات المعاشات | CA5: منحة عيد العمال | CC5: بدل نقدي | CE5: جملة الاستحقاقات | CG5: استقطاعات المعاشات | CW5: معاشات | DE5: النقابــــــــــــــــــــــــــــــــــــــــــــــات | EI5: الشركات و البنوك | FC5: ديون و دمغــــــــــــــــــــات | FW5: جملة الاستقطاعات | FY5: جملة الصافي المستحق | GA5: اسم السيد المعلم | GB5: البنك المحول اليه المرتب | GC5: الفرع | GD5: الرقم القومي | GT5: الاســــــــم | GU5: الوظيفة | GV5: الدرجة المالية | GW5: كشف رقم 1 | GX5: نوع المرتب 1 | GY5: المرتب 2 | GZ5: م | HA5: 6/30/2015 | HB5: الحد الاقصي | HC5: ما تم سداده | HD5: الاجر الشامل الذى يستحق علية المعاشات | IH5: استحقاقات الأجور المتغيرة | IQ5: جملة الاستحقاقات | IR5: الاستقطاعـــــات الأساســـية | IZ5: النقابـــــــــــــــــات | JK5: الأقســــــاط | JO5: جزاء - حصيلة جزاء | JQ5: البنـوك و الشـركات | KB5: ديون و دمغات | KP5: جملة الاستقطاعات | KQ5: الصافى المستحق | KR5: الاســــــــــم | KS5: اسم البنك المحول اليه المرتب | KT5: الفرع | KU5: الرقم القومي | KV5: ملاحظات | KW5: رقم الموظف | LE5: 30 | AEU5: م | AEV5: إسم الموظف أو المستخدم | AEW5: الوظيفة | AEX5: الاجر الأساسى | AEY5: القيمة التقديرية للعهدة | AEZ5: الحد الاقصى لما يتحمله الموظف | AFA5: من 1 حتى 10000 | AFB5: من 1 حتى 10000 | AFC5: ناتج بعد الطرح | AFD5: النهائى | AFE5: من 10001 حتى 50000 | AFF5: ناتج بعد الطرح | AFG5: النهائى | AFH5: الحد الاقصى بعد الطرح 50000 | AFI5: ما زاد عن الــ 50000 | AFJ5: جملة ما يتحمله الموظف والحكومة | AFK5: حصة الموظف | AFL5: حصة الحكومة | AFM5: التحقق من الحساب | ASI5: =[5]الخصومات!E11 -> 0
I6: اساسي 30 / 6 / 2015 | K6: الحد الاقصي للمعاشات | M6: ما تم سداده | O6: الاجر الشامل للمعاشات | Q6: اساسي 1 / 7 / 2020 | S6: بدل اقامة | U6: ع خ 2014 | W6: ع خ 2015 | Y6: بدل معلم | AA6: بدل اعتماد | AC6: حافز 25% | AE6: حافز أداء | AG6: أعباء وظيفية | AI6: علاوة اجتماعية | AK6: علاوة اضافية | AM6: جهود | AO6: حافز تطوير | AQ6: بدل عدوى | AS6: حافز ماجستير | AU6: حافز دكتوراة | AW6: حافز إثابة 50% | AY6: حافز استثنائي | BA6: الحد الأدني | BC6: حافز يوم كامل | BE6: حافز فصل واحد | BG6: حافز تربية فكرية | BI6: بدل تفرغ زراعي | BK6: بدل تفرغ تجارى | BM6: ='[5]بدلات 155'!O6 -> مستحقات أخرى 1 | BO6: ='[5]بدلات 155'!P6 -> مستحقات أخرى 2 | BQ6: ='[5]بدلات 155'!Q6 -> مستحقات أخرى 3 | BS6: ='[5]بيانات معلمين'!AN5 -> حصة الحكومة في تأمين الشيخوخة 12 % | BU6: ='[5]بيانات معلمين'!AO5 -> حصة الحكومة في تأمين المرض 3% | BW6: ='[5]بيانات معلمين'!AP5 -> حصة الحكومة في اشتراك المكافأة 1% | BY6: ='[5]بيانات معلمين'!AQ5 -> حصة الحكومة في إصابة العمل 1.25 % | CG6: ='[5]بيانات معلمين'!AU5 -> حصة الحكومة في تأمين الشيخوخة 12 % | CI6: ='[5]بيانات معلمين'!AV5 -> حصة الموظف في تأمين الشيخوخة 9% | CK6: ='[5]بيانات معلمين'!AW5 -> حصة الحكومة في اشتراك المكافأة 1% | CM6: ='[5]بيانات معلمين'!AZ5 -> حصة الموظف في اشتراك المكافاة 1 % | CO6: ='[5]بيانات معلمين'!AX5 -> حصة الحكومة في تأمين المرض 3% | CQ6: ='[5]بيانات معلمين'!AY5 -> حصة الموظف في تأمين المرض 1% | CS6: ='[5]بيانات معلمين'!BA5 -> حصة الحكومة في إصابة العمل 1.25 % | CU6: جملة استقطاعات المعاشات | CW6: قسط إعارة | CY6: استبدال معاش | DA6: مدة مشتراه | DC6: جملة | DE6: مهن تعليمية | DG6: صندوق زمالة | DI6: نوادي | DK6: مستشفى معلمين | DM6: مهن تطبيقية | DO6: مستشفى تطبيقين | DQ6: مهن زراعية | DS6: مهن اجتماعية | DU6: مهن رياضية | DW6: مهن تجارية | DY6: لجنة نقابية | EA6: صندوق رعاية | EC6: تكافــــل | EE6: اشتراكات أخرى | EG6: جملة النقابات | EI6: شركة اتصالات | EK6: أسر منتجة | EM6: ='[5]استقطاعات 155'!I6 -> أقساط الشركات | EO6: مصر للتامين | EQ6: الشرق للتامين | ES6: بنك القاهرة فرع عدلي | EU6: ='[5]استقطاعات 155'!M6 -> اقساط أخري | EW6: جملة الشركات | EY6: جـــــزاء | FA6: حصيلة جزاء | FC6: مبالغ مستردة حافز أداء | FE6: كسب عمل | FG6: دمغة نسبية | FI6: دمغة نوعية | FK6: ارباب عهد | FM6: خصم نصف العلاوة | FO6: ='[5]مرتب 155'!CN6 -> مبالغ مستردة لصالح التأمينات | FQ6: ='[5]مرتب 155'!CO6 -> مبالغ مستردة | FS6: ='[5]مرتب 155'!CP6 -> 1%كورونا | FU6: نظافة | HE6: اساسى 7/01 | HF6: بدل إقامه | HG6: بدل اقامه مغترب | HH6: بدل إقامة | HI6: ع.خ 2014 | HJ6: ع.خ 2015 | HK6: بدل معلم | HL6: بدل اعتماد | HM6: حافز 25 % | HN6: حافز أداء | HO6: أعباء وظيفية | HP6: علاوة اجتماعيه | HQ6: علاوة اضافيه | HR6: جهود | HS6: حافز تطوير | HT6: بدل عدوى | HU6: حافز ماجستير | HV6: حافز دكتوراه | HW6: حافز إثابة 50 % | HX6: حافز 150 | HY6: حد أدنى | HZ6: يوم كامل | IA6: فصل واحد | IB6: تربية فكرية | IC6: بدل تفرغ زراعي | ID6: بدل تفرغ تجاري | IE6: مستحقات أخرى 1 | IH6: تأمين شيخوخة (حكومة) 12% | II6: تأمين صحى 3 % | IJ6: مكافأة 1% | IK6: اصابة عمل (حكومة) 1.25% | IL6: جملة المعاشات | IM6: قرش | IN6: جنية | IO6: منحة عيد العمال | IP6: بدل نقدى | IR6: تأمين شيخوخة (حكومة) 12% | IS6: تأمين شيخوخة (موظف) 9% | IT6: مكافأة (حكومة) 1 % | IU6: تأمين صحى (حكومة) 3 % | IV6: تأمين المرض (موظف) 1% | IW6: اشتراك مكافأة (موظف) 1% | IX6: اصابة عمل (حكومة) 1.25% | IY6: جملة المعاشات | IZ6: قسط اعارة | JA6: استبدال معاش | JB6: مدة مشتراة | JC6: جملة المعاشات | JD6: مهن تعليمية | JE6: صندوق زمالة | JF6: نوادى | JG6: مستشفى المعلمين | JH6: تطبيقية | JI6: مستشفى | JJ6: مهن زراعية | JK6: مهن إجتماعية | JL6: مهن رياضية | JM6: مهن تجارية | JN6: لجنة نقابية | JO6: صندوق رعاية | JP6: تكافل | JQ6: اشتراكات أخرى | JR6: جملة النقابات | JS6: شركة الاتصالات | JT6: اسر منتجة | JU6: اقساط الشركات | JV6: مصر للتأمين | JW6: الشرق للتأمين | JX6: بنك القاهرة فرع عدلي | JY6: اقساط أخرى | JZ6: جملة الشركات | KA6: جزاء | KB6: حصيلة | KC6: مبالغ مستردة و ديون حكومية | KD6: كسب عمل | KE6: دمغة نسبية | KF6: دمغة نوعية | KG6: ارباب عهد | KH6: خصم نصف صافي العلاوة | KK6: 0.01 | KL6: جملة | KM6: قرش | KN6: جنية | KO6: نظافة | LE6: انقطاع | LF6: مدة | ASI6: =[5]الخصومات!E13 -> 0 | ASL6: =[5]الخصومات!E14 -> 0
B7: 1 | C7: 2 | D7: 3 | E7: 4 | F7: 5 | G7: 6 | H7: 7 | I7: 8 | J7: 9 | K7: 10 | L7: 11 | M7: 12 | N7: 13 | O7: 14 | P7: 15 | Q7: 16 | R7: 17 | S7: 18 | T7: 19 | U7: 20 | V7: 21 | W7: 22 | X7: 23 | Y7: 24 | Z7: 25 | AA7: 26 | AB7: 27 | AC7: 28 | AD7: 29 | AE7: 30 | AF7: 31 | AG7: 32 | AH7: 33 | AI7: 34 | AJ7: 35 | AK7: 36 | AL7: 37 | AM7: 38 | AN7: 39 | AO7: 40 | AP7: 41 | AQ7: 42 | AR7: 43 | AS7: 44 | AT7: 45 | AU7: 46 | AV7: 47 | AW7: 48 | AX7: 49 | AY7: 50 | AZ7: 51 | BA7: 52 | BB7: 53 | BC7: 54 | BD7: 55 | BE7: 56 | BF7: 57 | BG7: 58 | BH7: 59 | BI7: 60 | BJ7: 61 | BK7: 62 | BL7: 63 | BM7: 64 | BN7: 65 | BO7: 66 | BP7: 67 | BQ7: 68 | BR7: 69 | BS7: 70 | BT7: 71 | BU7: 72 | BV7: 73 | BW7: 74 | BX7: 75 | BY7: 76 | BZ7: 77 | CA7: 78 | CB7: 79 | CC7: 80 | CD7: 81 | CE7: 82 | CF7: 83 | CG7: 84 | CH7: 85 | CI7: 86 | CJ7: 87 | CK7: 88 | CL7: 89 | CM7: 90 | CN7: 91 | CO7: 92 | CP7: 93 | CQ7: 94 | CR7: 95 | CS7: 96 | CT7: 97 | CU7: 98 | CV7: 99 | CW7: 100 | CX7: 101 | CY7: 102 | CZ7: 103 | DA7: 104 | DB7: 105 | DC7: 106 | DD7: 107 | DE7: 108 | DF7: 109 | DG7: 110 | DH7: 111 | DI7: 112 | DJ7: 113 | DK7: 114 | DL7: 115 | DM7: 116 | DN7: 117 | DO7: 118 | DP7: 119 | DQ7: 120 | DR7: 121 | DS7: 122 | DT7: 123 | DU7: 124 | DV7: 125 | DW7: 126 | DX7: 127 | DY7: 128 | DZ7: 129 | EA7: 130 | EB7: 131 | EC7: 132 | ED7: 133 | EE7: 134 | EF7: 135 | EG7: 136 | EH7: 137 | EI7: 138 | EJ7: 139 | EK7: 140 | EL7: 141 | EM7: 142 | EN7: 143 | EO7: 144 | EP7: 145 | EQ7: 146 | ER7: 147 | ES7: 148 | ET7: 149 | EU7: 150 | EV7: 151 | EW7: 152 | EX7: 153 | EY7: 154 | EZ7: 155 | FA7: 156 | FB7: 157 | FC7: 158 | FD7: 159 | FE7: 160 | FF7: 161 | FG7: 162 | FH7: 163 | FI7: 164 | FJ7: 165 | FK7: 166 | FL7: 167 | FM7: 168 | FN7: 169 | FO7: 170 | FP7: 171 | FQ7: 172 | FR7: 173 | FS7: 174 | FT7: 175 | FU7: 176 | FV7: 177 | FW7: 178 | FX7: 179 | FY7: 180 | FZ7: 181 | GA7: 182 | GB7: 183 | GC7: 184 | GD7: 185 | GE7: 186 | GF7: 187 | GG7: 188 | GH7: 189 | GI7: 190 | GJ7: 191 | GK7: 192 | GL7: 193 | GM7: 194 | GN7: 195 | GO7: 196 | GP7: 197 | GQ7: 198 | GR7: 199 | GS7: 200 | HE7: 212 | HF7: 213 | HG7: 214 | HH7: 215 | HI7: 216 | HJ7: 217 | HK7: 218 | HL7: 219 | HM7: 220 | HN7: 221 | HO7: 222 | HP7: 223 | HQ7: 224 | HR7: 225 | HS7: 226 | HT7: 227 | HU7: 228 | HV7: 229 | HW7: 230 | HX7: 231 | HY7: 232 | HZ7: 233 | IA7: 234 | IB7: 235 | IC7: 236 | ID7: 237 | IE7: 238 | IF7: 239 | IG7: 240 | IH7: 241 | II7: 242 | IJ7: 243 | IK7: 244 | IL7: 245 | IM7: 246 | IN7: 247 | IO7: 248 | IP7: 249 | IQ7: 250 | IR7: 251 | IS7: 252 | IT7: 253 | IU7: 254 | IV7: 255 | IW7: 256 | IX7: 257 | IY7: 258 | IZ7: 259 | JA7: 260 | JB7: 261 | JC7: 262 | JD7: 263 | JE7: 264 | JF7: 265 | JG7: 266 | JH7: 267 | JI7: 268 | JJ7: 269 | JK7: 270 | JL7: 271 | JM7: 272 | JN7: 273 | JO7: 274 | JP7: 275 | JQ7: 276 | JR7: 277 | JS7: 278 | JT7: 279 | JU7: 280 | JV7: 281 | JW7: 282 | JX7: 283 | JY7: 284 | JZ7: 285 | KA7: 286 | KB7: 287 | KC7: 288 | KD7: 289 | KE7: 290 | KF7: 291 | KG7: 292 | KH7: 293 | KI7: 294 | KJ7: 295 | KK7: 296 | KL7: 297 | KM7: 298 | KN7: 299 | KO7: 300 | AEU7: 1 | AEZ7: =AEX7*0.005*12 -> 0 | AFA7: =IF(AND(AFB7<=1,AFB7>0),1,AFB7) -> 0 | AFB7: =IF(AEY7>10000,10000*0.0006,AEY7*0.0006) -> 0 | AFC7: =AEY7-10000 -> -10000 | AFD7: =IF(AFC7>0,AFC7*1,0) -> 0 | AFE7: =IF(AFD7>50000,40000*0.0012,AFD7*0.0012) -> 0 | AFF7: =AFD7-40000 -> -40000 | AFG7: =IF(AFF7>0,AFF7*1,0) -> 0 | AFH7: =IF(AFG7>50000,50000,AFG7) -> 0 | AFI7: =AFH7*0.0024 -> 0 | AFJ7: =AFI7+AFE7+AFA7 -> 0 | AFK7: =AFJ7-AFL7 -> 0 | AFL7: =IF(AFJ7>AEZ7,AFJ7-AEZ7,0) -> 0 | AFM7: =AFK7+AFL7 -> 0
A8: =IF(F8=1,"1",IF(F8=2,"2",IF(F8=3,"3",IF(G8="أجازة","أجازة",IF(G8="بنك","بنك",""))))) -> 1 | B8: 1 | C8: ='[5]مرتب 155'!C7 -> معلم خبير | D8: ='[5]مرتب 155'!D7 -> مدير عام | E8: =IF(B8<>"",(ROW()-6),0) -> 2 | F8: =IF(G8="أهلى",1,0) -> 1 | G8: ='[5]ادخال بيانات 155'!N7 -> أهلى | H8: =IF(B8="","",SUBTOTAL(3,$B$8:B8)) -> 1 | I8: =IF('[5]مرتب 155'!I7="","",('[5]مرتب 155'!I7-TRUNC('[5]مرتب 155'!I7))*100) -> 13 | J8: =IF('[5]مرتب 155'!I7="","",TRUNC('[5]مرتب 155'!I7)) -> 548 | K8: =IF('[5]مرتب 155'!J7="","",('[5]مرتب 155'!J7-TRUNC('[5]مرتب 155'!J7))*100) -> 0 | L8: =IF('[5]مرتب 155'!J7="","",TRUNC('[5]مرتب 155'!J7)) -> 84000 | M8: =IF('[5]مرتب 155'!K7="","",('[5]مرتب 155'!K7-TRUNC('[5]مرتب 155'!K7))*100) -> 71 | N8: =IF('[5]مرتب 155'!K7="","",TRUNC('[5]مرتب 155'!K7)) -> 40778 | O8: =IF('[5]مرتب 155'!L7="","",('[5]مرتب 155'!L7-TRUNC('[5]مرتب 155'!L7))*100) -> 74 | P8: =IF('[5]مرتب 155'!L7="","",TRUNC('[5]مرتب 155'!L7)) -> 4010 | Q8: =IF('[5]مرتب 155'!M7="","",('[5]مرتب 155'!M7-TRUNC('[5]مرتب 155'!M7))*100) -> 59 | R8: =IF('[5]مرتب 155'!M7="","",TRUNC('[5]مرتب 155'!M7)) -> 1546 | S8: =IF($ASS$3=1,"",IF('[5]مرتب 155'!P7="","",('[5]مرتب 155'!P7-TRUNC('[5]مرتب 155'!P7))*100)) -> 50 | T8: =IF($ASS$3=1,"",IF('[5]مرتب 155'!P7="","",TRUNC('[5]مرتب 155'!P7))) -> 37 | U8: =IF('[5]مرتب 155'!$Q7="","",('[5]مرتب 155'!$Q7-TRUNC('[5]مرتب 155'!$Q7))*100) -> 51 | V8: =IF('[5]مرتب 155'!$Q7="","",TRUNC('[5]مرتب 155'!$Q7)) -> 51 | W8: =IF('[5]مرتب 155'!$R7="","",('[5]مرتب 155'!$R7-TRUNC('[5]مرتب 155'!$R7))*100) -> 81 | X8: =IF('[5]مرتب 155'!$R7="","",TRUNC('[5]مرتب 155'!$R7)) -> 54 | Y8: =IF($ASK$3=1,"",IF('[5]مرتب 155'!S7="","",('[5]مرتب 155'!S7-TRUNC('[5]مرتب 155'!S7))*100)) -> 7 | Z8: =IF($ASK$3=1,"",IF('[5]مرتب 155'!S7="","",TRUNC('[5]مرتب 155'!S7))) -> 274 | AA8: =IF($ASI$5=1,"",IF('[5]مرتب 155'!T7="","",('[5]مرتب 155'!T7-TRUNC('[5]مرتب 155'!T7))*100)) -> 23 | AB8: =IF($ASI$5=1,"",IF('[5]مرتب 155'!T7="","",TRUNC('[5]مرتب 155'!T7))) -> 959 | AC8: =IF($ASL$6=1,"",IF('[5]مرتب 155'!U7="","",('[5]مرتب 155'!U7-TRUNC('[5]مرتب 155'!U7))*100)) -> 3 | AD8: =IF($ASL$6=1,"",IF('[5]مرتب 155'!U7="","",TRUNC('[5]مرتب 155'!U7))) -> 137 | AE8: =IF($ASI$6=1,"",IF('[5]مرتب 155'!V7="","",('[5]مرتب 155'!V7-TRUNC('[5]مرتب 155'!V7))*100)) ->  | AF8: =IF($ASI$6=1,"",IF('[5]مرتب 155'!V7="","",TRUNC('[5]مرتب 155'!V7))) ->  | AG8: =IF($ASI$4=1,"",IF('[5]مرتب 155'!W7="","",('[5]مرتب 155'!W7-TRUNC('[5]مرتب 155'!W7))*100)) -> 0 | AH8: =IF($ASI$4=1,"",IF('[5]مرتب 155'!W7="","",TRUNC('[5]مرتب 155'!W7))) -> 325 | AI8: =IF('[5]مرتب 155'!X7="","",('[5]مرتب 155'!X7-TRUNC('[5]مرتب 155'!X7))*100) -> 0 | AJ8: =IF('[5]مرتب 155'!X7="","",TRUNC('[5]مرتب 155'!X7)) -> 6 | AK8: =IF('[5]مرتب 155'!Y7="","",('[5]مرتب 155'!Y7-TRUNC('[5]مرتب 155'!Y7))*100) -> 0 | AL8: =IF('[5]مرتب 155'!Y7="","",TRUNC('[5]مرتب 155'!Y7)) -> 4 | AM8: =IF($ASB$4=1,"",IF('[5]مرتب 155'!Z7="","",('[5]مرتب 155'!Z7-TRUNC('[5]مرتب 155'!Z7))*100)) -> 0 | AN8: =IF($ASB$4=1,"",IF('[5]مرتب 155'!Z7="","",TRUNC('[5]مرتب 155'!Z7))) -> 100 | AO8: =IF('[5]مرتب 155'!AA7="","",('[5]مرتب 155'!AA7-TRUNC('[5]مرتب 155'!AA7))*100) -> 0 | AP8: =IF('[5]مرتب 155'!AA7="","",TRUNC('[5]مرتب 155'!AA7)) -> 40 | AQ8: =IF('[5]مرتب 155'!AB7="","",('[5]مرتب 155'!AB7-TRUNC('[5]مرتب 155'!AB7))*100) ->  | AR8: =IF('[5]مرتب 155'!AB7="","",TRUNC('[5]مرتب 155'!AB7)) ->  | AS8: =IF('[5]مرتب 155'!AC7="","",('[5]مرتب 155'!AC7-TRUNC('[5]مرتب 155'!AC7))*100) ->  | AT8: =IF('[5]مرتب 155'!AC7="","",TRUNC('[5]مرتب 155'!AC7)) ->  | AU8: =IF('[5]مرتب 155'!AD7="","",('[5]مرتب 155'!AD7-TRUNC('[5]مرتب 155'!AD7))*100) ->  | AV8: =IF('[5]مرتب 155'!AD7="","",TRUNC('[5]مرتب 155'!AD7)) ->  | AW8: =IF('[5]مرتب 155'!AE7="","",('[5]مرتب 155'!AE7-TRUNC('[5]مرتب 155'!AE7))*100) ->  | AX8: =IF('[5]مرتب 155'!AE7="","",TRUNC('[5]مرتب 155'!AE7)) ->  | AY8: =IF('[5]مرتب 155'!AF7="","",('[5]مرتب 155'!AF7-TRUNC('[5]مرتب 155'!AF7))*100) -> 0 | AZ8: =IF('[5]مرتب 155'!AF7="","",TRUNC('[5]مرتب 155'!AF7)) -> 475 | BA8: =IF('[5]مرتب 155'!AG7="","",('[5]مرتب 155'!AG7-TRUNC('[5]مرتب 155'!AG7))*100) ->  | BB8: =IF('[5]مرتب 155'!AG7="","",TRUNC('[5]مرتب 155'!AG7)) ->  | BC8: =IF('[5]مرتب 155'!AH7="","",('[5]مرتب 155'!AH7-TRUNC('[5]مرتب 155'!AH7))*100) ->  | BD8: =IF('[5]مرتب 155'!AH7="","",TRUNC('[5]مرتب 155'!AH7)) ->  | BE8: =IF('[5]مرتب 155'!AI7="","",('[5]مرتب 155'!AI7-TRUNC('[5]مرتب 155'!AI7))*100) ->  | BF8: =IF('[5]مرتب 155'!AI7="","",TRUNC('[5]مرتب 155'!AI7)) ->  | BG8: =IF('[5]مرتب 155'!AJ7="","",('[5]مرتب 155'!AJ7-TRUNC('[5]مرتب 155'!AJ7))*100) ->  | BH8: =IF('[5]مرتب 155'!AJ7="","",TRUNC('[5]مرتب 155'!AJ7)) ->  | BI8: =IF('[5]مرتب 155'!AK7="","",('[5]مرتب 155'!AK7-TRUNC('[5]مرتب 155'!AK7))*100) ->  | BJ8: =IF('[5]مرتب 155'!AK7="","",TRUNC('[5]مرتب 155'!AK7)) ->  | BK8: =IF('[5]مرتب 155'!AL7="","",('[5]مرتب 155'!AL7-TRUNC('[5]مرتب 155'!AL7))*100) ->  | BL8: =IF('[5]مرتب 155'!AL7="","",TRUNC('[5]مرتب 155'!AL7)) ->  | BM8: =IF('[5]مرتب 155'!AM7="","",('[5]مرتب 155'!AM7-TRUNC('[5]مرتب 155'!AM7))*100) ->  | BN8: =IF('[5]مرتب 155'!AM7="","",TRUNC('[5]مرتب 155'!AM7)) ->  | BO8: =IF('[5]مرتب 155'!AN7="","",('[5]مرتب 155'!AN7-TRUNC('[5]مرتب 155'!AN7))*100) ->  | BP8: =IF('[5]مرتب 155'!AN7="","",TRUNC('[5]مرتب 155'!AN7)) ->  | BQ8: =IF('[5]مرتب 155'!AO7="","",('[5]مرتب 155'!AO7-TRUNC('[5]مرتب 155'!AO7))*100) ->  | BR8: =IF('[5]مرتب 155'!AO7="","",TRUNC('[5]مرتب 155'!AO7)) ->  | BS8: =IF('[5]مرتب 155'!AP7="","",('[5]مرتب 155'!AP7-TRUNC('[5]مرتب 155'!AP7))*100) -> 29 | BT8: =IF('[5]مرتب 155'!AP7="","",TRUNC('[5]مرتب 155'!AP7)) -> 481 | BU8: =IF('[5]مرتب 155'!AQ7="","",('[5]مرتب 155'!AQ7-TRUNC('[5]مرتب 155'!AQ7))*100) -> 32 | BV8: =IF('[5]مرتب 155'!AQ7="","",TRUNC('[5]مرتب 155'!AQ7)) -> 120 | BW8: =IF('[5]مرتب 155'!AR7="","",('[5]مرتب 155'!AR7-TRUNC('[5]مرتب 155'!AR7))*100) -> 11 | BX8: =IF('[5]مرتب 155'!AR7="","",TRUNC('[5]مرتب 155'!AR7)) -> 40 | BY8: =IF('[5]مرتب 155'!AS7="","",('[5]مرتب 155'!AS7-TRUNC('[5]مرتب 155'!AS7))*100) -> 13 | BZ8: =IF('[5]مرتب 155'!AS7="","",TRUNC('[5]مرتب 155'!AS7)) -> 50 | CA8: =IF('[5]مرتب 155'!AT7="","",('[5]مرتب 155'!AT7-TRUNC('[5]مرتب 155'!AT7))*100) -> 0 | CB8: =IF('[5]مرتب 155'!AT7="","",TRUNC('[5]مرتب 155'!AT7)) -> 10 | CC8: =IF($ASH$2=1,"",IF('[5]مرتب 155'!AU7="","",('[5]مرتب 155'!AU7-TRUNC('[5]مرتب 155'!AU7))*100)) -> 26 | CD8: =IF($ASH$2=1,"",IF('[5]مرتب 155'!AU7="","",TRUNC('[5]مرتب 155'!AU7))) -> 481 | CE8: =IF('[5]مرتب 155'!AV7="","",('[5]مرتب 155'!AV7-TRUNC('[5]مرتب 155'!AV7))*100) -> 85 | CF8: =IF('[5]مرتب 155'!AV7="","",TRUNC('[5]مرتب 155'!AV7)) -> 5193 | CG8: =IF('[5]مرتب 155'!AW7="","",('[5]مرتب 155'!AW7-TRUNC('[5]مرتب 155'!AW7))*100) -> 29 | CH8: =IF('[5]مرتب 155'!AW7="","",TRUNC('[5]مرتب 155'!AW7)) -> 481 | CI8: =IF('[5]مرتب 155'!AX7="","",('[5]مرتب 155'!AX7-TRUNC('[5]مرتب 155'!AX7))*100) -> 97 | CJ8: =IF('[5]مرتب 155'!AX7="","",TRUNC('[5]مرتب 155'!AX7)) -> 360 | CK8: =IF('[5]مرتب 155'!AY7="","",('[5]مرتب 155'!AY7-TRUNC('[5]مرتب 155'!AY7))*100) -> 11 | CL8: =IF('[5]مرتب 155'!AY7="","",TRUNC('[5]مرتب 155'!AY7)) -> 40 | CM8: =IF('[5]مرتب 155'!BB7="","",('[5]مرتب 155'!BB7-TRUNC('[5]مرتب 155'!BB7))*100) -> 11 | CN8: =IF('[5]مرتب 155'!BB7="","",TRUNC('[5]مرتب 155'!BB7)) -> 40 | CO8: =IF('[5]مرتب 155'!AZ7="","",('[5]مرتب 155'!AZ7-TRUNC('[5]مرتب 155'!AZ7))*100) -> 32 | CP8: =IF('[5]مرتب 155'!AZ7="","",TRUNC('[5]مرتب 155'!AZ7)) -> 120 | CQ8: =IF('[5]مرتب 155'!BA7="","",('[5]مرتب 155'!BA7-TRUNC('[5]مرتب 155'!BA7))*100) -> 11 | CR8: =IF('[5]مرتب 155'!BA7="","",TRUNC('[5]مرتب 155'!BA7)) -> 40 | CS8: =IF('[5]مرتب 155'!BC7="","",('[5]مرتب 155'!BC7-TRUNC('[5]مرتب 155'!BC7))*100) -> 13 | CT8: =IF('[5]مرتب 155'!BC7="","",TRUNC('[5]مرتب 155'!BC7)) -> 50 | CU8: =IF('[5]مرتب 155'!BD7="","",('[5]مرتب 155'!BD7-TRUNC('[5]مرتب 155'!BD7))*100) -> 4 | CV8: =IF('[5]مرتب 155'!BD7="","",TRUNC('[5]مرتب 155'!BD7)) -> 1133 | CW8: =IF('[5]مرتب 155'!BE7="","",('[5]مرتب 155'!BE7-TRUNC('[5]مرتب 155'!BE7))*100) ->  | CX8: =IF('[5]مرتب 155'!BE7="","",TRUNC('[5]مرتب 155'!BE7)) ->  | CY8: =IF('[5]مرتب 155'!BF7="","",('[5]مرتب 155'!BF7-TRUNC('[5]مرتب 155'!BF7))*100) ->  | CZ8: =IF('[5]مرتب 155'!BF7="","",TRUNC('[5]مرتب 155'!BF7)) ->  | DA8: =IF('[5]مرتب 155'!BG7="","",('[5]مرتب 155'!BG7-TRUNC('[5]مرتب 155'!BG7))*100) ->  | DB8: =IF('[5]مرتب 155'!BG7="","",TRUNC('[5]مرتب 155'!BG7)) ->  | DC8: =IF('[5]مرتب 155'!BH7="","",('[5]مرتب 155'!BH7-TRUNC('[5]مرتب 155'!BH7))*100) -> 0 | DD8: =IF('[5]مرتب 155'!BH7="","",TRUNC('[5]مرتب 155'!BH7)) -> 0 | DE8: =IF('[5]مرتب 155'!BI7="","",('[5]مرتب 155'!BI7-TRUNC('[5]مرتب 155'!BI7))*100) -> 50 | DF8: =IF('[5]مرتب 155'!BI7="","",TRUNC('[5]مرتب 155'!BI7)) -> 4 | DG8: =IF('[5]مرتب 155'!BJ7="","",('[5]مرتب 155'!BJ7-TRUNC('[5]مرتب 155'!BJ7))*100) -> 26 | DH8: =IF('[5]مرتب 155'!BJ7="","",TRUNC('[5]مرتب 155'!BJ7)) -> 108 | DI8: =IF('[5]مرتب 155'!BK7="","",('[5]مرتب 155'!BK7-TRUNC('[5]مرتب 155'!BK7))*100) ->  | DJ8: =IF('[5]مرتب 155'!BK7="","",TRUNC('[5]مرتب 155'!BK7)) ->  | DK8: =IF('[5]مرتب 155'!BL7="","",('[5]مرتب 155'!BL7-TRUNC('[5]مرتب 155'!BL7))*100) -> 0 | DL8: =IF('[5]مرتب 155'!BL7="","",TRUNC('[5]مرتب 155'!BL7)) -> 1 | DM8: =IF('[5]مرتب 155'!BM7="","",('[5]مرتب 155'!BM7-TRUNC('[5]مرتب 155'!BM7))*100) ->  | DN8: =IF('[5]مرتب 155'!BM7="","",TRUNC('[5]مرتب 155'!BM7)) ->  | DO8: =IF('[5]مرتب 155'!BN7="","",('[5]مرتب 155'!BN7-TRUNC('[5]مرتب 155'!BN7))*100) ->  | DP8: =IF('[5]مرتب 155'!BN7="","",TRUNC('[5]مرتب 155'!BN7)) ->  | DQ8: =IF('[5]مرتب 155'!BO7="","",('[5]مرتب 155'!BO7-TRUNC('[5]مرتب 155'!BO7))*100) ->  | DR8: =IF('[5]مرتب 155'!BO7="","",TRUNC('[5]مرتب 155'!BO7)) ->  | DS8: =IF('[5]مرتب 155'!BP7="","",('[5]مرتب 155'!BP7-TRUNC('[5]مرتب 155'!BP7))*100) ->  | DT8: =IF('[5]مرتب 155'!BP7="","",TRUNC('[5]مرتب 155'!BP7)) ->  | DU8: =IF('[5]مرتب 155'!BQ7="","",('[5]مرتب 155'!BQ7-TRUNC('[5]مرتب 155'!BQ7))*100) ->  | DV8: =IF('[5]مرتب 155'!BQ7="","",TRUNC('[5]مرتب 155'!BQ7)) ->  | DW8: =IF('[5]مرتب 155'!BR7="","",('[5]مرتب 155'!BR7-TRUNC('[5]مرتب 155'!BR7))*100) ->  | DX8: =IF('[5]مرتب 155'!BR7="","",TRUNC('[5]مرتب 155'!BR7)) ->  | DY8: =IF('[5]مرتب 155'!BS7="","",('[5]مرتب 155'!BS7-TRUNC('[5]مرتب 155'!BS7))*100) ->  | DZ8: =IF('[5]مرتب 155'!BS7="","",TRUNC('[5]مرتب 155'!BS7)) ->  | EA8: =IF('[5]مرتب 155'!BT7="","",('[5]مرتب 155'!BT7-TRUNC('[5]مرتب 155'!BT7))*100) -> 0 | EB8: =IF('[5]مرتب 155'!BT7="","",TRUNC('[5]مرتب 155'!BT7)) -> 0 | EC8: =IF('[5]مرتب 155'!BU7="","",('[5]مرتب 155'!BU7-TRUNC('[5]مرتب 155'!BU7))*100) ->  | ED8: =IF('[5]مرتب 155'!BU7="","",TRUNC('[5]مرتب 155'!BU7)) ->  | EE8: =IF('[5]مرتب 155'!BV7="","",('[5]مرتب 155'!BV7-TRUNC('[5]مرتب 155'!BV7))*100) ->  | EF8: =IF('[5]مرتب 155'!BV7="","",TRUNC('[5]مرتب 155'!BV7)) ->  | EG8: =IF('[5]مرتب 155'!BW7="","",('[5]مرتب 155'!BW7-TRUNC('[5]مرتب 155'!BW7))*100) -> 76 | EH8: =IF('[5]مرتب 155'!BW7="","",TRUNC('[5]مرتب 155'!BW7)) -> 113 | EI8: =IF('[5]مرتب 155'!BX7="","",('[5]مرتب 155'!BX7-TRUNC('[5]مرتب 155'!BX7))*100) -> 51 | EJ8: =IF('[5]مرتب 155'!BX7="","",TRUNC('[5]مرتب 155'!BX7)) -> 40 | EK8: =IF('[5]مرتب 155'!BY7="","",('[5]مرتب 155'!BY7-TRUNC('[5]مرتب 155'!BY7))*100) ->  | EL8: =IF('[5]مرتب 155'!BY7="","",TRUNC('[5]مرتب 155'!BY7)) ->  | EM8: =IF('[5]مرتب 155'!BZ7="","",('[5]مرتب 155'!BZ7-TRUNC('[5]مرتب 155'!BZ7))*100) ->  | EN8: =IF('[5]مرتب 155'!BZ7="","",TRUNC('[5]مرتب 155'!BZ7)) ->  | EO8: =IF('[5]مرتب 155'!CA7="","",('[5]مرتب 155'!CA7-TRUNC('[5]مرتب 155'!CA7))*100) ->  | EP8: =IF('[5]مرتب 155'!CA7="","",TRUNC('[5]مرتب 155'!CA7)) ->  | EQ8: =IF('[5]مرتب 155'!CB7="","",('[5]مرتب 155'!CB7-TRUNC('[5]مرتب 155'!CB7))*100) ->  | ER8: =IF('[5]مرتب 155'!CB7="","",TRUNC('[5]مرتب 155'!CB7)) ->  | ES8: =IF('[5]مرتب 155'!CC7="","",('[5]مرتب 155'!CC7-TRUNC('[5]مرتب 155'!CC7))*100) ->  | ET8: =IF('[5]مرتب 155'!CC7="","",TRUNC('[5]مرتب 155'!CC7)) ->  | EU8: =IF('[5]مرتب 155'!CD7="","",('[5]مرتب 155'!CD7-TRUNC('[5]مرتب 155'!CD7))*100) ->  | EV8: =IF('[5]مرتب 155'!CD7="","",TRUNC('[5]مرتب 155'!CD7)) ->  | EW8: =IF('[5]مرتب 155'!CE7="","",('[5]مرتب 155'!CE7-TRUNC('[5]مرتب 155'!CE7))*100) -> 51 | EX8: =IF('[5]مرتب 155'!CE7="","",TRUNC('[5]مرتب 155'!CE7)) -> 40 | EY8: =IF('[5]مرتب 155'!CF7="","",('[5]مرتب 155'!CF7-TRUNC('[5]مرتب 155'!CF7))*100) ->  | EZ8: =IF('[5]مرتب 155'!CF7="","",TRUNC('[5]مرتب 155'!CF7)) ->  | FA8: =IF('[5]مرتب 155'!CG7="","",('[5]مرتب 155'!CG7-TRUNC('[5]مرتب 155'!CG7))*100) ->  | FB8: =IF('[5]مرتب 155'!CG7="","",TRUNC('[5]مرتب 155'!CG7)) ->  | FC8: =IF('[5]مرتب 155'!CH7="","",('[5]مرتب 155'!CH7-TRUNC('[5]مرتب 155'!CH7))*100) ->  | FD8: =IF('[5]مرتب 155'!CH7="","",TRUNC('[5]مرتب 155'!CH7)) ->  | FE8: =IF('[5]مرتب 155'!CI7="","",('[5]مرتب 155'!CI7-TRUNC('[5]مرتب 155'!CI7))*100) -> 11 | FF8: =IF('[5]مرتب 155'!CI7="","",TRUNC('[5]مرتب 155'!CI7)) -> 15 | FG8: =IF('[5]مرتب 155'!CJ7="","",('[5]مرتب 155'!CJ7-TRUNC('[5]مرتب 155'!CJ7))*100) -> 73 | FH8: =IF('[5]مرتب 155'!CJ7="","",TRUNC('[5]مرتب 155'!CJ7)) -> 7 | FI8: =IF('[5]مرتب 155'!CK7="","",('[5]مرتب 155'!CK7-TRUNC('[5]مرتب 155'!CK7))*100) ->  | FJ8: =IF('[5]مرتب 155'!CK7="","",TRUNC('[5]مرتب 155'!CK7)) ->  | FK8: =IF('[5]مرتب 155'!CL7="","",('[5]مرتب 155'!CL7-TRUNC('[5]مرتب 155'!CL7))*100) ->  | FL8: =IF('[5]مرتب 155'!CL7="","",TRUNC('[5]مرتب 155'!CL7)) ->  | FM8: =IF('[5]مرتب 155'!CM7="","",('[5]مرتب 155'!CM7-TRUNC('[5]مرتب 155'!CM7))*100) ->  | FN8: =IF('[5]مرتب 155'!CM7="","",TRUNC('[5]مرتب 155'!CM7)) ->  | FO8: =IF('[5]مرتب 155'!CN7="","",('[5]مرتب 155'!CN7-TRUNC('[5]مرتب 155'!CN7))*100) ->  | FP8: =IF('[5]مرتب 155'!CN7="","",TRUNC('[5]مرتب 155'!CN7)) ->  | FQ8: =IF('[5]مرتب 155'!CO7="","",('[5]مرتب 155'!CO7-TRUNC('[5]مرتب 155'!CO7))*100) ->  | FR8: =IF('[5]مرتب 155'!CO7="","",TRUNC('[5]مرتب 155'!CO7)) ->  | FS8: =IF('[5]مرتب 155'!CP7="","",('[5]مرتب 155'!CP7-TRUNC('[5]مرتب 155'!CP7))*100) -> 92.44 | FT8: =IF('[5]مرتب 155'!CP7="","",TRUNC('[5]مرتب 155'!CP7)) -> 33 | FU8: =IF('[5]مرتب 155'!CQ7="","",('[5]مرتب 155'!CQ7-TRUNC('[5]مرتب 155'!CQ7))*100) -> 2.56 | FV8: =IF('[5]مرتب 155'!CQ7="","",TRUNC('[5]مرتب 155'!CQ7)) -> 0 | FW8: =IF('[5]مرتب 155'!CR7="","",('[5]مرتب 155'!CR7-TRUNC('[5]مرتب 155'!CR7))*100) -> 10 | FX8: =IF('[5]مرتب 155'!CR7="","",TRUNC('[5]مرتب 155'!CR7)) -> 1344 | FY8: =IF('[5]مرتب 155'!CS7="","",('[5]مرتب 155'!CS7-TRUNC('[5]مرتب 155'!CS7))*100) -> 75 | FZ8: =IF('[5]مرتب 155'!CS7="","",TRUNC('[5]مرتب 155'!CS7)) -> 3849 | GA8: 1 | GB8: ='[5]مرتب 155'!CU7 -> البنك الأهلى | GC8: ='[5]مرتب 155'!CV7 ->  | GD8: 1 | GE8: 1 | GR8: 1 | GS8: 1 | GT8: =IF('[5]بيانات معلمين'!B7=0,"",'[5]بيانات معلمين'!B7) -> ابراهيم عثمان جهورى عبدالله | GU8: =IF('[5]بيانات معلمين'!C7=0,"",'[5]بيانات معلمين'!C7) -> معلم خبير | GV8: =IF('[5]بيانات معلمين'!D7=0,"",'[5]بيانات معلمين'!D7) -> مدير عام | GW8: 1 | GX8: 1 | GY8: دفع | GZ8: =IF(GT8="","",SUBTOTAL(3,GT$8:GT8)) -> 1 | HA8: =IF('[5]بيانات معلمين'!G7=0,"",IF($LF8=0,ROUND(($LE$5-$LE8)*'[5]بيانات معلمين'!G7/$LE$5,2),IF($LE8=0,ROUND($LF8*'[5]بيانات معلمين'!G7/$LE$5,2)))) -> 548.13 | HD8: =ROUND(SUM(HE8:IG8),2)-HF8 -> 4010.74 | HE8: =IF('[5]بيانات معلمين'!K7=0,"",IF($LF8=0,ROUND(($LE$5-$LE8)*'[5]بيانات معلمين'!K7/$LE$5,2),IF($LE8=0,ROUND($LF8*'[5]بيانات معلمين'!K7/$LE$5,2)))) -> 1546.59 | HF8: =IF('[5]بيانات معلمين'!L7=0,0,IF($LF8=0,ROUND(($LE$5-$LE8)*'[5]بيانات معلمين'!L7/$LE$5,2),IF($LE8=0,ROUND($LF8*'[5]بيانات معلمين'!L7/$LE$5,2)))) -> 37.5 | HG8: =IF('[5]بيانات معلمين'!M7=0,0,IF($LF8=0,ROUND(($LE$5-$LE8)*'[5]بيانات معلمين'!M7/$LE$5,2),IF($LE8=0,ROUND($LF8*'[5]بيانات معلمين'!M7/$LE$5,2)))) -> 0 | HH8: =IF($ASS$3=1,"",HF8+HG8) -> 37.5 | HI8: =IF('[5]بيانات معلمين'!O7=0,"",IF($LF8=0,ROUND(($LE$5-$LE8)*'[5]بيانات معلمين'!O7/$LE$5,2),IF($LE8=0,ROUND($LF8*'[5]بيانات معلمين'!O7/$LE$5,2)))) -> 51.51 | HJ8: =IF('[5]بيانات معلمين'!P7=0,"",IF($LF8=0,ROUND(($LE$5-$LE8)*'[5]بيانات معلمين'!P7/$LE$5,2),IF($LE8=0,ROUND($LF8*'[5]بيانات معلمين'!P7/$LE$5,2)))) -> 54.81 | HK8: =IF($ASK$3=1,"",IF('[5]بيانات معلمين'!Q7=0,"",IF($LF8=0,ROUND(($LE$5-$LE8)*'[5]بيانات معلمين'!Q7/$LE$5,2),IF($LE8=0,ROUND($LF8*'[5]بيانات معلمين'!Q7/$LE$5,2))))) -> 274.07 | HL8: =IF($ASI$5=1,"",IF('[5]بيانات معلمين'!R7=0,"",IF($LF8=0,ROUND(($LE$5-$LE8)*'[5]بيانات معلمين'!R7/$LE$5,2),IF($LE8=0,ROUND($LF8*'[5]بيانات معلمين'!R7/$LE$5,2))))) -> 959.23 | HM8: =IF($ASL$6=1,"",IF('[5]بيانات معلمين'!S7=0,"",IF($LF8=0,ROUND(($LE$5-$LE8)*'[5]بيانات معلمين'!S7/$LE$5,2),IF($LE8=0,ROUND($LF8*'[5]بيانات معلمين'!S7/$LE$5,2))))) -> 137.03 | HN8: =IF($ASI$6=1,"",IF('[5]بيانات معلمين'!T7=0,"",IF($LF8=0,ROUND(($LE$5-$LE8)*'[5]بيانات معلمين'!T7/$LE$5,2),IF($LE8=0,ROUND($LF8*'[5]بيانات معلمين'!T7/$LE$5,2))))) ->  | HO8: =IF($ASI$4=1,"",IF('[5]بيانات معلمين'!U7=0,"",IF($LF8=0,ROUND(($LE$5-$LE8)*'[5]بيانات معلمين'!U7/$LE$5,2),IF($LE8=0,ROUND($LF8*'[5]بيانات معلمين'!U7/$LE$5,2))))) -> 325 | HP8: =IF('[5]بيانات معلمين'!V7=0,"",IF($LF8=0,ROUND(($LE$5-$LE8)*'[5]بيانات معلمين'!V7/$LE$5,2),IF($LE8=0,ROUND($LF8*'[5]بيانات معلمين'!V7/$LE$5,2)))) -> 6 | HQ8: =IF('[5]بيانات معلمين'!W7=0,"",IF($LF8=0,ROUND(($LE$5-$LE8)*'[5]بيانات معلمين'!W7/$LE$5,2),IF($LE8=0,ROUND($LF8*'[5]بيانات معلمين'!W7/$LE$5,2)))) -> 4 | HR8: =IF($ASB$4=1,"",IF('[5]بيانات معلمين'!X7=0,"",IF($LF8=0,ROUND(($LE$5-$LE8)*'[5]بيانات معلمين'!X7/$LE$5,2),IF($LE8=0,ROUND($LF8*'[5]بيانات معلمين'!X7/$LE$5,2))))) -> 100 | HS8: =IF('[5]بيانات معلمين'!Y7=0,"",IF($LF8=0,ROUND(($LE$5-$LE8)*'[5]بيانات معلمين'!Y7/$LE$5,2),IF($LE8=0,ROUND($LF8*'[5]بيانات معلمين'!Y7/$LE$5,2)))) -> 40 | HT8: =IF('[5]بيانات معلمين'!Z7=0,"",IF($LF8=0,ROUND(($LE$5-$LE8)*'[5]بيانات معلمين'!Z7/$LE$5,2),IF($LE8=0,ROUND($LF8*'[5]بيانات معلمين'!Z7/$LE$5,2)))) ->  | HU8: =IF('[5]بيانات معلمين'!AA7=0,"",IF($LF8=0,ROUND(($LE$5-$LE8)*'[5]بيانات معلمين'!AA7/$LE$5,2),IF($LE8=0,ROUND($LF8*'[5]بيانات معلمين'!AA7/$LE$5,2)))) ->  | HV8: =IF('[5]بيانات معلمين'!AB7=0,"",IF($LF8=0,ROUND(($LE$5-$LE8)*'[5]بيانات معلمين'!AB7/$LE$5,2),IF($LE8=0,ROUND($LF8*'[5]بيانات معلمين'!AB7/$LE$5,2)))) ->  | HW8: =IF('[5]بيانات معلمين'!AC7=0,"",IF($LF8=0,ROUND(($LE$5-$LE8)*'[5]بيانات معلمين'!AC7/$LE$5,2),IF($LE8=0,ROUND($LF8*'[5]بيانات معلمين'!AC7/$LE$5,2)))) ->  | HX8: =IF('[5]بيانات معلمين'!AD7=0,"",IF($LF8=0,ROUND(($LE$5-$LE8)*'[5]بيانات معلمين'!AD7/$LE$5,2),IF($LE8=0,ROUND($LF8*'[5]بيانات معلمين'!AD7/$LE$5,2)))) -> 475 | HY8: =IF('[5]بيانات معلمين'!AE7=0,"",IF($LF8=0,ROUND(($LE$5-$LE8)*'[5]بيانات معلمين'!AE7/$LE$5,2),IF($LE8=0,ROUND($LF8*'[5]بيانات معلمين'!AE7/$LE$5,2)))) ->  | HZ8: =IF('[5]بيانات معلمين'!AF7=0,"",IF($LF8=0,ROUND(($LE$5-$LE8)*'[5]بيانات معلمين'!AF7/$LE$5,2),IF($LE8=0,ROUND($LF8*'[5]بيانات معلمين'!AF7/$LE$5,2)))) ->  | IA8: =IF('[5]بيانات معلمين'!AG7=0,"",IF($LF8=0,ROUND(($LE$5-$LE8)*'[5]بيانات معلمين'!AG7/$LE$5,2),IF($LE8=0,ROUND($LF8*'[5]بيانات معلمين'!AG7/$LE$5,2)))) ->  | IB8: =IF('[5]بيانات معلمين'!AH7=0,"",IF($LF8=0,ROUND(($LE$5-$LE8)*'[5]بيانات معلمين'!AH7/$LE$5,2),IF($LE8=0,ROUND($LF8*'[5]بيانات معلمين'!AH7/$LE$5,2)))) ->  | IC8: =IF('[5]بيانات معلمين'!AI7=0,"",IF($LF8=0,ROUND(($LE$5-$LE8)*'[5]بيانات معلمين'!AI7/$LE$5,2),IF($LE8=0,ROUND($LF8*'[5]بيانات معلمين'!AI7/$LE$5,2)))) ->  | ID8: =IF('[5]بيانات معلمين'!AJ7=0,"",IF($LF8=0,ROUND(($LE$5-$LE8)*'[5]بيانات معلمين'!AJ7/$LE$5,2),IF($LE8=0,ROUND($LF8*'[5]بيانات معلمين'!AJ7/$LE$5,2)))) ->  | IE8: =IF('[5]بيانات معلمين'!AK7=0,"",IF($LF8=0,ROUND(($LE$5-$LE8)*'[5]بيانات معلمين'!AK7/$LE$5,2),IF($LE8=0,ROUND($LF8*'[5]بيانات معلمين'!AK7/$LE$5,2)))) ->  | IF8: =IF('[5]بيانات معلمين'!AL7=0,"",IF($LF8=0,ROUND(($LE$5-$LE8)*'[5]بيانات معلمين'!AL7/$LE$5,2),IF($LE8=0,ROUND($LF8*'[5]بيانات معلمين'!AL7/$LE$5,2)))) ->  | IG8: =IF('[5]بيانات معلمين'!AM7=0,"",IF($LF8=0,ROUND(($LE$5-$LE8)*'[5]بيانات معلمين'!AM7/$LE$5,2),IF($LE8=0,ROUND($LF8*'[5]بيانات معلمين'!AM7/$LE$5,2)))) ->  | IH8: =IF('[5]بيانات معلمين'!AN7=0,"",IF($LF8=0,ROUND(($LE$5-$LE8)*'[5]بيانات معلمين'!AN7/$LE$5,2),IF($LE8=0,ROUND($LF8*'[5]بيانات معلمين'!AN7/$LE$5,2)))) -> 481.29 | II8: =IF('[5]بيانات معلمين'!AO7=0,"",IF($LF8=0,ROUND(($LE$5-$LE8)*'[5]بيانات معلمين'!AO7/$LE$5,2),IF($LE8=0,ROUND($LF8*'[5]بيانات معلمين'!AO7/$LE$5,2)))) -> 120.32 | IJ8: =IF('[5]بيانات معلمين'!AP7=0,"",IF($LF8=0,ROUND(($LE$5-$LE8)*'[5]بيانات معلمين'!AP7/$LE$5,2),IF($LE8=0,ROUND($LF8*'[5]بيانات معلمين'!AP7/$LE$5,2)))) -> 40.11 | IK8: =IF('[5]بيانات معلمين'!AQ7=0,"",IF($LF8=0,ROUND(($LE$5-$LE8)*'[5]بيانات معلمين'!AQ7/$LE$5,2),IF($LE8=0,ROUND($LF8*'[5]بيانات معلمين'!AQ7/$LE$5,2)))) -> 50.13 | IL8: =ROUND(SUM(IH8:IK8),2) -> 691.85 | IM8: =IF(IL8="","",(IL8-TRUNC(IL8))*100) -> 85 | IN8: =IF(IL8="","",TRUNC(IL8)) -> 691 | IO8: =IF('[5]بيانات معلمين'!AR7=0,"",IF($LF8=0,ROUND(($LE$5-$LE8)*'[5]بيانات معلمين'!AR7/$LE$5,2),IF($LE8=0,ROUND($LF8*'[5]بيانات معلمين'!AR7/$LE$5,2)))) -> 10 | IP8: =IF($ASH$2=1,"",IF('[5]بيانات معلمين'!AS7=0,"",IF($LF8=0,ROUND(($LE$5-$LE8)*'[5]بيانات معلمين'!AS7/$LE$5,2),IF($LE8=0,ROUND($LF8*'[5]بيانات معلمين'!AS7/$LE$5,2))))) -> 481.26 | IQ8: =IF('[5]بيانات معلمين'!AT7=0,"",ROUND(SUM(HE8,HH8:IK8,IO8,IP8),2)) -> 5193.85 | IR8: =IF('[5]بيانات معلمين'!AU7=0,"",IF($LF8=0,ROUND(($LE$5-$LE8)*'[5]بيانات معلمين'!AU7/$LE$5,2),IF($LE8=0,ROUND($LF8*'[5]بيانات معلمين'!AU7/$LE$5,2)))) -> 481.29 | IS8: =IF('[5]بيانات معلمين'!AV7=0,"",'[5]بيانات معلمين'!AV7) -> 360.97 | IT8: =IF('[5]بيانات معلمين'!AW7=0,"",IF($LF8=0,ROUND(($LE$5-$LE8)*'[5]بيانات معلمين'!AW7/$LE$5,2),IF($LE8=0,ROUND($LF8*'[5]بيانات معلمين'!AW7/$LE$5,2)))) -> 40.11 | IU8: =IF('[5]بيانات معلمين'!AX7=0,"",IF($LF8=0,ROUND(($LE$5-$LE8)*'[5]بيانات معلمين'!AX7/$LE$5,2),IF($LE8=0,ROUND($LF8*'[5]بيانات معلمين'!AX7/$LE$5,2)))) -> 120.32 | IV8: =IF('[5]بيانات معلمين'!AY7=0,"",'[5]بيانات معلمين'!AY7) -> 40.11 | IW8: =IF('[5]بيانات معلمين'!AZ7=0,"",'[5]بيانات معلمين'!AZ7) -> 40.11 | IX8: =IF('[5]بيانات معلمين'!BA7=0,"",IF($LF8=0,ROUND(($LE$5-$LE8)*'[5]بيانات معلمين'!BA7/$LE$5,2),IF($LE8=0,ROUND($LF8*'[5]بيانات معلمين'!BA7/$LE$5,2)))) -> 50.13 | IY8: =ROUND(SUM(IR8:IX8),2) -> 1133.04 | IZ8: =IF('[5]بيانات معلمين'!BC7=0,"",'[5]بيانات معلمين'!BC7) ->  | JA8: =IF('[5]بيانات معلمين'!BD7=0,"",'[5]بيانات معلمين'!BD7) ->  | JB8: =IF('[5]بيانات معلمين'!BE7=0,"",'[5]بيانات معلمين'!BE7) ->  | JC8: =ROUND(SUM(IZ8:JB8),2) -> 0 | JD8: =IF('[5]بيانات معلمين'!BG7=0,"",'[5]بيانات معلمين'!BG7) -> 4.5 | JE8: =IF('[5]بيانات معلمين'!$BH7=0,0,'[5]بيانات معلمين'!$BH7)/('[5]بيانات معلمين'!$CY7) -> 108.26 | JF8: =IF('[5]بيانات معلمين'!BI7=0,"",'[5]بيانات معلمين'!BI7) ->  | JG8: =IF('[5]بيانات معلمين'!BJ7=0,"",'[5]بيانات معلمين'!BJ7) -> 1 | JH8: =IF('[5]بيانات معلمين'!BK7=0,"",'[5]بيانات معلمين'!BK7) ->  | JI8: =IF('[5]بيانات معلمين'!BL7=0,"",'[5]بيانات معلمين'!BL7) ->  | JJ8: =IF('[5]بيانات معلمين'!BM7=0,"",'[5]بيانات معلمين'!BM7) ->  | JK8: =IF('[5]بيانات معلمين'!BN7=0,"",'[5]بيانات معلمين'!BN7) ->  | JL8: =IF('[5]بيانات معلمين'!BO7=0,"",'[5]بيانات معلمين'!BO7) ->  | JM8: =IF('[5]بيانات معلمين'!BP7=0,"",'[5]بيانات معلمين'!BP7) ->  | JN8: =IF('[5]بيانات معلمين'!BQ7=0,"",'[5]بيانات معلمين'!BQ7) ->  | JO8: =IF('[5]بيانات معلمين'!$BR7=0,0,'[5]بيانات معلمين'!$BR7)/'[5]بيانات معلمين'!$CY7 -> 0 | JP8: =IF('[5]بيانات معلمين'!BS7=0,"",'[5]بيانات معلمين'!BS7) ->  | JQ8: =IF('[5]بيانات معلمين'!BT7=0,"",'[5]بيانات معلمين'!BT7) ->  | JR8: =ROUND(SUM(JD8:JQ8),2) -> 113.76 | JS8: =IF('[5]بيانات معلمين'!BV7=0,"",'[5]بيانات معلمين'!BV7) -> 40.51 | JT8: =IF('[5]بيانات معلمين'!BW7=0,"",'[5]بيانات معلمين'!BW7) ->  | JU8: =IF('[5]بيانات معلمين'!BX7=0,"",'[5]بيانات معلمين'!BX7) ->  | JV8: =IF('[5]بيانات معلمين'!BY7=0,"",'[5]بيانات معلمين'!BY7) ->  | JW8: =IF('[5]بيانات معلمين'!BZ7=0,"",'[5]بيانات معلمين'!BZ7) ->  | JX8: =IF('[5]بيانات معلمين'!CA7=0,"",'[5]بيانات معلمين'!CA7) ->  | JY8: =IF('[5]بيانات معلمين'!CB7=0,"",'[5]بيانات معلمين'!CB7) ->  | JZ8: =ROUND(SUM(JS8:JY8),2) -> 40.51 | KA8: =IF('[5]بيانات معلمين'!CD7=0,"",'[5]بيانات معلمين'!CD7) ->  | KB8: =IF('[5]بيانات معلمين'!CE7=0,"",'[5]بيانات معلمين'!CE7) ->  | KC8: =IF('[5]بيانات معلمين'!CF7=0,"",'[5]بيانات معلمين'!CF7) ->  | KD8: =IF('[5]بيانات معلمين'!CG7=0,"",ROUND(IF(($HD8+($HE8*50%)-$HE8-(11%*$HD8)-$JC8-$JR8-$KE8-$HH8-HE8/47-2000)*0.025<=0,0,($HD8+($HE8*50%)-$HE8-(11%*$HD8)-$JC8-$JR8-$KE8-$HH8-HE8/47-2000)*0.025),2)) -> 15.11 | KE8: =IF('[5]بيانات معلمين'!CH7=0,"",'[5]بيانات معلمين'!CH7) -> 7.73 | KF8: =IF('[5]بيانات معلمين'!CI7=0,"",'[5]بيانات معلمين'!CI7) ->  | KG8: =IF('[5]بيانات معلمين'!CJ7=0,"",'[5]بيانات معلمين'!CJ7) ->  | KH8: =IF('[5]بيانات معلمين'!CK7=0,"",'[5]بيانات معلمين'!CK7) ->  | KI8: =IF('[5]بيانات معلمين'!CL7=0,"",'[5]بيانات معلمين'!CL7) ->  | KJ8: =IF('[5]بيانات معلمين'!CM7=0,"",'[5]بيانات معلمين'!CM7) ->  | KK8: =IF('[5]بيانات معلمين'!CN7=0,"",'[5]بيانات معلمين'!CN7) -> 33.9244 | KL8: =SUM(KA8:KK8) -> 56.7644 | KM8: =IF(KL8="","",(KL8-TRUNC(KL8))*100) -> 76.44 | KN8: =IF(KL8="","",TRUNC(KL8)) -> 56 | KO8: =KY8-KQ8 -> 0.0256 | KP8: =SUM(IR8:IX8)+SUM(IZ8:JB8)+SUM(JD8:JQ8)+SUM(JS8:JY8)+SUM(KA8:KK8)+KO8 -> 1344.1 | KQ8: =FLOOR(ROUND(KY8,2),0.05) -> 3849.75 | KR8: =IF('[5]بيانات معلمين'!CR7=0,"",'[5]بيانات معلمين'!CR7) -> ابراهيم عثمان جهورى عبدالله | KS8: =IF('[5]بيانات معلمين'!CS7=0,"",'[5]بيانات معلمين'!CS7) -> البنك الأهلى | KT8: =IF('[5]بيانات معلمين'!CT7=0,"",'[5]بيانات معلمين'!CT7) ->  | KU8: =IF('[5]بيانات معلمين'!CU7=0,"",'[5]بيانات معلمين'!CU7) -> 26905202700455 | KW8: 1 | KY8: =IF($IQ8="",0,($IQ8-(SUM(IR8:IX8)+SUM(IZ8:JB8)+SUM(JD8:JQ8)+SUM(JS8:JY8)+SUM(KA8:KK8)))) -> 3849.7756 | LE8: ='[5]جزاءات 155'!F7 -> 0 | LF8: ='[5]جزاءات 155'!E7 -> 0 | AES8: =IF('[5]استقطاعات 155'!Q7="","",'[5]مرتب 155'!M7) ->  | AEU8: 1 | AEV8: =IF(AES8="","",B8) ->  | AEW8: =IF(AES8="","",C8) ->  | AEX8: =AES8 ->  | AEY8: ='[5]استقطاعات 155'!Q7 -> 0 | AEZ8: =IF(AEX8="","",AEX8*0.005*12) ->  | AFA8: =IF(AND(AFB8<=1,AFB8>0),1,AFB8) -> 0 | AFB8: =IF(AEY8>10000,10000*0.0006,AEY8*0.0006) -> 0 | AFC8: =AEY8-10000 -> -10000 | AFD8: =IF(AFC8>0,AFC8*1,0) -> 0 | AFE8: =IF(AFD8>50000,40000*0.0012,AFD8*0.0012) -> 0 | AFF8: -40000 | AFG8: =IF(AFF8>0,AFF8*1,0) -> 0 | AFH8: =IF(AFG8>60000,60000,AFG8) -> 0 | AFI8: =AFG8*0.0024 -> 0 | AFJ8: 0 | AFK8: 0 | AFL8: 0 | AFM8: =ROUND(SUM(AFK8+AFL8),2) -> 0
A9: =IF(F9=1,"1",IF(F9=2,"2",IF(F9=3,"3",IF(G9="أجازة","أجازة",IF(G9="بنك","بنك",""))))) -> 1 | B9: 1 | C9: ='[5]مرتب 155'!C8 -> معلم خبير | D9: ='[5]مرتب 155'!D8 -> مدير عام | E9: 3 | F9: 1 | G9: ='[5]ادخال بيانات 155'!N8 -> أهلى | H9: =IF(B9="","",SUBTOTAL(3,$B$8:B9)) -> 2 | I9: =IF('[5]مرتب 155'!I8="","",('[5]مرتب 155'!I8-TRUNC('[5]مرتب 155'!I8))*100) -> 95 | J9: =IF('[5]مرتب 155'!I8="","",TRUNC('[5]مرتب 155'!I8)) -> 702 | K9: =IF('[5]مرتب 155'!J8="","",('[5]مرتب 155'!J8-TRUNC('[5]مرتب 155'!J8))*100) -> 0 | L9: =IF('[5]مرتب 155'!J8="","",TRUNC('[5]مرتب 155'!J8)) -> 84000 | M9: =IF('[5]مرتب 155'!K8="","",('[5]مرتب 155'!K8-TRUNC('[5]مرتب 155'!K8))*100) -> 2 | N9: =IF('[5]مرتب 155'!K8="","",TRUNC('[5]مرتب 155'!K8)) -> 49220 | O9: =IF('[5]مرتب 155'!L8="","",('[5]مرتب 155'!L8-TRUNC('[5]مرتب 155'!L8))*100) -> 56 | P9: =IF('[5]مرتب 155'!L8="","",TRUNC('[5]مرتب 155'!L8)) -> 4972 | Q9: =IF('[5]مرتب 155'!M8="","",('[5]مرتب 155'!M8-TRUNC('[5]مرتب 155'!M8))*100) -> 8 | R9: =IF('[5]مرتب 155'!M8="","",TRUNC('[5]مرتب 155'!M8)) -> 1916 | S9: =IF($ASM$3=1,"",IF('[5]مرتب 155'!P8="","",('[5]مرتب 155'!P8-TRUNC('[5]مرتب 155'!P8))*100)) -> 50 | T9: =IF($ASM$3=1,"",IF('[5]مرتب 155'!P8="","",TRUNC('[5]مرتب 155'!P8))) -> 37 | U9: =IF('[5]مرتب 155'!$Q8="","",('[5]مرتب 155'!$Q8-TRUNC('[5]مرتب 155'!$Q8))*100) -> 56 | V9: =IF('[5]مرتب 155'!$Q8="","",TRUNC('[5]مرتب 155'!$Q8)) -> 65 | W9: =IF('[5]مرتب 155'!$R8="","",('[5]مرتب 155'!$R8-TRUNC('[5]مرتب 155'!$R8))*100) -> 30 | X9: =IF('[5]مرتب 155'!$R8="","",TRUNC('[5]مرتب 155'!$R8)) -> 70 | Y9: =IF($ASK$3=1,"",IF('[5]مرتب 155'!S8="","",('[5]مرتب 155'!S8-TRUNC('[5]مرتب 155'!S8))*100)) -> 48 | Z9: =IF($ASK$3=1,"",IF('[5]مرتب 155'!S8="","",TRUNC('[5]مرتب 155'!S8))) -> 351 | AA9: =IF($ASI$5=1,"",IF('[5]مرتب 155'!T8="","",('[5]مرتب 155'!T8-TRUNC('[5]مرتب 155'!T8))*100)) -> 16 | AB9: =IF($ASI$5=1,"",IF('[5]مرتب 155'!T8="","",TRUNC('[5]مرتب 155'!T8))) -> 1230 | AC9: =IF($ASL$6=1,"",IF('[5]مرتب 155'!U8="","",('[5]مرتب 155'!U8-TRUNC('[5]مرتب 155'!U8))*100)) -> 74 | AD9: =IF($ASL$6=1,"",IF('[5]مرتب 155'!U8="","",TRUNC('[5]مرتب 155'!U8))) -> 175 | AE9: =IF($ASI$6=1,"",IF('[5]مرتب 155'!V8="","",('[5]مرتب 155'!V8-TRUNC('[5]مرتب 155'!V8))*100)) -> 74 | AF9: =IF($ASI$6=1,"",IF('[5]مرتب 155'!V8="","",TRUNC('[5]مرتب 155'!V8))) -> 175 | AG9: =IF($ASI$4=1,"",IF('[5]مرتب 155'!W8="","",('[5]مرتب 155'!W8-TRUNC('[5]مرتب 155'!W8))*100)) -> 0 | AH9: =IF($ASI$4=1,"",IF('[5]مرتب 155'!W8="","",TRUNC('[5]مرتب 155'!W8))) -> 325 | AI9: =IF('[5]مرتب 155'!X8="","",('[5]مرتب 155'!X8-TRUNC('[5]مرتب 155'!X8))*100) -> 0 | AJ9: =IF('[5]مرتب 155'!X8="","",TRUNC('[5]مرتب 155'!X8)) -> 6 | AK9: =IF('[5]مرتب 155'!Y8="","",('[5]مرتب 155'!Y8-TRUNC('[5]مرتب 155'!Y8))*100) -> 0 | AL9: =IF('[5]مرتب 155'!Y8="","",TRUNC('[5]مرتب 155'!Y8)) -> 4 | AM9: =IF($ASB$4=1,"",IF('[5]مرتب 155'!Z8="","",('[5]مرتب 155'!Z8-TRUNC('[5]مرتب 155'!Z8))*100)) -> 0 | AN9: =IF($ASB$4=1,"",IF('[5]مرتب 155'!Z8="","",TRUNC('[5]مرتب 155'!Z8))) -> 100 | AO9: =IF('[5]مرتب 155'!AA8="","",('[5]مرتب 155'!AA8-TRUNC('[5]مرتب 155'!AA8))*100) -> 0 | AP9: =IF('[5]مرتب 155'!AA8="","",TRUNC('[5]مرتب 155'!AA8)) -> 40 | AQ9: =IF('[5]مرتب 155'!AB8="","",('[5]مرتب 155'!AB8-TRUNC('[5]مرتب 155'!AB8))*100) ->  | AR9: =IF('[5]مرتب 155'!AB8="","",TRUNC('[5]مرتب 155'!AB8)) ->  | AS9: =IF('[5]مرتب 155'!AC8="","",('[5]مرتب 155'!AC8-TRUNC('[5]مرتب 155'!AC8))*100) ->  | AT9: =IF('[5]مرتب 155'!AC8="","",TRUNC('[5]مرتب 155'!AC8)) ->  | AU9: =IF('[5]مرتب 155'!AD8="","",('[5]مرتب 155'!AD8-TRUNC('[5]مرتب 155'!AD8))*100) ->  | AV9: =IF('[5]مرتب 155'!AD8="","",TRUNC('[5]مرتب 155'!AD8)) ->  | AW9: =IF('[5]مرتب 155'!AE8="","",('[5]مرتب 155'!AE8-TRUNC('[5]مرتب 155'!AE8))*100) ->  | AX9: =IF('[5]مرتب 155'!AE8="","",TRUNC('[5]مرتب 155'!AE8)) ->  | AY9: =IF('[5]مرتب 155'!AF8="","",('[5]مرتب 155'!AF8-TRUNC('[5]مرتب 155'!AF8))*100) -> 0 | AZ9: =IF('[5]مرتب 155'!AF8="","",TRUNC('[5]مرتب 155'!AF8)) -> 475 | BA9: =IF('[5]مرتب 155'!AG8="","",('[5]مرتب 155'!AG8-TRUNC('[5]مرتب 155'!AG8))*100) ->  | BB9: =IF('[5]مرتب 155'!AG8="","",TRUNC('[5]مرتب 155'!AG8)) ->  | BC9: =IF('[5]مرتب 155'!AH8="","",('[5]مرتب 155'!AH8-TRUNC('[5]مرتب 155'!AH8))*100) ->  | BD9: =IF('[5]مرتب 155'!AH8="","",TRUNC('[5]مرتب 155'!AH8)) ->  | BE9: =IF('[5]مرتب 155'!AI8="","",('[5]مرتب 155'!AI8-TRUNC('[5]مرتب 155'!AI8))*100) ->  | BF9: =IF('[5]مرتب 155'!AI8="","",TRUNC('[5]مرتب 155'!AI8)) ->  | BG9: =IF('[5]مرتب 155'!AJ8="","",('[5]مرتب 155'!AJ8-TRUNC('[5]مرتب 155'!AJ8))*100) ->  | BH9: =IF('[5]مرتب 155'!AJ8="","",TRUNC('[5]مرتب 155'!AJ8)) ->  | BI9: =IF('[5]مرتب 155'!AK8="","",('[5]مرتب 155'!AK8-TRUNC('[5]مرتب 155'!AK8))*100) ->  | BJ9: =IF('[5]مرتب 155'!AK8="","",TRUNC('[5]مرتب 155'!AK8)) ->  | BK9: =IF('[5]مرتب 155'!AL8="","",('[5]مرتب 155'!AL8-TRUNC('[5]مرتب 155'!AL8))*100) ->  | BL9: =IF('[5]مرتب 155'!AL8="","",TRUNC('[5]مرتب 155'!AL8)) ->  | BM9: =IF('[5]مرتب 155'!AM8="","",('[5]مرتب 155'!AM8-TRUNC('[5]مرتب 155'!AM8))*100) ->  | BN9: =IF('[5]مرتب 155'!AM8="","",TRUNC('[5]مرتب 155'!AM8)) ->  | BO9: =IF('[5]مرتب 155'!AN8="","",('[5]مرتب 155'!AN8-TRUNC('[5]مرتب 155'!AN8))*100) ->  | BP9: =IF('[5]مرتب 155'!AN8="","",TRUNC('[5]مرتب 155'!AN8)) ->  | BQ9: =IF('[5]مرتب 155'!AO8="","",('[5]مرتب 155'!AO8-TRUNC('[5]مرتب 155'!AO8))*100) ->  | BR9: =IF('[5]مرتب 155'!AO8="","",TRUNC('[5]مرتب 155'!AO8)) ->  | BS9: =IF('[5]مرتب 155'!AP8="","",('[5]مرتب 155'!AP8-TRUNC('[5]مرتب 155'!AP8))*100) -> 71 | BT9: =IF('[5]مرتب 155'!AP8="","",TRUNC('[5]مرتب 155'!AP8)) -> 596 | BU9: =IF('[5]مرتب 155'!AQ8="","",('[5]مرتب 155'!AQ8-TRUNC('[5]مرتب 155'!AQ8))*100) -> 18 | BV9: =IF('[5]مرتب 155'!AQ8="","",TRUNC('[5]مرتب 155'!AQ8)) -> 149 | BW9: =IF('[5]مرتب 155'!AR8="","",('[5]مرتب 155'!AR8-TRUNC('[5]مرتب 155'!AR8))*100) -> 73 | BX9: =IF('[5]مرتب 155'!AR8="","",TRUNC('[5]مرتب 155'!AR8)) -> 49 | BY9: =IF('[5]مرتب 155'!AS8="","",('[5]مرتب 155'!AS8-TRUNC('[5]مرتب 155'!AS8))*100) -> 16 | BZ9: =IF('[5]مرتب 155'!AS8="","",TRUNC('[5]مرتب 155'!AS8)) -> 62 | CA9: =IF('[5]مرتب 155'!AT8="","",('[5]مرتب 155'!AT8-TRUNC('[5]مرتب 155'!AT8))*100) -> 0 | CB9: =IF('[5]مرتب 155'!AT8="","",TRUNC('[5]مرتب 155'!AT8)) -> 10 | CC9: =IF($ASH$2=1,"",IF('[5]مرتب 155'!AU8="","",('[5]مرتب 155'!AU8-TRUNC('[5]مرتب 155'!AU8))*100)) -> 26 | CD9: =IF($ASH$2=1,"",IF('[5]مرتب 155'!AU8="","",TRUNC('[5]مرتب 155'!AU8))) -> 481 | CE9: =IF('[5]مرتب 155'!AV8="","",('[5]مرتب 155'!AV8-TRUNC('[5]مرتب 155'!AV8))*100) -> 60 | CF9: =IF('[5]مرتب 155'!AV8="","",TRUNC('[5]مرتب 155'!AV8)) -> 6321 | CG9: =IF('[5]مرتب 155'!AW8="","",('[5]مرتب 155'!AW8-TRUNC('[5]مرتب 155'!AW8))*100) -> 71 | CH9: =IF('[5]مرتب 155'!AW8="","",TRUNC('[5]مرتب 155'!AW8)) -> 596 | CI9: =IF('[5]مرتب 155'!AX8="","",('[5]مرتب 155'!AX8-TRUNC('[5]مرتب 155'!AX8))*100) -> 53 | CJ9: =IF('[5]مرتب 155'!AX8="","",TRUNC('[5]مرتب 155'!AX8)) -> 447 | CK9: =IF('[5]مرتب 155'!AY8="","",('[5]مرتب 155'!AY8-TRUNC('[5]مرتب 155'!AY8))*100) -> 73 | CL9: =IF('[5]مرتب 155'!AY8="","",TRUNC('[5]مرتب 155'!AY8)) -> 49 | CM9: =IF('[5]مرتب 155'!BB8="","",('[5]مرتب 155'!BB8-TRUNC('[5]مرتب 155'!BB8))*100) -> 73 | CN9: =IF('[5]مرتب 155'!BB8="","",TRUNC('[5]مرتب 155'!BB8)) -> 49 | CO9: =IF('[5]مرتب 155'!AZ8="","",('[5]مرتب 155'!AZ8-TRUNC('[5]مرتب 155'!AZ8))*100) -> 18 | CP9: =IF('[5]مرتب 155'!AZ8="","",TRUNC('[5]مرتب 155'!AZ8)) -> 149 | CQ9: =IF('[5]مرتب 155'!BA8="","",('[5]مرتب 155'!BA8-TRUNC('[5]مرتب 155'!BA8))*100) -> 73 | CR9: =IF('[5]مرتب 155'!BA8="","",TRUNC('[5]مرتب 155'!BA8)) -> 49 | CS9: =IF('[5]مرتب 155'!BC8="","",('[5]مرتب 155'!BC8-TRUNC('[5]مرتب 155'!BC8))*100) -> 16 | CT9: =IF('[5]مرتب 155'!BC8="","",TRUNC('[5]مرتب 155'!BC8)) -> 62 | CU9: =IF('[5]مرتب 155'!BD8="","",('[5]مرتب 155'!BD8-TRUNC('[5]مرتب 155'!BD8))*100) -> 77 | CV9: =IF('[5]مرتب 155'!BD8="","",TRUNC('[5]مرتب 155'!BD8)) -> 1404 | CW9: =IF('[5]مرتب 155'!BE8="","",('[5]مرتب 155'!BE8-TRUNC('[5]مرتب 155'!BE8))*100) ->  | CX9: =IF('[5]مرتب 155'!BE8="","",TRUNC('[5]مرتب 155'!BE8)) ->  | CY9: =IF('[5]مرتب 155'!BF8="","",('[5]مرتب 155'!BF8-TRUNC('[5]مرتب 155'!BF8))*100) ->  | CZ9: =IF('[5]مرتب 155'!BF8="","",TRUNC('[5]مرتب 155'!BF8)) ->  | DA9: =IF('[5]مرتب 155'!BG8="","",('[5]مرتب 155'!BG8-TRUNC('[5]مرتب 155'!BG8))*100) ->  | DB9: =IF('[5]مرتب 155'!BG8="","",TRUNC('[5]مرتب 155'!BG8)) ->  | DC9: =IF('[5]مرتب 155'!BH8="","",('[5]مرتب 155'!BH8-TRUNC('[5]مرتب 155'!BH8))*100) -> 0 | DD9: =IF('[5]مرتب 155'!BH8="","",TRUNC('[5]مرتب 155'!BH8)) -> 0 | DE9: =IF('[5]مرتب 155'!BI8="","",('[5]مرتب 155'!BI8-TRUNC('[5]مرتب 155'!BI8))*100) -> 50 | DF9: =IF('[5]مرتب 155'!BI8="","",TRUNC('[5]مرتب 155'!BI8)) -> 4 | DG9: =IF('[5]مرتب 155'!BJ8="","",('[5]مرتب 155'!BJ8-TRUNC('[5]مرتب 155'!BJ8))*100) -> 13 | DH9: =IF('[5]مرتب 155'!BJ8="","",TRUNC('[5]مرتب 155'!BJ8)) -> 134 | DI9: =IF('[5]مرتب 155'!BK8="","",('[5]مرتب 155'!BK8-TRUNC('[5]مرتب 155'!BK8))*100) ->  | DJ9: =IF('[5]مرتب 155'!BK8="","",TRUNC('[5]مرتب 155'!BK8)) ->  | DK9: =IF('[5]مرتب 155'!BL8="","",('[5]مرتب 155'!BL8-TRUNC('[5]مرتب 155'!BL8))*100) -> 0 | DL9: =IF('[5]مرتب 155'!BL8="","",TRUNC('[5]مرتب 155'!BL8)) -> 1 | DM9: =IF('[5]مرتب 155'!BM8="","",('[5]مرتب 155'!BM8-TRUNC('[5]مرتب 155'!BM8))*100) ->  | DN9: =IF('[5]مرتب 155'!BM8="","",TRUNC('[5]مرتب 155'!BM8)) ->  | DO9: =IF('[5]مرتب 155'!BN8="","",('[5]مرتب 155'!BN8-TRUNC('[5]مرتب 155'!BN8))*100) ->  | DP9: =IF('[5]مرتب 155'!BN8="","",TRUNC('[5]مرتب 155'!BN8)) ->  | DQ9: =IF('[5]مرتب 155'!BO8="","",('[5]مرتب 155'!BO8-TRUNC('[5]مرتب 155'!BO8))*100) ->  | DR9: =IF('[5]مرتب 155'!BO8="","",TRUNC('[5]مرتب 155'!BO8)) ->  | DS9: =IF('[5]مرتب 155'!BP8="","",('[5]مرتب 155'!BP8-TRUNC('[5]مرتب 155'!BP8))*100) ->  | DT9: =IF('[5]مرتب 155'!BP8="","",TRUNC('[5]مرتب 155'!BP8)) ->  | DU9: =IF('[5]مرتب 155'!BQ8="","",('[5]مرتب 155'!BQ8-TRUNC('[5]مرتب 155'!BQ8))*100) ->  | DV9: =IF('[5]مرتب 155'!BQ8="","",TRUNC('[5]مرتب 155'!BQ8)) ->  | DW9: =IF('[5]مرتب 155'!BR8="","",('[5]مرتب 155'!BR8-TRUNC('[5]مرتب 155'!BR8))*100) ->  | DX9: =IF('[5]مرتب 155'!BR8="","",TRUNC('[5]مرتب 155'!BR8)) ->  | DY9: =IF('[5]مرتب 155'!BS8="","",('[5]مرتب 155'!BS8-TRUNC('[5]مرتب 155'!BS8))*100) ->  | DZ9: =IF('[5]مرتب 155'!BS8="","",TRUNC('[5]مرتب 155'!BS8)) ->  | EA9: =IF('[5]مرتب 155'!BT8="","",('[5]مرتب 155'!BT8-TRUNC('[5]مرتب 155'!BT8))*100) -> 0 | EB9: =IF('[5]مرتب 155'!BT8="","",TRUNC('[5]مرتب 155'!BT8)) -> 0 | EC9: =IF('[5]مرتب 155'!BU8="","",('[5]مرتب 155'!BU8-TRUNC('[5]مرتب 155'!BU8))*100) ->  | ED9: =IF('[5]مرتب 155'!BU8="","",TRUNC('[5]مرتب 155'!BU8)) ->  | EE9: =IF('[5]مرتب 155'!BV8="","",('[5]مرتب 155'!BV8-TRUNC('[5]مرتب 155'!BV8))*100) ->  | EF9: =IF('[5]مرتب 155'!BV8="","",TRUNC('[5]مرتب 155'!BV8)) ->  | EG9: =IF('[5]مرتب 155'!BW8="","",('[5]مرتب 155'!BW8-TRUNC('[5]مرتب 155'!BW8))*100) -> 63 | EH9: =IF('[5]مرتب 155'!BW8="","",TRUNC('[5]مرتب 155'!BW8)) -> 139 | EI9: =IF('[5]مرتب 155'!BX8="","",('[5]مرتب 155'!BX8-TRUNC('[5]مرتب 155'!BX8))*100) ->  | EJ9: =IF('[5]مرتب 155'!BX8="","",TRUNC('[5]مرتب 155'!BX8)) ->  | EK9: =IF('[5]مرتب 155'!BY8="","",('[5]مرتب 155'!BY8-TRUNC('[5]مرتب 155'!BY8))*100) ->  | EL9: =IF('[5]مرتب 155'!BY8="","",TRUNC('[5]مرتب 155'!BY8)) ->  | EM9: =IF('[5]مرتب 155'!BZ8="","",('[5]مرتب 155'!BZ8-TRUNC('[5]مرتب 155'!BZ8))*100) ->  | EN9: =IF('[5]مرتب 155'!BZ8="","",TRUNC('[5]مرتب 155'!BZ8)) ->  | EO9: =IF('[5]مرتب 155'!CA8="","",('[5]مرتب 155'!CA8-TRUNC('[5]مرتب 155'!CA8))*100) ->  | EP9: =IF('[5]مرتب 155'!CA8="","",TRUNC('[5]مرتب 155'!CA8)) ->  | EQ9: =IF('[5]مرتب 155'!CB8="","",('[5]مرتب 155'!CB8-TRUNC('[5]مرتب 155'!CB8))*100) ->  | ER9: =IF('[5]مرتب 155'!CB8="","",TRUNC('[5]مرتب 155'!CB8)) ->  | ES9: =IF('[5]مرتب 155'!CC8="","",('[5]مرتب 155'!CC8-TRUNC('[5]مرتب 155'!CC8))*100) ->  | ET9: =IF('[5]مرتب 155'!CC8="","",TRUNC('[5]مرتب 155'!CC8)) ->  | EU9: =IF('[5]مرتب 155'!CD8="","",('[5]مرتب 155'!CD8-TRUNC('[5]مرتب 155'!CD8))*100) ->  | EV9: =IF('[5]مرتب 155'!CD8="","",TRUNC('[5]مرتب 155'!CD8)) ->  | EW9: =IF('[5]مرتب 155'!CE8="","",('[5]مرتب 155'!CE8-TRUNC('[5]مرتب 155'!CE8))*100) -> 0 | EX9: =IF('[5]مرتب 155'!CE8="","",TRUNC('[5]مرتب 155'!CE8)) -> 0 | EY9: =IF('[5]مرتب 155'!CF8="","",('[5]مرتب 155'!CF8-TRUNC('[5]مرتب 155'!CF8))*100) ->  | EZ9: =IF('[5]مرتب 155'!CF8="","",TRUNC('[5]مرتب 155'!CF8)) ->  | FA9: =IF('[5]مرتب 155'!CG8="","",('[5]مرتب 155'!CG8-TRUNC('[5]مرتب 155'!CG8))*100) ->  | FB9: =IF('[5]مرتب 155'!CG8="","",TRUNC('[5]مرتب 155'!CG8)) ->  | FC9: =IF('[5]مرتب 155'!CH8="","",('[5]مرتب 155'!CH8-TRUNC('[5]مرتب 155'!CH8))*100) ->  | FD9: =IF('[5]مرتب 155'!CH8="","",TRUNC('[5]مرتب 155'!CH8)) ->  | FE9: =IF('[5]مرتب 155'!CI8="","",('[5]مرتب 155'!CI8-TRUNC('[5]مرتب 155'!CI8))*100) -> 0 | FF9: =IF('[5]مرتب 155'!CI8="","",TRUNC('[5]مرتب 155'!CI8)) -> 31 | FG9: =IF('[5]مرتب 155'!CJ8="","",('[5]مرتب 155'!CJ8-TRUNC('[5]مرتب 155'!CJ8))*100) -> 58 | FH9: =IF('[5]مرتب 155'!CJ8="","",TRUNC('[5]مرتب 155'!CJ8)) -> 9 | FI9: =IF('[5]مرتب 155'!CK8="","",('[5]مرتب 155'!CK8-TRUNC('[5]مرتب 155'!CK8))*100) ->  | FJ9: =IF('[5]مرتب 155'!CK8="","",TRUNC('[5]مرتب 155'!CK8)) ->  | FM9: =IF('[5]مرتب 155'!CM8="","",('[5]مرتب 155'!CM8-TRUNC('[5]مرتب 155'!CM8))*100) ->  | FN9: =IF('[5]مرتب 155'!CM8="","",TRUNC('[5]مرتب 155'!CM8)) ->  | FO9: =IF('[5]مرتب 155'!CN8="","",('[5]مرتب 155'!CN8-TRUNC('[5]مرتب 155'!CN8))*100) -> 75 | FP9: =IF('[5]مرتب 155'!CN8="","",TRUNC('[5]مرتب 155'!CN8)) -> 51 | FQ9: =IF('[5]مرتب 155'!CO8="","",('[5]مرتب 155'!CO8-TRUNC('[5]مرتب 155'!CO8))*100) ->  | FR9: =IF('[5]مرتب 155'!CO8="","",TRUNC('[5]مرتب 155'!CO8)) ->  | FS9: =IF('[5]مرتب 155'!CP8="","",('[5]مرتب 155'!CP8-TRUNC('[5]مرتب 155'!CP8))*100) -> 93.61 | FT9: =IF('[5]مرتب 155'!CP8="","",TRUNC('[5]مرتب 155'!CP8)) -> 41 | FU9: =IF('[5]مرتب 155'!CQ8="","",('[5]مرتب 155'!CQ8-TRUNC('[5]مرتب 155'!CQ8))*100) -> 3.39 | FV9: =IF('[5]مرتب 155'!CQ8="","",TRUNC('[5]مرتب 155'!CQ8)) -> 0 | FW9: =IF('[5]مرتب 155'!CR8="","",('[5]مرتب 155'!CR8-TRUNC('[5]مرتب 155'!CR8))*100) -> 70 | FX9: =IF('[5]مرتب 155'!CR8="","",TRUNC('[5]مرتب 155'!CR8)) -> 1678 | FY9: =IF('[5]مرتب 155'!CS8="","",('[5]مرتب 155'!CS8-TRUNC('[5]مرتب 155'!CS8))*100) -> 90 | FZ9: =IF('[5]مرتب 155'!CS8="","",TRUNC('[5]مرتب 155'!CS8)) -> 4642 | GA9: 2 | GB9: ='[5]مرتب 155'!CU8 -> البنك الأهلى | GC9: ='[5]مرتب 155'!CV8 ->  | GD9: 2 | GE9: 2 | GR9: 2 | GS9: 2 | GT9: =IF('[5]بيانات معلمين'!B8=0,"",'[5]بيانات معلمين'!B8) -> احمد ابوالفضل خليفه معاذ | GU9: =IF('[5]بيانات معلمين'!C8=0,"",'[5]بيانات معلمين'!C8) -> معلم خبير | GV9: =IF('[5]بيانات معلمين'!D8=0,"",'[5]بيانات معلمين'!D8) -> مدير عام | GW9: 1 | GX9: 1 | GY9: دفع | GZ9: =IF(GT9="","",SUBTOTAL(3,GT$8:GT9)) -> 2 | HA9: =IF('[5]بيانات معلمين'!G8=0,"",IF($LF9=0,ROUND(($LE$5-$LE9)*'[5]بيانات معلمين'!G8/$LE$5,2),IF($LE9=0,ROUND($LF9*'[5]بيانات معلمين'!G8/$LE$5,2)))) -> 702.95 | HD9: =ROUND(SUM(HE9:IG9),2)-HF9 -> 4972.56 | HE9: =IF('[5]بيانات معلمين'!K8=0,"",IF($LF9=0,ROUND(($LE$5-$LE9)*'[5]بيانات معلمين'!K8/$LE$5,2),IF($LE9=0,ROUND($LF9*'[5]بيانات معلمين'!K8/$LE$5,2)))) -> 1916.08 | HF9: =IF('[5]بيانات معلمين'!L8=0,0,IF($LF9=0,ROUND(($LE$5-$LE9)*'[5]بيانات معلمين'!L8/$LE$5,2),IF($LE9=0,ROUND($LF9*'[5]بيانات معلمين'!L8/$LE$5,2)))) -> 37.5 | HG9: =IF('[5]بيانات معلمين'!M8=0,0,IF($LF9=0,ROUND(($LE$5-$LE9)*'[5]بيانات معلمين'!M8/$LE$5,2),IF($LE9=0,ROUND($LF9*'[5]بيانات معلمين'!M8/$LE$5,2)))) -> 0 | HH9: =IF($ASM$3=1,"",HF9+HG9) -> 37.5 | HI9: =IF('[5]بيانات معلمين'!O8=0,"",IF($LF9=0,ROUND(($LE$5-$LE9)*'[5]بيانات معلمين'!O8/$LE$5,2),IF($LE9=0,ROUND($LF9*'[5]بيانات معلمين'!O8/$LE$5,2)))) -> 65.56 | HJ9: =IF('[5]بيانات معلمين'!P8=0,"",IF($LF9=0,ROUND(($LE$5-$LE9)*'[5]بيانات معلمين'!P8/$LE$5,2),IF($LE9=0,ROUND($LF9*'[5]بيانات معلمين'!P8/$LE$5,2)))) -> 70.3 | HK9: =IF($ASK$3=1,"",IF('[5]بيانات معلمين'!Q8=0,"",IF($LF9=0,ROUND(($LE$5-$LE9)*'[5]بيانات معلمين'!Q8/$LE$5,2),IF($LE9=0,ROUND($LF9*'[5]بيانات معلمين'!Q8/$LE$5,2))))) -> 351.48 | HL9: =IF($ASI$5=1,"",IF('[5]بيانات معلمين'!R8=0,"",IF($LF9=0,ROUND(($LE$5-$LE9)*'[5]بيانات معلمين'!R8/$LE$5,2),IF($LE9=0,ROUND($LF9*'[5]بيانات معلمين'!R8/$LE$5,2))))) -> 1230.16 | HM9: =IF($ASL$6=1,"",IF('[5]بيانات معلمين'!S8=0,"",IF($LF9=0,ROUND(($LE$5-$LE9)*'[5]بيانات معلمين'!S8/$LE$5,2),IF($LE9=0,ROUND($LF9*'[5]بيانات معلمين'!S8/$LE$5,2))))) -> 175.74 | HN9: =IF($ASI$6=1,"",IF('[5]بيانات معلمين'!T8=0,"",IF($LF9=0,ROUND(($LE$5-$LE9)*'[5]بيانات معلمين'!T8/$LE$5,2),IF($LE9=0,ROUND($LF9*'[5]بيانات معلمين'!T8/$LE$5,2))))) -> 175.74 | HO9: =IF($ASI$4=1,"",IF('[5]بيانات معلمين'!U8=0,"",IF($LF9=0,ROUND(($LE$5-$LE9)*'[5]بيانات معلمين'!U8/$LE$5,2),IF($LE9=0,ROUND($LF9*'[5]بيانات معلمين'!U8/$LE$5,2))))) -> 325 | HP9: =IF('[5]بيانات معلمين'!V8=0,"",IF($LF9=0,ROUND(($LE$5-$LE9)*'[5]بيانات معلمين'!V8/$LE$5,2),IF($LE9=0,ROUND($LF9*'[5]بيانات معلمين'!V8/$LE$5,2)))) -> 6 | HQ9: =IF('[5]بيانات معلمين'!W8=0,"",IF($LF9=0,ROUND(($LE$5-$LE9)*'[5]بيانات معلمين'!W8/$LE$5,2),IF($LE9=0,ROUND($LF9*'[5]بيانات معلمين'!W8/$LE$5,2)))) -> 4 | HR9: =IF($ASB$4=1,"",IF('[5]بيانات معلمين'!X8=0,"",IF($LF9=0,ROUND(($LE$5-$LE9)*'[5]بيانات معلمين'!X8/$LE$5,2),IF($LE9=0,ROUND($LF9*'[5]بيانات معلمين'!X8/$LE$5,2))))) -> 100 | HS9: =IF('[5]بيانات معلمين'!Y8=0,"",IF($LF9=0,ROUND(($LE$5-$LE9)*'[5]بيانات معلمين'!Y8/$LE$5,2),IF($LE9=0,ROUND($LF9*'[5]بيانات معلمين'!Y8/$LE$5,2)))) -> 40 | HT9: =IF('[5]بيانات معلمين'!Z8=0,"",IF($LF9=0,ROUND(($LE$5-$LE9)*'[5]بيانات معلمين'!Z8/$LE$5,2),IF($LE9=0,ROUND($LF9*'[5]بيانات معلمين'!Z8/$LE$5,2)))) ->  | HU9: =IF('[5]بيانات معلمين'!AA8=0,"",IF($LF9=0,ROUND(($LE$5-$LE9)*'[5]بيانات معلمين'!AA8/$LE$5,2),IF($LE9=0,ROUND($LF9*'[5]بيانات معلمين'!AA8/$LE$5,2)))) ->  | HV9: =IF('[5]بيانات معلمين'!AB8=0,"",IF($LF9=0,ROUND(($LE$5-$LE9)*'[5]بيانات معلمين'!AB8/$LE$5,2),IF($LE9=0,ROUND($LF9*'[5]بيانات معلمين'!AB8/$LE$5,2)))) ->  | HW9: =IF('[5]بيانات معلمين'!AC8=0,"",IF($LF9=0,ROUND(($LE$5-$LE9)*'[5]بيانات معلمين'!AC8/$LE$5,2),IF($LE9=0,ROUND($LF9*'[5]بيانات معلمين'!AC8/$LE$5,2)))) ->  | HX9: =IF('[5]بيانات معلمين'!AD8=0,"",IF($LF9=0,ROUND(($LE$5-$LE9)*'[5]بيانات معلمين'!AD8/$LE$5,2),IF($LE9=0,ROUND($LF9*'[5]بيانات معلمين'!AD8/$LE$5,2)))) -> 475 | HY9: =IF('[5]بيانات معلمين'!AE8=0,"",IF($LF9=0,ROUND(($LE$5-$LE9)*'[5]بيانات معلمين'!AE8/$LE$5,2),IF($LE9=0,ROUND($LF9*'[5]بيانات معلمين'!AE8/$LE$5,2)))) ->  | HZ9: =IF('[5]بيانات معلمين'!AF8=0,"",IF($LF9=0,ROUND(($LE$5-$LE9)*'[5]بيانات معلمين'!AF8/$LE$5,2),IF($LE9=0,ROUND($LF9*'[5]بيانات معلمين'!AF8/$LE$5,2)))) ->  | IA9: =IF('[5]بيانات معلمين'!AG8=0,"",IF($LF9=0,ROUND(($LE$5-$LE9)*'[5]بيانات معلمين'!AG8/$LE$5,2),IF($LE9=0,ROUND($LF9*'[5]بيانات معلمين'!AG8/$LE$5,2)))) ->  | IB9: =IF('[5]بيانات معلمين'!AH8=0,"",IF($LF9=0,ROUND(($LE$5-$LE9)*'[5]بيانات معلمين'!AH8/$LE$5,2),IF($LE9=0,ROUND($LF9*'[5]بيانات معلمين'!AH8/$LE$5,2)))) ->  | IC9: =IF('[5]بيانات معلمين'!AI8=0,"",IF($LF9=0,ROUND(($LE$5-$LE9)*'[5]بيانات معلمين'!AI8/$LE$5,2),IF($LE9=0,ROUND($LF9*'[5]بيانات معلمين'!AI8/$LE$5,2)))) ->  | ID9: =IF('[5]بيانات معلمين'!AJ8=0,"",IF($LF9=0,ROUND(($LE$5-$LE9)*'[5]بيانات معلمين'!AJ8/$LE$5,2),IF($LE9=0,ROUND($LF9*'[5]بيانات معلمين'!AJ8/$LE$5,2)))) ->  | IE9: =IF('[5]بيانات معلمين'!AK8=0,"",IF($LF9=0,ROUND(($LE$5-$LE9)*'[5]بيانات معلمين'!AK8/$LE$5,2),IF($LE9=0,ROUND($LF9*'[5]بيانات معلمين'!AK8/$LE$5,2)))) ->  | IF9: =IF('[5]بيانات معلمين'!AL8=0,"",IF($LF9=0,ROUND(($LE$5-$LE9)*'[5]بيانات معلمين'!AL8/$LE$5,2),IF($LE9=0,ROUND($LF9*'[5]بيانات معلمين'!AL8/$LE$5,2)))) ->  | IG9: =IF('[5]بيانات معلمين'!AM8=0,"",IF($LF9=0,ROUND(($LE$5-$LE9)*'[5]بيانات معلمين'!AM8/$LE$5,2),IF($LE9=0,ROUND($LF9*'[5]بيانات معلمين'!AM8/$LE$5,2)))) ->  | IH9: =IF('[5]بيانات معلمين'!AN8=0,"",IF($LF9=0,ROUND(($LE$5-$LE9)*'[5]بيانات معلمين'!AN8/$LE$5,2),IF($LE9=0,ROUND($LF9*'[5]بيانات معلمين'!AN8/$LE$5,2)))) -> 596.71 | II9: =IF('[5]بيانات معلمين'!AO8=0,"",IF($LF9=0,ROUND(($LE$5-$LE9)*'[5]بيانات معلمين'!AO8/$LE$5,2),IF($LE9=0,ROUND($LF9*'[5]بيانات معلمين'!AO8/$LE$5,2)))) -> 149.18 | IJ9: =IF('[5]بيانات معلمين'!AP8=0,"",IF($LF9=0,ROUND(($LE$5-$LE9)*'[5]بيانات معلمين'!AP8/$LE$5,2),IF($LE9=0,ROUND($LF9*'[5]بيانات معلمين'!AP8/$LE$5,2)))) -> 49.73 | IK9: =IF('[5]بيانات معلمين'!AQ8=0,"",IF($LF9=0,ROUND(($LE$5-$LE9)*'[5]بيانات معلمين'!AQ8/$LE$5,2),IF($LE9=0,ROUND($LF9*'[5]بيانات معلمين'!AQ8/$LE$5,2)))) -> 62.16 | IL9: =ROUND(SUM(IH9:IK9),2) -> 857.78 | IM9: =IF(IL9="","",(IL9-TRUNC(IL9))*100) -> 78 | IN9: =IF(IL9="","",TRUNC(IL9)) -> 857 | IO9: =IF('[5]بيانات معلمين'!AR8=0,"",IF($LF9=0,ROUND(($LE$5-$LE9)*'[5]بيانات معلمين'!AR8/$LE$5,2),IF($LE9=0,ROUND($LF9*'[5]بيانات معلمين'!AR8/$LE$5,2)))) -> 10 | IP9: =IF($ASH$2=1,"",IF('[5]بيانات معلمين'!AS8=0,"",IF($LF9=0,ROUND(($LE$5-$LE9)*'[5]بيانات معلمين'!AS8/$LE$5,2),IF($LE9=0,ROUND($LF9*'[5]بيانات معلمين'!AS8/$LE$5,2))))) -> 481.26 | IQ9: =IF('[5]بيانات معلمين'!AT8=0,"",ROUND(SUM(HE9,HH9:IK9,IO9,IP9),2)) -> 6321.6 | IR9: =IF('[5]بيانات معلمين'!AU8=0,"",IF($LF9=0,ROUND(($LE$5-$LE9)*'[5]بيانات معلمين'!AU8/$LE$5,2),IF($LE9=0,ROUND($LF9*'[5]بيانات معلمين'!AU8/$LE$5,2)))) -> 596.71 | IS9: =IF('[5]بيانات معلمين'!AV8=0,"",'[5]بيانات معلمين'!AV8) -> 447.53 | IT9: =IF('[5]بيانات معلمين'!AW8=0,"",IF($LF9=0,ROUND(($LE$5-$LE9)*'[5]بيانات معلمين'!AW8/$LE$5,2),IF($LE9=0,ROUND($LF9*'[5]بيانات معلمين'!AW8/$LE$5,2)))) -> 49.73 | IU9: =IF('[5]بيانات معلمين'!AX8=0,"",IF($LF9=0,ROUND(($LE$5-$LE9)*'[5]بيانات معلمين'!AX8/$LE$5,2),IF($LE9=0,ROUND($LF9*'[5]بيانات معلمين'!AX8/$LE$5,2)))) -> 149.18 | IV9: =IF('[5]بيانات معلمين'!AY8=0,"",'[5]بيانات معلمين'!AY8) -> 49.73 | IW9: =IF('[5]بيانات معلمين'!AZ8=0,"",'[5]بيانات معلمين'!AZ8) -> 49.73 | IX9: =IF('[5]بيانات معلمين'!BA8=0,"",IF($LF9=0,ROUND(($LE$5-$LE9)*'[5]بيانات معلمين'!BA8/$LE$5,2),IF($LE9=0,ROUND($LF9*'[5]بيانات معلمين'!BA8/$LE$5,2)))) -> 62.16 | IY9: =ROUND(SUM(IR9:IX9),2) -> 1404.77 | IZ9: =IF('[5]بيانات معلمين'!BC8=0,"",'[5]بيانات معلمين'!BC8) ->  | JA9: =IF('[5]بيانات معلمين'!BD8=0,"",'[5]بيانات معلمين'!BD8) ->  | JB9: =IF('[5]بيانات معلمين'!BE8=0,"",'[5]بيانات معلمين'!BE8) ->  | JC9: =ROUND(SUM(IZ9:JB9),2) -> 0 | JD9: =IF('[5]بيانات معلمين'!BG8=0,"",'[5]بيانات معلمين'!BG8) -> 4.5 | JE9: =IF('[5]بيانات معلمين'!$BH8=0,0,'[5]بيانات معلمين'!$BH8)/('[5]بيانات معلمين'!$CY8) -> 134.13 | JF9: =IF('[5]بيانات معلمين'!BI8=0,"",'[5]بيانات معلمين'!BI8) ->  | JG9: =IF('[5]بيانات معلمين'!BJ8=0,"",'[5]بيانات معلمين'!BJ8) -> 1 | JH9: =IF('[5]بيانات معلمين'!BK8=0,"",'[5]بيانات معلمين'!BK8) ->  | JI9: =IF('[5]بيانات معلمين'!BL8=0,"",'[5]بيانات معلمين'!BL8) ->  | JJ9: =IF('[5]بيانات معلمين'!BM8=0,"",'[5]بيانات معلمين'!BM8) ->  | JK9: =IF('[5]بيانات معلمين'!BN8=0,"",'[5]بيانات معلمين'!BN8) ->  | JL9: =IF('[5]بيانات معلمين'!BO8=0,"",'[5]بيانات معلمين'!BO8) ->  | JM9: =IF('[5]بيانات معلمين'!BP8=0,"",'[5]بيانات معلمين'!BP8) ->  | JN9: =IF('[5]بيانات معلمين'!BQ8=0,"",'[5]بيانات معلمين'!BQ8) ->  | JO9: =IF('[5]بيانات معلمين'!$BR8=0,0,'[5]بيانات معلمين'!$BR8)/'[5]بيانات معلمين'!$CY8 -> 0 | JP9: =IF('[5]بيانات معلمين'!BS8=0,"",'[5]بيانات معلمين'!BS8) ->  | JQ9: =IF('[5]بيانات معلمين'!BT8=0,"",'[5]بيانات معلمين'!BT8) ->  | JR9: =ROUND(SUM(JD9:JQ9),2) -> 139.63 | JS9: =IF('[5]بيانات معلمين'!BV8=0,"",'[5]بيانات معلمين'!BV8) ->  | JT9: =IF('[5]بيانات معلمين'!BW8=0,"",'[5]بيانات معلمين'!BW8) ->  | JU9: =IF('[5]بيانات معلمين'!BX8=0,"",'[5]بيانات معلمين'!BX8) ->  | JV9: =IF('[5]بيانات معلمين'!BY8=0,"",'[5]بيانات معلمين'!BY8) ->  | JW9: =IF('[5]بيانات معلمين'!BZ8=0,"",'[5]بيانات معلمين'!BZ8) ->  | JX9: =IF('[5]بيانات معلمين'!CA8=0,"",'[5]بيانات معلمين'!CA8) ->  | JY9: =IF('[5]بيانات معلمين'!CB8=0,"",'[5]بيانات معلمين'!CB8) ->  | JZ9: =ROUND(SUM(JS9:JY9),2) -> 0 | KA9: =IF('[5]بيانات معلمين'!CD8=0,"",'[5]بيانات معلمين'!CD8) ->  | KB9: =IF('[5]بيانات معلمين'!CE8=0,"",'[5]بيانات معلمين'!CE8) ->  | KC9: =IF('[5]بيانات معلمين'!CF8=0,"",'[5]بيانات معلمين'!CF8) ->  | KD9: =IF('[5]بيانات معلمين'!CG8=0,"",ROUND(IF(($HD9+($HE9*50%)-$HE9-(11%*$HD9)-$JC9-$JR9-$KE9-$HH9-HE9/47-2000)*0.025<=0,0,($HD9+($HE9*50%)-$HE9-(11%*$HD9)-$JC9-$JR9-$KE9-$HH9-HE9/47-2000)*0.025),2)) -> 31 | KE9: =IF('[5]بيانات معلمين'!CH8=0,"",'[5]بيانات معلمين'!CH8) -> 9.58 | KF9: =IF('[5]بيانات معلمين'!CI8=0,"",'[5]بيانات معلمين'!CI8) ->  | KG9: =IF('[5]بيانات معلمين'!CJ8=0,"",'[5]بيانات معلمين'!CJ8) ->  | KH9: =IF('[5]بيانات معلمين'!CK8=0,"",'[5]بيانات معلمين'!CK8) ->  | KI9: =IF('[5]بيانات معلمين'!CL8=0,"",'[5]بيانات معلمين'!CL8) -> 51.75 | KJ9: =IF('[5]بيانات معلمين'!CM8=0,"",'[5]بيانات معلمين'!CM8) ->  | KK9: =IF('[5]بيانات معلمين'!CN8=0,"",'[5]بيانات معلمين'!CN8) -> 41.9361 | KL9: =SUM(KA9:KK9) -> 134.2661 | KM9: =IF(KL9="","",(KL9-TRUNC(KL9))*100) -> 26.61 | KN9: =IF(KL9="","",TRUNC(KL9)) -> 134 | KO9: =KY9-KQ9 -> 0.0339 | KP9: =SUM(IR9:IX9)+SUM(IZ9:JB9)+SUM(JD9:JQ9)+SUM(JS9:JY9)+SUM(KA9:KK9)+KO9 -> 1678.7 | KQ9: =FLOOR(ROUND(KY9,2),0.05) -> 4642.9 | KR9: =IF('[5]بيانات معلمين'!CR8=0,"",'[5]بيانات معلمين'!CR8) -> احمد ابوالفضل خليفه معاذ | KS9: =IF('[5]بيانات معلمين'!CS8=0,"",'[5]بيانات معلمين'!CS8) -> البنك الأهلى | KT9: =IF('[5]بيانات معلمين'!CT8=0,"",'[5]بيانات معلمين'!CT8) ->  | KU9: =IF('[5]بيانات معلمين'!CU8=0,"",'[5]بيانات معلمين'!CU8) -> 26103202700316 | KW9: 2 | KY9: =IF($IQ9="",0,($IQ9-(SUM(IR9:IX9)+SUM(IZ9:JB9)+SUM(JD9:JQ9)+SUM(JS9:JY9)+SUM(KA9:KK9)))) -> 4642.9339 | LE9: ='[5]جزاءات 155'!F8 -> 0 | LF9: ='[5]جزاءات 155'!E8 -> 0 | AES9: =IF('[5]استقطاعات 155'!Q8="","",'[5]مرتب 155'!M8) ->  | AEU9: 2 | AEY9: ='[5]استقطاعات 155'!Q8 -> 0 | AEZ9: =IF(AEX9="","",AEX9*0.005*12) ->  | AFA9: 0 | AFB9: 0 | AFC9: -10000 | AFD9: 0 | AFE9: 0 | AFF9: -40000 | AFG9: 0 | AFH9: 0 | AFI9: 0 | AFJ9: 0 | AFK9: 0 | AFL9: 0 | AFM9: =ROUND(SUM(AFK9+AFL9),2) -> 0
A10: 1 | B10: 1 | C10: ='[5]مرتب 155'!C9 -> معلم خبير | D10: ='[5]مرتب 155'!D9 -> مدير عام | E10: 4 | F10: 1 | G10: ='[5]ادخال بيانات 155'!N9 -> أهلى | H10: =IF(B10="","",SUBTOTAL(3,$B$8:B10)) -> 3 | I10: =IF('[5]مرتب 155'!I9="","",('[5]مرتب 155'!I9-TRUNC('[5]مرتب 155'!I9))*100) -> 62 | J10: =IF('[5]مرتب 155'!I9="","",TRUNC('[5]مرتب 155'!I9)) -> 549 | K10: =IF('[5]مرتب 155'!J9="","",('[5]مرتب 155'!J9-TRUNC('[5]مرتب 155'!J9))*100) -> 0 | L10: =IF('[5]مرتب 155'!J9="","",TRUNC('[5]مرتب 155'!J9)) -> 84000 | M10: =IF('[5]مرتب 155'!K9="","",('[5]مرتب 155'!K9-TRUNC('[5]مرتب 155'!K9))*100) -> 49 | N10: =IF('[5]مرتب 155'!K9="","",TRUNC('[5]مرتب 155'!K9)) -> 40763 | O10: =IF('[5]مرتب 155'!L9="","",('[5]مرتب 155'!L9-TRUNC('[5]مرتب 155'!L9))*100) -> 36 | P10: =IF('[5]مرتب 155'!L9="","",TRUNC('[5]مرتب 155'!L9)) -> 4150 | Q10: =IF('[5]مرتب 155'!M9="","",('[5]مرتب 155'!M9-TRUNC('[5]مرتب 155'!M9))*100) -> 79 | R10: =IF('[5]مرتب 155'!M9="","",TRUNC('[5]مرتب 155'!M9)) -> 1548 | S10: =IF($ASM$3=1,"",IF('[5]مرتب 155'!P9="","",('[5]مرتب 155'!P9-TRUNC('[5]مرتب 155'!P9))*100)) -> 50 | T10: =IF($ASM$3=1,"",IF('[5]مرتب 155'!P9="","",TRUNC('[5]مرتب 155'!P9))) -> 37 | U10: =IF('[5]مرتب 155'!$Q9="","",('[5]مرتب 155'!$Q9-TRUNC('[5]مرتب 155'!$Q9))*100) -> 66 | V10: =IF('[5]مرتب 155'!$Q9="","",TRUNC('[5]مرتب 155'!$Q9)) -> 51 | W10: =IF('[5]مرتب 155'!$R9="","",('[5]مرتب 155'!$R9-TRUNC('[5]مرتب 155'!$R9))*100) -> 94 | X10: =IF('[5]مرتب 155'!$R9="","",TRUNC('[5]مرتب 155'!$R9)) -> 54 | Y10: =IF($ASK$3=1,"",IF('[5]مرتب 155'!S9="","",('[5]مرتب 155'!S9-TRUNC('[5]مرتب 155'!S9))*100)) -> 81 | Z10: =IF($ASK$3=1,"",IF('[5]مرتب 155'!S9="","",TRUNC('[5]مرتب 155'!S9))) -> 274 | AA10: =IF($ASI$5=1,"",IF('[5]مرتب 155'!T9="","",('[5]مرتب 155'!T9-TRUNC('[5]مرتب 155'!T9))*100)) -> 84 | AB10: =IF($ASI$5=1,"",IF('[5]مرتب 155'!T9="","",TRUNC('[5]مرتب 155'!T9))) -> 961 | AC10: =IF($ASL$6=1,"",IF('[5]مرتب 155'!U9="","",('[5]مرتب 155'!U9-TRUNC('[5]مرتب 155'!U9))*100)) -> 41 | AD10: =IF($ASL$6=1,"",IF('[5]مرتب 155'!U9="","",TRUNC('[5]مرتب 155'!U9))) -> 137 | AE10: =IF($ASI$6=1,"",IF('[5]مرتب 155'!V9="","",('[5]مرتب 155'!V9-TRUNC('[5]مرتب 155'!V9))*100)) -> 41 | AF10: =IF($ASI$6=1,"",IF('[5]مرتب 155'!V9="","",TRUNC('[5]مرتب 155'!V9))) -> 137 | AG10: =IF($ASI$4=1,"",IF('[5]مرتب 155'!W9="","",('[5]مرتب 155'!W9-TRUNC('[5]مرتب 155'!W9))*100)) -> 0 | AH10: =IF($ASI$4=1,"",IF('[5]مرتب 155'!W9="","",TRUNC('[5]مرتب 155'!W9))) -> 325 | AI10: =IF('[5]مرتب 155'!X9="","",('[5]مرتب 155'!X9-TRUNC('[5]مرتب 155'!X9))*100) -> 0 | AJ10: =IF('[5]مرتب 155'!X9="","",TRUNC('[5]مرتب 155'!X9)) -> 2 | AK10: =IF('[5]مرتب 155'!Y9="","",('[5]مرتب 155'!Y9-TRUNC('[5]مرتب 155'!Y9))*100) -> 0 | AL10: =IF('[5]مرتب 155'!Y9="","",TRUNC('[5]مرتب 155'!Y9)) -> 4 | AM10: =IF($ASB$4=1,"",IF('[5]مرتب 155'!Z9="","",('[5]مرتب 155'!Z9-TRUNC('[5]مرتب 155'!Z9))*100)) -> 0 | AN10: =IF($ASB$4=1,"",IF('[5]مرتب 155'!Z9="","",TRUNC('[5]مرتب 155'!Z9))) -> 100 | AO10: =IF('[5]مرتب 155'!AA9="","",('[5]مرتب 155'!AA9-TRUNC('[5]مرتب 155'!AA9))*100) -> 0 | AP10: =IF('[5]مرتب 155'!AA9="","",TRUNC('[5]مرتب 155'!AA9)) -> 40 | AQ10: =IF('[5]مرتب 155'!AB9="","",('[5]مرتب 155'!AB9-TRUNC('[5]مرتب 155'!AB9))*100) ->  | AR10: =IF('[5]مرتب 155'!AB9="","",TRUNC('[5]مرتب 155'!AB9)) ->  | AS10: =IF('[5]مرتب 155'!AC9="","",('[5]مرتب 155'!AC9-TRUNC('[5]مرتب 155'!AC9))*100) ->  | AT10: =IF('[5]مرتب 155'!AC9="","",TRUNC('[5]مرتب 155'!AC9)) ->  | AU10: =IF('[5]مرتب 155'!AD9="","",('[5]مرتب 155'!AD9-TRUNC('[5]مرتب 155'!AD9))*100) ->  | AV10: =IF('[5]مرتب 155'!AD9="","",TRUNC('[5]مرتب 155'!AD9)) ->  | AW10: =IF('[5]مرتب 155'!AE9="","",('[5]مرتب 155'!AE9-TRUNC('[5]مرتب 155'!AE9))*100) ->  | AX10: =IF('[5]مرتب 155'!AE9="","",TRUNC('[5]مرتب 155'!AE9)) ->  | AY10: =IF('[5]مرتب 155'!AF9="","",('[5]مرتب 155'!AF9-TRUNC('[5]مرتب 155'!AF9))*100) -> 0 | AZ10: =IF('[5]مرتب 155'!AF9="","",TRUNC('[5]مرتب 155'!AF9)) -> 475 | BA10: =IF('[5]مرتب 155'!AG9="","",('[5]مرتب 155'!AG9-TRUNC('[5]مرتب 155'!AG9))*100) ->  | BB10: =IF('[5]مرتب 155'!AG9="","",TRUNC('[5]مرتب 155'!AG9)) ->  | BC10: =IF('[5]مرتب 155'!AH9="","",('[5]مرتب 155'!AH9-TRUNC('[5]مرتب 155'!AH9))*100) ->  | BD10: =IF('[5]مرتب 155'!AH9="","",TRUNC('[5]مرتب 155'!AH9)) ->  | BE10: =IF('[5]مرتب 155'!AI9="","",('[5]مرتب 155'!AI9-TRUNC('[5]مرتب 155'!AI9))*100) ->  | BF10: =IF('[5]مرتب 155'!AI9="","",TRUNC('[5]مرتب 155'!AI9)) ->  | BG10: =IF('[5]مرتب 155'!AJ9="","",('[5]مرتب 155'!AJ9-TRUNC('[5]مرتب 155'!AJ9))*100) ->  | BH10: =IF('[5]مرتب 155'!AJ9="","",TRUNC('[5]مرتب 155'!AJ9)) ->  | BI10: =IF('[5]مرتب 155'!AK9="","",('[5]مرتب 155'!AK9-TRUNC('[5]مرتب 155'!AK9))*100) ->  | BJ10: =IF('[5]مرتب 155'!AK9="","",TRUNC('[5]مرتب 155'!AK9)) ->  | BK10: =IF('[5]مرتب 155'!AL9="","",('[5]مرتب 155'!AL9-TRUNC('[5]مرتب 155'!AL9))*100) ->  | BL10: =IF('[5]مرتب 155'!AL9="","",TRUNC('[5]مرتب 155'!AL9)) ->  | BM10: =IF('[5]مرتب 155'!AM9="","",('[5]مرتب 155'!AM9-TRUNC('[5]مرتب 155'!AM9))*100) ->  | BN10: =IF('[5]مرتب 155'!AM9="","",TRUNC('[5]مرتب 155'!AM9)) ->  | BO10: =IF('[5]مرتب 155'!AN9="","",('[5]مرتب 155'!AN9-TRUNC('[5]مرتب 155'!AN9))*100) ->  | BP10: =IF('[5]مرتب 155'!AN9="","",TRUNC('[5]مرتب 155'!AN9)) ->  | BQ10: =IF('[5]مرتب 155'!AO9="","",('[5]مرتب 155'!AO9-TRUNC('[5]مرتب 155'!AO9))*100) ->  | BR10: =IF('[5]مرتب 155'!AO9="","",TRUNC('[5]مرتب 155'!AO9)) ->  | BS10: =IF('[5]مرتب 155'!AP9="","",('[5]مرتب 155'!AP9-TRUNC('[5]مرتب 155'!AP9))*100) -> 4 | BT10: =IF('[5]مرتب 155'!AP9="","",TRUNC('[5]مرتب 155'!AP9)) -> 498 | BU10: =IF('[5]مرتب 155'!AQ9="","",('[5]مرتب 155'!AQ9-TRUNC('[5]مرتب 155'!AQ9))*100) -> 51 | BV10: =IF('[5]مرتب 155'!AQ9="","",TRUNC('[5]مرتب 155'!AQ9)) -> 124 | BW10: =IF('[5]مرتب 155'!AR9="","",('[5]مرتب 155'!AR9-TRUNC('[5]مرتب 155'!AR9))*100) -> 50 | BX10: =IF('[5]مرتب 155'!AR9="","",TRUNC('[5]مرتب 155'!AR9)) -> 41 | BY10: =IF('[5]مرتب 155'!AS9="","",('[5]مرتب 155'!AS9-TRUNC('[5]مرتب 155'!AS9))*100) -> 88 | BZ10: =IF('[5]مرتب 155'!AS9="","",TRUNC('[5]مرتب 155'!AS9)) -> 51 | CA10: =IF('[5]مرتب 155'!AT9="","",('[5]مرتب 155'!AT9-TRUNC('[5]مرتب 155'!AT9))*100) -> 0 | CB10: =IF('[5]مرتب 155'!AT9="","",TRUNC('[5]مرتب 155'!AT9)) -> 10 | CC10: =IF($ASH$2=1,"",IF('[5]مرتب 155'!AU9="","",('[5]مرتب 155'!AU9-TRUNC('[5]مرتب 155'!AU9))*100)) -> 84 | CD10: =IF($ASH$2=1,"",IF('[5]مرتب 155'!AU9="","",TRUNC('[5]مرتب 155'!AU9))) -> 320 | CE10: =IF('[5]مرتب 155'!AV9="","",('[5]مرتب 155'!AV9-TRUNC('[5]مرتب 155'!AV9))*100) -> 13 | CF10: =IF('[5]مرتب 155'!AV9="","",TRUNC('[5]مرتب 155'!AV9)) -> 5197 | CG10: =IF('[5]مرتب 155'!AW9="","",('[5]مرتب 155'!AW9-TRUNC('[5]مرتب 155'!AW9))*100) -> 4 | CH10: =IF('[5]مرتب 155'!AW9="","",TRUNC('[5]مرتب 155'!AW9)) -> 498 | CI10: =IF('[5]مرتب 155'!AX9="","",('[5]مرتب 155'!AX9-TRUNC('[5]مرتب 155'!AX9))*100) -> 53 | CJ10: =IF('[5]مرتب 155'!AX9="","",TRUNC('[5]مرتب 155'!AX9)) -> 373 | CK10: =IF('[5]مرتب 155'!AY9="","",('[5]مرتب 155'!AY9-TRUNC('[5]مرتب 155'!AY9))*100) -> 50 | CL10: =IF('[5]مرتب 155'!AY9="","",TRUNC('[5]مرتب 155'!AY9)) -> 41 | CM10: =IF('[5]مرتب 155'!BB9="","",('[5]مرتب 155'!BB9-TRUNC('[5]مرتب 155'!BB9))*100) -> 50 | CN10: =IF('[5]مرتب 155'!BB9="","",TRUNC('[5]مرتب 155'!BB9)) -> 41 | CO10: =IF('[5]مرتب 155'!AZ9="","",('[5]مرتب 155'!AZ9-TRUNC('[5]مرتب 155'!AZ9))*100) -> 51 | CP10: =IF('[5]مرتب 155'!AZ9="","",TRUNC('[5]مرتب 155'!AZ9)) -> 124 | CQ10: =IF('[5]مرتب 155'!BA9="","",('[5]مرتب 155'!BA9-TRUNC('[5]مرتب 155'!BA9))*100) -> 50 | CR10: =IF('[5]مرتب 155'!BA9="","",TRUNC('[5]مرتب 155'!BA9)) -> 41 | CS10: =IF('[5]مرتب 155'!BC9="","",('[5]مرتب 155'!BC9-TRUNC('[5]مرتب 155'!BC9))*100) -> 88 | CT10: =IF('[5]مرتب 155'!BC9="","",TRUNC('[5]مرتب 155'!BC9)) -> 51 | CU10: =IF('[5]مرتب 155'!BD9="","",('[5]مرتب 155'!BD9-TRUNC('[5]مرتب 155'!BD9))*100) -> 46 | CV10: =IF('[5]مرتب 155'!BD9="","",TRUNC('[5]مرتب 155'!BD9)) -> 1172 | CW10: =IF('[5]مرتب 155'!BE9="","",('[5]مرتب 155'!BE9-TRUNC('[5]مرتب 155'!BE9))*100) ->  | CX10: =IF('[5]مرتب 155'!BE9="","",TRUNC('[5]مرتب 155'!BE9)) ->  | CY10: =IF('[5]مرتب 155'!BF9="","",('[5]مرتب 155'!BF9-TRUNC('[5]مرتب 155'!BF9))*100) ->  | CZ10: =IF('[5]مرتب 155'!BF9="","",TRUNC('[5]مرتب 155'!BF9)) ->  | DA10: =IF('[5]مرتب 155'!BG9="","",('[5]مرتب 155'!BG9-TRUNC('[5]مرتب 155'!BG9))*100) ->  | DB10: =IF('[5]مرتب 155'!BG9="","",TRUNC('[5]مرتب 155'!BG9)) ->  | DC10: =IF('[5]مرتب 155'!BH9="","",('[5]مرتب 155'!BH9-TRUNC('[5]مرتب 155'!BH9))*100) -> 0 | DD10: =IF('[5]مرتب 155'!BH9="","",TRUNC('[5]مرتب 155'!BH9)) -> 0 | DE10: =IF('[5]مرتب 155'!BI9="","",('[5]مرتب 155'!BI9-TRUNC('[5]مرتب 155'!BI9))*100) -> 50 | DF10: =IF('[5]مرتب 155'!BI9="","",TRUNC('[5]مرتب 155'!BI9)) -> 4 | DG10: =IF('[5]مرتب 155'!BJ9="","",('[5]مرتب 155'!BJ9-TRUNC('[5]مرتب 155'!BJ9))*100) -> 42 | DH10: =IF('[5]مرتب 155'!BJ9="","",TRUNC('[5]مرتب 155'!BJ9)) -> 108 | DI10: =IF('[5]مرتب 155'!BK9="","",('[5]مرتب 155'!BK9-TRUNC('[5]مرتب 155'!BK9))*100) ->  | DJ10: =IF('[5]مرتب 155'!BK9="","",TRUNC('[5]مرتب 155'!BK9)) ->  | DK10: =IF('[5]مرتب 155'!BL9="","",('[5]مرتب 155'!BL9-TRUNC('[5]مرتب 155'!BL9))*100) -> 0 | DL10: =IF('[5]مرتب 155'!BL9="","",TRUNC('[5]مرتب 155'!BL9)) -> 1 | DM10: =IF('[5]مرتب 155'!BM9="","",('[5]مرتب 155'!BM9-TRUNC('[5]مرتب 155'!BM9))*100) ->  | DN10: =IF('[5]مرتب 155'!BM9="","",TRUNC('[5]مرتب 155'!BM9)) ->  | DO10: =IF('[5]مرتب 155'!BN9="","",('[5]مرتب 155'!BN9-TRUNC('[5]مرتب 155'!BN9))*100) ->  | DP10: =IF('[5]مرتب 155'!BN9="","",TRUNC('[5]مرتب 155'!BN9)) ->  | DQ10: =IF('[5]مرتب 155'!BO9="","",('[5]مرتب 155'!BO9-TRUNC('[5]مرتب 155'!BO9))*100) ->  | DR10: =IF('[5]مرتب 155'!BO9="","",TRUNC('[5]مرتب 155'!BO9)) ->  | DS10: =IF('[5]مرتب 155'!BP9="","",('[5]مرتب 155'!BP9-TRUNC('[5]مرتب 155'!BP9))*100) ->  | DT10: =IF('[5]مرتب 155'!BP9="","",TRUNC('[5]مرتب 155'!BP9)) ->  | DU10: =IF('[5]مرتب 155'!BQ9="","",('[5]مرتب 155'!BQ9-TRUNC('[5]مرتب 155'!BQ9))*100) ->  | DV10: =IF('[5]مرتب 155'!BQ9="","",TRUNC('[5]مرتب 155'!BQ9)) ->  | DW10: =IF('[5]مرتب 155'!BR9="","",('[5]مرتب 155'!BR9-TRUNC('[5]مرتب 155'!BR9))*100) ->  | DX10: =IF('[5]مرتب 155'!BR9="","",TRUNC('[5]مرتب 155'!BR9)) ->  | DY10: =IF('[5]مرتب 155'!BS9="","",('[5]مرتب 155'!BS9-TRUNC('[5]مرتب 155'!BS9))*100) ->  | DZ10: =IF('[5]مرتب 155'!BS9="","",TRUNC('[5]مرتب 155'!BS9)) ->  | EA10: =IF('[5]مرتب 155'!BT9="","",('[5]مرتب 155'!BT9-TRUNC('[5]مرتب 155'!BT9))*100) -> 0 | EB10: =IF('[5]مرتب 155'!BT9="","",TRUNC('[5]مرتب 155'!BT9)) -> 0 | EC10: =IF('[5]مرتب 155'!BU9="","",('[5]مرتب 155'!BU9-TRUNC('[5]مرتب 155'!BU9))*100) ->  | ED10: =IF('[5]مرتب 155'!BU9="","",TRUNC('[5]مرتب 155'!BU9)) ->  | EE10: =IF('[5]مرتب 155'!BV9="","",('[5]مرتب 155'!BV9-TRUNC('[5]مرتب 155'!BV9))*100) ->  | EF10: =IF('[5]مرتب 155'!BV9="","",TRUNC('[5]مرتب 155'!BV9)) ->  | EG10: =IF('[5]مرتب 155'!BW9="","",('[5]مرتب 155'!BW9-TRUNC('[5]مرتب 155'!BW9))*100) -> 92 | EH10: =IF('[5]مرتب 155'!BW9="","",TRUNC('[5]مرتب 155'!BW9)) -> 113 | EI10: =IF('[5]مرتب 155'!BX9="","",('[5]مرتب 155'!BX9-TRUNC('[5]مرتب 155'!BX9))*100) ->  | EJ10: =IF('[5]مرتب 155'!BX9="","",TRUNC('[5]مرتب 155'!BX9)) ->  | EK10: =IF('[5]مرتب 155'!BY9="","",('[5]مرتب 155'!BY9-TRUNC('[5]مرتب 155'!BY9))*100) ->  | EL10: =IF('[5]مرتب 155'!BY9="","",TRUNC('[5]مرتب 155'!BY9)) ->  | EM10: =IF('[5]مرتب 155'!BZ9="","",('[5]مرتب 155'!BZ9-TRUNC('[5]مرتب 155'!BZ9))*100) ->  | EN10: =IF('[5]مرتب 155'!BZ9="","",TRUNC('[5]مرتب 155'!BZ9)) ->  | EO10: =IF('[5]مرتب 155'!CA9="","",('[5]مرتب 155'!CA9-TRUNC('[5]مرتب 155'!CA9))*100) ->  | EP10: =IF('[5]مرتب 155'!CA9="","",TRUNC('[5]مرتب 155'!CA9)) ->  | EQ10: =IF('[5]مرتب 155'!CB9="","",('[5]مرتب 155'!CB9-TRUNC('[5]مرتب 155'!CB9))*100) ->  | ER10: =IF('[5]مرتب 155'!CB9="","",TRUNC('[5]مرتب 155'!CB9)) ->  | ES10: =IF('[5]مرتب 155'!CC9="","",('[5]مرتب 155'!CC9-TRUNC('[5]مرتب 155'!CC9))*100) ->  | ET10: =IF('[5]مرتب 155'!CC9="","",TRUNC('[5]مرتب 155'!CC9)) ->  | EU10: =IF('[5]مرتب 155'!CD9="","",('[5]مرتب 155'!CD9-TRUNC('[5]مرتب 155'!CD9))*100) ->  | EV10: =IF('[5]مرتب 155'!CD9="","",TRUNC('[5]مرتب 155'!CD9)) ->  | EW10: =IF('[5]مرتب 155'!CE9="","",('[5]مرتب 155'!CE9-TRUNC('[5]مرتب 155'!CE9))*100) -> 0 | EX10: =IF('[5]مرتب 155'!CE9="","",TRUNC('[5]مرتب 155'!CE9)) -> 0 | EY10: =IF('[5]مرتب 155'!CF9="","",('[5]مرتب 155'!CF9-TRUNC('[5]مرتب 155'!CF9))*100) ->  | EZ10: =IF('[5]مرتب 155'!CF9="","",TRUNC('[5]مرتب 155'!CF9)) ->  | FA10: =IF('[5]مرتب 155'!CG9="","",('[5]مرتب 155'!CG9-TRUNC('[5]مرتب 155'!CG9))*100) ->  | FB10: =IF('[5]مرتب 155'!CG9="","",TRUNC('[5]مرتب 155'!CG9)) ->  | FC10: =IF('[5]مرتب 155'!CH9="","",('[5]مرتب 155'!CH9-TRUNC('[5]مرتب 155'!CH9))*100) ->  | FD10: =IF('[5]مرتب 155'!CH9="","",TRUNC('[5]مرتب 155'!CH9)) ->  | FE10: =IF('[5]مرتب 155'!CI9="","",('[5]مرتب 155'!CI9-TRUNC('[5]مرتب 155'!CI9))*100) -> 18 | FF10: =IF('[5]مرتب 155'!CI9="","",TRUNC('[5]مرتب 155'!CI9)) -> 18 | FG10: =IF('[5]مرتب 155'!CJ9="","",('[5]مرتب 155'!CJ9-TRUNC('[5]مرتب 155'!CJ9))*100) -> 74 | FH10: =IF('[5]مرتب 155'!CJ9="","",TRUNC('[5]مرتب 155'!CJ9)) -> 7 | FI10: =IF('[5]مرتب 155'!CK9="","",('[5]مرتب 155'!CK9-TRUNC('[5]مرتب 155'!CK9))*100) ->  | FJ10: =IF('[5]مرتب 155'!CK9="","",TRUNC('[5]مرتب 155'!CK9)) ->  | FM10: =IF('[5]مرتب 155'!CM9="","",('[5]مرتب 155'!CM9-TRUNC('[5]مرتب 155'!CM9))*100) ->  | FN10: =IF('[5]مرتب 155'!CM9="","",TRUNC('[5]مرتب 155'!CM9)) ->  | FO10: =IF('[5]مرتب 155'!CN9="","",('[5]مرتب 155'!CN9-TRUNC('[5]مرتب 155'!CN9))*100) ->  | FP10: =IF('[5]مرتب 155'!CN9="","",TRUNC('[5]مرتب 155'!CN9)) ->  | FQ10: =IF('[5]مرتب 155'!CO9="","",('[5]مرتب 155'!CO9-TRUNC('[5]مرتب 155'!CO9))*100) ->  | FR10: =IF('[5]مرتب 155'!CO9="","",TRUNC('[5]مرتب 155'!CO9)) ->  | FS10: =IF('[5]مرتب 155'!CP9="","",('[5]مرتب 155'!CP9-TRUNC('[5]مرتب 155'!CP9))*100) -> 57.99 | FT10: =IF('[5]مرتب 155'!CP9="","",TRUNC('[5]مرتب 155'!CP9)) -> 35 | FU10: =IF('[5]مرتب 155'!CQ9="","",('[5]مرتب 155'!CQ9-TRUNC('[5]مرتب 155'!CQ9))*100) -> 0.01000000002 | FV10: =IF('[5]مرتب 155'!CQ9="","",TRUNC('[5]مرتب 155'!CQ9)) -> 0 | FW10: =IF('[5]مرتب 155'!CR9="","",('[5]مرتب 155'!CR9-TRUNC('[5]مرتب 155'!CR9))*100) -> 88 | FX10: =IF('[5]مرتب 155'!CR9="","",TRUNC('[5]مرتب 155'!CR9)) -> 1347 | FY10: =IF('[5]مرتب 155'!CS9="","",('[5]مرتب 155'!CS9-TRUNC('[5]مرتب 155'!CS9))*100) -> 25 | FZ10: =IF('[5]مرتب 155'!CS9="","",TRUNC('[5]مرتب 155'!CS9)) -> 3849 | GA10: 3 | GB10: ='[5]مرتب 155'!CU9 -> البنك الأهلى | GC10: ='[5]مرتب 155'!CV9 ->  | GD10: 3 | GE10: 3 | GR10: 3 | GS10: 3 | GT10: =IF('[5]بيانات معلمين'!B9=0,"",'[5]بيانات معلمين'!B9) -> اسامه حلمى السيد محمد | GU10: =IF('[5]بيانات معلمين'!C9=0,"",'[5]بيانات معلمين'!C9) -> معلم خبير | GV10: =IF('[5]بيانات معلمين'!D9=0,"",'[5]بيانات معلمين'!D9) -> مدير عام | GW10: 1 | GX10: 1 | GY10: دفع | GZ10: =IF(GT10="","",SUBTOTAL(3,GT$8:GT10)) -> 3 | HA10: =IF('[5]بيانات معلمين'!G9=0,"",IF($LF10=0,ROUND(($LE$5-$LE10)*'[5]بيانات معلمين'!G9/$LE$5,2),IF($LE10=0,ROUND($LF10*'[5]بيانات معلمين'!G9/$LE$5,2)))) -> 549.62 | HD10: 4150.36 | HE10: =IF('[5]بيانات معلمين'!K9=0,"",IF($LF10=0,ROUND(($LE$5-$LE10)*'[5]بيانات معلمين'!K9/$LE$5,2),IF($LE10=0,ROUND($LF10*'[5]بيانات معلمين'!K9/$LE$5,2)))) -> 1548.79 | HF10: =IF('[5]بيانات معلمين'!L9=0,0,IF($LF10=0,ROUND(($LE$5-$LE10)*'[5]بيانات معلمين'!L9/$LE$5,2),IF($LE10=0,ROUND($LF10*'[5]بيانات معلمين'!L9/$LE$5,2)))) -> 37.5 | HG10: =IF('[5]بيانات معلمين'!M9=0,0,IF($LF10=0,ROUND(($LE$5-$LE10)*'[5]بيانات معلمين'!M9/$LE$5,2),IF($LE10=0,ROUND($LF10*'[5]بيانات معلمين'!M9/$LE$5,2)))) -> 0 | HH10: 37.5 | HI10: =IF('[5]بيانات معلمين'!O9=0,"",IF($LF10=0,ROUND(($LE$5-$LE10)*'[5]بيانات معلمين'!O9/$LE$5,2),IF($LE10=0,ROUND($LF10*'[5]بيانات معلمين'!O9/$LE$5,2)))) -> 51.66 | HJ10: =IF('[5]بيانات معلمين'!P9=0,"",IF($LF10=0,ROUND(($LE$5-$LE10)*'[5]بيانات معلمين'!P9/$LE$5,2),IF($LE10=0,ROUND($LF10*'[5]بيانات معلمين'!P9/$LE$5,2)))) -> 54.94 | HK10: =IF($ASK$3=1,"",IF('[5]بيانات معلمين'!Q9=0,"",IF($LF10=0,ROUND(($LE$5-$LE10)*'[5]بيانات معلمين'!Q9/$LE$5,2),IF($LE10=0,ROUND($LF10*'[5]بيانات معلمين'!Q9/$LE$5,2))))) -> 274.81 | HL10: =IF($ASI$5=1,"",IF('[5]بيانات معلمين'!R9=0,"",IF($LF10=0,ROUND(($LE$5-$LE10)*'[5]بيانات معلمين'!R9/$LE$5,2),IF($LE10=0,ROUND($LF10*'[5]بيانات معلمين'!R9/$LE$5,2))))) -> 961.84 | HM10: =IF($ASL$6=1,"",IF('[5]بيانات معلمين'!S9=0,"",IF($LF10=0,ROUND(($LE$5-$LE10)*'[5]بيانات معلمين'!S9/$LE$5,2),IF($LE10=0,ROUND($LF10*'[5]بيانات معلمين'!S9/$LE$5,2))))) -> 137.41 | HN10: =IF($ASI$6=1,"",IF('[5]بيانات معلمين'!T9=0,"",IF($LF10=0,ROUND(($LE$5-$LE10)*'[5]بيانات معلمين'!T9/$LE$5,2),IF($LE10=0,ROUND($LF10*'[5]بيانات معلمين'!T9/$LE$5,2))))) -> 137.41 | HO10: =IF($ASI$4=1,"",IF('[5]بيانات معلمين'!U9=0,"",IF($LF10=0,ROUND(($LE$5-$LE10)*'[5]بيانات معلمين'!U9/$LE$5,2),IF($LE10=0,ROUND($LF10*'[5]بيانات معلمين'!U9/$LE$5,2))))) -> 325 | HP10: =IF('[5]بيانات معلمين'!V9=0,"",IF($LF10=0,ROUND(($LE$5-$LE10)*'[5]بيانات معلمين'!V9/$LE$5,2),IF($LE10=0,ROUND($LF10*'[5]بيانات معلمين'!V9/$LE$5,2)))) -> 2 | HQ10: =IF('[5]بيانات معلمين'!W9=0,"",IF($LF10=0,ROUND(($LE$5-$LE10)*'[5]بيانات معلمين'!W9/$LE$5,2),IF($LE10=0,ROUND($LF10*'[5]بيانات معلمين'!W9/$LE$5,2)))) -> 4 | HR10: =IF($ASB$4=1,"",IF('[5]بيانات معلمين'!X9=0,"",IF($LF10=0,ROUND(($LE$5-$LE10)*'[5]بيانات معلمين'!X9/$LE$5,2),IF($LE10=0,ROUND($LF10*'[5]بيانات معلمين'!X9/$LE$5,2))))) -> 100 | HS10: =IF('[5]بيانات معلمين'!Y9=0,"",IF($LF10=0,ROUND(($LE$5-$LE10)*'[5]بيانات معلمين'!Y9/$LE$5,2),IF($LE10=0,ROUND($LF10*'[5]بيانات معلمين'!Y9/$LE$5,2)))) -> 40 | HT10: =IF('[5]بيانات معلمين'!Z9=0,"",IF($LF10=0,ROUND(($LE$5-$LE10)*'[5]بيانات معلمين'!Z9/$LE$5,2),IF($LE10=0,ROUND($LF10*'[5]بيانات معلمين'!Z9/$LE$5,2)))) ->  | HU10: =IF('[5]بيانات معلمين'!AA9=0,"",IF($LF10=0,ROUND(($LE$5-$LE10)*'[5]بيانات معلمين'!AA9/$LE$5,2),IF($LE10=0,ROUND($LF10*'[5]بيانات معلمين'!AA9/$LE$5,2)))) ->  | HV10: =IF('[5]بيانات معلمين'!AB9=0,"",IF($LF10=0,ROUND(($LE$5-$LE10)*'[5]بيانات معلمين'!AB9/$LE$5,2),IF($LE10=0,ROUND($LF10*'[5]بيانات معلمين'!AB9/$LE$5,2)))) ->  | HW10: =IF('[5]بيانات معلمين'!AC9=0,"",IF($LF10=0,ROUND(($LE$5-$LE10)*'[5]بيانات معلمين'!AC9/$LE$5,2),IF($LE10=0,ROUND($LF10*'[5]بيانات معلمين'!AC9/$LE$5,2)))) ->  | HX10: =IF('[5]بيانات معلمين'!AD9=0,"",IF($LF10=0,ROUND(($LE$5-$LE10)*'[5]بيانات معلمين'!AD9/$LE$5,2),IF($LE10=0,ROUND($LF10*'[5]بيانات معلمين'!AD9/$LE$5,2)))) -> 475 | HY10: =IF('[5]بيانات معلمين'!AE9=0,"",IF($LF10=0,ROUND(($LE$5-$LE10)*'[5]بيانات معلمين'!AE9/$LE$5,2),IF($LE10=0,ROUND($LF10*'[5]بيانات معلمين'!AE9/$LE$5,2)))) ->  | HZ10: =IF('[5]بيانات معلمين'!AF9=0,"",IF($LF10=0,ROUND(($LE$5-$LE10)*'[5]بيانات معلمين'!AF9/$LE$5,2),IF($LE10=0,ROUND($LF10*'[5]بيانات معلمين'!AF9/$LE$5,2)))) ->  | IA10: =IF('[5]بيانات معلمين'!AG9=0,"",IF($LF10=0,ROUND(($LE$5-$LE10)*'[5]بيانات معلمين'!AG9/$LE$5,2),IF($LE10=0,ROUND($LF10*'[5]بيانات معلمين'!AG9/$LE$5,2)))) ->  | IB10: =IF('[5]بيانات معلمين'!AH9=0,"",IF($LF10=0,ROUND(($LE$5-$LE10)*'[5]بيانات معلمين'!AH9/$LE$5,2),IF($LE10=0,ROUND($LF10*'[5]بيانات معلمين'!AH9/$LE$5,2)))) ->  | IC10: =IF('[5]بيانات معلمين'!AI9=0,"",IF($LF10=0,ROUND(($LE$5-$LE10)*'[5]بيانات معلمين'!AI9/$LE$5,2),IF($LE10=0,ROUND($LF10*'[5]بيانات معلمين'!AI9/$LE$5,2)))) ->  | ID10: =IF('[5]بيانات معلمين'!AJ9=0,"",IF($LF10=0,ROUND(($LE$5-$LE10)*'[5]بيانات معلمين'!AJ9/$LE$5,2),IF($LE10=0,ROUND($LF10*'[5]بيانات معلمين'!AJ9/$LE$5,2)))) ->  | IE10: =IF('[5]بيانات معلمين'!AK9=0,"",IF($LF10=0,ROUND(($LE$5-$LE10)*'[5]بيانات معلمين'!AK9/$LE$5,2),IF($LE10=0,ROUND($LF10*'[5]بيانات معلمين'!AK9/$LE$5,2)))) ->  | IF10: =IF('[5]بيانات معلمين'!AL9=0,"",IF($LF10=0,ROUND(($LE$5-$LE10)*'[5]بيانات معلمين'!AL9/$LE$5,2),IF($LE10=0,ROUND($LF10*'[5]بيانات معلمين'!AL9/$LE$5,2)))) ->  | IG10: =IF('[5]بيانات معلمين'!AM9=0,"",IF($LF10=0,ROUND(($LE$5-$LE10)*'[5]بيانات معلمين'!AM9/$LE$5,2),IF($LE10=0,ROUND($LF10*'[5]بيانات معلمين'!AM9/$LE$5,2)))) ->  | IH10: =IF('[5]بيانات معلمين'!AN9=0,"",IF($LF10=0,ROUND(($LE$5-$LE10)*'[5]بيانات معلمين'!AN9/$LE$5,2),IF($LE10=0,ROUND($LF10*'[5]بيانات معلمين'!AN9/$LE$5,2)))) -> 498.04 | II10: =IF('[5]بيانات معلمين'!AO9=0,"",IF($LF10=0,ROUND(($LE$5-$LE10)*'[5]بيانات معلمين'!AO9/$LE$5,2),IF($LE10=0,ROUND($LF10*'[5]بيانات معلمين'!AO9/$LE$5,2)))) -> 124.51 | IJ10: =IF('[5]بيانات معلمين'!AP9=0,"",IF($LF10=0,ROUND(($LE$5-$LE10)*'[5]بيانات معلمين'!AP9/$LE$5,2),IF($LE10=0,ROUND($LF10*'[5]بيانات معلمين'!AP9/$LE$5,2)))) -> 41.5 | IK10: =IF('[5]بيانات معلمين'!AQ9=0,"",IF($LF10=0,ROUND(($LE$5-$LE10)*'[5]بيانات معلمين'!AQ9/$LE$5,2),IF($LE10=0,ROUND($LF10*'[5]بيانات معلمين'!AQ9/$LE$5,2)))) -> 51.88 | IL10: 715.93 | IM10: 93 | IN10: 715 | IO10: =IF('[5]بيانات معلمين'!AR9=0,"",IF($LF10=0,ROUND(($LE$5-$LE10)*'[5]بيانات معلمين'!AR9/$LE$5,2),IF($LE10=0,ROUND($LF10*'[5]بيانات معلمين'!AR9/$LE$5,2)))) -> 10 | IP10: =IF($ASH$2=1,"",IF('[5]بيانات معلمين'!AS9=0,"",IF($LF10=0,ROUND(($LE$5-$LE10)*'[5]بيانات معلمين'!AS9/$LE$5,2),IF($LE10=0,ROUND($LF10*'[5]بيانات معلمين'!AS9/$LE$5,2))))) -> 320.84 | IQ10: =IF('[5]بيانات معلمين'!AT9=0,"",ROUND(SUM(HE10,HH10:IK10,IO10,IP10),2)) -> 5197.13 | IR10: =IF('[5]بيانات معلمين'!AU9=0,"",IF($LF10=0,ROUND(($LE$5-$LE10)*'[5]بيانات معلمين'!AU9/$LE$5,2),IF($LE10=0,ROUND($LF10*'[5]بيانات معلمين'!AU9/$LE$5,2)))) -> 498.04 | IS10: =IF('[5]بيانات معلمين'!AV9=0,"",'[5]بيانات معلمين'!AV9) -> 373.53 | IT10: =IF('[5]بيانات معلمين'!AW9=0,"",IF($LF10=0,ROUND(($LE$5-$LE10)*'[5]بيانات معلمين'!AW9/$LE$5,2),IF($LE10=0,ROUND($LF10*'[5]بيانات معلمين'!AW9/$LE$5,2)))) -> 41.5 | IU10: =IF('[5]بيانات معلمين'!AX9=0,"",IF($LF10=0,ROUND(($LE$5-$LE10)*'[5]بيانات معلمين'!AX9/$LE$5,2),IF($LE10=0,ROUND($LF10*'[5]بيانات معلمين'!AX9/$LE$5,2)))) -> 124.51 | IV10: =IF('[5]بيانات معلمين'!AY9=0,"",'[5]بيانات معلمين'!AY9) -> 41.5 | IW10: =IF('[5]بيانات معلمين'!AZ9=0,"",'[5]بيانات معلمين'!AZ9) -> 41.5 | IX10: =IF('[5]بيانات معلمين'!BA9=0,"",IF($LF10=0,ROUND(($LE$5-$LE10)*'[5]بيانات معلمين'!BA9/$LE$5,2),IF($LE10=0,ROUND($LF10*'[5]بيانات معلمين'!BA9/$LE$5,2)))) -> 51.88 | IY10: 1172.46 | IZ10: =IF('[5]بيانات معلمين'!BC9=0,"",'[5]بيانات معلمين'!BC9) ->  | JA10: =IF('[5]بيانات معلمين'!BD9=0,"",'[5]بيانات معلمين'!BD9) ->  | JB10: =IF('[5]بيانات معلمين'!BE9=0,"",'[5]بيانات معلمين'!BE9) ->  | JC10: 0 | JD10: =IF('[5]بيانات معلمين'!BG9=0,"",'[5]بيانات معلمين'!BG9) -> 4.5 | JE10: =IF('[5]بيانات معلمين'!$BH9=0,0,'[5]بيانات معلمين'!$BH9)/('[5]بيانات معلمين'!$CY9) -> 108.42 | JF10: =IF('[5]بيانات معلمين'!BI9=0,"",'[5]بيانات معلمين'!BI9) ->  | JG10: =IF('[5]بيانات معلمين'!BJ9=0,"",'[5]بيانات معلمين'!BJ9) -> 1 | JH10: =IF('[5]بيانات معلمين'!BK9=0,"",'[5]بيانات معلمين'!BK9) ->  | JI10: =IF('[5]بيانات معلمين'!BL9=0,"",'[5]بيانات معلمين'!BL9) ->  | JJ10: =IF('[5]بيانات معلمين'!BM9=0,"",'[5]بيانات معلمين'!BM9) ->  | JK10: =IF('[5]بيانات معلمين'!BN9=0,"",'[5]بيانات معلمين'!BN9) ->  | JL10: =IF('[5]بيانات معلمين'!BO9=0,"",'[5]بيانات معلمين'!BO9) ->  | JM10: =IF('[5]بيانات معلمين'!BP9=0,"",'[5]بيانات معلمين'!BP9) ->  | JN10: =IF('[5]بيانات معلمين'!BQ9=0,"",'[5]بيانات معلمين'!BQ9) ->  | JO10: =IF('[5]بيانات معلمين'!$BR9=0,0,'[5]بيانات معلمين'!$BR9)/'[5]بيانات معلمين'!$CY9 -> 0 | JP10: =IF('[5]بيانات معلمين'!BS9=0,"",'[5]بيانات معلمين'!BS9) ->  | JQ10: =IF('[5]بيانات معلمين'!BT9=0,"",'[5]بيانات معلمين'!BT9) ->  | JR10: 113.92 | JS10: =IF('[5]بيانات معلمين'!BV9=0,"",'[5]بيانات معلمين'!BV9) ->  | JT10: =IF('[5]بيانات معلمين'!BW9=0,"",'[5]بيانات معلمين'!BW9) ->  | JU10: =IF('[5]بيانات معلمين'!BX9=0,"",'[5]بيانات معلمين'!BX9) ->  | JV10: =IF('[5]بيانات معلمين'!BY9=0,"",'[5]بيانات معلمين'!BY9) ->  | JW10: =IF('[5]بيانات معلمين'!BZ9=0,"",'[5]بيانات معلمين'!BZ9) ->  | JX10: =IF('[5]بيانات معلمين'!CA9=0,"",'[5]بيانات معلمين'!CA9) ->  | JY10: =IF('[5]بيانات معلمين'!CB9=0,"",'[5]بيانات معلمين'!CB9) ->  | JZ10: 0 | KA10: =IF('[5]بيانات معلمين'!CD9=0,"",'[5]بيانات معلمين'!CD9) ->  | KB10: =IF('[5]بيانات معلمين'!CE9=0,"",'[5]بيانات معلمين'!CE9) ->  | KC10: =IF('[5]بيانات معلمين'!CF9=0,"",'[5]بيانات معلمين'!CF9) ->  | KD10: =IF('[5]بيانات معلمين'!CG9=0,"",ROUND(IF(($HD10+($HE10*50%)-$HE10-(11%*$HD10)-$JC10-$JR10-$KE10-$HH10-HE10/47-2000)*0.025<=0,0,($HD10+($HE10*50%)-$HE10-(11%*$HD10)-$JC10-$JR10-$KE10-$HH10-HE10/47-2000)*0.025),2)) -> 18.18 | KE10: =IF('[5]بيانات معلمين'!CH9=0,"",'[5]بيانات معلمين'!CH9) -> 7.74 | KF10: =IF('[5]بيانات معلمين'!CI9=0,"",'[5]بيانات معلمين'!CI9) ->  | KG10: =IF('[5]بيانات معلمين'!CJ9=0,"",'[5]بيانات معلمين'!CJ9) ->  | KH10: =IF('[5]بيانات معلمين'!CK9=0,"",'[5]بيانات معلمين'!CK9) ->  | KI10: =IF('[5]بيانات معلمين'!CL9=0,"",'[5]بيانات معلمين'!CL9) ->  | KJ10: =IF('[5]بيانات معلمين'!CM9=0,"",'[5]بيانات معلمين'!CM9) ->  | KK10: =IF('[5]بيانات معلمين'!CN9=0,"",'[5]بيانات معلمين'!CN9) -> 35.5799 | KL10: 61.4999 | KM10: 49.99 | KN10: 61 | KO10: 0.0001000000002 | KP10: 1347.88 | KQ10: 3849.25 | KR10: =IF('[5]بيانات معلمين'!CR9=0,"",'[5]بيانات معلمين'!CR9) -> اسامه حلمى السيد محمد | KS10: =IF('[5]بيانات معلمين'!CS9=0,"",'[5]بيانات معلمين'!CS9) -> البنك الأهلى | KT10: =IF('[5]بيانات معلمين'!CT9=0,"",'[5]بيانات معلمين'!CT9) ->  | KU10: =IF('[5]بيانات معلمين'!CU9=0,"",'[5]بيانات معلمين'!CU9) -> 27101212700471 | KW10: 3 | KY10: 3849.2501 | LE10: ='[5]جزاءات 155'!F9 -> 0 | LF10: ='[5]جزاءات 155'!E9 -> 0 | AES10: =IF('[5]استقطاعات 155'!Q9="","",'[5]مرتب 155'!M9) ->  | AEU10: 3 | AEY10: ='[5]استقطاعات 155'!Q9 -> 0 | AFA10: 0 | AFB10: 0 | AFC10: -10000 | AFD10: 0 | AFE10: 0 | AFF10: -40000 | AFG10: 0 | AFH10: 0 | AFI10: 0 | AFJ10: 0 | AFK10: 0 | AFL10: 0 | AFM10: 0
A11: 1 | B11: 1 | C11: ='[5]مرتب 155'!C10 -> معلم خبير | D11: ='[5]مرتب 155'!D10 -> مدير عام | E11: 5 | F11: 1 | G11: ='[5]ادخال بيانات 155'!N10 -> أهلى | H11: =IF(B11="","",SUBTOTAL(3,$B$8:B11)) -> 4 | I11: =IF('[5]مرتب 155'!I10="","",('[5]مرتب 155'!I10-TRUNC('[5]مرتب 155'!I10))*100) -> 4 | J11: =IF('[5]مرتب 155'!I10="","",TRUNC('[5]مرتب 155'!I10)) -> 529 | K11: =IF('[5]مرتب 155'!J10="","",('[5]مرتب 155'!J10-TRUNC('[5]مرتب 155'!J10))*100) -> 0 | L11: =IF('[5]مرتب 155'!J10="","",TRUNC('[5]مرتب 155'!J10)) -> 84000 | M11: =IF('[5]مرتب 155'!K10="","",('[5]مرتب 155'!K10-TRUNC('[5]مرتب 155'!K10))*100) -> 6 | N11: =IF('[5]مرتب 155'!K10="","",TRUNC('[5]مرتب 155'!K10)) -> 39733 | O11: =IF('[5]مرتب 155'!L10="","",('[5]مرتب 155'!L10-TRUNC('[5]مرتب 155'!L10))*100) -> 27 | P11: =IF('[5]مرتب 155'!L10="","",TRUNC('[5]مرتب 155'!L10)) -> 4050 | Q11: =IF('[5]مرتب 155'!M10="","",('[5]مرتب 155'!M10-TRUNC('[5]مرتب 155'!M10))*100) -> 25 | R11: =IF('[5]مرتب 155'!M10="","",TRUNC('[5]مرتب 155'!M10)) -> 1505 | S11: =IF($ASM$3=1,"",IF('[5]مرتب 155'!P10="","",('[5]مرتب 155'!P10-TRUNC('[5]مرتب 155'!P10))*100)) -> 50 | T11: =IF($ASM$3=1,"",IF('[5]مرتب 155'!P10="","",TRUNC('[5]مرتب 155'!P10))) -> 37 | U11: =IF('[5]مرتب 155'!$Q10="","",('[5]مرتب 155'!$Q10-TRUNC('[5]مرتب 155'!$Q10))*100) -> 76 | V11: =IF('[5]مرتب 155'!$Q10="","",TRUNC('[5]مرتب 155'!$Q10)) -> 49 | W11: =IF('[5]مرتب 155'!$R10="","",('[5]مرتب 155'!$R10-TRUNC('[5]مرتب 155'!$R10))*100) -> 90 | X11: =IF('[5]مرتب 155'!$R10="","",TRUNC('[5]مرتب 155'!$R10)) -> 52 | Y11: =IF($ASK$3=1,"",IF('[5]مرتب 155'!S10="","",('[5]مرتب 155'!S10-TRUNC('[5]مرتب 155'!S10))*100)) -> 52 | Z11: =IF($ASK$3=1,"",IF('[5]مرتب 155'!S10="","",TRUNC('[5]مرتب 155'!S10))) -> 264 | AA11: =IF($ASI$5=1,"",IF('[5]مرتب 155'!T10="","",('[5]مرتب 155'!T10-TRUNC('[5]مرتب 155'!T10))*100)) -> 82 | AB11: =IF($ASI$5=1,"",IF('[5]مرتب 155'!T10="","",TRUNC('[5]مرتب 155'!T10))) -> 925 | AC11: =IF($ASL$6=1,"",IF('[5]مرتب 155'!U10="","",('[5]مرتب 155'!U10-TRUNC('[5]مرتب 155'!U10))*100)) -> 26 | AD11: =IF($ASL$6=1,"",IF('[5]مرتب 155'!U10="","",TRUNC('[5]مرتب 155'!U10))) -> 132 | AE11: =IF($ASI$6=1,"",IF('[5]مرتب 155'!V10="","",('[5]مرتب 155'!V10-TRUNC('[5]مرتب 155'!V10))*100)) -> 26 | AF11: =IF($ASI$6=1,"",IF('[5]مرتب 155'!V10="","",TRUNC('[5]مرتب 155'!V10))) -> 132 | AG11: =IF($ASI$4=1,"",IF('[5]مرتب 155'!W10="","",('[5]مرتب 155'!W10-TRUNC('[5]مرتب 155'!W10))*100)) -> 0 | AH11: =IF($ASI$4=1,"",IF('[5]مرتب 155'!W10="","",TRUNC('[5]مرتب 155'!W10))) -> 325 | AI11: =IF('[5]مرتب 155'!X10="","",('[5]مرتب 155'!X10-TRUNC('[5]مرتب 155'!X10))*100) -> 0 | AJ11: =IF('[5]مرتب 155'!X10="","",TRUNC('[5]مرتب 155'!X10)) -> 6 | AK11: =IF('[5]مرتب 155'!Y10="","",('[5]مرتب 155'!Y10-TRUNC('[5]مرتب 155'!Y10))*100) -> 0 | AL11: =IF('[5]مرتب 155'!Y10="","",TRUNC('[5]مرتب 155'!Y10)) -> 4 | AM11: =IF($ASB$4=1,"",IF('[5]مرتب 155'!Z10="","",('[5]مرتب 155'!Z10-TRUNC('[5]مرتب 155'!Z10))*100)) -> 0 | AN11: =IF($ASB$4=1,"",IF('[5]مرتب 155'!Z10="","",TRUNC('[5]مرتب 155'!Z10))) -> 100 | AO11: =IF('[5]مرتب 155'!AA10="","",('[5]مرتب 155'!AA10-TRUNC('[5]مرتب 155'!AA10))*100) -> 0 | AP11: =IF('[5]مرتب 155'!AA10="","",TRUNC('[5]مرتب 155'!AA10)) -> 40 | AQ11: =IF('[5]مرتب 155'!AB10="","",('[5]مرتب 155'!AB10-TRUNC('[5]مرتب 155'!AB10))*100) ->  | AR11: =IF('[5]مرتب 155'!AB10="","",TRUNC('[5]مرتب 155'!AB10)) ->  | AS11: =IF('[5]مرتب 155'!AC10="","",('[5]مرتب 155'!AC10-TRUNC('[5]مرتب 155'!AC10))*100) ->  | AT11: =IF('[5]مرتب 155'!AC10="","",TRUNC('[5]مرتب 155'!AC10)) ->  | AU11: =IF('[5]مرتب 155'!AD10="","",('[5]مرتب 155'!AD10-TRUNC('[5]مرتب 155'!AD10))*100) ->  | AV11: =IF('[5]مرتب 155'!AD10="","",TRUNC('[5]مرتب 155'!AD10)) ->  | AW11: =IF('[5]مرتب 155'!AE10="","",('[5]مرتب 155'!AE10-TRUNC('[5]مرتب 155'!AE10))*100) ->  | AX11: =IF('[5]مرتب 155'!AE10="","",TRUNC('[5]مرتب 155'!AE10)) ->  | AY11: =IF('[5]مرتب 155'!AF10="","",('[5]مرتب 155'!AF10-TRUNC('[5]مرتب 155'!AF10))*100) -> 0 | AZ11: =IF('[5]مرتب 155'!AF10="","",TRUNC('[5]مرتب 155'!AF10)) -> 475 | BA11: =IF('[5]مرتب 155'!AG10="","",('[5]مرتب 155'!AG10-TRUNC('[5]مرتب 155'!AG10))*100) ->  | BB11: =IF('[5]مرتب 155'!AG10="","",TRUNC('[5]مرتب 155'!AG10)) ->  | BC11: =IF('[5]مرتب 155'!AH10="","",('[5]مرتب 155'!AH10-TRUNC('[5]مرتب 155'!AH10))*100) ->  | BD11: =IF('[5]مرتب 155'!AH10="","",TRUNC('[5]مرتب 155'!AH10)) ->  | BE11: =IF('[5]مرتب 155'!AI10="","",('[5]مرتب 155'!AI10-TRUNC('[5]مرتب 155'!AI10))*100) ->  | BF11: =IF('[5]مرتب 155'!AI10="","",TRUNC('[5]مرتب 155'!AI10)) ->  | BG11: =IF('[5]مرتب 155'!AJ10="","",('[5]مرتب 155'!AJ10-TRUNC('[5]مرتب 155'!AJ10))*100) ->  | BH11: =IF('[5]مرتب 155'!AJ10="","",TRUNC('[5]مرتب 155'!AJ10)) ->  | BI11: =IF('[5]مرتب 155'!AK10="","",('[5]مرتب 155'!AK10-TRUNC('[5]مرتب 155'!AK10))*100) ->  | BJ11: =IF('[5]مرتب 155'!AK10="","",TRUNC('[5]مرتب 155'!AK10)) ->  | BK11: =IF('[5]مرتب 155'!AL10="","",('[5]مرتب 155'!AL10-TRUNC('[5]مرتب 155'!AL10))*100) ->  | BL11: =IF('[5]مرتب 155'!AL10="","",TRUNC('[5]مرتب 155'!AL10)) ->  | BM11: =IF('[5]مرتب 155'!AM10="","",('[5]مرتب 155'!AM10-TRUNC('[5]مرتب 155'!AM10))*100) ->  | BN11: =IF('[5]مرتب 155'!AM10="","",TRUNC('[5]مرتب 155'!AM10)) ->  | BO11: =IF('[5]مرتب 155'!AN10="","",('[5]مرتب 155'!AN10-TRUNC('[5]مرتب 155'!AN10))*100) ->  | BP11: =IF('[5]مرتب 155'!AN10="","",TRUNC('[5]مرتب 155'!AN10)) ->  | BQ11: =IF('[5]مرتب 155'!AO10="","",('[5]مرتب 155'!AO10-TRUNC('[5]مرتب 155'!AO10))*100) ->  | BR11: =IF('[5]مرتب 155'!AO10="","",TRUNC('[5]مرتب 155'!AO10)) ->  | BS11: =IF('[5]مرتب 155'!AP10="","",('[5]مرتب 155'!AP10-TRUNC('[5]مرتب 155'!AP10))*100) -> 3 | BT11: =IF('[5]مرتب 155'!AP10="","",TRUNC('[5]مرتب 155'!AP10)) -> 486 | BU11: =IF('[5]مرتب 155'!AQ10="","",('[5]مرتب 155'!AQ10-TRUNC('[5]مرتب 155'!AQ10))*100) -> 51 | BV11: =IF('[5]مرتب 155'!AQ10="","",TRUNC('[5]مرتب 155'!AQ10)) -> 121 | BW11: =IF('[5]مرتب 155'!AR10="","",('[5]مرتب 155'!AR10-TRUNC('[5]مرتب 155'!AR10))*100) -> 50 | BX11: =IF('[5]مرتب 155'!AR10="","",TRUNC('[5]مرتب 155'!AR10)) -> 40 | BY11: =IF('[5]مرتب 155'!AS10="","",('[5]مرتب 155'!AS10-TRUNC('[5]مرتب 155'!AS10))*100) -> 63 | BZ11: =IF('[5]مرتب 155'!AS10="","",TRUNC('[5]مرتب 155'!AS10)) -> 50 | CA11: =IF('[5]مرتب 155'!AT10="","",('[5]مرتب 155'!AT10-TRUNC('[5]مرتب 155'!AT10))*100) -> 0 | CB11: =IF('[5]مرتب 155'!AT10="","",TRUNC('[5]مرتب 155'!AT10)) -> 10 | CC11: =IF($ASH$2=1,"",IF('[5]مرتب 155'!AU10="","",('[5]مرتب 155'!AU10-TRUNC('[5]مرتب 155'!AU10))*100)) -> 26 | CD11: =IF($ASH$2=1,"",IF('[5]مرتب 155'!AU10="","",TRUNC('[5]مرتب 155'!AU10))) -> 481 | CE11: =IF('[5]مرتب 155'!AV10="","",('[5]مرتب 155'!AV10-TRUNC('[5]مرتب 155'!AV10))*100) -> 20 | CF11: =IF('[5]مرتب 155'!AV10="","",TRUNC('[5]مرتب 155'!AV10)) -> 5240 | CG11: =IF('[5]مرتب 155'!AW10="","",('[5]مرتب 155'!AW10-TRUNC('[5]مرتب 155'!AW10))*100) -> 3 | CH11: =IF('[5]مرتب 155'!AW10="","",TRUNC('[5]مرتب 155'!AW10)) -> 486 | CI11: =IF('[5]مرتب 155'!AX10="","",('[5]مرتب 155'!AX10-TRUNC('[5]مرتب 155'!AX10))*100) -> 52 | CJ11: =IF('[5]مرتب 155'!AX10="","",TRUNC('[5]مرتب 155'!AX10)) -> 364 | CK11: =IF('[5]مرتب 155'!AY10="","",('[5]مرتب 155'!AY10-TRUNC('[5]مرتب 155'!AY10))*100) -> 50 | CL11: =IF('[5]مرتب 155'!AY10="","",TRUNC('[5]مرتب 155'!AY10)) -> 40 | CM11: =IF('[5]مرتب 155'!BB10="","",('[5]مرتب 155'!BB10-TRUNC('[5]مرتب 155'!BB10))*100) -> 50 | CN11: =IF('[5]مرتب 155'!BB10="","",TRUNC('[5]مرتب 155'!BB10)) -> 40 | CO11: =IF('[5]مرتب 155'!AZ10="","",('[5]مرتب 155'!AZ10-TRUNC('[5]مرتب 155'!AZ10))*100) -> 51 | CP11: =IF('[5]مرتب 155'!AZ10="","",TRUNC('[5]مرتب 155'!AZ10)) -> 121 | CQ11: =IF('[5]مرتب 155'!BA10="","",('[5]مرتب 155'!BA10-TRUNC('[5]مرتب 155'!BA10))*100) -> 50 | CR11: =IF('[5]مرتب 155'!BA10="","",TRUNC('[5]مرتب 155'!BA10)) -> 40 | CS11: =IF('[5]مرتب 155'!BC10="","",('[5]مرتب 155'!BC10-TRUNC('[5]مرتب 155'!BC10))*100) -> 63 | CT11: =IF('[5]مرتب 155'!BC10="","",TRUNC('[5]مرتب 155'!BC10)) -> 50 | CU11: =IF('[5]مرتب 155'!BD10="","",('[5]مرتب 155'!BD10-TRUNC('[5]مرتب 155'!BD10))*100) -> 19 | CV11: =IF('[5]مرتب 155'!BD10="","",TRUNC('[5]مرتب 155'!BD10)) -> 1144 | CW11: =IF('[5]مرتب 155'!BE10="","",('[5]مرتب 155'!BE10-TRUNC('[5]مرتب 155'!BE10))*100) ->  | CX11: =IF('[5]مرتب 155'!BE10="","",TRUNC('[5]مرتب 155'!BE10)) ->  | CY11: =IF('[5]مرتب 155'!BF10="","",('[5]مرتب 155'!BF10-TRUNC('[5]مرتب 155'!BF10))*100) ->  | CZ11: =IF('[5]مرتب 155'!BF10="","",TRUNC('[5]مرتب 155'!BF10)) ->  | DA11: =IF('[5]مرتب 155'!BG10="","",('[5]مرتب 155'!BG10-TRUNC('[5]مرتب 155'!BG10))*100) ->  | DB11: =IF('[5]مرتب 155'!BG10="","",TRUNC('[5]مرتب 155'!BG10)) ->  | DC11: =IF('[5]مرتب 155'!BH10="","",('[5]مرتب 155'!BH10-TRUNC('[5]مرتب 155'!BH10))*100) -> 0 | DD11: =IF('[5]مرتب 155'!BH10="","",TRUNC('[5]مرتب 155'!BH10)) -> 0 | DE11: =IF('[5]مرتب 155'!BI10="","",('[5]مرتب 155'!BI10-TRUNC('[5]مرتب 155'!BI10))*100) -> 50 | DF11: =IF('[5]مرتب 155'!BI10="","",TRUNC('[5]مرتب 155'!BI10)) -> 4 | DG11: =IF('[5]مرتب 155'!BJ10="","",('[5]مرتب 155'!BJ10-TRUNC('[5]مرتب 155'!BJ10))*100) -> 37 | DH11: =IF('[5]مرتب 155'!BJ10="","",TRUNC('[5]مرتب 155'!BJ10)) -> 105 | DI11: =IF('[5]مرتب 155'!BK10="","",('[5]مرتب 155'!BK10-TRUNC('[5]مرتب 155'!BK10))*100) -> 0 | DJ11: =IF('[5]مرتب 155'!BK10="","",TRUNC('[5]مرتب 155'!BK10)) -> 3 | DK11: =IF('[5]مرتب 155'!BL10="","",('[5]مرتب 155'!BL10-TRUNC('[5]مرتب 155'!BL10))*100) -> 0 | DL11: =IF('[5]مرتب 155'!BL10="","",TRUNC('[5]مرتب 155'!BL10)) -> 1 | DM11: =IF('[5]مرتب 155'!BM10="","",('[5]مرتب 155'!BM10-TRUNC('[5]مرتب 155'!BM10))*100) ->  | DN11: =IF('[5]مرتب 155'!BM10="","",TRUNC('[5]مرتب 155'!BM10)) ->  | DO11: =IF('[5]مرتب 155'!BN10="","",('[5]مرتب 155'!BN10-TRUNC('[5]مرتب 155'!BN10))*100) ->  | DP11: =IF('[5]مرتب 155'!BN10="","",TRUNC('[5]مرتب 155'!BN10)) ->  | DQ11: =IF('[5]مرتب 155'!BO10="","",('[5]مرتب 155'!BO10-TRUNC('[5]مرتب 155'!BO10))*100) ->  | DR11: =IF('[5]مرتب 155'!BO10="","",TRUNC('[5]مرتب 155'!BO10)) ->  | DS11: =IF('[5]مرتب 155'!BP10="","",('[5]مرتب 155'!BP10-TRUNC('[5]مرتب 155'!BP10))*100) ->  | DT11: =IF('[5]مرتب 155'!BP10="","",TRUNC('[5]مرتب 155'!BP10)) ->  | DU11: =IF('[5]مرتب 155'!BQ10="","",('[5]مرتب 155'!BQ10-TRUNC('[5]مرتب 155'!BQ10))*100) ->  | DV11: =IF('[5]مرتب 155'!BQ10="","",TRUNC('[5]مرتب 155'!BQ10)) ->  | DW11: =IF('[5]مرتب 155'!BR10="","",('[5]مرتب 155'!BR10-TRUNC('[5]مرتب 155'!BR10))*100) ->  | DX11: =IF('[5]مرتب 155'!BR10="","",TRUNC('[5]مرتب 155'!BR10)) ->  | DY11: =IF('[5]مرتب 155'!BS10="","",('[5]مرتب 155'!BS10-TRUNC('[5]مرتب 155'!BS10))*100) ->  | DZ11: =IF('[5]مرتب 155'!BS10="","",TRUNC('[5]مرتب 155'!BS10)) ->  | EA11: =IF('[5]مرتب 155'!BT10="","",('[5]مرتب 155'!BT10-TRUNC('[5]مرتب 155'!BT10))*100) -> 0 | EB11: =IF('[5]مرتب 155'!BT10="","",TRUNC('[5]مرتب 155'!BT10)) -> 0 | EC11: =IF('[5]مرتب 155'!BU10="","",('[5]مرتب 155'!BU10-TRUNC('[5]مرتب 155'!BU10))*100) ->  | ED11: =IF('[5]مرتب 155'!BU10="","",TRUNC('[5]مرتب 155'!BU10)) ->  | EE11: =IF('[5]مرتب 155'!BV10="","",('[5]مرتب 155'!BV10-TRUNC('[5]مرتب 155'!BV10))*100) ->  | EF11: =IF('[5]مرتب 155'!BV10="","",TRUNC('[5]مرتب 155'!BV10)) ->  | EG11: =IF('[5]مرتب 155'!BW10="","",('[5]مرتب 155'!BW10-TRUNC('[5]مرتب 155'!BW10))*100) -> 87 | EH11: =IF('[5]مرتب 155'!BW10="","",TRUNC('[5]مرتب 155'!BW10)) -> 113 | EI11: =IF('[5]مرتب 155'!BX10="","",('[5]مرتب 155'!BX10-TRUNC('[5]مرتب 155'!BX10))*100) ->  | EJ11: =IF('[5]مرتب 155'!BX10="","",TRUNC('[5]مرتب 155'!BX10)) ->  | EK11: =IF('[5]مرتب 155'!BY10="","",('[5]مرتب 155'!BY10-TRUNC('[5]مرتب 155'!BY10))*100) ->  | EL11: =IF('[5]مرتب 155'!BY10="","",TRUNC('[5]مرتب 155'!BY10)) ->  | EM11: =IF('[5]مرتب 155'!BZ10="","",('[5]مرتب 155'!BZ10-TRUNC('[5]مرتب 155'!BZ10))*100) ->  | EN11: =IF('[5]مرتب 155'!BZ10="","",TRUNC('[5]مرتب 155'!BZ10)) ->  | EO11: =IF('[5]مرتب 155'!CA10="","",('[5]مرتب 155'!CA10-TRUNC('[5]مرتب 155'!CA10))*100) ->  | EP11: =IF('[5]مرتب 155'!CA10="","",TRUNC('[5]مرتب 155'!CA10)) ->  | EQ11: =IF('[5]مرتب 155'!CB10="","",('[5]مرتب 155'!CB10-TRUNC('[5]مرتب 155'!CB10))*100) ->  | ER11: =IF('[5]مرتب 155'!CB10="","",TRUNC('[5]مرتب 155'!CB10)) ->  | ES11: =IF('[5]مرتب 155'!CC10="","",('[5]مرتب 155'!CC10-TRUNC('[5]مرتب 155'!CC10))*100) ->  | ET11: =IF('[5]مرتب 155'!CC10="","",TRUNC('[5]مرتب 155'!CC10)) ->  | EU11: =IF('[5]مرتب 155'!CD10="","",('[5]مرتب 155'!CD10-TRUNC('[5]مرتب 155'!CD10))*100) ->  | EV11: =IF('[5]مرتب 155'!CD10="","",TRUNC('[5]مرتب 155'!CD10)) ->  | EW11: =IF('[5]مرتب 155'!CE10="","",('[5]مرتب 155'!CE10-TRUNC('[5]مرتب 155'!CE10))*100) -> 0 | EX11: =IF('[5]مرتب 155'!CE10="","",TRUNC('[5]مرتب 155'!CE10)) -> 0 | EY11: =IF('[5]مرتب 155'!CF10="","",('[5]مرتب 155'!CF10-TRUNC('[5]مرتب 155'!CF10))*100) ->  | EZ11: =IF('[5]مرتب 155'!CF10="","",TRUNC('[5]مرتب 155'!CF10)) ->  | FA11: =IF('[5]مرتب 155'!CG10="","",('[5]مرتب 155'!CG10-TRUNC('[5]مرتب 155'!CG10))*100) ->  | FB11: =IF('[5]مرتب 155'!CG10="","",TRUNC('[5]مرتب 155'!CG10)) ->  | FC11: =IF('[5]مرتب 155'!CH10="","",('[5]مرتب 155'!CH10-TRUNC('[5]مرتب 155'!CH10))*100) ->  | FD11: =IF('[5]مرتب 155'!CH10="","",TRUNC('[5]مرتب 155'!CH10)) ->  | FE11: =IF('[5]مرتب 155'!CI10="","",('[5]مرتب 155'!CI10-TRUNC('[5]مرتب 155'!CI10))*100) -> 53 | FF11: =IF('[5]مرتب 155'!CI10="","",TRUNC('[5]مرتب 155'!CI10)) -> 16 | FG11: =IF('[5]مرتب 155'!CJ10="","",('[5]مرتب 155'!CJ10-TRUNC('[5]مرتب 155'!CJ10))*100) -> 53 | FH11: =IF('[5]مرتب 155'!CJ10="","",TRUNC('[5]مرتب 155'!CJ10)) -> 7 | FI11: =IF('[5]مرتب 155'!CK10="","",('[5]مرتب 155'!CK10-TRUNC('[5]مرتب 155'!CK10))*100) ->  | FJ11: =IF('[5]مرتب 155'!CK10="","",TRUNC('[5]مرتب 155'!CK10)) ->  | FM11: =IF('[5]مرتب 155'!CM10="","",('[5]مرتب 155'!CM10-TRUNC('[5]مرتب 155'!CM10))*100) ->  | FN11: =IF('[5]مرتب 155'!CM10="","",TRUNC('[5]مرتب 155'!CM10)) ->  | FO11: =IF('[5]مرتب 155'!CN10="","",('[5]مرتب 155'!CN10-TRUNC('[5]مرتب 155'!CN10))*100) ->  | FP11: =IF('[5]مرتب 155'!CN10="","",TRUNC('[5]مرتب 155'!CN10)) ->  | FQ11: =IF('[5]مرتب 155'!CO10="","",('[5]مرتب 155'!CO10-TRUNC('[5]مرتب 155'!CO10))*100) ->  | FR11: =IF('[5]مرتب 155'!CO10="","",TRUNC('[5]مرتب 155'!CO10)) ->  | FS11: =IF('[5]مرتب 155'!CP10="","",('[5]مرتب 155'!CP10-TRUNC('[5]مرتب 155'!CP10))*100) -> 66.82 | FT11: =IF('[5]مرتب 155'!CP10="","",TRUNC('[5]مرتب 155'!CP10)) -> 34 | FU11: =IF('[5]مرتب 155'!CQ10="","",('[5]مرتب 155'!CQ10-TRUNC('[5]مرتب 155'!CQ10))*100) -> 1.18 | FV11: =IF('[5]مرتب 155'!CQ10="","",TRUNC('[5]مرتب 155'!CQ10)) -> 0 | FW11: =IF('[5]مرتب 155'!CR10="","",('[5]مرتب 155'!CR10-TRUNC('[5]مرتب 155'!CR10))*100) -> 80 | FX11: =IF('[5]مرتب 155'!CR10="","",TRUNC('[5]مرتب 155'!CR10)) -> 1316 | FY11: =IF('[5]مرتب 155'!CS10="","",('[5]مرتب 155'!CS10-TRUNC('[5]مرتب 155'!CS10))*100) -> 40 | FZ11: =IF('[5]مرتب 155'!CS10="","",TRUNC('[5]مرتب 155'!CS10)) -> 3923 | GA11: 4 | GB11: ='[5]مرتب 155'!CU10 -> البنك الأهلى | GC11: ='[5]مرتب 155'!CV10 ->  | GD11: 4 | GE11: 4 | GR11: 4 | GS11: 4 | GT11: =IF('[5]بيانات معلمين'!B10=0,"",'[5]بيانات معلمين'!B10) -> اكرم نصحى فهيم بلامون | GU11: =IF('[5]بيانات معلمين'!C10=0,"",'[5]بيانات معلمين'!C10) -> معلم خبير | GV11: =IF('[5]بيانات معلمين'!D10=0,"",'[5]بيانات معلمين'!D10) -> مدير عام | GW11: 1 | GX11: 1 | GY11: دفع | GZ11: =IF(GT11="","",SUBTOTAL(3,GT$8:GT11)) -> 4 | HA11: =IF('[5]بيانات معلمين'!G10=0,"",IF($LF11=0,ROUND(($LE$5-$LE11)*'[5]بيانات معلمين'!G10/$LE$5,2),IF($LE11=0,ROUND($LF11*'[5]بيانات معلمين'!G10/$LE$5,2)))) -> 529.04 | HD11: 4050.27 | HE11: =IF('[5]بيانات معلمين'!K10=0,"",IF($LF11=0,ROUND(($LE$5-$LE11)*'[5]بيانات معلمين'!K10/$LE$5,2),IF($LE11=0,ROUND($LF11*'[5]بيانات معلمين'!K10/$LE$5,2)))) -> 1505.25 | HF11: =IF('[5]بيانات معلمين'!L10=0,0,IF($LF11=0,ROUND(($LE$5-$LE11)*'[5]بيانات معلمين'!L10/$LE$5,2),IF($LE11=0,ROUND($LF11*'[5]بيانات معلمين'!L10/$LE$5,2)))) -> 37.5 | HG11: =IF('[5]بيانات معلمين'!M10=0,0,IF($LF11=0,ROUND(($LE$5-$LE11)*'[5]بيانات معلمين'!M10/$LE$5,2),IF($LE11=0,ROUND($LF11*'[5]بيانات معلمين'!M10/$LE$5,2)))) -> 0 | HH11: 37.5 | HI11: =IF('[5]بيانات معلمين'!O10=0,"",IF($LF11=0,ROUND(($LE$5-$LE11)*'[5]بيانات معلمين'!O10/$LE$5,2),IF($LE11=0,ROUND($LF11*'[5]بيانات معلمين'!O10/$LE$5,2)))) -> 49.76 | HJ11: =IF('[5]بيانات معلمين'!P10=0,"",IF($LF11=0,ROUND(($LE$5-$LE11)*'[5]بيانات معلمين'!P10/$LE$5,2),IF($LE11=0,ROUND($LF11*'[5]بيانات معلمين'!P10/$LE$5,2)))) -> 52.9 | HK11: =IF($ASK$3=1,"",IF('[5]بيانات معلمين'!Q10=0,"",IF($LF11=0,ROUND(($LE$5-$LE11)*'[5]بيانات معلمين'!Q10/$LE$5,2),IF($LE11=0,ROUND($LF11*'[5]بيانات معلمين'!Q10/$LE$5,2))))) -> 264.52 | HL11: =IF($ASI$5=1,"",IF('[5]بيانات معلمين'!R10=0,"",IF($LF11=0,ROUND(($LE$5-$LE11)*'[5]بيانات معلمين'!R10/$LE$5,2),IF($LE11=0,ROUND($LF11*'[5]بيانات معلمين'!R10/$LE$5,2))))) -> 925.82 | HM11: =IF($ASL$6=1,"",IF('[5]بيانات معلمين'!S10=0,"",IF($LF11=0,ROUND(($LE$5-$LE11)*'[5]بيانات معلمين'!S10/$LE$5,2),IF($LE11=0,ROUND($LF11*'[5]بيانات معلمين'!S10/$LE$5,2))))) -> 132.26 | HN11: =IF($ASI$6=1,"",IF('[5]بيانات معلمين'!T10=0,"",IF($LF11=0,ROUND(($LE$5-$LE11)*'[5]بيانات معلمين'!T10/$LE$5,2),IF($LE11=0,ROUND($LF11*'[5]بيانات معلمين'!T10/$LE$5,2))))) -> 132.26 | HO11: =IF($ASI$4=1,"",IF('[5]بيانات معلمين'!U10=0,"",IF($LF11=0,ROUND(($LE$5-$LE11)*'[5]بيانات معلمين'!U10/$LE$5,2),IF($LE11=0,ROUND($LF11*'[5]بيانات معلمين'!U10/$LE$5,2))))) -> 325 | HP11: =IF('[5]بيانات معلمين'!V10=0,"",IF($LF11=0,ROUND(($LE$5-$LE11)*'[5]بيانات معلمين'!V10/$LE$5,2),IF($LE11=0,ROUND($LF11*'[5]بيانات معلمين'!V10/$LE$5,2)))) -> 6 | HQ11: =IF('[5]بيانات معلمين'!W10=0,"",IF($LF11=0,ROUND(($LE$5-$LE11)*'[5]بيانات معلمين'!W10/$LE$5,2),IF($LE11=0,ROUND($LF11*'[5]بيانات معلمين'!W10/$LE$5,2)))) -> 4 | HR11: =IF($ASB$4=1,"",IF('[5]بيانات معلمين'!X10=0,"",IF($LF11=0,ROUND(($LE$5-$LE11)*'[5]بيانات معلمين'!X10/$LE$5,2),IF($LE11=0,ROUND($LF11*'[5]بيانات معلمين'!X10/$LE$5,2))))) -> 100 | HS11: =IF('[5]بيانات معلمين'!Y10=0,"",IF($LF11=0,ROUND(($LE$5-$LE11)*'[5]بيانات معلمين'!Y10/$LE$5,2),IF($LE11=0,ROUND($LF11*'[5]بيانات معلمين'!Y10/$LE$5,2)))) -> 40 | HT11: =IF('[5]بيانات معلمين'!Z10=0,"",IF($LF11=0,ROUND(($LE$5-$LE11)*'[5]بيانات معلمين'!Z10/$LE$5,2),IF($LE11=0,ROUND($LF11*'[5]بيانات معلمين'!Z10/$LE$5,2)))) ->  | HU11: =IF('[5]بيانات معلمين'!AA10=0,"",IF($LF11=0,ROUND(($LE$5-$LE11)*'[5]بيانات معلمين'!AA10/$LE$5,2),IF($LE11=0,ROUND($LF11*'[5]بيانات معلمين'!AA10/$LE$5,2)))) ->  | HV11: =IF('[5]بيانات معلمين'!AB10=0,"",IF($LF11=0,ROUND(($LE$5-$LE11)*'[5]بيانات معلمين'!AB10/$LE$5,2),IF($LE11=0,ROUND($LF11*'[5]بيانات معلمين'!AB10/$LE$5,2)))) ->  | HW11: =IF('[5]بيانات معلمين'!AC10=0,"",IF($LF11=0,ROUND(($LE$5-$LE11)*'[5]بيانات معلمين'!AC10/$LE$5,2),IF($LE11=0,ROUND($LF11*'[5]بيانات معلمين'!AC10/$LE$5,2)))) ->  | HX11: =IF('[5]بيانات معلمين'!AD10=0,"",IF($LF11=0,ROUND(($LE$5-$LE11)*'[5]بيانات معلمين'!AD10/$LE$5,2),IF($LE11=0,ROUND($LF11*'[5]بيانات معلمين'!AD10/$LE$5,2)))) -> 475 | HY11: =IF('[5]بيانات معلمين'!AE10=0,"",IF($LF11=0,ROUND(($LE$5-$LE11)*'[5]بيانات معلمين'!AE10/$LE$5,2),IF($LE11=0,ROUND($LF11*'[5]بيانات معلمين'!AE10/$LE$5,2)))) ->  | HZ11: =IF('[5]بيانات معلمين'!AF10=0,"",IF($LF11=0,ROUND(($LE$5-$LE11)*'[5]بيانات معلمين'!AF10/$LE$5,2),IF($LE11=0,ROUND($LF11*'[5]بيانات معلمين'!AF10/$LE$5,2)))) ->  | IA11: =IF('[5]بيانات معلمين'!AG10=0,"",IF($LF11=0,ROUND(($LE$5-$LE11)*'[5]بيانات معلمين'!AG10/$LE$5,2),IF($LE11=0,ROUND($LF11*'[5]بيانات معلمين'!AG10/$LE$5,2)))) ->  | IB11: =IF('[5]بيانات معلمين'!AH10=0,"",IF($LF11=0,ROUND(($LE$5-$LE11)*'[5]بيانات معلمين'!AH10/$LE$5,2),IF($LE11=0,ROUND($LF11*'[5]بيانات معلمين'!AH10/$LE$5,2)))) ->  | IC11: =IF('[5]بيانات معلمين'!AI10=0,"",IF($LF11=0,ROUND(($LE$5-$LE11)*'[5]بيانات معلمين'!AI10/$LE$5,2),IF($LE11=0,ROUND($LF11*'[5]بيانات معلمين'!AI10/$LE$5,2)))) ->  | ID11: =IF('[5]بيانات معلمين'!AJ10=0,"",IF($LF11=0,ROUND(($LE$5-$LE11)*'[5]بيانات معلمين'!AJ10/$LE$5,2),IF($LE11=0,ROUND($LF11*'[5]بيانات معلمين'!AJ10/$LE$5,2)))) ->  | IE11: =IF('[5]بيانات معلمين'!AK10=0,"",IF($LF11=0,ROUND(($LE$5-$LE11)*'[5]بيانات معلمين'!AK10/$LE$5,2),IF($LE11=0,ROUND($LF11*'[5]بيانات معلمين'!AK10/$LE$5,2)))) ->  | IF11: =IF('[5]بيانات معلمين'!AL10=0,"",IF($LF11=0,ROUND(($LE$5-$LE11)*'[5]بيانات معلمين'!AL10/$LE$5,2),IF($LE11=0,ROUND($LF11*'[5]بيانات معلمين'!AL10/$LE$5,2)))) ->  | IG11: =IF('[5]بيانات معلمين'!AM10=0,"",IF($LF11=0,ROUND(($LE$5-$LE11)*'[5]بيانات معلمين'!AM10/$LE$5,2),IF($LE11=0,ROUND($LF11*'[5]بيانات معلمين'!AM10/$LE$5,2)))) ->  | IH11: =IF('[5]بيانات معلمين'!AN10=0,"",IF($LF11=0,ROUND(($LE$5-$LE11)*'[5]بيانات معلمين'!AN10/$LE$5,2),IF($LE11=0,ROUND($LF11*'[5]بيانات معلمين'!AN10/$LE$5,2)))) -> 486.03 | II11: =IF('[5]بيانات معلمين'!AO10=0,"",IF($LF11=0,ROUND(($LE$5-$LE11)*'[5]بيانات معلمين'!AO10/$LE$5,2),IF($LE11=0,ROUND($LF11*'[5]بيانات معلمين'!AO10/$LE$5,2)))) -> 121.51 | IJ11: =IF('[5]بيانات معلمين'!AP10=0,"",IF($LF11=0,ROUND(($LE$5-$LE11)*'[5]بيانات معلمين'!AP10/$LE$5,2),IF($LE11=0,ROUND($LF11*'[5]بيانات معلمين'!AP10/$LE$5,2)))) -> 40.5 | IK11: =IF('[5]بيانات معلمين'!AQ10=0,"",IF($LF11=0,ROUND(($LE$5-$LE11)*'[5]بيانات معلمين'!AQ10/$LE$5,2),IF($LE11=0,ROUND($LF11*'[5]بيانات معلمين'!AQ10/$LE$5,2)))) -> 50.63 | IL11: 698.67 | IM11: 67 | IN11: 698 | IO11: =IF('[5]بيانات معلمين'!AR10=0,"",IF($LF11=0,ROUND(($LE$5-$LE11)*'[5]بيانات معلمين'!AR10/$LE$5,2),IF($LE11=0,ROUND($LF11*'[5]بيانات معلمين'!AR10/$LE$5,2)))) -> 10 | IP11: =IF($ASH$2=1,"",IF('[5]بيانات معلمين'!AS10=0,"",IF($LF11=0,ROUND(($LE$5-$LE11)*'[5]بيانات معلمين'!AS10/$LE$5,2),IF($LE11=0,ROUND($LF11*'[5]بيانات معلمين'!AS10/$LE$5,2))))) -> 481.26 | IQ11: =IF('[5]بيانات معلمين'!AT10=0,"",ROUND(SUM(HE11,HH11:IK11,IO11,IP11),2)) -> 5240.2 | IR11: =IF('[5]بيانات معلمين'!AU10=0,"",IF($LF11=0,ROUND(($LE$5-$LE11)*'[5]بيانات معلمين'!AU10/$LE$5,2),IF($LE11=0,ROUND($LF11*'[5]بيانات معلمين'!AU10/$LE$5,2)))) -> 486.03 | IS11: =IF('[5]بيانات معلمين'!AV10=0,"",'[5]بيانات معلمين'!AV10) -> 364.52 | IT11: =IF('[5]بيانات معلمين'!AW10=0,"",IF($LF11=0,ROUND(($LE$5-$LE11)*'[5]بيانات معلمين'!AW10/$LE$5,2),IF($LE11=0,ROUND($LF11*'[5]بيانات معلمين'!AW10/$LE$5,2)))) -> 40.5 | IU11: =IF('[5]بيانات معلمين'!AX10=0,"",IF($LF11=0,ROUND(($LE$5-$LE11)*'[5]بيانات معلمين'!AX10/$LE$5,2),IF($LE11=0,ROUND($LF11*'[5]بيانات معلمين'!AX10/$LE$5,2)))) -> 121.51 | IV11: =IF('[5]بيانات معلمين'!AY10=0,"",'[5]بيانات معلمين'!AY10) -> 40.5 | IW11: =IF('[5]بيانات معلمين'!AZ10=0,"",'[5]بيانات معلمين'!AZ10) -> 40.5 | IX11: =IF('[5]بيانات معلمين'!BA10=0,"",IF($LF11=0,ROUND(($LE$5-$LE11)*'[5]بيانات معلمين'!BA10/$LE$5,2),IF($LE11=0,ROUND($LF11*'[5]بيانات معلمين'!BA10/$LE$5,2)))) -> 50.63 | IY11: 1144.19 | IZ11: =IF('[5]بيانات معلمين'!BC10=0,"",'[5]بيانات معلمين'!BC10) ->  | JA11: =IF('[5]بيانات معلمين'!BD10=0,"",'[5]بيانات معلمين'!BD10) ->  | JB11: =IF('[5]بيانات معلمين'!BE10=0,"",'[5]بيانات معلمين'!BE10) ->  | JC11: 0 | JD11: =IF('[5]بيانات معلمين'!BG10=0,"",'[5]بيانات معلمين'!BG10) -> 4.5 | JE11: =IF('[5]بيانات معلمين'!$BH10=0,0,'[5]بيانات معلمين'!$BH10)/('[5]بيانات معلمين'!$CY10) -> 105.37 | JF11: =IF('[5]بيانات معلمين'!BI10=0,"",'[5]بيانات معلمين'!BI10) -> 3 | JG11: =IF('[5]بيانات معلمين'!BJ10=0,"",'[5]بيانات معلمين'!BJ10) -> 1 | JH11: =IF('[5]بيانات معلمين'!BK10=0,"",'[5]بيانات معلمين'!BK10) ->  | JI11: =IF('[5]بيانات معلمين'!BL10=0,"",'[5]بيانات معلمين'!BL10) ->  | JJ11: =IF('[5]بيانات معلمين'!BM10=0,"",'[5]بيانات معلمين'!BM10) ->  | JK11: =IF('[5]بيانات معلمين'!BN10=0,"",'[5]بيانات معلمين'!BN10) ->  | JL11: =IF('[5]بيانات معلمين'!BO10=0,"",'[5]بيانات معلمين'!BO10) ->  | JM11: =IF('[5]بيانات معلمين'!BP10=0,"",'[5]بيانات معلمين'!BP10) ->  | JN11: =IF('[5]بيانات معلمين'!BQ10=0,"",'[5]بيانات معلمين'!BQ10) ->  | JO11: =IF('[5]بيانات معلمين'!$BR10=0,0,'[5]بيانات معلمين'!$BR10)/'[5]بيانات معلمين'!$CY10 -> 0 | JP11: =IF('[5]بيانات معلمين'!BS10=0,"",'[5]بيانات معلمين'!BS10) ->  | JQ11: =IF('[5]بيانات معلمين'!BT10=0,"",'[5]بيانات معلمين'!BT10) ->  | JR11: 113.87 | JS11: =IF('[5]بيانات معلمين'!BV10=0,"",'[5]بيانات معلمين'!BV10) ->  | JT11: =IF('[5]بيانات معلمين'!BW10=0,"",'[5]بيانات معلمين'!BW10) ->  | JU11: =IF('[5]بيانات معلمين'!BX10=0,"",'[5]بيانات معلمين'!BX10) ->  | JV11: =IF('[5]بيانات معلمين'!BY10=0,"",'[5]بيانات معلمين'!BY10) ->  | JW11: =IF('[5]بيانات معلمين'!BZ10=0,"",'[5]بيانات معلمين'!BZ10) ->  | JX11: =IF('[5]بيانات معلمين'!CA10=0,"",'[5]بيانات معلمين'!CA10) ->  | JY11: =IF('[5]بيانات معلمين'!CB10=0,"",'[5]بيانات معلمين'!CB10) ->  | JZ11: 0 | KA11: =IF('[5]بيانات معلمين'!CD10=0,"",'[5]بيانات معلمين'!CD10) ->  | KB11: =IF('[5]بيانات معلمين'!CE10=0,"",'[5]بيانات معلمين'!CE10) ->  | KC11: =IF('[5]بيانات معلمين'!CF10=0,"",'[5]بيانات معلمين'!CF10) ->  | KD11: =IF('[5]بيانات معلمين'!CG10=0,"",ROUND(IF(($HD11+($HE11*50%)-$HE11-(11%*$HD11)-$JC11-$JR11-$KE11-$HH11-HE11/47-2000)*0.025<=0,0,($HD11+($HE11*50%)-$HE11-(11%*$HD11)-$JC11-$JR11-$KE11-$HH11-HE11/47-2000)*0.025),2)) -> 16.53 | KE11: =IF('[5]بيانات معلمين'!CH10=0,"",'[5]بيانات معلمين'!CH10) -> 7.53 | KF11: =IF('[5]بيانات معلمين'!CI10=0,"",'[5]بيانات معلمين'!CI10) ->  | KG11: =IF('[5]بيانات معلمين'!CJ10=0,"",'[5]بيانات معلمين'!CJ10) ->  | KH11: =IF('[5]بيانات معلمين'!CK10=0,"",'[5]بيانات معلمين'!CK10) ->  | KI11: =IF('[5]بيانات معلمين'!CL10=0,"",'[5]بيانات معلمين'!CL10) ->  | KJ11: =IF('[5]بيانات معلمين'!CM10=0,"",'[5]بيانات معلمين'!CM10) ->  | KK11: =IF('[5]بيانات معلمين'!CN10=0,"",'[5]بيانات معلمين'!CN10) -> 34.6682 | KL11: 58.7282 | KM11: 72.82 | KN11: 58 | KO11: 0.0118 | KP11: 1316.8 | KQ11: 3923.4 | KR11: =IF('[5]بيانات معلمين'!CR10=0,"",'[5]بيانات معلمين'!CR10) -> اكرم نصحى فهيم بلامون | KS11: =IF('[5]بيانات معلمين'!CS10=0,"",'[5]بيانات معلمين'!CS10) -> البنك الأهلى | KT11: =IF('[5]بيانات معلمين'!CT10=0,"",'[5]بيانات معلمين'!CT10) ->  | KU11: =IF('[5]بيانات معلمين'!CU10=0,"",'[5]بيانات معلمين'!CU10) -> 27109022700239 | KW11: 4 | KY11: 3923.4118 | LE11: ='[5]جزاءات 155'!F10 -> 0 | LF11: ='[5]جزاءات 155'!E10 -> 0 | AES11: =IF('[5]استقطاعات 155'!Q10="","",'[5]مرتب 155'!M10) ->  | AEU11: 4 | AEY11: ='[5]استقطاعات 155'!Q10 -> 0 | AFA11: 0 | AFB11: 0 | AFC11: -10000 | AFD11: 0 | AFE11: 0 | AFF11: -40000 | AFG11: 0 | AFH11: 0 | AFI11: 0 | AFJ11: 0 | AFK11: 0 | AFL11: 0 | AFM11: 0
A12: 1 | B12: 1 | C12: ='[5]مرتب 155'!C11 -> كبير معلمين | D12: ='[5]مرتب 155'!D11 -> العالية | E12: 6 | F12: 1 | G12: ='[5]ادخال بيانات 155'!N11 -> أهلى | H12: =IF(B12="","",SUBTOTAL(3,$B$8:B12)) -> 5 | I12: =IF('[5]مرتب 155'!I11="","",('[5]مرتب 155'!I11-TRUNC('[5]مرتب 155'!I11))*100) -> 27 | J12: =IF('[5]مرتب 155'!I11="","",TRUNC('[5]مرتب 155'!I11)) -> 835 | K12: =IF('[5]مرتب 155'!J11="","",('[5]مرتب 155'!J11-TRUNC('[5]مرتب 155'!J11))*100) -> 0 | L12: =IF('[5]مرتب 155'!J11="","",TRUNC('[5]مرتب 155'!J11)) -> 84000 | M12: =IF('[5]مرتب 155'!K11="","",('[5]مرتب 155'!K11-TRUNC('[5]مرتب 155'!K11))*100) -> 90 | N12: =IF('[5]مرتب 155'!K11="","",TRUNC('[5]مرتب 155'!K11)) -> 58390 | O12: =IF('[5]مرتب 155'!L11="","",('[5]مرتب 155'!L11-TRUNC('[5]مرتب 155'!L11))*100) -> 99 | P12: =IF('[5]مرتب 155'!L11="","",TRUNC('[5]مرتب 155'!L11)) -> 2401 | Q12: =IF('[5]مرتب 155'!M11="","",('[5]مرتب 155'!M11-TRUNC('[5]مرتب 155'!M11))*100) -> 46 | R12: =IF('[5]مرتب 155'!M11="","",TRUNC('[5]مرتب 155'!M11)) -> 931 | S12: =IF($ASM$3=1,"",IF('[5]مرتب 155'!P11="","",('[5]مرتب 155'!P11-TRUNC('[5]مرتب 155'!P11))*100)) -> 75 | T12: =IF($ASM$3=1,"",IF('[5]مرتب 155'!P11="","",TRUNC('[5]مرتب 155'!P11))) -> 15 | U12: =IF('[5]مرتب 155'!$Q11="","",('[5]مرتب 155'!$Q11-TRUNC('[5]مرتب 155'!$Q11))*100) -> 76 | V12: =IF('[5]مرتب 155'!$Q11="","",TRUNC('[5]مرتب 155'!$Q11)) -> 32 | W12: =IF('[5]مرتب 155'!$R11="","",('[5]مرتب 155'!$R11-TRUNC('[5]مرتب 155'!$R11))*100) -> 8 | X12: =IF('[5]مرتب 155'!$R11="","",TRUNC('[5]مرتب 155'!$R11)) -> 35 | Y12: =IF($ASK$3=1,"",IF('[5]مرتب 155'!S11="","",('[5]مرتب 155'!S11-TRUNC('[5]مرتب 155'!S11))*100)) -> 41 | Z12: =IF($ASK$3=1,"",IF('[5]مرتب 155'!S11="","",TRUNC('[5]مرتب 155'!S11))) -> 175 | AA12: =IF($ASI$5=1,"",IF('[5]مرتب 155'!T11="","",('[5]مرتب 155'!T11-TRUNC('[5]مرتب 155'!T11))*100)) -> 63 | AB12: =IF($ASI$5=1,"",IF('[5]مرتب 155'!T11="","",TRUNC('[5]مرتب 155'!T11))) -> 701 | AC12: =IF($ASL$6=1,"",IF('[5]مرتب 155'!U11="","",('[5]مرتب 155'!U11-TRUNC('[5]مرتب 155'!U11))*100)) -> 70 | AD12: =IF($ASL$6=1,"",IF('[5]مرتب 155'!U11="","",TRUNC('[5]مرتب 155'!U11))) -> 87 | AE12: =IF($ASI$6=1,"",IF('[5]مرتب 155'!V11="","",('[5]مرتب 155'!V11-TRUNC('[5]مرتب 155'!V11))*100)) ->  | AF12: =IF($ASI$6=1,"",IF('[5]مرتب 155'!V11="","",TRUNC('[5]مرتب 155'!V11))) ->  | AG12: =IF($ASI$4=1,"",IF('[5]مرتب 155'!W11="","",('[5]مرتب 155'!W11-TRUNC('[5]مرتب 155'!W11))*100)) -> 0 | AH12: =IF($ASI$4=1,"",IF('[5]مرتب 155'!W11="","",TRUNC('[5]مرتب 155'!W11))) -> 126 | AI12: =IF('[5]مرتب 155'!X11="","",('[5]مرتب 155'!X11-TRUNC('[5]مرتب 155'!X11))*100) -> 52 | AJ12: =IF('[5]مرتب 155'!X11="","",TRUNC('[5]مرتب 155'!X11)) -> 2 | AK12: =IF('[5]مرتب 155'!Y11="","",('[5]مرتب 155'!Y11-TRUNC('[5]مرتب 155'!Y11))*100) -> 68 | AL12: =IF('[5]مرتب 155'!Y11="","",TRUNC('[5]مرتب 155'!Y11)) -> 1 | AM12: =IF($ASB$4=1,"",IF('[5]مرتب 155'!Z11="","",('[5]مرتب 155'!Z11-TRUNC('[5]مرتب 155'!Z11))*100)) -> 0 | AN12: =IF($ASB$4=1,"",IF('[5]مرتب 155'!Z11="","",TRUNC('[5]مرتب 155'!Z11))) -> 42 | AO12: =IF('[5]مرتب 155'!AA11="","",('[5]مرتب 155'!AA11-TRUNC('[5]مرتب 155'!AA11))*100) -> 0 | AP12: =IF('[5]مرتب 155'!AA11="","",TRUNC('[5]مرتب 155'!AA11)) -> 40 | AQ12: =IF('[5]مرتب 155'!AB11="","",('[5]مرتب 155'!AB11-TRUNC('[5]مرتب 155'!AB11))*100) ->  | AR12: =IF('[5]مرتب 155'!AB11="","",TRUNC('[5]مرتب 155'!AB11)) ->  | AS12: =IF('[5]مرتب 155'!AC11="","",('[5]مرتب 155'!AC11-TRUNC('[5]مرتب 155'!AC11))*100) ->  | AT12: =IF('[5]مرتب 155'!AC11="","",TRUNC('[5]مرتب 155'!AC11)) ->  | AU12: =IF('[5]مرتب 155'!AD11="","",('[5]مرتب 155'!AD11-TRUNC('[5]مرتب 155'!AD11))*100) ->  | AV12: =IF('[5]مرتب 155'!AD11="","",TRUNC('[5]مرتب 155'!AD11)) ->  | AW12: =IF('[5]مرتب 155'!AE11="","",('[5]مرتب 155'!AE11-TRUNC('[5]مرتب 155'!AE11))*100) ->  | AX12: =IF('[5]مرتب 155'!AE11="","",TRUNC('[5]مرتب 155'!AE11)) ->  | AY12: =IF('[5]مرتب 155'!AF11="","",('[5]مرتب 155'!AF11-TRUNC('[5]مرتب 155'!AF11))*100) -> 0 | AZ12: =IF('[5]مرتب 155'!AF11="","",TRUNC('[5]مرتب 155'!AF11)) -> 210 | BA12: =IF('[5]مرتب 155'!AG11="","",('[5]مرتب 155'!AG11-TRUNC('[5]مرتب 155'!AG11))*100) ->  | BB12: =IF('[5]مرتب 155'!AG11="","",TRUNC('[5]مرتب 155'!AG11)) ->  | BC12: =IF('[5]مرتب 155'!AH11="","",('[5]مرتب 155'!AH11-TRUNC('[5]مرتب 155'!AH11))*100) ->  | BD12: =IF('[5]مرتب 155'!AH11="","",TRUNC('[5]مرتب 155'!AH11)) ->  | BE12: =IF('[5]مرتب 155'!AI11="","",('[5]مرتب 155'!AI11-TRUNC('[5]مرتب 155'!AI11))*100) ->  | BF12: =IF('[5]مرتب 155'!AI11="","",TRUNC('[5]مرتب 155'!AI11)) ->  | BG12: =IF('[5]مرتب 155'!AJ11="","",('[5]مرتب 155'!AJ11-TRUNC('[5]مرتب 155'!AJ11))*100) ->  | BH12: =IF('[5]مرتب 155'!AJ11="","",TRUNC('[5]مرتب 155'!AJ11)) ->  | BI12: =IF('[5]مرتب 155'!AK11="","",('[5]مرتب 155'!AK11-TRUNC('[5]مرتب 155'!AK11))*100) ->  | BJ12: =IF('[5]مرتب 155'!AK11="","",TRUNC('[5]مرتب 155'!AK11)) ->  | BK12: =IF('[5]مرتب 155'!AL11="","",('[5]مرتب 155'!AL11-TRUNC('[5]مرتب 155'!AL11))*100) ->  | BL12: =IF('[5]مرتب 155'!AL11="","",TRUNC('[5]مرتب 155'!AL11)) ->  | BM12: =IF('[5]مرتب 155'!AM11="","",('[5]مرتب 155'!AM11-TRUNC('[5]مرتب 155'!AM11))*100) ->  | BN12: =IF('[5]مرتب 155'!AM11="","",TRUNC('[5]مرتب 155'!AM11)) ->  | BO12: =IF('[5]مرتب 155'!AN11="","",('[5]مرتب 155'!AN11-TRUNC('[5]مرتب 155'!AN11))*100) ->  | BP12: =IF('[5]مرتب 155'!AN11="","",TRUNC('[5]مرتب 155'!AN11)) ->  | BQ12: =IF('[5]مرتب 155'!AO11="","",('[5]مرتب 155'!AO11-TRUNC('[5]مرتب 155'!AO11))*100) ->  | BR12: =IF('[5]مرتب 155'!AO11="","",TRUNC('[5]مرتب 155'!AO11)) ->  | BS12: =IF('[5]مرتب 155'!AP11="","",('[5]مرتب 155'!AP11-TRUNC('[5]مرتب 155'!AP11))*100) -> 24 | BT12: =IF('[5]مرتب 155'!AP11="","",TRUNC('[5]مرتب 155'!AP11)) -> 288 | BU12: =IF('[5]مرتب 155'!AQ11="","",('[5]مرتب 155'!AQ11-TRUNC('[5]مرتب 155'!AQ11))*100) -> 6 | BV12: =IF('[5]مرتب 155'!AQ11="","",TRUNC('[5]مرتب 155'!AQ11)) -> 72 | BW12: =IF('[5]مرتب 155'!AR11="","",('[5]مرتب 155'!AR11-TRUNC('[5]مرتب 155'!AR11))*100) -> 2 | BX12: =IF('[5]مرتب 155'!AR11="","",TRUNC('[5]مرتب 155'!AR11)) -> 24 | BY12: =IF('[5]مرتب 155'!AS11="","",('[5]مرتب 155'!AS11-TRUNC('[5]مرتب 155'!AS11))*100) -> 2 | BZ12: =IF('[5]مرتب 155'!AS11="","",TRUNC('[5]مرتب 155'!AS11)) -> 30 | CA12: =IF('[5]مرتب 155'!AT11="","",('[5]مرتب 155'!AT11-TRUNC('[5]مرتب 155'!AT11))*100) -> 20 | CB12: =IF('[5]مرتب 155'!AT11="","",TRUNC('[5]مرتب 155'!AT11)) -> 4 | CC12: =IF($ASH$2=1,"",IF('[5]مرتب 155'!AU11="","",('[5]مرتب 155'!AU11-TRUNC('[5]مرتب 155'!AU11))*100)) -> 13 | CD12: =IF($ASH$2=1,"",IF('[5]مرتب 155'!AU11="","",TRUNC('[5]مرتب 155'!AU11))) -> 202 | CE12: =IF('[5]مرتب 155'!AV11="","",('[5]مرتب 155'!AV11-TRUNC('[5]مرتب 155'!AV11))*100) -> 66 | CF12: =IF('[5]مرتب 155'!AV11="","",TRUNC('[5]مرتب 155'!AV11)) -> 3022 | CG12: =IF('[5]مرتب 155'!AW11="","",('[5]مرتب 155'!AW11-TRUNC('[5]مرتب 155'!AW11))*100) -> 1 | CH12: =IF('[5]مرتب 155'!AW11="","",TRUNC('[5]مرتب 155'!AW11)) -> 686 | CI12: =IF('[5]مرتب 155'!AX11="","",('[5]مرتب 155'!AX11-TRUNC('[5]مرتب 155'!AX11))*100) -> 51 | CJ12: =IF('[5]مرتب 155'!AX11="","",TRUNC('[5]مرتب 155'!AX11)) -> 514 | CK12: =IF('[5]مرتب 155'!AY11="","",('[5]مرتب 155'!AY11-TRUNC('[5]مرتب 155'!AY11))*100) -> 17 | CL12: =IF('[5]مرتب 155'!AY11="","",TRUNC('[5]مرتب 155'!AY11)) -> 57 | CM12: =IF('[5]مرتب 155'!BB11="","",('[5]مرتب 155'!BB11-TRUNC('[5]مرتب 155'!BB11))*100) -> 17 | CN12: =IF('[5]مرتب 155'!BB11="","",TRUNC('[5]مرتب 155'!BB11)) -> 57 | CO12: =IF('[5]مرتب 155'!AZ11="","",('[5]مرتب 155'!AZ11-TRUNC('[5]مرتب 155'!AZ11))*100) -> 50 | CP12: =IF('[5]مرتب 155'!AZ11="","",TRUNC('[5]مرتب 155'!AZ11)) -> 171 | CQ12: =IF('[5]مرتب 155'!BA11="","",('[5]مرتب 155'!BA11-TRUNC('[5]مرتب 155'!BA11))*100) -> 17 | CR12: =IF('[5]مرتب 155'!BA11="","",TRUNC('[5]مرتب 155'!BA11)) -> 57 | CS12: =IF('[5]مرتب 155'!BC11="","",('[5]مرتب 155'!BC11-TRUNC('[5]مرتب 155'!BC11))*100) -> 45 | CT12: =IF('[5]مرتب 155'!BC11="","",TRUNC('[5]مرتب 155'!BC11)) -> 71 | CU12: =IF('[5]مرتب 155'!BD11="","",('[5]مرتب 155'!BD11-TRUNC('[5]مرتب 155'!BD11))*100) -> 98 | CV12: =IF('[5]مرتب 155'!BD11="","",TRUNC('[5]مرتب 155'!BD11)) -> 1614 | CW12: =IF('[5]مرتب 155'!BE11="","",('[5]مرتب 155'!BE11-TRUNC('[5]مرتب 155'!BE11))*100) ->  | CX12: =IF('[5]مرتب 155'!BE11="","",TRUNC('[5]مرتب 155'!BE11)) ->  | CY12: =IF('[5]مرتب 155'!BF11="","",('[5]مرتب 155'!BF11-TRUNC('[5]مرتب 155'!BF11))*100) ->  | CZ12: =IF('[5]مرتب 155'!BF11="","",TRUNC('[5]مرتب 155'!BF11)) ->  | DA12: =IF('[5]مرتب 155'!BG11="","",('[5]مرتب 155'!BG11-TRUNC('[5]مرتب 155'!BG11))*100) ->  | DB12: =IF('[5]مرتب 155'!BG11="","",TRUNC('[5]مرتب 155'!BG11)) ->  | DC12: =IF('[5]مرتب 155'!BH11="","",('[5]مرتب 155'!BH11-TRUNC('[5]مرتب 155'!BH11))*100) -> 0 | DD12: =IF('[5]مرتب 155'!BH11="","",TRUNC('[5]مرتب 155'!BH11)) -> 0 | DE12: =IF('[5]مرتب 155'!BI11="","",('[5]مرتب 155'!BI11-TRUNC('[5]مرتب 155'!BI11))*100) -> 50 | DF12: =IF('[5]مرتب 155'!BI11="","",TRUNC('[5]مرتب 155'!BI11)) -> 4 | DG12: =IF('[5]مرتب 155'!BJ11="","",('[5]مرتب 155'!BJ11-TRUNC('[5]مرتب 155'!BJ11))*100) -> 18 | DH12: =IF('[5]مرتب 155'!BJ11="","",TRUNC('[5]مرتب 155'!BJ11)) -> 155 | DI12: =IF('[5]مرتب 155'!BK11="","",('[5]مرتب 155'!BK11-TRUNC('[5]مرتب 155'!BK11))*100) -> 0 | DJ12: =IF('[5]مرتب 155'!BK11="","",TRUNC('[5]مرتب 155'!BK11)) -> 3 | DK12: =IF('[5]مرتب 155'!BL11="","",('[5]مرتب 155'!BL11-TRUNC('[5]مرتب 155'!BL11))*100) -> 0 | DL12: =IF('[5]مرتب 155'!BL11="","",TRUNC('[5]مرتب 155'!BL11)) -> 1 | DM12: =IF('[5]مرتب 155'!BM11="","",('[5]مرتب 155'!BM11-TRUNC('[5]مرتب 155'!BM11))*100) ->  | DN12: =IF('[5]مرتب 155'!BM11="","",TRUNC('[5]مرتب 155'!BM11)) ->  | DO12: =IF('[5]مرتب 155'!BN11="","",('[5]مرتب 155'!BN11-TRUNC('[5]مرتب 155'!BN11))*100) ->  | DP12: =IF('[5]مرتب 155'!BN11="","",TRUNC('[5]مرتب 155'!BN11)) ->  | DQ12: =IF('[5]مرتب 155'!BO11="","",('[5]مرتب 155'!BO11-TRUNC('[5]مرتب 155'!BO11))*100) ->  | DR12: =IF('[5]مرتب 155'!BO11="","",TRUNC('[5]مرتب 155'!BO11)) ->  | DS12: =IF('[5]مرتب 155'!BP11="","",('[5]مرتب 155'!BP11-TRUNC('[5]مرتب 155'!BP11))*100) ->  | DT12: =IF('[5]مرتب 155'!BP11="","",TRUNC('[5]مرتب 155'!BP11)) ->  | DU12: =IF('[5]مرتب 155'!BQ11="","",('[5]مرتب 155'!BQ11-TRUNC('[5]مرتب 155'!BQ11))*100) ->  | DV12: =IF('[5]مرتب 155'!BQ11="","",TRUNC('[5]مرتب 155'!BQ11)) ->  | DW12: =IF('[5]مرتب 155'!BR11="","",('[5]مرتب 155'!BR11-TRUNC('[5]مرتب 155'!BR11))*100) ->  | DX12: =IF('[5]مرتب 155'!BR11="","",TRUNC('[5]مرتب 155'!BR11)) ->  | DY12: =IF('[5]مرتب 155'!BS11="","",('[5]مرتب 155'!BS11-TRUNC('[5]مرتب 155'!BS11))*100) ->  | DZ12: =IF('[5]مرتب 155'!BS11="","",TRUNC('[5]مرتب 155'!BS11)) ->  | EA12: =IF('[5]مرتب 155'!BT11="","",('[5]مرتب 155'!BT11-TRUNC('[5]مرتب 155'!BT11))*100) -> 0 | EB12: =IF('[5]مرتب 155'!BT11="","",TRUNC('[5]مرتب 155'!BT11)) -> 0 | EC12: =IF('[5]مرتب 155'!BU11="","",('[5]مرتب 155'!BU11-TRUNC('[5]مرتب 155'!BU11))*100) ->  | ED12: =IF('[5]مرتب 155'!BU11="","",TRUNC('[5]مرتب 155'!BU11)) ->  | EE12: =IF('[5]مرتب 155'!BV11="","",('[5]مرتب 155'!BV11-TRUNC('[5]مرتب 155'!BV11))*100) ->  | EF12: =IF('[5]مرتب 155'!BV11="","",TRUNC('[5]مرتب 155'!BV11)) ->  | EG12: =IF('[5]مرتب 155'!BW11="","",('[5]مرتب 155'!BW11-TRUNC('[5]مرتب 155'!BW11))*100) -> 68 | EH12: =IF('[5]مرتب 155'!BW11="","",TRUNC('[5]مرتب 155'!BW11)) -> 163 | EI12: =IF('[5]مرتب 155'!BX11="","",('[5]مرتب 155'!BX11-TRUNC('[5]مرتب 155'!BX11))*100) ->  | EJ12: =IF('[5]مرتب 155'!BX11="","",TRUNC('[5]مرتب 155'!BX11)) ->  | EK12: =IF('[5]مرتب 155'!BY11="","",('[5]مرتب 155'!BY11-TRUNC('[5]مرتب 155'!BY11))*100) ->  | EL12: =IF('[5]مرتب 155'!BY11="","",TRUNC('[5]مرتب 155'!BY11)) ->  | EM12: =IF('[5]مرتب 155'!BZ11="","",('[5]مرتب 155'!BZ11-TRUNC('[5]مرتب 155'!BZ11))*100) ->  | EN12: =IF('[5]مرتب 155'!BZ11="","",TRUNC('[5]مرتب 155'!BZ11)) ->  | EO12: =IF('[5]مرتب 155'!CA11="","",('[5]مرتب 155'!CA11-TRUNC('[5]مرتب 155'!CA11))*100) ->  | EP12: =IF('[5]مرتب 155'!CA11="","",TRUNC('[5]مرتب 155'!CA11)) ->  | EQ12: =IF('[5]مرتب 155'!CB11="","",('[5]مرتب 155'!CB11-TRUNC('[5]مرتب 155'!CB11))*100) ->  | ER12: =IF('[5]مرتب 155'!CB11="","",TRUNC('[5]مرتب 155'!CB11)) ->  | ES12: =IF('[5]مرتب 155'!CC11="","",('[5]مرتب 155'!CC11-TRUNC('[5]مرتب 155'!CC11))*100) ->  | ET12: =IF('[5]مرتب 155'!CC11="","",TRUNC('[5]مرتب 155'!CC11)) ->  | EU12: =IF('[5]مرتب 155'!CD11="","",('[5]مرتب 155'!CD11-TRUNC('[5]مرتب 155'!CD11))*100) ->  | EV12: =IF('[5]مرتب 155'!CD11="","",TRUNC('[5]مرتب 155'!CD11)) ->  | EW12: =IF('[5]مرتب 155'!CE11="","",('[5]مرتب 155'!CE11-TRUNC('[5]مرتب 155'!CE11))*100) -> 0 | EX12: =IF('[5]مرتب 155'!CE11="","",TRUNC('[5]مرتب 155'!CE11)) -> 0 | EY12: =IF('[5]مرتب 155'!CF11="","",('[5]مرتب 155'!CF11-TRUNC('[5]مرتب 155'!CF11))*100) ->  | EZ12: =IF('[5]مرتب 155'!CF11="","",TRUNC('[5]مرتب 155'!CF11)) ->  | FA12: =IF('[5]مرتب 155'!CG11="","",('[5]مرتب 155'!CG11-TRUNC('[5]مرتب 155'!CG11))*100) ->  | FB12: =IF('[5]مرتب 155'!CG11="","",TRUNC('[5]مرتب 155'!CG11)) ->  | FC12: =IF('[5]مرتب 155'!CH11="","",('[5]مرتب 155'!CH11-TRUNC('[5]مرتب 155'!CH11))*100) -> 82 | FD12: =IF('[5]مرتب 155'!CH11="","",TRUNC('[5]مرتب 155'!CH11)) -> 208 | FE12: =IF('[5]مرتب 155'!CI11="","",('[5]مرتب 155'!CI11-TRUNC('[5]مرتب 155'!CI11))*100) -> 0 | FF12: =IF('[5]مرتب 155'!CI11="","",TRUNC('[5]مرتب 155'!CI11)) -> 0 | FG12: =IF('[5]مرتب 155'!CJ11="","",('[5]مرتب 155'!CJ11-TRUNC('[5]مرتب 155'!CJ11))*100) -> 66 | FH12: =IF('[5]مرتب 155'!CJ11="","",TRUNC('[5]مرتب 155'!CJ11)) -> 4 | FI12: =IF('[5]مرتب 155'!CK11="","",('[5]مرتب 155'!CK11-TRUNC('[5]مرتب 155'!CK11))*100) ->  | FJ12: =IF('[5]مرتب 155'!CK11="","",TRUNC('[5]مرتب 155'!CK11)) ->  | FM12: =IF('[5]مرتب 155'!CM11="","",('[5]مرتب 155'!CM11-TRUNC('[5]مرتب 155'!CM11))*100) ->  | FN12: =IF('[5]مرتب 155'!CM11="","",TRUNC('[5]مرتب 155'!CM11)) ->  | FO12: =IF('[5]مرتب 155'!CN11="","",('[5]مرتب 155'!CN11-TRUNC('[5]مرتب 155'!CN11))*100) -> 63 | FP12: =IF('[5]مرتب 155'!CN11="","",TRUNC('[5]مرتب 155'!CN11)) -> 329 | FQ12: =IF('[5]مرتب 155'!CO11="","",('[5]مرتب 155'!CO11-TRUNC('[5]مرتب 155'!CO11))*100) ->  | FR12: =IF('[5]مرتب 155'!CO11="","",TRUNC('[5]مرتب 155'!CO11)) ->  | FS12: =IF('[5]مرتب 155'!CP11="","",('[5]مرتب 155'!CP11-TRUNC('[5]مرتب 155'!CP11))*100) -> 3.3908 | FT12: =IF('[5]مرتب 155'!CP11="","",TRUNC('[5]مرتب 155'!CP11)) -> 7 | FU12: =IF('[5]مرتب 155'!CQ11="","",('[5]مرتب 155'!CQ11-TRUNC('[5]مرتب 155'!CQ11))*100) -> 0.6092 | FV12: =IF('[5]مرتب 155'!CQ11="","",TRUNC('[5]مرتب 155'!CQ11)) -> 0 | FW12: =IF('[5]مرتب 155'!CR11="","",('[5]مرتب 155'!CR11-TRUNC('[5]مرتب 155'!CR11))*100) -> 81 | FX12: =IF('[5]مرتب 155'!CR11="","",TRUNC('[5]مرتب 155'!CR11)) -> 2328 | FY12: =IF('[5]مرتب 155'!CS11="","",('[5]مرتب 155'!CS11-TRUNC('[5]مرتب 155'!CS11))*100) -> 85 | FZ12: =IF('[5]مرتب 155'!CS11="","",TRUNC('[5]مرتب 155'!CS11)) -> 693 | GA12: 5 | GB12: ='[5]مرتب 155'!CU11 -> البنك الأهلى | GC12: ='[5]مرتب 155'!CV11 ->  | GD12: 5 | GE12: 5 | GR12: 5 | GS12: 5 | GT12: =IF('[5]بيانات معلمين'!B11=0,"",'[5]بيانات معلمين'!B11) -> بدرى صلاح محمد محمد عبدالحق | GU12: =IF('[5]بيانات معلمين'!C11=0,"",'[5]بيانات معلمين'!C11) -> كبير معلمين | GV12: =IF('[5]بيانات معلمين'!D11=0,"",'[5]بيانات معلمين'!D11) -> العالية | GW12: 1 | GX12: 1 | GY12: دفع | GZ12: =IF(GT12="","",SUBTOTAL(3,GT$8:GT12)) -> 5 | HA12: =IF('[5]بيانات معلمين'!G11=0,"",IF($LF12=0,ROUND(($LE$5-$LE12)*'[5]بيانات معلمين'!G11/$LE$5,2),IF($LE12=0,ROUND($LF12*'[5]بيانات معلمين'!G11/$LE$5,2)))) -> 835.27 | HD12: 2401.99 | HE12: =IF('[5]بيانات معلمين'!K11=0,"",IF($LF12=0,ROUND(($LE$5-$LE12)*'[5]بيانات معلمين'!K11/$LE$5,2),IF($LE12=0,ROUND($LF12*'[5]بيانات معلمين'!K11/$LE$5,2)))) -> 931.46 | HF12: =IF('[5]بيانات معلمين'!L11=0,0,IF($LF12=0,ROUND(($LE$5-$LE12)*'[5]بيانات معلمين'!L11/$LE$5,2),IF($LE12=0,ROUND($LF12*'[5]بيانات معلمين'!L11/$LE$5,2)))) -> 15.75 | HG12: =IF('[5]بيانات معلمين'!M11=0,0,IF($LF12=0,ROUND(($LE$5-$LE12)*'[5]بيانات معلمين'!M11/$LE$5,2),IF($LE12=0,ROUND($LF12*'[5]بيانات معلمين'!M11/$LE$5,2)))) -> 0 | HH12: 15.75 | HI12: =IF('[5]بيانات معلمين'!O11=0,"",IF($LF12=0,ROUND(($LE$5-$LE12)*'[5]بيانات معلمين'!O11/$LE$5,2),IF($LE12=0,ROUND($LF12*'[5]بيانات معلمين'!O11/$LE$5,2)))) -> 32.76 | HJ12: =IF('[5]بيانات معلمين'!P11=0,"",IF($LF12=0,ROUND(($LE$5-$LE12)*'[5]بيانات معلمين'!P11/$LE$5,2),IF($LE12=0,ROUND($LF12*'[5]بيانات معلمين'!P11/$LE$5,2)))) -> 35.08 | HK12: =IF($ASK$3=1,"",IF('[5]بيانات معلمين'!Q11=0,"",IF($LF12=0,ROUND(($LE$5-$LE12)*'[5]بيانات معلمين'!Q11/$LE$5,2),IF($LE12=0,ROUND($LF12*'[5]بيانات معلمين'!Q11/$LE$5,2))))) -> 175.41 | HL12: =IF($ASI$5=1,"",IF('[5]بيانات معلمين'!R11=0,"",IF($LF12=0,ROUND(($LE$5-$LE12)*'[5]بيانات معلمين'!R11/$LE$5,2),IF($LE12=0,ROUND($LF12*'[5]بيانات معلمين'!R11/$LE$5,2))))) -> 701.63 | HM12: =IF($ASL$6=1,"",IF('[5]بيانات معلمين'!S11=0,"",IF($LF12=0,ROUND(($LE$5-$LE12)*'[5]بيانات معلمين'!S11/$LE$5,2),IF($LE12=0,ROUND($LF12*'[5]بيانات معلمين'!S11/$LE$5,2))))) -> 87.7 | HN12: =IF($ASI$6=1,"",IF('[5]بيانات معلمين'!T11=0,"",IF($LF12=0,ROUND(($LE$5-$LE12)*'[5]بيانات معلمين'!T11/$LE$5,2),IF($LE12=0,ROUND($LF12*'[5]بيانات معلمين'!T11/$LE$5,2))))) ->  | HO12: =IF($ASI$4=1,"",IF('[5]بيانات معلمين'!U11=0,"",IF($LF12=0,ROUND(($LE$5-$LE12)*'[5]بيانات معلمين'!U11/$LE$5,2),IF($LE12=0,ROUND($LF12*'[5]بيانات معلمين'!U11/$LE$5,2))))) -> 126 | HP12: =IF('[5]بيانات معلمين'!V11=0,"",IF($LF12=0,ROUND(($LE$5-$LE12)*'[5]بيانات معلمين'!V11/$LE$5,2),IF($LE12=0,ROUND($LF12*'[5]بيانات معلمين'!V11/$LE$5,2)))) -> 2.52 | HQ12: =IF('[5]بيانات معلمين'!W11=0,"",IF($LF12=0,ROUND(($LE$5-$LE12)*'[5]بيانات معلمين'!W11/$LE$5,2),IF($LE12=0,ROUND($LF12*'[5]بيانات معلمين'!W11/$LE$5,2)))) -> 1.68 | HR12: =IF($ASB$4=1,"",IF('[5]بيانات معلمين'!X11=0,"",IF($LF12=0,ROUND(($LE$5-$LE12)*'[5]بيانات معلمين'!X11/$LE$5,2),IF($LE12=0,ROUND($LF12*'[5]بيانات معلمين'!X11/$LE$5,2))))) -> 42 | HS12: =IF('[5]بيانات معلمين'!Y11=0,"",IF($LF12=0,ROUND(($LE$5-$LE12)*'[5]بيانات معلمين'!Y11/$LE$5,2),IF($LE12=0,ROUND($LF12*'[5]بيانات معلمين'!Y11/$LE$5,2)))) -> 40 | HT12: =IF('[5]بيانات معلمين'!Z11=0,"",IF($LF12=0,ROUND(($LE$5-$LE12)*'[5]بيانات معلمين'!Z11/$LE$5,2),IF($LE12=0,ROUND($LF12*'[5]بيانات معلمين'!Z11/$LE$5,2)))) ->  | HU12: =IF('[5]بيانات معلمين'!AA11=0,"",IF($LF12=0,ROUND(($LE$5-$LE12)*'[5]بيانات معلمين'!AA11/$LE$5,2),IF($LE12=0,ROUND($LF12*'[5]بيانات معلمين'!AA11/$LE$5,2)))) ->  | HV12: =IF('[5]بيانات معلمين'!AB11=0,"",IF($LF12=0,ROUND(($LE$5-$LE12)*'[5]بيانات معلمين'!AB11/$LE$5,2),IF($LE12=0,ROUND($LF12*'[5]بيانات معلمين'!AB11/$LE$5,2)))) ->  | HW12: =IF('[5]بيانات معلمين'!AC11=0,"",IF($LF12=0,ROUND(($LE$5-$LE12)*'[5]بيانات معلمين'!AC11/$LE$5,2),IF($LE12=0,ROUND($LF12*'[5]بيانات معلمين'!AC11/$LE$5,2)))) ->  | HX12: =IF('[5]بيانات معلمين'!AD11=0,"",IF($LF12=0,ROUND(($LE$5-$LE12)*'[5]بيانات معلمين'!AD11/$LE$5,2),IF($LE12=0,ROUND($LF12*'[5]بيانات معلمين'!AD11/$LE$5,2)))) -> 210 | HY12: =IF('[5]بيانات معلمين'!AE11=0,"",IF($LF12=0,ROUND(($LE$5-$LE12)*'[5]بيانات معلمين'!AE11/$LE$5,2),IF($LE12=0,ROUND($LF12*'[5]بيانات معلمين'!AE11/$LE$5,2)))) ->  | HZ12: =IF('[5]بيانات معلمين'!AF11=0,"",IF($LF12=0,ROUND(($LE$5-$LE12)*'[5]بيانات معلمين'!AF11/$LE$5,2),IF($LE12=0,ROUND($LF12*'[5]بيانات معلمين'!AF11/$LE$5,2)))) ->  | IA12: =IF('[5]بيانات معلمين'!AG11=0,"",IF($LF12=0,ROUND(($LE$5-$LE12)*'[5]بيانات معلمين'!AG11/$LE$5,2),IF($LE12=0,ROUND($LF12*'[5]بيانات معلمين'!AG11/$LE$5,2)))) ->  | IB12: =IF('[5]بيانات معلمين'!AH11=0,"",IF($LF12=0,ROUND(($LE$5-$LE12)*'[5]بيانات معلمين'!AH11/$LE$5,2),IF($LE12=0,ROUND($LF12*'[5]بيانات معلمين'!AH11/$LE$5,2)))) ->  | IC12: =IF('[5]بيانات معلمين'!AI11=0,"",IF($LF12=0,ROUND(($LE$5-$LE12)*'[5]بيانات معلمين'!AI11/$LE$5,2),IF($LE12=0,ROUND($LF12*'[5]بيانات معلمين'!AI11/$LE$5,2)))) ->  | ID12: =IF('[5]بيانات معلمين'!AJ11=0,"",IF($LF12=0,ROUND(($LE$5-$LE12)*'[5]بيانات معلمين'!AJ11/$LE$5,2),IF($LE12=0,ROUND($LF12*'[5]بيانات معلمين'!AJ11/$LE$5,2)))) ->  | IE12: =IF('[5]بيانات معلمين'!AK11=0,"",IF($LF12=0,ROUND(($LE$5-$LE12)*'[5]بيانات معلمين'!AK11/$LE$5,2),IF($LE12=0,ROUND($LF12*'[5]بيانات معلمين'!AK11/$LE$5,2)))) ->  | IF12: =IF('[5]بيانات معلمين'!AL11=0,"",IF($LF12=0,ROUND(($LE$5-$LE12)*'[5]بيانات معلمين'!AL11/$LE$5,2),IF($LE12=0,ROUND($LF12*'[5]بيانات معلمين'!AL11/$LE$5,2)))) ->  | IG12: =IF('[5]بيانات معلمين'!AM11=0,"",IF($LF12=0,ROUND(($LE$5-$LE12)*'[5]بيانات معلمين'!AM11/$LE$5,2),IF($LE12=0,ROUND($LF12*'[5]بيانات معلمين'!AM11/$LE$5,2)))) ->  | IH12: =IF('[5]بيانات معلمين'!AN11=0,"",IF($LF12=0,ROUND(($LE$5-$LE12)*'[5]بيانات معلمين'!AN11/$LE$5,2),IF($LE12=0,ROUND($LF12*'[5]بيانات معلمين'!AN11/$LE$5,2)))) -> 288.24 | II12: =IF('[5]بيانات معلمين'!AO11=0,"",IF($LF12=0,ROUND(($LE$5-$LE12)*'[5]بيانات معلمين'!AO11/$LE$5,2),IF($LE12=0,ROUND($LF12*'[5]بيانات معلمين'!AO11/$LE$5,2)))) -> 72.06 | IJ12: =IF('[5]بيانات معلمين'!AP11=0,"",IF($LF12=0,ROUND(($LE$5-$LE12)*'[5]بيانات معلمين'!AP11/$LE$5,2),IF($LE12=0,ROUND($LF12*'[5]بيانات معلمين'!AP11/$LE$5,2)))) -> 24.02 | IK12: =IF('[5]بيانات معلمين'!AQ11=0,"",IF($LF12=0,ROUND(($LE$5-$LE12)*'[5]بيانات معلمين'!AQ11/$LE$5,2),IF($LE12=0,ROUND($LF12*'[5]بيانات معلمين'!AQ11/$LE$5,2)))) -> 30.02 | IL12: 414.34 | IM12: 34 | IN12: 414 | IO12: =IF('[5]بيانات معلمين'!AR11=0,"",IF($LF12=0,ROUND(($LE$5-$LE12)*'[5]بيانات معلمين'!AR11/$LE$5,2),IF($LE12=0,ROUND($LF12*'[5]بيانات معلمين'!AR11/$LE$5,2)))) -> 4.2 | IP12: =IF($ASH$2=1,"",IF('[5]بيانات معلمين'!AS11=0,"",IF($LF12=0,ROUND(($LE$5-$LE12)*'[5]بيانات معلمين'!AS11/$LE$5,2),IF($LE12=0,ROUND($LF12*'[5]بيانات معلمين'!AS11/$LE$5,2))))) -> 202.13 | IQ12: =IF('[5]بيانات معلمين'!AT11=0,"",ROUND(SUM(HE12,HH12:IK12,IO12,IP12),2)) -> 3022.66 | IR12: =IF('[5]بيانات معلمين'!AU11=0,"",IF($LF12=0,ROUND(($LE$5-$LE12)*'[5]بيانات معلمين'!AU11/$LE$5,2),IF($LE12=0,ROUND($LF12*'[5]بيانات معلمين'!AU11/$LE$5,2)))) -> 686.01 | IS12: =IF('[5]بيانات معلمين'!AV11=0,"",'[5]بيانات معلمين'!AV11) -> 514.5084 | IT12: =IF('[5]بيانات معلمين'!AW11=0,"",IF($LF12=0,ROUND(($LE$5-$LE12)*'[5]بيانات معلمين'!AW11/$LE$5,2),IF($LE12=0,ROUND($LF12*'[5]بيانات معلمين'!AW11/$LE$5,2)))) -> 57.17 | IU12: =IF('[5]بيانات معلمين'!AX11=0,"",IF($LF12=0,ROUND(($LE$5-$LE12)*'[5]بيانات معلمين'!AX11/$LE$5,2),IF($LE12=0,ROUND($LF12*'[5]بيانات معلمين'!AX11/$LE$5,2)))) -> 171.5 | IV12: =IF('[5]بيانات معلمين'!AY11=0,"",'[5]بيانات معلمين'!AY11) -> 57.1676 | IW12: =IF('[5]بيانات معلمين'!AZ11=0,"",'[5]بيانات معلمين'!AZ11) -> 57.1676 | IX12: =IF('[5]بيانات معلمين'!BA11=0,"",IF($LF12=0,ROUND(($LE$5-$LE12)*'[5]بيانات معلمين'!BA11/$LE$5,2),IF($LE12=0,ROUND($LF12*'[5]بيانات معلمين'!BA11/$LE$5,2)))) -> 71.45 | IY12: 1614.97 | IZ12: =IF('[5]بيانات معلمين'!BC11=0,"",'[5]بيانات معلمين'!BC11) ->  | JA12: =IF('[5]بيانات معلمين'!BD11=0,"",'[5]بيانات معلمين'!BD11) ->  | JB12: =IF('[5]بيانات معلمين'!BE11=0,"",'[5]بيانات معلمين'!BE11) ->  | JC12: 0 | JD12: =IF('[5]بيانات معلمين'!BG11=0,"",'[5]بيانات معلمين'!BG11) -> 4.5 | JE12: =IF('[5]بيانات معلمين'!$BH11=0,0,'[5]بيانات معلمين'!$BH11)/('[5]بيانات معلمين'!$CY11) -> 155.176 | JF12: =IF('[5]بيانات معلمين'!BI11=0,"",'[5]بيانات معلمين'!BI11) -> 3 | JG12: =IF('[5]بيانات معلمين'!BJ11=0,"",'[5]بيانات معلمين'!BJ11) -> 1 | JH12: =IF('[5]بيانات معلمين'!BK11=0,"",'[5]بيانات معلمين'!BK11) ->  | JI12: =IF('[5]بيانات معلمين'!BL11=0,"",'[5]بيانات معلمين'!BL11) ->  | JJ12: =IF('[5]بيانات معلمين'!BM11=0,"",'[5]بيانات معلمين'!BM11) ->  | JK12: =IF('[5]بيانات معلمين'!BN11=0,"",'[5]بيانات معلمين'!BN11) ->  | JL12: =IF('[5]بيانات معلمين'!BO11=0,"",'[5]بيانات معلمين'!BO11) ->  | JM12: =IF('[5]بيانات معلمين'!BP11=0,"",'[5]بيانات معلمين'!BP11) ->  | JN12: =IF('[5]بيانات معلمين'!BQ11=0,"",'[5]بيانات معلمين'!BQ11) ->  | JO12: =IF('[5]بيانات معلمين'!$BR11=0,0,'[5]بيانات معلمين'!$BR11)/'[5]بيانات معلمين'!$CY11 -> 0 | JP12: =IF('[5]بيانات معلمين'!BS11=0,"",'[5]بيانات معلمين'!BS11) ->  | JQ12: =IF('[5]بيانات معلمين'!BT11=0,"",'[5]بيانات معلمين'!BT11) ->  | JR12: 163.68 | JS12: =IF('[5]بيانات معلمين'!BV11=0,"",'[5]بيانات معلمين'!BV11) ->  | JT12: =IF('[5]بيانات معلمين'!BW11=0,"",'[5]بيانات معلمين'!BW11) ->  | JU12: =IF('[5]بيانات معلمين'!BX11=0,"",'[5]بيانات معلمين'!BX11) ->  | JV12: =IF('[5]بيانات معلمين'!BY11=0,"",'[5]بيانات معلمين'!BY11) ->  | JW12: =IF('[5]بيانات معلمين'!BZ11=0,"",'[5]بيانات معلمين'!BZ11) ->  | JX12: =IF('[5]بيانات معلمين'!CA11=0,"",'[5]بيانات معلمين'!CA11) ->  | JY12: =IF('[5]بيانات معلمين'!CB11=0,"",'[5]بيانات معلمين'!CB11) ->  | JZ12: 0 | KA12: =IF('[5]بيانات معلمين'!CD11=0,"",'[5]بيانات معلمين'!CD11) ->  | KB12: =IF('[5]بيانات معلمين'!CE11=0,"",'[5]بيانات معلمين'!CE11) ->  | KC12: =IF('[5]بيانات معلمين'!CF11=0,"",'[5]بيانات معلمين'!CF11) -> 208.82 | KD12: =IF('[5]بيانات معلمين'!CG11=0,"",ROUND(IF(($HD12+($HE12*50%)-$HE12-(11%*$HD12)-$JC12-$JR12-$KE12-$HH12-HE12/47-2000)*0.025<=0,0,($HD12+($HE12*50%)-$HE12-(11%*$HD12)-$JC12-$JR12-$KE12-$HH12-HE12/47-2000)*0.025),2)) ->  | KE12: =IF('[5]بيانات معلمين'!CH11=0,"",'[5]بيانات معلمين'!CH11) -> 4.66 | KF12: =IF('[5]بيانات معلمين'!CI11=0,"",'[5]بيانات معلمين'!CI11) ->  | KG12: =IF('[5]بيانات معلمين'!CJ11=0,"",'[5]بيانات معلمين'!CJ11) ->  | KH12: =IF('[5]بيانات معلمين'!CK11=0,"",'[5]بيانات معلمين'!CK11) ->  | KI12: =IF('[5]بيانات معلمين'!CL11=0,"",'[5]بيانات معلمين'!CL11) -> 329.63 | KJ12: =IF('[5]بيانات معلمين'!CM11=0,"",'[5]بيانات معلمين'!CM11) ->  | KK12: =IF('[5]بيانات معلمين'!CN11=0,"",'[5]بيانات معلمين'!CN11) -> 7.033908 | KL12: 550.143908 | KM12: 14.3908 | KN12: 550 | KO12: 0.016492 | KP12: 2328.81 | KQ12: 693.85 | KR12: =IF('[5]بيانات معلمين'!CR11=0,"",'[5]بيانات معلمين'!CR11) -> بدرى صلاح محمد محمد عبدالحق | KS12: =IF('[5]بيانات معلمين'!CS11=0,"",'[5]بيانات معلمين'!CS11) -> البنك الأهلى | KT12: =IF('[5]بيانات معلمين'!CT11=0,"",'[5]بيانات معلمين'!CT11) ->  | KU12: =IF('[5]بيانات معلمين'!CU11=0,"",'[5]بيانات معلمين'!CU11) -> 26012142702378 | KW12: 5 | KY12: 693.866492 | LE12: ='[5]جزاءات 155'!F11 -> 0 | LF12: ='[5]جزاءات 155'!E11 -> 0 | AES12: =IF('[5]استقطاعات 155'!Q11="","",'[5]مرتب 155'!M11) ->  | AEU12: 5 | AEY12: ='[5]استقطاعات 155'!Q11 -> 0 | AFA12: 0 | AFB12: 0 | AFC12: -10000 | AFD12: 0 | AFE12: 0 | AFF12: -40000 | AFG12: 0 | AFH12: 0 | AFI12: 0 | AFJ12: 0 | AFK12: 0 | AFL12: 0 | AFM12: 0
A13: 1 | B13: 1 | C13: ='[5]مرتب 155'!C12 -> معلم اول | D13: ='[5]مرتب 155'!D12 -> الثانية | E13: 7 | F13: 1 | G13: ='[5]ادخال بيانات 155'!N12 -> أهلى | H13: =IF(B13="","",SUBTOTAL(3,$B$8:B13)) -> 6 | I13: =IF('[5]مرتب 155'!I12="","",('[5]مرتب 155'!I12-TRUNC('[5]مرتب 155'!I12))*100) -> 77 | J13: =IF('[5]مرتب 155'!I12="","",TRUNC('[5]مرتب 155'!I12)) -> 394 | K13: =IF('[5]مرتب 155'!J12="","",('[5]مرتب 155'!J12-TRUNC('[5]مرتب 155'!J12))*100) -> 0 | L13: =IF('[5]مرتب 155'!J12="","",TRUNC('[5]مرتب 155'!J12)) -> 84000 | M13: =IF('[5]مرتب 155'!K12="","",('[5]مرتب 155'!K12-TRUNC('[5]مرتب 155'!K12))*100) -> 19 | N13: =IF('[5]مرتب 155'!K12="","",TRUNC('[5]مرتب 155'!K12)) -> 31850 | O13: =IF('[5]مرتب 155'!L12="","",('[5]مرتب 155'!L12-TRUNC('[5]مرتب 155'!L12))*100) -> 16 | P13: =IF('[5]مرتب 155'!L12="","",TRUNC('[5]مرتب 155'!L12)) -> 3257 | Q13: =IF('[5]مرتب 155'!M12="","",('[5]مرتب 155'!M12-TRUNC('[5]مرتب 155'!M12))*100) -> 64 | R13: =IF('[5]مرتب 155'!M12="","",TRUNC('[5]مرتب 155'!M12)) -> 1249 | S13: =IF($ASM$3=1,"",IF('[5]مرتب 155'!P12="","",('[5]مرتب 155'!P12-TRUNC('[5]مرتب 155'!P12))*100)) -> 0 | T13: =IF($ASM$3=1,"",IF('[5]مرتب 155'!P12="","",TRUNC('[5]مرتب 155'!P12))) -> 21 | U13: =IF('[5]مرتب 155'!$Q12="","",('[5]مرتب 155'!$Q12-TRUNC('[5]مرتب 155'!$Q12))*100) -> 11 | V13: =IF('[5]مرتب 155'!$Q12="","",TRUNC('[5]مرتب 155'!$Q12)) -> 37 | W13: =IF('[5]مرتب 155'!$R12="","",('[5]مرتب 155'!$R12-TRUNC('[5]مرتب 155'!$R12))*100) -> 48 | X13: =IF('[5]مرتب 155'!$R12="","",TRUNC('[5]مرتب 155'!$R12)) -> 39 | Y13: =IF($ASK$3=1,"",IF('[5]مرتب 155'!S12="","",('[5]مرتب 155'!S12-TRUNC('[5]مرتب 155'!S12))*100)) -> 39 | Z13: =IF($ASK$3=1,"",IF('[5]مرتب 155'!S12="","",TRUNC('[5]مرتب 155'!S12))) -> 197 | AA13: =IF($ASI$5=1,"",IF('[5]مرتب 155'!T12="","",('[5]مرتب 155'!T12-TRUNC('[5]مرتب 155'!T12))*100)) -> 46 | AB13: =IF($ASI$5=1,"",IF('[5]مرتب 155'!T12="","",TRUNC('[5]مرتب 155'!T12))) -> 493 | AC13: =IF($ASL$6=1,"",IF('[5]مرتب 155'!U12="","",('[5]مرتب 155'!U12-TRUNC('[5]مرتب 155'!U12))*100)) -> 69 | AD13: =IF($ASL$6=1,"",IF('[5]مرتب 155'!U12="","",TRUNC('[5]مرتب 155'!U12))) -> 98 | AE13: =IF($ASI$6=1,"",IF('[5]مرتب 155'!V12="","",('[5]مرتب 155'!V12-TRUNC('[5]مرتب 155'!V12))*100)) -> 39 | AF13: =IF($ASI$6=1,"",IF('[5]مرتب 155'!V12="","",TRUNC('[5]مرتب 155'!V12))) -> 197 | AG13: =IF($ASI$4=1,"",IF('[5]مرتب 155'!W12="","",('[5]مرتب 155'!W12-TRUNC('[5]مرتب 155'!W12))*100)) -> 0 | AH13: =IF($ASI$4=1,"",IF('[5]مرتب 155'!W12="","",TRUNC('[5]مرتب 155'!W12))) -> 375 | AI13: =IF('[5]مرتب 155'!X12="","",('[5]مرتب 155'!X12-TRUNC('[5]مرتب 155'!X12))*100) -> 0 | AJ13: =IF('[5]مرتب 155'!X12="","",TRUNC('[5]مرتب 155'!X12)) -> 4 | AK13: =IF('[5]مرتب 155'!Y12="","",('[5]مرتب 155'!Y12-TRUNC('[5]مرتب 155'!Y12))*100) -> 0 | AL13: =IF('[5]مرتب 155'!Y12="","",TRUNC('[5]مرتب 155'!Y12)) -> 4 | AM13: =IF($ASB$4=1,"",IF('[5]مرتب 155'!Z12="","",('[5]مرتب 155'!Z12-TRUNC('[5]مرتب 155'!Z12))*100)) -> 0 | AN13: =IF($ASB$4=1,"",IF('[5]مرتب 155'!Z12="","",TRUNC('[5]مرتب 155'!Z12))) -> 100 | AO13: =IF('[5]مرتب 155'!AA12="","",('[5]مرتب 155'!AA12-TRUNC('[5]مرتب 155'!AA12))*100) -> 0 | AP13: =IF('[5]مرتب 155'!AA12="","",TRUNC('[5]مرتب 155'!AA12)) -> 40 | AQ13: =IF('[5]مرتب 155'!AB12="","",('[5]مرتب 155'!AB12-TRUNC('[5]مرتب 155'!AB12))*100) ->  | AR13: =IF('[5]مرتب 155'!AB12="","",TRUNC('[5]مرتب 155'!AB12)) ->  | AS13: =IF('[5]مرتب 155'!AC12="","",('[5]مرتب 155'!AC12-TRUNC('[5]مرتب 155'!AC12))*100) ->  | AT13: =IF('[5]مرتب 155'!AC12="","",TRUNC('[5]مرتب 155'!AC12)) ->  | AU13: =IF('[5]مرتب 155'!AD12="","",('[5]مرتب 155'!AD12-TRUNC('[5]مرتب 155'!AD12))*100) ->  | AV13: =IF('[5]مرتب 155'!AD12="","",TRUNC('[5]مرتب 155'!AD12)) ->  | AW13: =IF('[5]مرتب 155'!AE12="","",('[5]مرتب 155'!AE12-TRUNC('[5]مرتب 155'!AE12))*100) ->  | AX13: =IF('[5]مرتب 155'!AE12="","",TRUNC('[5]مرتب 155'!AE12)) ->  | AY13: =IF('[5]مرتب 155'!AF12="","",('[5]مرتب 155'!AF12-TRUNC('[5]مرتب 155'!AF12))*100) -> 0 | AZ13: =IF('[5]مرتب 155'!AF12="","",TRUNC('[5]مرتب 155'!AF12)) -> 400 | BA13: =IF('[5]مرتب 155'!AG12="","",('[5]مرتب 155'!AG12-TRUNC('[5]مرتب 155'!AG12))*100) ->  | BB13: =IF('[5]مرتب 155'!AG12="","",TRUNC('[5]مرتب 155'!AG12)) ->  | BC13: =IF('[5]مرتب 155'!AH12="","",('[5]مرتب 155'!AH12-TRUNC('[5]مرتب 155'!AH12))*100) ->  | BD13: =IF('[5]مرتب 155'!AH12="","",TRUNC('[5]مرتب 155'!AH12)) ->  | BE13: =IF('[5]مرتب 155'!AI12="","",('[5]مرتب 155'!AI12-TRUNC('[5]مرتب 155'!AI12))*100) ->  | BF13: =IF('[5]مرتب 155'!AI12="","",TRUNC('[5]مرتب 155'!AI12)) ->  | BG13: =IF('[5]مرتب 155'!AJ12="","",('[5]مرتب 155'!AJ12-TRUNC('[5]مرتب 155'!AJ12))*100) ->  | BH13: =IF('[5]مرتب 155'!AJ12="","",TRUNC('[5]مرتب 155'!AJ12)) ->  | BI13: =IF('[5]مرتب 155'!AK12="","",('[5]مرتب 155'!AK12-TRUNC('[5]مرتب 155'!AK12))*100) ->  | BJ13: =IF('[5]مرتب 155'!AK12="","",TRUNC('[5]مرتب 155'!AK12)) ->  | BK13: =IF('[5]مرتب 155'!AL12="","",('[5]مرتب 155'!AL12-TRUNC('[5]مرتب 155'!AL12))*100) ->  | BL13: =IF('[5]مرتب 155'!AL12="","",TRUNC('[5]مرتب 155'!AL12)) ->  | BM13: =IF('[5]مرتب 155'!AM12="","",('[5]مرتب 155'!AM12-TRUNC('[5]مرتب 155'!AM12))*100) ->  | BN13: =IF('[5]مرتب 155'!AM12="","",TRUNC('[5]مرتب 155'!AM12)) ->  | BO13: =IF('[5]مرتب 155'!AN12="","",('[5]مرتب 155'!AN12-TRUNC('[5]مرتب 155'!AN12))*100) ->  | BP13: =IF('[5]مرتب 155'!AN12="","",TRUNC('[5]مرتب 155'!AN12)) ->  | BQ13: =IF('[5]مرتب 155'!AO12="","",('[5]مرتب 155'!AO12-TRUNC('[5]مرتب 155'!AO12))*100) ->  | BR13: =IF('[5]مرتب 155'!AO12="","",TRUNC('[5]مرتب 155'!AO12)) ->  | BS13: =IF('[5]مرتب 155'!AP12="","",('[5]مرتب 155'!AP12-TRUNC('[5]مرتب 155'!AP12))*100) -> 86 | BT13: =IF('[5]مرتب 155'!AP12="","",TRUNC('[5]مرتب 155'!AP12)) -> 390 | BU13: =IF('[5]مرتب 155'!AQ12="","",('[5]مرتب 155'!AQ12-TRUNC('[5]مرتب 155'!AQ12))*100) -> 71 | BV13: =IF('[5]مرتب 155'!AQ12="","",TRUNC('[5]مرتب 155'!AQ12)) -> 97 | BW13: =IF('[5]مرتب 155'!AR12="","",('[5]مرتب 155'!AR12-TRUNC('[5]مرتب 155'!AR12))*100) -> 57 | BX13: =IF('[5]مرتب 155'!AR12="","",TRUNC('[5]مرتب 155'!AR12)) -> 32 | BY13: =IF('[5]مرتب 155'!AS12="","",('[5]مرتب 155'!AS12-TRUNC('[5]مرتب 155'!AS12))*100) -> 71 | BZ13: =IF('[5]مرتب 155'!AS12="","",TRUNC('[5]مرتب 155'!AS12)) -> 40 | CA13: =IF('[5]مرتب 155'!AT12="","",('[5]مرتب 155'!AT12-TRUNC('[5]مرتب 155'!AT12))*100) -> 0 | CB13: =IF('[5]مرتب 155'!AT12="","",TRUNC('[5]مرتب 155'!AT12)) -> 10 | CC13: =IF($ASH$2=1,"",IF('[5]مرتب 155'!AU12="","",('[5]مرتب 155'!AU12-TRUNC('[5]مرتب 155'!AU12))*100)) -> 26 | CD13: =IF($ASH$2=1,"",IF('[5]مرتب 155'!AU12="","",TRUNC('[5]مرتب 155'!AU12))) -> 481 | CE13: =IF('[5]مرتب 155'!AV12="","",('[5]مرتب 155'!AV12-TRUNC('[5]مرتب 155'!AV12))*100) -> 27 | CF13: =IF('[5]مرتب 155'!AV12="","",TRUNC('[5]مرتب 155'!AV12)) -> 4310 | CG13: =IF('[5]مرتب 155'!AW12="","",('[5]مرتب 155'!AW12-TRUNC('[5]مرتب 155'!AW12))*100) -> 86 | CH13: =IF('[5]مرتب 155'!AW12="","",TRUNC('[5]مرتب 155'!AW12)) -> 390 | CI13: =IF('[5]مرتب 155'!AX12="","",('[5]مرتب 155'!AX12-TRUNC('[5]مرتب 155'!AX12))*100) -> 14 | CJ13: =IF('[5]مرتب 155'!AX12="","",TRUNC('[5]مرتب 155'!AX12)) -> 293 | CK13: =IF('[5]مرتب 155'!AY12="","",('[5]مرتب 155'!AY12-TRUNC('[5]مرتب 155'!AY12))*100) -> 57 | CL13: =IF('[5]مرتب 155'!AY12="","",TRUNC('[5]مرتب 155'!AY12)) -> 32 | CM13: =IF('[5]مرتب 155'!BB12="","",('[5]مرتب 155'!BB12-TRUNC('[5]مرتب 155'!BB12))*100) -> 57 | CN13: =IF('[5]مرتب 155'!BB12="","",TRUNC('[5]مرتب 155'!BB12)) -> 32 | CO13: =IF('[5]مرتب 155'!AZ12="","",('[5]مرتب 155'!AZ12-TRUNC('[5]مرتب 155'!AZ12))*100) -> 71 | CP13: =IF('[5]مرتب 155'!AZ12="","",TRUNC('[5]مرتب 155'!AZ12)) -> 97 | CQ13: =IF('[5]مرتب 155'!BA12="","",('[5]مرتب 155'!BA12-TRUNC('[5]مرتب 155'!BA12))*100) -> 57 | CR13: =IF('[5]مرتب 155'!BA12="","",TRUNC('[5]مرتب 155'!BA12)) -> 32 | CS13: =IF('[5]مرتب 155'!BC12="","",('[5]مرتب 155'!BC12-TRUNC('[5]مرتب 155'!BC12))*100) -> 71 | CT13: =IF('[5]مرتب 155'!BC12="","",TRUNC('[5]مرتب 155'!BC12)) -> 40 | CU13: =IF('[5]مرتب 155'!BD12="","",('[5]مرتب 155'!BD12-TRUNC('[5]مرتب 155'!BD12))*100) -> 13 | CV13: =IF('[5]مرتب 155'!BD12="","",TRUNC('[5]مرتب 155'!BD12)) -> 920 | CW13: =IF('[5]مرتب 155'!BE12="","",('[5]مرتب 155'!BE12-TRUNC('[5]مرتب 155'!BE12))*100) ->  | CX13: =IF('[5]مرتب 155'!BE12="","",TRUNC('[5]مرتب 155'!BE12)) ->  | CY13: =IF('[5]مرتب 155'!BF12="","",('[5]مرتب 155'!BF12-TRUNC('[5]مرتب 155'!BF12))*100) ->  | CZ13: =IF('[5]مرتب 155'!BF12="","",TRUNC('[5]مرتب 155'!BF12)) ->  | DA13: =IF('[5]مرتب 155'!BG12="","",('[5]مرتب 155'!BG12-TRUNC('[5]مرتب 155'!BG12))*100) ->  | DB13: =IF('[5]مرتب 155'!BG12="","",TRUNC('[5]مرتب 155'!BG12)) ->  | DC13: =IF('[5]مرتب 155'!BH12="","",('[5]مرتب 155'!BH12-TRUNC('[5]مرتب 155'!BH12))*100) -> 0 | DD13: =IF('[5]مرتب 155'!BH12="","",TRUNC('[5]مرتب 155'!BH12)) -> 0 | DE13: =IF('[5]مرتب 155'!BI12="","",('[5]مرتب 155'!BI12-TRUNC('[5]مرتب 155'!BI12))*100) -> 50 | DF13: =IF('[5]مرتب 155'!BI12="","",TRUNC('[5]مرتب 155'!BI12)) -> 4 | DG13: =IF('[5]مرتب 155'!BJ12="","",('[5]مرتب 155'!BJ12-TRUNC('[5]مرتب 155'!BJ12))*100) -> 47 | DH13: =IF('[5]مرتب 155'!BJ12="","",TRUNC('[5]مرتب 155'!BJ12)) -> 87 | DI13: =IF('[5]مرتب 155'!BK12="","",('[5]مرتب 155'!BK12-TRUNC('[5]مرتب 155'!BK12))*100) -> 0 | DJ13: =IF('[5]مرتب 155'!BK12="","",TRUNC('[5]مرتب 155'!BK12)) -> 3 | DK13: =IF('[5]مرتب 155'!BL12="","",('[5]مرتب 155'!BL12-TRUNC('[5]مرتب 155'!BL12))*100) -> 0 | DL13: =IF('[5]مرتب 155'!BL12="","",TRUNC('[5]مرتب 155'!BL12)) -> 1 | DM13: =IF('[5]مرتب 155'!BM12="","",('[5]مرتب 155'!BM12-TRUNC('[5]مرتب 155'!BM12))*100) ->  | DN13: =IF('[5]مرتب 155'!BM12="","",TRUNC('[5]مرتب 155'!BM12)) ->  | DO13: =IF('[5]مرتب 155'!BN12="","",('[5]مرتب 155'!BN12-TRUNC('[5]مرتب 155'!BN12))*100) ->  | DP13: =IF('[5]مرتب 155'!BN12="","",TRUNC('[5]مرتب 155'!BN12)) ->  | DQ13: =IF('[5]مرتب 155'!BO12="","",('[5]مرتب 155'!BO12-TRUNC('[5]مرتب 155'!BO12))*100) ->  | DR13: =IF('[5]مرتب 155'!BO12="","",TRUNC('[5]مرتب 155'!BO12)) ->  | DS13: =IF('[5]مرتب 155'!BP12="","",('[5]مرتب 155'!BP12-TRUNC('[5]مرتب 155'!BP12))*100) ->  | DT13: =IF('[5]مرتب 155'!BP12="","",TRUNC('[5]مرتب 155'!BP12)) ->  | DU13: =IF('[5]مرتب 155'!BQ12="","",('[5]مرتب 155'!BQ12-TRUNC('[5]مرتب 155'!BQ12))*100) ->  | DV13: =IF('[5]مرتب 155'!BQ12="","",TRUNC('[5]مرتب 155'!BQ12)) ->  | DW13: =IF('[5]مرتب 155'!BR12="","",('[5]مرتب 155'!BR12-TRUNC('[5]مرتب 155'!BR12))*100) ->  | DX13: =IF('[5]مرتب 155'!BR12="","",TRUNC('[5]مرتب 155'!BR12)) ->  | DY13: =IF('[5]مرتب 155'!BS12="","",('[5]مرتب 155'!BS12-TRUNC('[5]مرتب 155'!BS12))*100) ->  | DZ13: =IF('[5]مرتب 155'!BS12="","",TRUNC('[5]مرتب 155'!BS12)) ->  | EA13: =IF('[5]مرتب 155'!BT12="","",('[5]مرتب 155'!BT12-TRUNC('[5]مرتب 155'!BT12))*100) -> 0 | EB13: =IF('[5]مرتب 155'!BT12="","",TRUNC('[5]مرتب 155'!BT12)) -> 0 | EC13: =IF('[5]مرتب 155'!BU12="","",('[5]مرتب 155'!BU12-TRUNC('[5]مرتب 155'!BU12))*100) ->  | ED13: =IF('[5]مرتب 155'!BU12="","",TRUNC('[5]مرتب 155'!BU12)) ->  | EE13: =IF('[5]مرتب 155'!BV12="","",('[5]مرتب 155'!BV12-TRUNC('[5]مرتب 155'!BV12))*100) ->  | EF13: =IF('[5]مرتب 155'!BV12="","",TRUNC('[5]مرتب 155'!BV12)) ->  | EG13: =IF('[5]مرتب 155'!BW12="","",('[5]مرتب 155'!BW12-TRUNC('[5]مرتب 155'!BW12))*100) -> 97 | EH13: =IF('[5]مرتب 155'!BW12="","",TRUNC('[5]مرتب 155'!BW12)) -> 95 | EI13: =IF('[5]مرتب 155'!BX12="","",('[5]مرتب 155'!BX12-TRUNC('[5]مرتب 155'!BX12))*100) ->  | EJ13: =IF('[5]مرتب 155'!BX12="","",TRUNC('[5]مرتب 155'!BX12)) ->  | EK13: =IF('[5]مرتب 155'!BY12="","",('[5]مرتب 155'!BY12-TRUNC('[5]مرتب 155'!BY12))*100) ->  | EL13: =IF('[5]مرتب 155'!BY12="","",TRUNC('[5]مرتب 155'!BY12)) ->  | EM13: =IF('[5]مرتب 155'!BZ12="","",('[5]مرتب 155'!BZ12-TRUNC('[5]مرتب 155'!BZ12))*100) ->  | EN13: =IF('[5]مرتب 155'!BZ12="","",TRUNC('[5]مرتب 155'!BZ12)) ->  | EO13: =IF('[5]مرتب 155'!CA12="","",('[5]مرتب 155'!CA12-TRUNC('[5]مرتب 155'!CA12))*100) ->  | EP13: =IF('[5]مرتب 155'!CA12="","",TRUNC('[5]مرتب 155'!CA12)) ->  | EQ13: =IF('[5]مرتب 155'!CB12="","",('[5]مرتب 155'!CB12-TRUNC('[5]مرتب 155'!CB12))*100) ->  | ER13: =IF('[5]مرتب 155'!CB12="","",TRUNC('[5]مرتب 155'!CB12)) ->  | ES13: =IF('[5]مرتب 155'!CC12="","",('[5]مرتب 155'!CC12-TRUNC('[5]مرتب 155'!CC12))*100) ->  | ET13: =IF('[5]مرتب 155'!CC12="","",TRUNC('[5]مرتب 155'!CC12)) ->  | EU13: =IF('[5]مرتب 155'!CD12="","",('[5]مرتب 155'!CD12-TRUNC('[5]مرتب 155'!CD12))*100) ->  | EV13: =IF('[5]مرتب 155'!CD12="","",TRUNC('[5]مرتب 155'!CD12)) ->  | EW13: =IF('[5]مرتب 155'!CE12="","",('[5]مرتب 155'!CE12-TRUNC('[5]مرتب 155'!CE12))*100) -> 0 | EX13: =IF('[5]مرتب 155'!CE12="","",TRUNC('[5]مرتب 155'!CE12)) -> 0 | EY13: =IF('[5]مرتب 155'!CF12="","",('[5]مرتب 155'!CF12-TRUNC('[5]مرتب 155'!CF12))*100) ->  | EZ13: =IF('[5]مرتب 155'!CF12="","",TRUNC('[5]مرتب 155'!CF12)) ->  | FA13: =IF('[5]مرتب 155'!CG12="","",('[5]مرتب 155'!CG12-TRUNC('[5]مرتب 155'!CG12))*100) ->  | FB13: =IF('[5]مرتب 155'!CG12="","",TRUNC('[5]مرتب 155'!CG12)) ->  | FC13: =IF('[5]مرتب 155'!CH12="","",('[5]مرتب 155'!CH12-TRUNC('[5]مرتب 155'!CH12))*100) ->  | FD13: =IF('[5]مرتب 155'!CH12="","",TRUNC('[5]مرتب 155'!CH12)) ->  | FE13: =IF('[5]مرتب 155'!CI12="","",('[5]مرتب 155'!CI12-TRUNC('[5]مرتب 155'!CI12))*100) -> 11 | FF13: =IF('[5]مرتب 155'!CI12="","",TRUNC('[5]مرتب 155'!CI12)) -> 3 | FG13: =IF('[5]مرتب 155'!CJ12="","",('[5]مرتب 155'!CJ12-TRUNC('[5]مرتب 155'!CJ12))*100) -> 25 | FH13: =IF('[5]مرتب 155'!CJ12="","",TRUNC('[5]مرتب 155'!CJ12)) -> 6 | FI13: =IF('[5]مرتب 155'!CK12="","",('[5]مرتب 155'!CK12-TRUNC('[5]مرتب 155'!CK12))*100) ->  | FJ13: =IF('[5]مرتب 155'!CK12="","",TRUNC('[5]مرتب 155'!CK12)) ->  | FM13: =IF('[5]مرتب 155'!CM12="","",('[5]مرتب 155'!CM12-TRUNC('[5]مرتب 155'!CM12))*100) ->  | FN13: =IF('[5]مرتب 155'!CM12="","",TRUNC('[5]مرتب 155'!CM12)) ->  | FO13: =IF('[5]مرتب 155'!CN12="","",('[5]مرتب 155'!CN12-TRUNC('[5]مرتب 155'!CN12))*100) ->  | FP13: =IF('[5]مرتب 155'!CN12="","",TRUNC('[5]مرتب 155'!CN12)) ->  | FQ13: =IF('[5]مرتب 155'!CO12="","",('[5]مرتب 155'!CO12-TRUNC('[5]مرتب 155'!CO12))*100) ->  | FR13: =IF('[5]مرتب 155'!CO12="","",TRUNC('[5]مرتب 155'!CO12)) ->  | FS13: =IF('[5]مرتب 155'!CP12="","",('[5]مرتب 155'!CP12-TRUNC('[5]مرتب 155'!CP12))*100) -> 95.55 | FT13: =IF('[5]مرتب 155'!CP12="","",TRUNC('[5]مرتب 155'!CP12)) -> 27 | FU13: =IF('[5]مرتب 155'!CQ12="","",('[5]مرتب 155'!CQ12-TRUNC('[5]مرتب 155'!CQ12))*100) -> 0.45 | FV13: =IF('[5]مرتب 155'!CQ12="","",TRUNC('[5]مرتب 155'!CQ12)) -> 0 | FW13: =IF('[5]مرتب 155'!CR12="","",('[5]مرتب 155'!CR12-TRUNC('[5]مرتب 155'!CR12))*100) -> 42 | FX13: =IF('[5]مرتب 155'!CR12="","",TRUNC('[5]مرتب 155'!CR12)) -> 1053 | FY13: =IF('[5]مرتب 155'!CS12="","",('[5]مرتب 155'!CS12-TRUNC('[5]مرتب 155'!CS12))*100) -> 85 | FZ13: =IF('[5]مرتب 155'!CS12="","",TRUNC('[5]مرتب 155'!CS12)) -> 3256 | GA13: 6 | GB13: ='[5]مرتب 155'!CU12 -> البنك الأهلى | GC13: ='[5]مرتب 155'!CV12 ->  | GD13: 6 | GE13: 6 | GR13: 6 | GS13: 6 | GT13: =IF('[5]بيانات معلمين'!B12=0,"",'[5]بيانات معلمين'!B12) -> بندر عبدالمبدي عبادي بدوى | GU13: =IF('[5]بيانات معلمين'!C12=0,"",'[5]بيانات معلمين'!C12) -> معلم اول | GV13: =IF('[5]بيانات معلمين'!D12=0,"",'[5]بيانات معلمين'!D12) -> الثانية | GW13: 1 | GX13: 1 | GY13: دفع | GZ13: =IF(GT13="","",SUBTOTAL(3,GT$8:GT13)) -> 6 | HA13: =IF('[5]بيانات معلمين'!G12=0,"",IF($LF13=0,ROUND(($LE$5-$LE13)*'[5]بيانات معلمين'!G12/$LE$5,2),IF($LE13=0,ROUND($LF13*'[5]بيانات معلمين'!G12/$LE$5,2)))) -> 394.77 | HD13: 3257.16 | HE13: =IF('[5]بيانات معلمين'!K12=0,"",IF($LF13=0,ROUND(($LE$5-$LE13)*'[5]بيانات معلمين'!K12/$LE$5,2),IF($LE13=0,ROUND($LF13*'[5]بيانات معلمين'!K12/$LE$5,2)))) -> 1249.64 | HF13: =IF('[5]بيانات معلمين'!L12=0,0,IF($LF13=0,ROUND(($LE$5-$LE13)*'[5]بيانات معلمين'!L12/$LE$5,2),IF($LE13=0,ROUND($LF13*'[5]بيانات معلمين'!L12/$LE$5,2)))) -> 21 | HG13: =IF('[5]بيانات معلمين'!M12=0,0,IF($LF13=0,ROUND(($LE$5-$LE13)*'[5]بيانات معلمين'!M12/$LE$5,2),IF($LE13=0,ROUND($LF13*'[5]بيانات معلمين'!M12/$LE$5,2)))) -> 0 | HH13: 21 | HI13: =IF('[5]بيانات معلمين'!O12=0,"",IF($LF13=0,ROUND(($LE$5-$LE13)*'[5]بيانات معلمين'!O12/$LE$5,2),IF($LE13=0,ROUND($LF13*'[5]بيانات معلمين'!O12/$LE$5,2)))) -> 37.11 | HJ13: =IF('[5]بيانات معلمين'!P12=0,"",IF($LF13=0,ROUND(($LE$5-$LE13)*'[5]بيانات معلمين'!P12/$LE$5,2),IF($LE13=0,ROUND($LF13*'[5]بيانات معلمين'!P12/$LE$5,2)))) -> 39.48 | HK13: =IF($ASK$3=1,"",IF('[5]بيانات معلمين'!Q12=0,"",IF($LF13=0,ROUND(($LE$5-$LE13)*'[5]بيانات معلمين'!Q12/$LE$5,2),IF($LE13=0,ROUND($LF13*'[5]بيانات معلمين'!Q12/$LE$5,2))))) -> 197.39 | HL13: =IF($ASI$5=1,"",IF('[5]بيانات معلمين'!R12=0,"",IF($LF13=0,ROUND(($LE$5-$LE13)*'[5]بيانات معلمين'!R12/$LE$5,2),IF($LE13=0,ROUND($LF13*'[5]بيانات معلمين'!R12/$LE$5,2))))) -> 493.46 | HM13: =IF($ASL$6=1,"",IF('[5]بيانات معلمين'!S12=0,"",IF($LF13=0,ROUND(($LE$5-$LE13)*'[5]بيانات معلمين'!S12/$LE$5,2),IF($LE13=0,ROUND($LF13*'[5]بيانات معلمين'!S12/$LE$5,2))))) -> 98.69 | HN13: =IF($ASI$6=1,"",IF('[5]بيانات معلمين'!T12=0,"",IF($LF13=0,ROUND(($LE$5-$LE13)*'[5]بيانات معلمين'!T12/$LE$5,2),IF($LE13=0,ROUND($LF13*'[5]بيانات معلمين'!T12/$LE$5,2))))) -> 197.39 | HO13: =IF($ASI$4=1,"",IF('[5]بيانات معلمين'!U12=0,"",IF($LF13=0,ROUND(($LE$5-$LE13)*'[5]بيانات معلمين'!U12/$LE$5,2),IF($LE13=0,ROUND($LF13*'[5]بيانات معلمين'!U12/$LE$5,2))))) -> 375 | HP13: =IF('[5]بيانات معلمين'!V12=0,"",IF($LF13=0,ROUND(($LE$5-$LE13)*'[5]بيانات معلمين'!V12/$LE$5,2),IF($LE13=0,ROUND($LF13*'[5]بيانات معلمين'!V12/$LE$5,2)))) -> 4 | HQ13: =IF('[5]بيانات معلمين'!W12=0,"",IF($LF13=0,ROUND(($LE$5-$LE13)*'[5]بيانات معلمين'!W12/$LE$5,2),IF($LE13=0,ROUND($LF13*'[5]بيانات معلمين'!W12/$LE$5,2)))) -> 4 | HR13: =IF($ASB$4=1,"",IF('[5]بيانات معلمين'!X12=0,"",IF($LF13=0,ROUND(($LE$5-$LE13)*'[5]بيانات معلمين'!X12/$LE$5,2),IF($LE13=0,ROUND($LF13*'[5]بيانات معلمين'!X12/$LE$5,2))))) -> 100 | HS13: =IF('[5]بيانات معلمين'!Y12=0,"",IF($LF13=0,ROUND(($LE$5-$LE13)*'[5]بيانات معلمين'!Y12/$LE$5,2),IF($LE13=0,ROUND($LF13*'[5]بيانات معلمين'!Y12/$LE$5,2)))) -> 40 | HT13: =IF('[5]بيانات معلمين'!Z12=0,"",IF($LF13=0,ROUND(($LE$5-$LE13)*'[5]بيانات معلمين'!Z12/$LE$5,2),IF($LE13=0,ROUND($LF13*'[5]بيانات معلمين'!Z12/$LE$5,2)))) ->  | HU13: =IF('[5]بيانات معلمين'!AA12=0,"",IF($LF13=0,ROUND(($LE$5-$LE13)*'[5]بيانات معلمين'!AA12/$LE$5,2),IF($LE13=0,ROUND($LF13*'[5]بيانات معلمين'!AA12/$LE$5,2)))) ->  | HV13: =IF('[5]بيانات معلمين'!AB12=0,"",IF($LF13=0,ROUND(($LE$5-$LE13)*'[5]بيانات معلمين'!AB12/$LE$5,2),IF($LE13=0,ROUND($LF13*'[5]بيانات معلمين'!AB12/$LE$5,2)))) ->  | HW13: =IF('[5]بيانات معلمين'!AC12=0,"",IF($LF13=0,ROUND(($LE$5-$LE13)*'[5]بيانات معلمين'!AC12/$LE$5,2),IF($LE13=0,ROUND($LF13*'[5]بيانات معلمين'!AC12/$LE$5,2)))) ->  | HX13: =IF('[5]بيانات معلمين'!AD12=0,"",IF($LF13=0,ROUND(($LE$5-$LE13)*'[5]بيانات معلمين'!AD12/$LE$5,2),IF($LE13=0,ROUND($LF13*'[5]بيانات معلمين'!AD12/$LE$5,2)))) -> 400 | HY13: =IF('[5]بيانات معلمين'!AE12=0,"",IF($LF13=0,ROUND(($LE$5-$LE13)*'[5]بيانات معلمين'!AE12/$LE$5,2),IF($LE13=0,ROUND($LF13*'[5]بيانات معلمين'!AE12/$LE$5,2)))) ->  | HZ13: =IF('[5]بيانات معلمين'!AF12=0,"",IF($LF13=0,ROUND(($LE$5-$LE13)*'[5]بيانات معلمين'!AF12/$LE$5,2),IF($LE13=0,ROUND($LF13*'[5]بيانات معلمين'!AF12/$LE$5,2)))) ->  | IA13: =IF('[5]بيانات معلمين'!AG12=0,"",IF($LF13=0,ROUND(($LE$5-$LE13)*'[5]بيانات معلمين'!AG12/$LE$5,2),IF($LE13=0,ROUND($LF13*'[5]بيانات معلمين'!AG12/$LE$5,2)))) ->  | IB13: =IF('[5]بيانات معلمين'!AH12=0,"",IF($LF13=0,ROUND(($LE$5-$LE13)*'[5]بيانات معلمين'!AH12/$LE$5,2),IF($LE13=0,ROUND($LF13*'[5]بيانات معلمين'!AH12/$LE$5,2)))) ->  | IC13: =IF('[5]بيانات معلمين'!AI12=0,"",IF($LF13=0,ROUND(($LE$5-$LE13)*'[5]بيانات معلمين'!AI12/$LE$5,2),IF($LE13=0,ROUND($LF13*'[5]بيانات معلمين'!AI12/$LE$5,2)))) ->  | ID13: =IF('[5]بيانات معلمين'!AJ12=0,"",IF($LF13=0,ROUND(($LE$5-$LE13)*'[5]بيانات معلمين'!AJ12/$LE$5,2),IF($LE13=0,ROUND($LF13*'[5]بيانات معلمين'!AJ12/$LE$5,2)))) ->  | IE13: =IF('[5]بيانات معلمين'!AK12=0,"",IF($LF13=0,ROUND(($LE$5-$LE13)*'[5]بيانات معلمين'!AK12/$LE$5,2),IF($LE13=0,ROUND($LF13*'[5]بيانات معلمين'!AK12/$LE$5,2)))) ->  | IF13: =IF('[5]بيانات معلمين'!AL12=0,"",IF($LF13=0,ROUND(($LE$5-$LE13)*'[5]بيانات معلمين'!AL12/$LE$5,2),IF($LE13=0,ROUND($LF13*'[5]بيانات معلمين'!AL12/$LE$5,2)))) ->  | IG13: =IF('[5]بيانات معلمين'!AM12=0,"",IF($LF13=0,ROUND(($LE$5-$LE13)*'[5]بيانات معلمين'!AM12/$LE$5,2),IF($LE13=0,ROUND($LF13*'[5]بيانات معلمين'!AM12/$LE$5,2)))) ->  | IH13: =IF('[5]بيانات معلمين'!AN12=0,"",IF($LF13=0,ROUND(($LE$5-$LE13)*'[5]بيانات معلمين'!AN12/$LE$5,2),IF($LE13=0,ROUND($LF13*'[5]بيانات معلمين'!AN12/$LE$5,2)))) -> 390.86 | II13: =IF('[5]بيانات معلمين'!AO12=0,"",IF($LF13=0,ROUND(($LE$5-$LE13)*'[5]بيانات معلمين'!AO12/$LE$5,2),IF($LE13=0,ROUND($LF13*'[5]بيانات معلمين'!AO12/$LE$5,2)))) -> 97.71 | IJ13: =IF('[5]بيانات معلمين'!AP12=0,"",IF($LF13=0,ROUND(($LE$5-$LE13)*'[5]بيانات معلمين'!AP12/$LE$5,2),IF($LE13=0,ROUND($LF13*'[5]بيانات معلمين'!AP12/$LE$5,2)))) -> 32.57 | IK13: =IF('[5]بيانات معلمين'!AQ12=0,"",IF($LF13=0,ROUND(($LE$5-$LE13)*'[5]بيانات معلمين'!AQ12/$LE$5,2),IF($LE13=0,ROUND($LF13*'[5]بيانات معلمين'!AQ12/$LE$5,2)))) -> 40.71 | IL13: 561.85 | IM13: 85 | IN13: 561 | IO13: =IF('[5]بيانات معلمين'!AR12=0,"",IF($LF13=0,ROUND(($LE$5-$LE13)*'[5]بيانات معلمين'!AR12/$LE$5,2),IF($LE13=0,ROUND($LF13*'[5]بيانات معلمين'!AR12/$LE$5,2)))) -> 10 | IP13: =IF($ASH$2=1,"",IF('[5]بيانات معلمين'!AS12=0,"",IF($LF13=0,ROUND(($LE$5-$LE13)*'[5]بيانات معلمين'!AS12/$LE$5,2),IF($LE13=0,ROUND($LF13*'[5]بيانات معلمين'!AS12/$LE$5,2))))) -> 481.26 | IQ13: =IF('[5]بيانات معلمين'!AT12=0,"",ROUND(SUM(HE13,HH13:IK13,IO13,IP13),2)) -> 4310.27 | IR13: =IF('[5]بيانات معلمين'!AU12=0,"",IF($LF13=0,ROUND(($LE$5-$LE13)*'[5]بيانات معلمين'!AU12/$LE$5,2),IF($LE13=0,ROUND($LF13*'[5]بيانات معلمين'!AU12/$LE$5,2)))) -> 390.86 | IS13: =IF('[5]بيانات معلمين'!AV12=0,"",'[5]بيانات معلمين'!AV12) -> 293.14 | IT13: =IF('[5]بيانات معلمين'!AW12=0,"",IF($LF13=0,ROUND(($LE$5-$LE13)*'[5]بيانات معلمين'!AW12/$LE$5,2),IF($LE13=0,ROUND($LF13*'[5]بيانات معلمين'!AW12/$LE$5,2)))) -> 32.57 | IU13: =IF('[5]بيانات معلمين'!AX12=0,"",IF($LF13=0,ROUND(($LE$5-$LE13)*'[5]بيانات معلمين'!AX12/$LE$5,2),IF($LE13=0,ROUND($LF13*'[5]بيانات معلمين'!AX12/$LE$5,2)))) -> 97.71 | IV13: =IF('[5]بيانات معلمين'!AY12=0,"",'[5]بيانات معلمين'!AY12) -> 32.57 | IW13: =IF('[5]بيانات معلمين'!AZ12=0,"",'[5]بيانات معلمين'!AZ12) -> 32.57 | IX13: =IF('[5]بيانات معلمين'!BA12=0,"",IF($LF13=0,ROUND(($LE$5-$LE13)*'[5]بيانات معلمين'!BA12/$LE$5,2),IF($LE13=0,ROUND($LF13*'[5]بيانات معلمين'!BA12/$LE$5,2)))) -> 40.71 | IY13: 920.13 | IZ13: =IF('[5]بيانات معلمين'!BC12=0,"",'[5]بيانات معلمين'!BC12) ->  | JA13: =IF('[5]بيانات معلمين'!BD12=0,"",'[5]بيانات معلمين'!BD12) ->  | JB13: =IF('[5]بيانات معلمين'!BE12=0,"",'[5]بيانات معلمين'!BE12) ->  | JC13: 0 | JD13: =IF('[5]بيانات معلمين'!BG12=0,"",'[5]بيانات معلمين'!BG12) -> 4.5 | JE13: =IF('[5]بيانات معلمين'!$BH12=0,0,'[5]بيانات معلمين'!$BH12)/('[5]بيانات معلمين'!$CY12) -> 87.47 | JF13: =IF('[5]بيانات معلمين'!BI12=0,"",'[5]بيانات معلمين'!BI12) -> 3 | JG13: =IF('[5]بيانات معلمين'!BJ12=0,"",'[5]بيانات معلمين'!BJ12) -> 1 | JH13: =IF('[5]بيانات معلمين'!BK12=0,"",'[5]بيانات معلمين'!BK12) ->  | JI13: =IF('[5]بيانات معلمين'!BL12=0,"",'[5]بيانات معلمين'!BL12) ->  | JJ13: =IF('[5]بيانات معلمين'!BM12=0,"",'[5]بيانات معلمين'!BM12) ->  | JK13: =IF('[5]بيانات معلمين'!BN12=0,"",'[5]بيانات معلمين'!BN12) ->  | JL13: =IF('[5]بيانات معلمين'!BO12=0,"",'[5]بيانات معلمين'!BO12) ->  | JM13: =IF('[5]بيانات معلمين'!BP12=0,"",'[5]بيانات معلمين'!BP12) ->  | JN13: =IF('[5]بيانات معلمين'!BQ12=0,"",'[5]بيانات معلمين'!BQ12) ->  | JO13: =IF('[5]بيانات معلمين'!$BR12=0,0,'[5]بيانات معلمين'!$BR12)/'[5]بيانات معلمين'!$CY12 -> 0 | JP13: =IF('[5]بيانات معلمين'!BS12=0,"",'[5]بيانات معلمين'!BS12) ->  | JQ13: =IF('[5]بيانات معلمين'!BT12=0,"",'[5]بيانات معلمين'!BT12) ->  | JR13: 95.97 | JS13: =IF('[5]بيانات معلمين'!BV12=0,"",'[5]بيانات معلمين'!BV12) ->  | JT13: =IF('[5]بيانات معلمين'!BW12=0,"",'[5]بيانات معلمين'!BW12) ->  | JU13: =IF('[5]بيانات معلمين'!BX12=0,"",'[5]بيانات معلمين'!BX12) ->  | JV13: =IF('[5]بيانات معلمين'!BY12=0,"",'[5]بيانات معلمين'!BY12) ->  | JW13: =IF('[5]بيانات معلمين'!BZ12=0,"",'[5]بيانات معلمين'!BZ12) ->  | JX13: =IF('[5]بيانات معلمين'!CA12=0,"",'[5]بيانات معلمين'!CA12) ->  | JY13: =IF('[5]بيانات معلمين'!CB12=0,"",'[5]بيانات معلمين'!CB12) ->  | JZ13: 0 | KA13: =IF('[5]بيانات معلمين'!CD12=0,"",'[5]بيانات معلمين'!CD12) ->  | KB13: =IF('[5]بيانات معلمين'!CE12=0,"",'[5]بيانات معلمين'!CE12) ->  | KC13: =IF('[5]بيانات معلمين'!CF12=0,"",'[5]بيانات معلمين'!CF12) ->  | KD13: =IF('[5]بيانات معلمين'!CG12=0,"",ROUND(IF(($HD13+($HE13*50%)-$HE13-(11%*$HD13)-$JC13-$JR13-$KE13-$HH13-HE13/47-2000)*0.025<=0,0,($HD13+($HE13*50%)-$HE13-(11%*$HD13)-$JC13-$JR13-$KE13-$HH13-HE13/47-2000)*0.025),2)) -> 3.11 | KE13: =IF('[5]بيانات معلمين'!CH12=0,"",'[5]بيانات معلمين'!CH12) -> 6.25 | KF13: =IF('[5]بيانات معلمين'!CI12=0,"",'[5]بيانات معلمين'!CI12) ->  | KG13: =IF('[5]بيانات معلمين'!CJ12=0,"",'[5]بيانات معلمين'!CJ12) ->  | KH13: =IF('[5]بيانات معلمين'!CK12=0,"",'[5]بيانات معلمين'!CK12) ->  | KI13: =IF('[5]بيانات معلمين'!CL12=0,"",'[5]بيانات معلمين'!CL12) ->  | KJ13: =IF('[5]بيانات معلمين'!CM12=0,"",'[5]بيانات معلمين'!CM12) ->  | KK13: =IF('[5]بيانات معلمين'!CN12=0,"",'[5]بيانات معلمين'!CN12) -> 27.9555 | KL13: 37.3155 | KM13: 31.55 | KN13: 37 | KO13: 0.0045 | KP13: 1053.42 | KQ13: 3256.85 | KR13: =IF('[5]بيانات معلمين'!CR12=0,"",'[5]بيانات معلمين'!CR12) -> بندر عبدالمبدي عبادي بدوى | KS13: =IF('[5]بيانات معلمين'!CS12=0,"",'[5]بيانات معلمين'!CS12) -> البنك الأهلى | KT13: =IF('[5]بيانات معلمين'!CT12=0,"",'[5]بيانات معلمين'!CT12) ->  | KU13: =IF('[5]بيانات معلمين'!CU12=0,"",'[5]بيانات معلمين'!CU12) -> 28001122700676 | KW13: 6 | KY13: 3256.8545 | LE13: ='[5]جزاءات 155'!F12 -> 0 | LF13: ='[5]جزاءات 155'!E12 -> 0 | AES13: =IF('[5]استقطاعات 155'!Q12="","",'[5]مرتب 155'!M12) ->  | AEU13: 6 | AEY13: ='[5]استقطاعات 155'!Q12 -> 0 | AFA13: 0 | AFB13: 0 | AFC13: -10000 | AFD13: 0 | AFE13: 0 | AFF13: -40000 | AFG13: 0 | AFH13: 0 | AFI13: 0 | AFJ13: 0 | AFK13: 0 | AFL13: 0 | AFM13: 0
A14: 1 | B14: 1 | C14: ='[5]مرتب 155'!C13 -> معلم | D14: ='[5]مرتب 155'!D13 -> الثالثة | E14: 8 | F14: 1 | G14: ='[5]ادخال بيانات 155'!N13 -> أهلى | H14: =IF(B14="","",SUBTOTAL(3,$B$8:B14)) -> 7 | I14: =IF('[5]مرتب 155'!I13="","",('[5]مرتب 155'!I13-TRUNC('[5]مرتب 155'!I13))*100) -> 0 | J14: =IF('[5]مرتب 155'!I13="","",TRUNC('[5]مرتب 155'!I13)) -> 246 | K14: =IF('[5]مرتب 155'!J13="","",('[5]مرتب 155'!J13-TRUNC('[5]مرتب 155'!J13))*100) -> 0 | L14: =IF('[5]مرتب 155'!J13="","",TRUNC('[5]مرتب 155'!J13)) -> 84000 | M14: =IF('[5]مرتب 155'!K13="","",('[5]مرتب 155'!K13-TRUNC('[5]مرتب 155'!K13))*100) -> 3.637978807e-10 | N14: =IF('[5]مرتب 155'!K13="","",TRUNC('[5]مرتب 155'!K13)) -> 26004 | O14: =IF('[5]مرتب 155'!L13="","",('[5]مرتب 155'!L13-TRUNC('[5]مرتب 155'!L13))*100) -> 86 | P14: =IF('[5]مرتب 155'!L13="","",TRUNC('[5]مرتب 155'!L13)) -> 2679 | Q14: =IF('[5]مرتب 155'!M13="","",('[5]مرتب 155'!M13-TRUNC('[5]مرتب 155'!M13))*100) -> 80 | R14: =IF('[5]مرتب 155'!M13="","",TRUNC('[5]مرتب 155'!M13)) -> 916 | S14: =IF($ASM$3=1,"",IF('[5]مرتب 155'!P13="","",('[5]مرتب 155'!P13-TRUNC('[5]مرتب 155'!P13))*100)) -> 40 | T14: =IF($ASM$3=1,"",IF('[5]مرتب 155'!P13="","",TRUNC('[5]مرتب 155'!P13))) -> 14 | U14: =IF('[5]مرتب 155'!$Q13="","",('[5]مرتب 155'!$Q13-TRUNC('[5]مرتب 155'!$Q13))*100) -> 12 | V14: =IF('[5]مرتب 155'!$Q13="","",TRUNC('[5]مرتب 155'!$Q13)) -> 24 | W14: =IF('[5]مرتب 155'!$R13="","",('[5]مرتب 155'!$R13-TRUNC('[5]مرتب 155'!$R13))*100) -> 60 | X14: =IF('[5]مرتب 155'!$R13="","",TRUNC('[5]مرتب 155'!$R13)) -> 24 | Y14: =IF($ASK$3=1,"",IF('[5]مرتب 155'!S13="","",('[5]مرتب 155'!S13-TRUNC('[5]مرتب 155'!S13))*100)) -> 0 | Z14: =IF($ASK$3=1,"",IF('[5]مرتب 155'!S13="","",TRUNC('[5]مرتب 155'!S13))) -> 123 | AA14: =IF($ASI$5=1,"",IF('[5]مرتب 155'!T13="","",('[5]مرتب 155'!T13-TRUNC('[5]مرتب 155'!T13))*100)) -> 0 | AB14: =IF($ASI$5=1,"",IF('[5]مرتب 155'!T13="","",TRUNC('[5]مرتب 155'!T13))) -> 246 | AC14: =IF($ASL$6=1,"",IF('[5]مرتب 155'!U13="","",('[5]مرتب 155'!U13-TRUNC('[5]مرتب 155'!U13))*100)) -> 50 | AD14: =IF($ASL$6=1,"",IF('[5]مرتب 155'!U13="","",TRUNC('[5]مرتب 155'!U13))) -> 61 | AE14: =IF($ASI$6=1,"",IF('[5]مرتب 155'!V13="","",('[5]مرتب 155'!V13-TRUNC('[5]مرتب 155'!V13))*100)) -> 50 | AF14: =IF($ASI$6=1,"",IF('[5]مرتب 155'!V13="","",TRUNC('[5]مرتب 155'!V13))) -> 184 | AG14: =IF($ASI$4=1,"",IF('[5]مرتب 155'!W13="","",('[5]مرتب 155'!W13-TRUNC('[5]مرتب 155'!W13))*100)) -> 0 | AH14: =IF($ASI$4=1,"",IF('[5]مرتب 155'!W13="","",TRUNC('[5]مرتب 155'!W13))) -> 400 | AI14: =IF('[5]مرتب 155'!X13="","",('[5]مرتب 155'!X13-TRUNC('[5]مرتب 155'!X13))*100) -> 0 | AJ14: =IF('[5]مرتب 155'!X13="","",TRUNC('[5]مرتب 155'!X13)) -> 4 | AK14: =IF('[5]مرتب 155'!Y13="","",('[5]مرتب 155'!Y13-TRUNC('[5]مرتب 155'!Y13))*100) -> 0 | AL14: =IF('[5]مرتب 155'!Y13="","",TRUNC('[5]مرتب 155'!Y13)) -> 4 | AM14: =IF($ASB$4=1,"",IF('[5]مرتب 155'!Z13="","",('[5]مرتب 155'!Z13-TRUNC('[5]مرتب 155'!Z13))*100)) -> 0 | AN14: =IF($ASB$4=1,"",IF('[5]مرتب 155'!Z13="","",TRUNC('[5]مرتب 155'!Z13))) -> 100 | AO14: =IF('[5]مرتب 155'!AA13="","",('[5]مرتب 155'!AA13-TRUNC('[5]مرتب 155'!AA13))*100) -> 0 | AP14: =IF('[5]مرتب 155'!AA13="","",TRUNC('[5]مرتب 155'!AA13)) -> 40 | AQ14: =IF('[5]مرتب 155'!AB13="","",('[5]مرتب 155'!AB13-TRUNC('[5]مرتب 155'!AB13))*100) ->  | AR14: =IF('[5]مرتب 155'!AB13="","",TRUNC('[5]مرتب 155'!AB13)) ->  | AS14: =IF('[5]مرتب 155'!AC13="","",('[5]مرتب 155'!AC13-TRUNC('[5]مرتب 155'!AC13))*100) ->  | AT14: =IF('[5]مرتب 155'!AC13="","",TRUNC('[5]مرتب 155'!AC13)) ->  | AU14: =IF('[5]مرتب 155'!AD13="","",('[5]مرتب 155'!AD13-TRUNC('[5]مرتب 155'!AD13))*100) ->  | AV14: =IF('[5]مرتب 155'!AD13="","",TRUNC('[5]مرتب 155'!AD13)) ->  | AW14: =IF('[5]مرتب 155'!AE13="","",('[5]مرتب 155'!AE13-TRUNC('[5]مرتب 155'!AE13))*100) ->  | AX14: =IF('[5]مرتب 155'!AE13="","",TRUNC('[5]مرتب 155'!AE13)) ->  | AY14: =IF('[5]مرتب 155'!AF13="","",('[5]مرتب 155'!AF13-TRUNC('[5]مرتب 155'!AF13))*100) -> 0 | AZ14: =IF('[5]مرتب 155'!AF13="","",TRUNC('[5]مرتب 155'!AF13)) -> 350 | BA14: =IF('[5]مرتب 155'!AG13="","",('[5]مرتب 155'!AG13-TRUNC('[5]مرتب 155'!AG13))*100) -> 94 | BB14: =IF('[5]مرتب 155'!AG13="","",TRUNC('[5]مرتب 155'!AG13)) -> 186 | BC14: =IF('[5]مرتب 155'!AH13="","",('[5]مرتب 155'!AH13-TRUNC('[5]مرتب 155'!AH13))*100) ->  | BD14: =IF('[5]مرتب 155'!AH13="","",TRUNC('[5]مرتب 155'!AH13)) ->  | BE14: =IF('[5]مرتب 155'!AI13="","",('[5]مرتب 155'!AI13-TRUNC('[5]مرتب 155'!AI13))*100) ->  | BF14: =IF('[5]مرتب 155'!AI13="","",TRUNC('[5]مرتب 155'!AI13)) ->  | BG14: =IF('[5]مرتب 155'!AJ13="","",('[5]مرتب 155'!AJ13-TRUNC('[5]مرتب 155'!AJ13))*100) ->  | BH14: =IF('[5]مرتب 155'!AJ13="","",TRUNC('[5]مرتب 155'!AJ13)) ->  | BI14: =IF('[5]مرتب 155'!AK13="","",('[5]مرتب 155'!AK13-TRUNC('[5]مرتب 155'!AK13))*100) ->  | BJ14: =IF('[5]مرتب 155'!AK13="","",TRUNC('[5]مرتب 155'!AK13)) ->  | BK14: =IF('[5]مرتب 155'!AL13="","",('[5]مرتب 155'!AL13-TRUNC('[5]مرتب 155'!AL13))*100) ->  | BL14: =IF('[5]مرتب 155'!AL13="","",TRUNC('[5]مرتب 155'!AL13)) ->  | BM14: =IF('[5]مرتب 155'!AM13="","",('[5]مرتب 155'!AM13-TRUNC('[5]مرتب 155'!AM13))*100) ->  | BN14: =IF('[5]مرتب 155'!AM13="","",TRUNC('[5]مرتب 155'!AM13)) ->  | BO14: =IF('[5]مرتب 155'!AN13="","",('[5]مرتب 155'!AN13-TRUNC('[5]مرتب 155'!AN13))*100) ->  | BP14: =IF('[5]مرتب 155'!AN13="","",TRUNC('[5]مرتب 155'!AN13)) ->  | BQ14: =IF('[5]مرتب 155'!AO13="","",('[5]مرتب 155'!AO13-TRUNC('[5]مرتب 155'!AO13))*100) ->  | BR14: =IF('[5]مرتب 155'!AO13="","",TRUNC('[5]مرتب 155'!AO13)) ->  | BS14: =IF('[5]مرتب 155'!AP13="","",('[5]مرتب 155'!AP13-TRUNC('[5]مرتب 155'!AP13))*100) -> 58 | BT14: =IF('[5]مرتب 155'!AP13="","",TRUNC('[5]مرتب 155'!AP13)) -> 321 | BU14: =IF('[5]مرتب 155'!AQ13="","",('[5]مرتب 155'!AQ13-TRUNC('[5]مرتب 155'!AQ13))*100) -> 40 | BV14: =IF('[5]مرتب 155'!AQ13="","",TRUNC('[5]مرتب 155'!AQ13)) -> 80 | BW14: =IF('[5]مرتب 155'!AR13="","",('[5]مرتب 155'!AR13-TRUNC('[5]مرتب 155'!AR13))*100) -> 80 | BX14: =IF('[5]مرتب 155'!AR13="","",TRUNC('[5]مرتب 155'!AR13)) -> 26 | BY14: =IF('[5]مرتب 155'!AS13="","",('[5]مرتب 155'!AS13-TRUNC('[5]مرتب 155'!AS13))*100) -> 50 | BZ14: =IF('[5]مرتب 155'!AS13="","",TRUNC('[5]مرتب 155'!AS13)) -> 33 | CA14: =IF('[5]مرتب 155'!AT13="","",('[5]مرتب 155'!AT13-TRUNC('[5]مرتب 155'!AT13))*100) -> 0 | CB14: =IF('[5]مرتب 155'!AT13="","",TRUNC('[5]مرتب 155'!AT13)) -> 10 | CC14: =IF($ASH$2=1,"",IF('[5]مرتب 155'!AU13="","",('[5]مرتب 155'!AU13-TRUNC('[5]مرتب 155'!AU13))*100)) -> 26 | CD14: =IF($ASH$2=1,"",IF('[5]مرتب 155'!AU13="","",TRUNC('[5]مرتب 155'!AU13))) -> 481 | CE14: =IF('[5]مرتب 155'!AV13="","",('[5]مرتب 155'!AV13-TRUNC('[5]مرتب 155'!AV13))*100) -> 40 | CF14: =IF('[5]مرتب 155'!AV13="","",TRUNC('[5]مرتب 155'!AV13)) -> 3633 | CG14: =IF('[5]مرتب 155'!AW13="","",('[5]مرتب 155'!AW13-TRUNC('[5]مرتب 155'!AW13))*100) -> 58 | CH14: =IF('[5]مرتب 155'!AW13="","",TRUNC('[5]مرتب 155'!AW13)) -> 321 | CI14: =IF('[5]مرتب 155'!AX13="","",('[5]مرتب 155'!AX13-TRUNC('[5]مرتب 155'!AX13))*100) -> 19 | CJ14: =IF('[5]مرتب 155'!AX13="","",TRUNC('[5]مرتب 155'!AX13)) -> 241 | CK14: =IF('[5]مرتب 155'!AY13="","",('[5]مرتب 155'!AY13-TRUNC('[5]مرتب 155'!AY13))*100) -> 80 | CL14: =IF('[5]مرتب 155'!AY13="","",TRUNC('[5]مرتب 155'!AY13)) -> 26 | CM14: =IF('[5]مرتب 155'!BB13="","",('[5]مرتب 155'!BB13-TRUNC('[5]مرتب 155'!BB13))*100) -> 80 | CN14: =IF('[5]مرتب 155'!BB13="","",TRUNC('[5]مرتب 155'!BB13)) -> 26 | CO14: =IF('[5]مرتب 155'!AZ13="","",('[5]مرتب 155'!AZ13-TRUNC('[5]مرتب 155'!AZ13))*100) -> 40 | CP14: =IF('[5]مرتب 155'!AZ13="","",TRUNC('[5]مرتب 155'!AZ13)) -> 80 | CQ14: =IF('[5]مرتب 155'!BA13="","",('[5]مرتب 155'!BA13-TRUNC('[5]مرتب 155'!BA13))*100) -> 80 | CR14: =IF('[5]مرتب 155'!BA13="","",TRUNC('[5]مرتب 155'!BA13)) -> 26 | CS14: =IF('[5]مرتب 155'!BC13="","",('[5]مرتب 155'!BC13-TRUNC('[5]مرتب 155'!BC13))*100) -> 50 | CT14: =IF('[5]مرتب 155'!BC13="","",TRUNC('[5]مرتب 155'!BC13)) -> 33 | CU14: =IF('[5]مرتب 155'!BD13="","",('[5]مرتب 155'!BD13-TRUNC('[5]مرتب 155'!BD13))*100) -> 7 | CV14: =IF('[5]مرتب 155'!BD13="","",TRUNC('[5]مرتب 155'!BD13)) -> 757 | CW14: =IF('[5]مرتب 155'!BE13="","",('[5]مرتب 155'!BE13-TRUNC('[5]مرتب 155'!BE13))*100) ->  | CX14: =IF('[5]مرتب 155'!BE13="","",TRUNC('[5]مرتب 155'!BE13)) ->  | CY14: =IF('[5]مرتب 155'!BF13="","",('[5]مرتب 155'!BF13-TRUNC('[5]مرتب 155'!BF13))*100) ->  | CZ14: =IF('[5]مرتب 155'!BF13="","",TRUNC('[5]مرتب 155'!BF13)) ->  | DA14: =IF('[5]مرتب 155'!BG13="","",('[5]مرتب 155'!BG13-TRUNC('[5]مرتب 155'!BG13))*100) ->  | DB14: =IF('[5]مرتب 155'!BG13="","",TRUNC('[5]مرتب 155'!BG13)) ->  | DC14: =IF('[5]مرتب 155'!BH13="","",('[5]مرتب 155'!BH13-TRUNC('[5]مرتب 155'!BH13))*100) -> 0 | DD14: =IF('[5]مرتب 155'!BH13="","",TRUNC('[5]مرتب 155'!BH13)) -> 0 | DE14: =IF('[5]مرتب 155'!BI13="","",('[5]مرتب 155'!BI13-TRUNC('[5]مرتب 155'!BI13))*100) -> 50 | DF14: =IF('[5]مرتب 155'!BI13="","",TRUNC('[5]مرتب 155'!BI13)) -> 4 | DG14: =IF('[5]مرتب 155'!BJ13="","",('[5]مرتب 155'!BJ13-TRUNC('[5]مرتب 155'!BJ13))*100) -> 18 | DH14: =IF('[5]مرتب 155'!BJ13="","",TRUNC('[5]مرتب 155'!BJ13)) -> 64 | DI14: =IF('[5]مرتب 155'!BK13="","",('[5]مرتب 155'!BK13-TRUNC('[5]مرتب 155'!BK13))*100) -> 0 | DJ14: =IF('[5]مرتب 155'!BK13="","",TRUNC('[5]مرتب 155'!BK13)) -> 3 | DK14: =IF('[5]مرتب 155'!BL13="","",('[5]مرتب 155'!BL13-TRUNC('[5]مرتب 155'!BL13))*100) -> 0 | DL14: =IF('[5]مرتب 155'!BL13="","",TRUNC('[5]مرتب 155'!BL13)) -> 1 | DM14: =IF('[5]مرتب 155'!BM13="","",('[5]مرتب 155'!BM13-TRUNC('[5]مرتب 155'!BM13))*100) ->  | DN14: =IF('[5]مرتب 155'!BM13="","",TRUNC('[5]مرتب 155'!BM13)) ->  | DO14: =IF('[5]مرتب 155'!BN13="","",('[5]مرتب 155'!BN13-TRUNC('[5]مرتب 155'!BN13))*100) ->  | DP14: =IF('[5]مرتب 155'!BN13="","",TRUNC('[5]مرتب 155'!BN13)) ->  | DQ14: =IF('[5]مرتب 155'!BO13="","",('[5]مرتب 155'!BO13-TRUNC('[5]مرتب 155'!BO13))*100) ->  | DR14: =IF('[5]مرتب 155'!BO13="","",TRUNC('[5]مرتب 155'!BO13)) ->  | DS14: =IF('[5]مرتب 155'!BP13="","",('[5]مرتب 155'!BP13-TRUNC('[5]مرتب 155'!BP13))*100) ->  | DT14: =IF('[5]مرتب 155'!BP13="","",TRUNC('[5]مرتب 155'!BP13)) ->  | DU14: =IF('[5]مرتب 155'!BQ13="","",('[5]مرتب 155'!BQ13-TRUNC('[5]مرتب 155'!BQ13))*100) ->  | DV14: =IF('[5]مرتب 155'!BQ13="","",TRUNC('[5]مرتب 155'!BQ13)) ->  | DW14: =IF('[5]مرتب 155'!BR13="","",('[5]مرتب 155'!BR13-TRUNC('[5]مرتب 155'!BR13))*100) ->  | DX14: =IF('[5]مرتب 155'!BR13="","",TRUNC('[5]مرتب 155'!BR13)) ->  | DY14: =IF('[5]مرتب 155'!BS13="","",('[5]مرتب 155'!BS13-TRUNC('[5]مرتب 155'!BS13))*100) ->  | DZ14: =IF('[5]مرتب 155'!BS13="","",TRUNC('[5]مرتب 155'!BS13)) ->  | EA14: =IF('[5]مرتب 155'!BT13="","",('[5]مرتب 155'!BT13-TRUNC('[5]مرتب 155'!BT13))*100) -> 0 | EB14: =IF('[5]مرتب 155'!BT13="","",TRUNC('[5]مرتب 155'!BT13)) -> 0 | EC14: =IF('[5]مرتب 155'!BU13="","",('[5]مرتب 155'!BU13-TRUNC('[5]مرتب 155'!BU13))*100) ->  | ED14: =IF('[5]مرتب 155'!BU13="","",TRUNC('[5]مرتب 155'!BU13)) ->  | EE14: =IF('[5]مرتب 155'!BV13="","",('[5]مرتب 155'!BV13-TRUNC('[5]مرتب 155'!BV13))*100) ->  | EF14: =IF('[5]مرتب 155'!BV13="","",TRUNC('[5]مرتب 155'!BV13)) ->  | EG14: =IF('[5]مرتب 155'!BW13="","",('[5]مرتب 155'!BW13-TRUNC('[5]مرتب 155'!BW13))*100) -> 68 | EH14: =IF('[5]مرتب 155'!BW13="","",TRUNC('[5]مرتب 155'!BW13)) -> 72 | EI14: =IF('[5]مرتب 155'!BX13="","",('[5]مرتب 155'!BX13-TRUNC('[5]مرتب 155'!BX13))*100) -> 2 | EJ14: =IF('[5]مرتب 155'!BX13="","",TRUNC('[5]مرتب 155'!BX13)) -> 71 | EK14: =IF('[5]مرتب 155'!BY13="","",('[5]مرتب 155'!BY13-TRUNC('[5]مرتب 155'!BY13))*100) ->  | EL14: =IF('[5]مرتب 155'!BY13="","",TRUNC('[5]مرتب 155'!BY13)) ->  | EM14: =IF('[5]مرتب 155'!BZ13="","",('[5]مرتب 155'!BZ13-TRUNC('[5]مرتب 155'!BZ13))*100) ->  | EN14: =IF('[5]مرتب 155'!BZ13="","",TRUNC('[5]مرتب 155'!BZ13)) ->  | EO14: =IF('[5]مرتب 155'!CA13="","",('[5]مرتب 155'!CA13-TRUNC('[5]مرتب 155'!CA13))*100) ->  | EP14: =IF('[5]مرتب 155'!CA13="","",TRUNC('[5]مرتب 155'!CA13)) ->  | EQ14: =IF('[5]مرتب 155'!CB13="","",('[5]مرتب 155'!CB13-TRUNC('[5]مرتب 155'!CB13))*100) ->  | ER14: =IF('[5]مرتب 155'!CB13="","",TRUNC('[5]مرتب 155'!CB13)) ->  | ES14: =IF('[5]مرتب 155'!CC13="","",('[5]مرتب 155'!CC13-TRUNC('[5]مرتب 155'!CC13))*100) ->  | ET14: =IF('[5]مرتب 155'!CC13="","",TRUNC('[5]مرتب 155'!CC13)) ->  | EU14: =IF('[5]مرتب 155'!CD13="","",('[5]مرتب 155'!CD13-TRUNC('[5]مرتب 155'!CD13))*100) ->  | EV14: =IF('[5]مرتب 155'!CD13="","",TRUNC('[5]مرتب 155'!CD13)) ->  | EW14: =IF('[5]مرتب 155'!CE13="","",('[5]مرتب 155'!CE13-TRUNC('[5]مرتب 155'!CE13))*100) -> 2 | EX14: =IF('[5]مرتب 155'!CE13="","",TRUNC('[5]مرتب 155'!CE13)) -> 71 | EY14: =IF('[5]مرتب 155'!CF13="","",('[5]مرتب 155'!CF13-TRUNC('[5]مرتب 155'!CF13))*100) ->  | EZ14: =IF('[5]مرتب 155'!CF13="","",TRUNC('[5]مرتب 155'!CF13)) ->  | FA14: =IF('[5]مرتب 155'!CG13="","",('[5]مرتب 155'!CG13-TRUNC('[5]مرتب 155'!CG13))*100) ->  | FB14: =IF('[5]مرتب 155'!CG13="","",TRUNC('[5]مرتب 155'!CG13)) ->  | FC14: =IF('[5]مرتب 155'!CH13="","",('[5]مرتب 155'!CH13-TRUNC('[5]مرتب 155'!CH13))*100) ->  | FD14: =IF('[5]مرتب 155'!CH13="","",TRUNC('[5]مرتب 155'!CH13)) ->  | FE14: =IF('[5]مرتب 155'!CI13="","",('[5]مرتب 155'!CI13-TRUNC('[5]مرتب 155'!CI13))*100) -> 0 | FF14: =IF('[5]مرتب 155'!CI13="","",TRUNC('[5]مرتب 155'!CI13)) -> 0 | FG14: =IF('[5]مرتب 155'!CJ13="","",('[5]مرتب 155'!CJ13-TRUNC('[5]مرتب 155'!CJ13))*100) -> 58 | FH14: =IF('[5]مرتب 155'!CJ13="","",TRUNC('[5]مرتب 155'!CJ13)) -> 4 | FI14: =IF('[5]مرتب 155'!CK13="","",('[5]مرتب 155'!CK13-TRUNC('[5]مرتب 155'!CK13))*100) ->  | FJ14: =IF('[5]مرتب 155'!CK13="","",TRUNC('[5]مرتب 155'!CK13)) ->  | FM14: =IF('[5]مرتب 155'!CM13="","",('[5]مرتب 155'!CM13-TRUNC('[5]مرتب 155'!CM13))*100) ->  | FN14: =IF('[5]مرتب 155'!CM13="","",TRUNC('[5]مرتب 155'!CM13)) ->  | FO14: =IF('[5]مرتب 155'!CN13="","",('[5]مرتب 155'!CN13-TRUNC('[5]مرتب 155'!CN13))*100) ->  | FP14: =IF('[5]مرتب 155'!CN13="","",TRUNC('[5]مرتب 155'!CN13)) ->  | FQ14: =IF('[5]مرتب 155'!CO13="","",('[5]مرتب 155'!CO13-TRUNC('[5]مرتب 155'!CO13))*100) ->  | FR14: =IF('[5]مرتب 155'!CO13="","",TRUNC('[5]مرتب 155'!CO13)) ->  | FS14: =IF('[5]مرتب 155'!CP13="","",('[5]مرتب 155'!CP13-TRUNC('[5]مرتب 155'!CP13))*100) -> 38.79 | FT14: =IF('[5]مرتب 155'!CP13="","",TRUNC('[5]مرتب 155'!CP13)) -> 22 | FU14: =IF('[5]مرتب 155'!CQ13="","",('[5]مرتب 155'!CQ13-TRUNC('[5]مرتب 155'!CQ13))*100) -> 1.21 | FV14: =IF('[5]مرتب 155'!CQ13="","",TRUNC('[5]مرتب 155'!CQ13)) -> 0 | FW14: =IF('[5]مرتب 155'!CR13="","",('[5]مرتب 155'!CR13-TRUNC('[5]مرتب 155'!CR13))*100) -> 75 | FX14: =IF('[5]مرتب 155'!CR13="","",TRUNC('[5]مرتب 155'!CR13)) -> 927 | FY14: =IF('[5]مرتب 155'!CS13="","",('[5]مرتب 155'!CS13-TRUNC('[5]مرتب 155'!CS13))*100) -> 65 | FZ14: =IF('[5]مرتب 155'!CS13="","",TRUNC('[5]مرتب 155'!CS13)) -> 2705 | GA14: 7 | GB14: ='[5]مرتب 155'!CU13 -> البنك الأهلى | GC14: ='[5]مرتب 155'!CV13 ->  | GD14: 7 | GE14: 7 | GR14: 7 | GS14: 7 | GT14: =IF('[5]بيانات معلمين'!B13=0,"",'[5]بيانات معلمين'!B13) -> حسام مدنى مدنى السيد | GU14: =IF('[5]بيانات معلمين'!C13=0,"",'[5]بيانات معلمين'!C13) -> معلم | GV14: =IF('[5]بيانات معلمين'!D13=0,"",'[5]بيانات معلمين'!D13) -> الثالثة | GW14: 1 | GX14: 1 | GY14: دفع | GZ14: =IF(GT14="","",SUBTOTAL(3,GT$8:GT14)) -> 7 | HA14: =IF('[5]بيانات معلمين'!G13=0,"",IF($LF14=0,ROUND(($LE$5-$LE14)*'[5]بيانات معلمين'!G13/$LE$5,2),IF($LE14=0,ROUND($LF14*'[5]بيانات معلمين'!G13/$LE$5,2)))) -> 246 | HD14: 2679.86 | HE14: =IF('[5]بيانات معلمين'!K13=0,"",IF($LF14=0,ROUND(($LE$5-$LE14)*'[5]بيانات معلمين'!K13/$LE$5,2),IF($LE14=0,ROUND($LF14*'[5]بيانات معلمين'!K13/$LE$5,2)))) -> 916.8 | HF14: =IF('[5]بيانات معلمين'!L13=0,0,IF($LF14=0,ROUND(($LE$5-$LE14)*'[5]بيانات معلمين'!L13/$LE$5,2),IF($LE14=0,ROUND($LF14*'[5]بيانات معلمين'!L13/$LE$5,2)))) -> 14.4 | HG14: =IF('[5]بيانات معلمين'!M13=0,0,IF($LF14=0,ROUND(($LE$5-$LE14)*'[5]بيانات معلمين'!M13/$LE$5,2),IF($LE14=0,ROUND($LF14*'[5]بيانات معلمين'!M13/$LE$5,2)))) -> 0 | HH14: 14.4 | HI14: =IF('[5]بيانات معلمين'!O13=0,"",IF($LF14=0,ROUND(($LE$5-$LE14)*'[5]بيانات معلمين'!O13/$LE$5,2),IF($LE14=0,ROUND($LF14*'[5]بيانات معلمين'!O13/$LE$5,2)))) -> 24.12 | HJ14: =IF('[5]بيانات معلمين'!P13=0,"",IF($LF14=0,ROUND(($LE$5-$LE14)*'[5]بيانات معلمين'!P13/$LE$5,2),IF($LE14=0,ROUND($LF14*'[5]بيانات معلمين'!P13/$LE$5,2)))) -> 24.6 | HK14: =IF($ASK$3=1,"",IF('[5]بيانات معلمين'!Q13=0,"",IF($LF14=0,ROUND(($LE$5-$LE14)*'[5]بيانات معلمين'!Q13/$LE$5,2),IF($LE14=0,ROUND($LF14*'[5]بيانات معلمين'!Q13/$LE$5,2))))) -> 123 | HL14: =IF($ASI$5=1,"",IF('[5]بيانات معلمين'!R13=0,"",IF($LF14=0,ROUND(($LE$5-$LE14)*'[5]بيانات معلمين'!R13/$LE$5,2),IF($LE14=0,ROUND($LF14*'[5]بيانات معلمين'!R13/$LE$5,2))))) -> 246 | HM14: =IF($ASL$6=1,"",IF('[5]بيانات معلمين'!S13=0,"",IF($LF14=0,ROUND(($LE$5-$LE14)*'[5]بيانات معلمين'!S13/$LE$5,2),IF($LE14=0,ROUND($LF14*'[5]بيانات معلمين'!S13/$LE$5,2))))) -> 61.5 | HN14: =IF($ASI$6=1,"",IF('[5]بيانات معلمين'!T13=0,"",IF($LF14=0,ROUND(($LE$5-$LE14)*'[5]بيانات معلمين'!T13/$LE$5,2),IF($LE14=0,ROUND($LF14*'[5]بيانات معلمين'!T13/$LE$5,2))))) -> 184.5 | HO14: =IF($ASI$4=1,"",IF('[5]بيانات معلمين'!U13=0,"",IF($LF14=0,ROUND(($LE$5-$LE14)*'[5]بيانات معلمين'!U13/$LE$5,2),IF($LE14=0,ROUND($LF14*'[5]بيانات معلمين'!U13/$LE$5,2))))) -> 400 | HP14: =IF('[5]بيانات معلمين'!V13=0,"",IF($LF14=0,ROUND(($LE$5-$LE14)*'[5]بيانات معلمين'!V13/$LE$5,2),IF($LE14=0,ROUND($LF14*'[5]بيانات معلمين'!V13/$LE$5,2)))) -> 4 | HQ14: =IF('[5]بيانات معلمين'!W13=0,"",IF($LF14=0,ROUND(($LE$5-$LE14)*'[5]بيانات معلمين'!W13/$LE$5,2),IF($LE14=0,ROUND($LF14*'[5]بيانات معلمين'!W13/$LE$5,2)))) -> 4 | HR14: =IF($ASB$4=1,"",IF('[5]بيانات معلمين'!X13=0,"",IF($LF14=0,ROUND(($LE$5-$LE14)*'[5]بيانات معلمين'!X13/$LE$5,2),IF($LE14=0,ROUND($LF14*'[5]بيانات معلمين'!X13/$LE$5,2))))) -> 100 | HS14: =IF('[5]بيانات معلمين'!Y13=0,"",IF($LF14=0,ROUND(($LE$5-$LE14)*'[5]بيانات معلمين'!Y13/$LE$5,2),IF($LE14=0,ROUND($LF14*'[5]بيانات معلمين'!Y13/$LE$5,2)))) -> 40 | HT14: =IF('[5]بيانات معلمين'!Z13=0,"",IF($LF14=0,ROUND(($LE$5-$LE14)*'[5]بيانات معلمين'!Z13/$LE$5,2),IF($LE14=0,ROUND($LF14*'[5]بيانات معلمين'!Z13/$LE$5,2)))) ->  | HU14: =IF('[5]بيانات معلمين'!AA13=0,"",IF($LF14=0,ROUND(($LE$5-$LE14)*'[5]بيانات معلمين'!AA13/$LE$5,2),IF($LE14=0,ROUND($LF14*'[5]بيانات معلمين'!AA13/$LE$5,2)))) ->  | HV14: =IF('[5]بيانات معلمين'!AB13=0,"",IF($LF14=0,ROUND(($LE$5-$LE14)*'[5]بيانات معلمين'!AB13/$LE$5,2),IF($LE14=0,ROUND($LF14*'[5]بيانات معلمين'!AB13/$LE$5,2)))) ->  | HW14: =IF('[5]بيانات معلمين'!AC13=0,"",IF($LF14=0,ROUND(($LE$5-$LE14)*'[5]بيانات معلمين'!AC13/$LE$5,2),IF($LE14=0,ROUND($LF14*'[5]بيانات معلمين'!AC13/$LE$5,2)))) ->  | HX14: =IF('[5]بيانات معلمين'!AD13=0,"",IF($LF14=0,ROUND(($LE$5-$LE14)*'[5]بيانات معلمين'!AD13/$LE$5,2),IF($LE14=0,ROUND($LF14*'[5]بيانات معلمين'!AD13/$LE$5,2)))) -> 350 | HY14: =IF('[5]بيانات معلمين'!AE13=0,"",IF($LF14=0,ROUND(($LE$5-$LE14)*'[5]بيانات معلمين'!AE13/$LE$5,2),IF($LE14=0,ROUND($LF14*'[5]بيانات معلمين'!AE13/$LE$5,2)))) -> 186.94 | HZ14: =IF('[5]بيانات معلمين'!AF13=0,"",IF($LF14=0,ROUND(($LE$5-$LE14)*'[5]بيانات معلمين'!AF13/$LE$5,2),IF($LE14=0,ROUND($LF14*'[5]بيانات معلمين'!AF13/$LE$5,2)))) ->  | IA14: =IF('[5]بيانات معلمين'!AG13=0,"",IF($LF14=0,ROUND(($LE$5-$LE14)*'[5]بيانات معلمين'!AG13/$LE$5,2),IF($LE14=0,ROUND($LF14*'[5]بيانات معلمين'!AG13/$LE$5,2)))) ->  | IB14: =IF('[5]بيانات معلمين'!AH13=0,"",IF($LF14=0,ROUND(($LE$5-$LE14)*'[5]بيانات معلمين'!AH13/$LE$5,2),IF($LE14=0,ROUND($LF14*'[5]بيانات معلمين'!AH13/$LE$5,2)))) ->  | IC14: =IF('[5]بيانات معلمين'!AI13=0,"",IF($LF14=0,ROUND(($LE$5-$LE14)*'[5]بيانات معلمين'!AI13/$LE$5,2),IF($LE14=0,ROUND($LF14*'[5]بيانات معلمين'!AI13/$LE$5,2)))) ->  | ID14: =IF('[5]بيانات معلمين'!AJ13=0,"",IF($LF14=0,ROUND(($LE$5-$LE14)*'[5]بيانات معلمين'!AJ13/$LE$5,2),IF($LE14=0,ROUND($LF14*'[5]بيانات معلمين'!AJ13/$LE$5,2)))) ->  | IE14: =IF('[5]بيانات معلمين'!AK13=0,"",IF($LF14=0,ROUND(($LE$5-$LE14)*'[5]بيانات معلمين'!AK13/$LE$5,2),IF($LE14=0,ROUND($LF14*'[5]بيانات معلمين'!AK13/$LE$5,2)))) ->  | IF14: =IF('[5]بيانات معلمين'!AL13=0,"",IF($LF14=0,ROUND(($LE$5-$LE14)*'[5]بيانات معلمين'!AL13/$LE$5,2),IF($LE14=0,ROUND($LF14*'[5]بيانات معلمين'!AL13/$LE$5,2)))) ->  | IG14: =IF('[5]بيانات معلمين'!AM13=0,"",IF($LF14=0,ROUND(($LE$5-$LE14)*'[5]بيانات معلمين'!AM13/$LE$5,2),IF($LE14=0,ROUND($LF14*'[5]بيانات معلمين'!AM13/$LE$5,2)))) ->  | IH14: =IF('[5]بيانات معلمين'!AN13=0,"",IF($LF14=0,ROUND(($LE$5-$LE14)*'[5]بيانات معلمين'!AN13/$LE$5,2),IF($LE14=0,ROUND($LF14*'[5]بيانات معلمين'!AN13/$LE$5,2)))) -> 321.58 | II14: =IF('[5]بيانات معلمين'!AO13=0,"",IF($LF14=0,ROUND(($LE$5-$LE14)*'[5]بيانات معلمين'!AO13/$LE$5,2),IF($LE14=0,ROUND($LF14*'[5]بيانات معلمين'!AO13/$LE$5,2)))) -> 80.4 | IJ14: =IF('[5]بيانات معلمين'!AP13=0,"",IF($LF14=0,ROUND(($LE$5-$LE14)*'[5]بيانات معلمين'!AP13/$LE$5,2),IF($LE14=0,ROUND($LF14*'[5]بيانات معلمين'!AP13/$LE$5,2)))) -> 26.8 | IK14: =IF('[5]بيانات معلمين'!AQ13=0,"",IF($LF14=0,ROUND(($LE$5-$LE14)*'[5]بيانات معلمين'!AQ13/$LE$5,2),IF($LE14=0,ROUND($LF14*'[5]بيانات معلمين'!AQ13/$LE$5,2)))) -> 33.5 | IL14: 462.28 | IM14: 28 | IN14: 462 | IO14: =IF('[5]بيانات معلمين'!AR13=0,"",IF($LF14=0,ROUND(($LE$5-$LE14)*'[5]بيانات معلمين'!AR13/$LE$5,2),IF($LE14=0,ROUND($LF14*'[5]بيانات معلمين'!AR13/$LE$5,2)))) -> 10 | IP14: =IF($ASH$2=1,"",IF('[5]بيانات معلمين'!AS13=0,"",IF($LF14=0,ROUND(($LE$5-$LE14)*'[5]بيانات معلمين'!AS13/$LE$5,2),IF($LE14=0,ROUND($LF14*'[5]بيانات معلمين'!AS13/$LE$5,2))))) -> 481.26 | IQ14: =IF('[5]بيانات معلمين'!AT13=0,"",ROUND(SUM(HE14,HH14:IK14,IO14,IP14),2)) -> 3633.4 | IR14: =IF('[5]بيانات معلمين'!AU13=0,"",IF($LF14=0,ROUND(($LE$5-$LE14)*'[5]بيانات معلمين'!AU13/$LE$5,2),IF($LE14=0,ROUND($LF14*'[5]بيانات معلمين'!AU13/$LE$5,2)))) -> 321.58 | IS14: =IF('[5]بيانات معلمين'!AV13=0,"",'[5]بيانات معلمين'!AV13) -> 241.19 | IT14: =IF('[5]بيانات معلمين'!AW13=0,"",IF($LF14=0,ROUND(($LE$5-$LE14)*'[5]بيانات معلمين'!AW13/$LE$5,2),IF($LE14=0,ROUND($LF14*'[5]بيانات معلمين'!AW13/$LE$5,2)))) -> 26.8 | IU14: =IF('[5]بيانات معلمين'!AX13=0,"",IF($LF14=0,ROUND(($LE$5-$LE14)*'[5]بيانات معلمين'!AX13/$LE$5,2),IF($LE14=0,ROUND($LF14*'[5]بيانات معلمين'!AX13/$LE$5,2)))) -> 80.4 | IV14: =IF('[5]بيانات معلمين'!AY13=0,"",'[5]بيانات معلمين'!AY13) -> 26.8 | IW14: =IF('[5]بيانات معلمين'!AZ13=0,"",'[5]بيانات معلمين'!AZ13) -> 26.8 | IX14: =IF('[5]بيانات معلمين'!BA13=0,"",IF($LF14=0,ROUND(($LE$5-$LE14)*'[5]بيانات معلمين'!BA13/$LE$5,2),IF($LE14=0,ROUND($LF14*'[5]بيانات معلمين'!BA13/$LE$5,2)))) -> 33.5 | IY14: 757.07 | IZ14: =IF('[5]بيانات معلمين'!BC13=0,"",'[5]بيانات معلمين'!BC13) ->  | JA14: =IF('[5]بيانات معلمين'!BD13=0,"",'[5]بيانات معلمين'!BD13) ->  | JB14: =IF('[5]بيانات معلمين'!BE13=0,"",'[5]بيانات معلمين'!BE13) ->  | JC14: 0 | JD14: =IF('[5]بيانات معلمين'!BG13=0,"",'[5]بيانات معلمين'!BG13) -> 4.5 | JE14: =IF('[5]بيانات معلمين'!$BH13=0,0,'[5]بيانات معلمين'!$BH13)/('[5]بيانات معلمين'!$CY13) -> 64.18 | JF14: =IF('[5]بيانات معلمين'!BI13=0,"",'[5]بيانات معلمين'!BI13) -> 3 | JG14: =IF('[5]بيانات معلمين'!BJ13=0,"",'[5]بيانات معلمين'!BJ13) -> 1 | JH14: =IF('[5]بيانات معلمين'!BK13=0,"",'[5]بيانات معلمين'!BK13) ->  | JI14: =IF('[5]بيانات معلمين'!BL13=0,"",'[5]بيانات معلمين'!BL13) ->  | JJ14: =IF('[5]بيانات معلمين'!BM13=0,"",'[5]بيانات معلمين'!BM13) ->  | JK14: =IF('[5]بيانات معلمين'!BN13=0,"",'[5]بيانات معلمين'!BN13) ->  | JL14: =IF('[5]بيانات معلمين'!BO13=0,"",'[5]بيانات معلمين'!BO13) ->  | JM14: =IF('[5]بيانات معلمين'!BP13=0,"",'[5]بيانات معلمين'!BP13) ->  | JN14: =IF('[5]بيانات معلمين'!BQ13=0,"",'[5]بيانات معلمين'!BQ13) ->  | JO14: =IF('[5]بيانات معلمين'!$BR13=0,0,'[5]بيانات معلمين'!$BR13)/'[5]بيانات معلمين'!$CY13 -> 0 | JP14: =IF('[5]بيانات معلمين'!BS13=0,"",'[5]بيانات معلمين'!BS13) ->  | JQ14: =IF('[5]بيانات معلمين'!BT13=0,"",'[5]بيانات معلمين'!BT13) ->  | JR14: 72.68 | JS14: =IF('[5]بيانات معلمين'!BV13=0,"",'[5]بيانات معلمين'!BV13) -> 71.02 | JT14: =IF('[5]بيانات معلمين'!BW13=0,"",'[5]بيانات معلمين'!BW13) ->  | JU14: =IF('[5]بيانات معلمين'!BX13=0,"",'[5]بيانات معلمين'!BX13) ->  | JV14: =IF('[5]بيانات معلمين'!BY13=0,"",'[5]بيانات معلمين'!BY13) ->  | JW14: =IF('[5]بيانات معلمين'!BZ13=0,"",'[5]بيانات معلمين'!BZ13) ->  | JX14: =IF('[5]بيانات معلمين'!CA13=0,"",'[5]بيانات معلمين'!CA13) ->  | JY14: =IF('[5]بيانات معلمين'!CB13=0,"",'[5]بيانات معلمين'!CB13) ->  | JZ14: 71.02 | KA14: =IF('[5]بيانات معلمين'!CD13=0,"",'[5]بيانات معلمين'!CD13) ->  | KB14: =IF('[5]بيانات معلمين'!CE13=0,"",'[5]بيانات معلمين'!CE13) ->  | KC14: =IF('[5]بيانات معلمين'!CF13=0,"",'[5]بيانات معلمين'!CF13) ->  | KD14: =IF('[5]بيانات معلمين'!CG13=0,"",ROUND(IF(($HD14+($HE14*50%)-$HE14-(11%*$HD14)-$JC14-$JR14-$KE14-$HH14-HE14/47-2000)*0.025<=0,0,($HD14+($HE14*50%)-$HE14-(11%*$HD14)-$JC14-$JR14-$KE14-$HH14-HE14/47-2000)*0.025),2)) ->  | KE14: =IF('[5]بيانات معلمين'!CH13=0,"",'[5]بيانات معلمين'!CH13) -> 4.58 | KF14: =IF('[5]بيانات معلمين'!CI13=0,"",'[5]بيانات معلمين'!CI13) ->  | KG14: =IF('[5]بيانات معلمين'!CJ13=0,"",'[5]بيانات معلمين'!CJ13) ->  | KH14: =IF('[5]بيانات معلمين'!CK13=0,"",'[5]بيانات معلمين'!CK13) ->  | KI14: =IF('[5]بيانات معلمين'!CL13=0,"",'[5]بيانات معلمين'!CL13) ->  | KJ14: =IF('[5]بيانات معلمين'!CM13=0,"",'[5]بيانات معلمين'!CM13) ->  | KK14: =IF('[5]بيانات معلمين'!CN13=0,"",'[5]بيانات معلمين'!CN13) -> 22.3879 | KL14: 26.9679 | KM14: 96.79 | KN14: 26 | KO14: 0.0121 | KP14: 927.75 | KQ14: 2705.65 | KR14: =IF('[5]بيانات معلمين'!CR13=0,"",'[5]بيانات معلمين'!CR13) -> حسام مدنى مدنى السيد | KS14: =IF('[5]بيانات معلمين'!CS13=0,"",'[5]بيانات معلمين'!CS13) -> البنك الأهلى | KT14: =IF('[5]بيانات معلمين'!CT13=0,"",'[5]بيانات معلمين'!CT13) ->  | KU14: =IF('[5]بيانات معلمين'!CU13=0,"",'[5]بيانات معلمين'!CU13) -> 28803132701874 | KW14: 7 | KY14: 2705.6621 | LE14: ='[5]جزاءات 155'!F13 -> 0 | LF14: ='[5]جزاءات 155'!E13 -> 0 | AES14: =IF('[5]استقطاعات 155'!Q13="","",'[5]مرتب 155'!M13) ->  | AEU14: 7 | AEY14: ='[5]استقطاعات 155'!Q13 -> 0 | AFA14: 0 | AFB14: 0 | AFC14: -10000 | AFD14: 0 | AFE14: 0 | AFF14: -40000 | AFG14: 0 | AFH14: 0 | AFI14: 0 | AFJ14: 0 | AFK14: 0 | AFL14: 0 | AFM14: 0
A15: 1 | B15: 1 | C15: ='[5]مرتب 155'!C14 -> معلم اول أ | D15: ='[5]مرتب 155'!D14 -> الاولى | E15: 9 | F15: 1 | G15: ='[5]ادخال بيانات 155'!N14 -> أهلى | H15: =IF(B15="","",SUBTOTAL(3,$B$8:B15)) -> 8 | I15: =IF('[5]مرتب 155'!I14="","",('[5]مرتب 155'!I14-TRUNC('[5]مرتب 155'!I14))*100) -> 57 | J15: =IF('[5]مرتب 155'!I14="","",TRUNC('[5]مرتب 155'!I14)) -> 531 | K15: =IF('[5]مرتب 155'!J14="","",('[5]مرتب 155'!J14-TRUNC('[5]مرتب 155'!J14))*100) -> 0 | L15: =IF('[5]مرتب 155'!J14="","",TRUNC('[5]مرتب 155'!J14)) -> 84000 | M15: =IF('[5]مرتب 155'!K14="","",('[5]مرتب 155'!K14-TRUNC('[5]مرتب 155'!K14))*100) -> 86 | N15: =IF('[5]مرتب 155'!K14="","",TRUNC('[5]مرتب 155'!K14)) -> 38689 | O15: =IF('[5]مرتب 155'!L14="","",('[5]مرتب 155'!L14-TRUNC('[5]مرتب 155'!L14))*100) -> 54 | P15: =IF('[5]مرتب 155'!L14="","",TRUNC('[5]مرتب 155'!L14)) -> 3938 | Q15: =IF('[5]مرتب 155'!M14="","",('[5]مرتب 155'!M14-TRUNC('[5]مرتب 155'!M14))*100) -> 0 | R15: =IF('[5]مرتب 155'!M14="","",TRUNC('[5]مرتب 155'!M14)) -> 1500 | S15: =IF($ASM$3=1,"",IF('[5]مرتب 155'!P14="","",('[5]مرتب 155'!P14-TRUNC('[5]مرتب 155'!P14))*100)) -> 50 | T15: =IF($ASM$3=1,"",IF('[5]مرتب 155'!P14="","",TRUNC('[5]مرتب 155'!P14))) -> 28 | U15: =IF('[5]مرتب 155'!$Q14="","",('[5]مرتب 155'!$Q14-TRUNC('[5]مرتب 155'!$Q14))*100) -> 45 | V15: =IF('[5]مرتب 155'!$Q14="","",TRUNC('[5]مرتب 155'!$Q14)) -> 49 | W15: =IF('[5]مرتب 155'!$R14="","",('[5]مرتب 155'!$R14-TRUNC('[5]مرتب 155'!$R14))*100) -> 16 | X15: =IF('[5]مرتب 155'!$R14="","",TRUNC('[5]مرتب 155'!$R14)) -> 53 | Y15: =IF($ASK$3=1,"",IF('[5]مرتب 155'!S14="","",('[5]مرتب 155'!S14-TRUNC('[5]مرتب 155'!S14))*100)) -> 79 | Z15: =IF($ASK$3=1,"",IF('[5]مرتب 155'!S14="","",TRUNC('[5]مرتب 155'!S14))) -> 265 | AA15: =IF($ASI$5=1,"",IF('[5]مرتب 155'!T14="","",('[5]مرتب 155'!T14-TRUNC('[5]مرتب 155'!T14))*100)) -> 36 | AB15: =IF($ASI$5=1,"",IF('[5]مرتب 155'!T14="","",TRUNC('[5]مرتب 155'!T14))) -> 797 | AC15: =IF($ASL$6=1,"",IF('[5]مرتب 155'!U14="","",('[5]مرتب 155'!U14-TRUNC('[5]مرتب 155'!U14))*100)) -> 89 | AD15: =IF($ASL$6=1,"",IF('[5]مرتب 155'!U14="","",TRUNC('[5]مرتب 155'!U14))) -> 132 | AE15: =IF($ASI$6=1,"",IF('[5]مرتب 155'!V14="","",('[5]مرتب 155'!V14-TRUNC('[5]مرتب 155'!V14))*100)) -> 89 | AF15: =IF($ASI$6=1,"",IF('[5]مرتب 155'!V14="","",TRUNC('[5]مرتب 155'!V14))) -> 132 | AG15: =IF($ASI$4=1,"",IF('[5]مرتب 155'!W14="","",('[5]مرتب 155'!W14-TRUNC('[5]مرتب 155'!W14))*100)) -> 0 | AH15: =IF($ASI$4=1,"",IF('[5]مرتب 155'!W14="","",TRUNC('[5]مرتب 155'!W14))) -> 350 | AI15: =IF('[5]مرتب 155'!X14="","",('[5]مرتب 155'!X14-TRUNC('[5]مرتب 155'!X14))*100) -> 0 | AJ15: =IF('[5]مرتب 155'!X14="","",TRUNC('[5]مرتب 155'!X14)) -> 6 | AK15: =IF('[5]مرتب 155'!Y14="","",('[5]مرتب 155'!Y14-TRUNC('[5]مرتب 155'!Y14))*100) -> 0 | AL15: =IF('[5]مرتب 155'!Y14="","",TRUNC('[5]مرتب 155'!Y14)) -> 4 | AM15: =IF($ASB$4=1,"",IF('[5]مرتب 155'!Z14="","",('[5]مرتب 155'!Z14-TRUNC('[5]مرتب 155'!Z14))*100)) -> 0 | AN15: =IF($ASB$4=1,"",IF('[5]مرتب 155'!Z14="","",TRUNC('[5]مرتب 155'!Z14))) -> 100 | AO15: =IF('[5]مرتب 155'!AA14="","",('[5]مرتب 155'!AA14-TRUNC('[5]مرتب 155'!AA14))*100) -> 0 | AP15: =IF('[5]مرتب 155'!AA14="","",TRUNC('[5]مرتب 155'!AA14)) -> 40 | AQ15: =IF('[5]مرتب 155'!AB14="","",('[5]مرتب 155'!AB14-TRUNC('[5]مرتب 155'!AB14))*100) ->  | AR15: =IF('[5]مرتب 155'!AB14="","",TRUNC('[5]مرتب 155'!AB14)) ->  | AS15: =IF('[5]مرتب 155'!AC14="","",('[5]مرتب 155'!AC14-TRUNC('[5]مرتب 155'!AC14))*100) ->  | AT15: =IF('[5]مرتب 155'!AC14="","",TRUNC('[5]مرتب 155'!AC14)) ->  | AU15: =IF('[5]مرتب 155'!AD14="","",('[5]مرتب 155'!AD14-TRUNC('[5]مرتب 155'!AD14))*100) ->  | AV15: =IF('[5]مرتب 155'!AD14="","",TRUNC('[5]مرتب 155'!AD14)) ->  | AW15: =IF('[5]مرتب 155'!AE14="","",('[5]مرتب 155'!AE14-TRUNC('[5]مرتب 155'!AE14))*100) ->  | AX15: =IF('[5]مرتب 155'!AE14="","",TRUNC('[5]مرتب 155'!AE14)) ->  | AY15: =IF('[5]مرتب 155'!AF14="","",('[5]مرتب 155'!AF14-TRUNC('[5]مرتب 155'!AF14))*100) -> 0 | AZ15: =IF('[5]مرتب 155'!AF14="","",TRUNC('[5]مرتب 155'!AF14)) -> 450 | BA15: =IF('[5]مرتب 155'!AG14="","",('[5]مرتب 155'!AG14-TRUNC('[5]مرتب 155'!AG14))*100) ->  | BB15: =IF('[5]مرتب 155'!AG14="","",TRUNC('[5]مرتب 155'!AG14)) ->  | BC15: =IF('[5]مرتب 155'!AH14="","",('[5]مرتب 155'!AH14-TRUNC('[5]مرتب 155'!AH14))*100) ->  | BD15: =IF('[5]مرتب 155'!AH14="","",TRUNC('[5]مرتب 155'!AH14)) ->  | BE15: =IF('[5]مرتب 155'!AI14="","",('[5]مرتب 155'!AI14-TRUNC('[5]مرتب 155'!AI14))*100) ->  | BF15: =IF('[5]مرتب 155'!AI14="","",TRUNC('[5]مرتب 155'!AI14)) ->  | BG15: =IF('[5]مرتب 155'!AJ14="","",('[5]مرتب 155'!AJ14-TRUNC('[5]مرتب 155'!AJ14))*100) ->  | BH15: =IF('[5]مرتب 155'!AJ14="","",TRUNC('[5]مرتب 155'!AJ14)) ->  | BI15: =IF('[5]مرتب 155'!AK14="","",('[5]مرتب 155'!AK14-TRUNC('[5]مرتب 155'!AK14))*100) -> 50 | BJ15: =IF('[5]مرتب 155'!AK14="","",TRUNC('[5]مرتب 155'!AK14)) -> 28 | BK15: =IF('[5]مرتب 155'!AL14="","",('[5]مرتب 155'!AL14-TRUNC('[5]مرتب 155'!AL14))*100) ->  | BL15: =IF('[5]مرتب 155'!AL14="","",TRUNC('[5]مرتب 155'!AL14)) ->  | BM15: =IF('[5]مرتب 155'!AM14="","",('[5]مرتب 155'!AM14-TRUNC('[5]مرتب 155'!AM14))*100) ->  | BN15: =IF('[5]مرتب 155'!AM14="","",TRUNC('[5]مرتب 155'!AM14)) ->  | BO15: =IF('[5]مرتب 155'!AN14="","",('[5]مرتب 155'!AN14-TRUNC('[5]مرتب 155'!AN14))*100) ->  | BP15: =IF('[5]مرتب 155'!AN14="","",TRUNC('[5]مرتب 155'!AN14)) ->  | BQ15: =IF('[5]مرتب 155'!AO14="","",('[5]مرتب 155'!AO14-TRUNC('[5]مرتب 155'!AO14))*100) ->  | BR15: =IF('[5]مرتب 155'!AO14="","",TRUNC('[5]مرتب 155'!AO14)) ->  | BS15: =IF('[5]مرتب 155'!AP14="","",('[5]مرتب 155'!AP14-TRUNC('[5]مرتب 155'!AP14))*100) -> 62 | BT15: =IF('[5]مرتب 155'!AP14="","",TRUNC('[5]مرتب 155'!AP14)) -> 472 | BU15: =IF('[5]مرتب 155'!AQ14="","",('[5]مرتب 155'!AQ14-TRUNC('[5]مرتب 155'!AQ14))*100) -> 16 | BV15: =IF('[5]مرتب 155'!AQ14="","",TRUNC('[5]مرتب 155'!AQ14)) -> 118 | BW15: =IF('[5]مرتب 155'!AR14="","",('[5]مرتب 155'!AR14-TRUNC('[5]مرتب 155'!AR14))*100) -> 39 | BX15: =IF('[5]مرتب 155'!AR14="","",TRUNC('[5]مرتب 155'!AR14)) -> 39 | BY15: =IF('[5]مرتب 155'!AS14="","",('[5]مرتب 155'!AS14-TRUNC('[5]مرتب 155'!AS14))*100) -> 23 | BZ15: =IF('[5]مرتب 155'!AS14="","",TRUNC('[5]مرتب 155'!AS14)) -> 49 | CA15: =IF('[5]مرتب 155'!AT14="","",('[5]مرتب 155'!AT14-TRUNC('[5]مرتب 155'!AT14))*100) -> 0 | CB15: =IF('[5]مرتب 155'!AT14="","",TRUNC('[5]مرتب 155'!AT14)) -> 10 | CC15: =IF($ASH$2=1,"",IF('[5]مرتب 155'!AU14="","",('[5]مرتب 155'!AU14-TRUNC('[5]مرتب 155'!AU14))*100)) -> 26 | CD15: =IF($ASH$2=1,"",IF('[5]مرتب 155'!AU14="","",TRUNC('[5]مرتب 155'!AU14))) -> 481 | CE15: =IF('[5]مرتب 155'!AV14="","",('[5]مرتب 155'!AV14-TRUNC('[5]مرتب 155'!AV14))*100) -> 20 | CF15: =IF('[5]مرتب 155'!AV14="","",TRUNC('[5]مرتب 155'!AV14)) -> 5109 | CG15: =IF('[5]مرتب 155'!AW14="","",('[5]مرتب 155'!AW14-TRUNC('[5]مرتب 155'!AW14))*100) -> 62 | CH15: =IF('[5]مرتب 155'!AW14="","",TRUNC('[5]مرتب 155'!AW14)) -> 472 | CI15: =IF('[5]مرتب 155'!AX14="","",('[5]مرتب 155'!AX14-TRUNC('[5]مرتب 155'!AX14))*100) -> 47 | CJ15: =IF('[5]مرتب 155'!AX14="","",TRUNC('[5]مرتب 155'!AX14)) -> 354 | CK15: =IF('[5]مرتب 155'!AY14="","",('[5]مرتب 155'!AY14-TRUNC('[5]مرتب 155'!AY14))*100) -> 39 | CL15: =IF('[5]مرتب 155'!AY14="","",TRUNC('[5]مرتب 155'!AY14)) -> 39 | CM15: =IF('[5]مرتب 155'!BB14="","",('[5]مرتب 155'!BB14-TRUNC('[5]مرتب 155'!BB14))*100) -> 39 | CN15: =IF('[5]مرتب 155'!BB14="","",TRUNC('[5]مرتب 155'!BB14)) -> 39 | CO15: =IF('[5]مرتب 155'!AZ14="","",('[5]مرتب 155'!AZ14-TRUNC('[5]مرتب 155'!AZ14))*100) -> 16 | CP15: =IF('[5]مرتب 155'!AZ14="","",TRUNC('[5]مرتب 155'!AZ14)) -> 118 | CQ15: =IF('[5]مرتب 155'!BA14="","",('[5]مرتب 155'!BA14-TRUNC('[5]مرتب 155'!BA14))*100) -> 39 | CR15: =IF('[5]مرتب 155'!BA14="","",TRUNC('[5]مرتب 155'!BA14)) -> 39 | CS15: =IF('[5]مرتب 155'!BC14="","",('[5]مرتب 155'!BC14-TRUNC('[5]مرتب 155'!BC14))*100) -> 23 | CT15: =IF('[5]مرتب 155'!BC14="","",TRUNC('[5]مرتب 155'!BC14)) -> 49 | CU15: =IF('[5]مرتب 155'!BD14="","",('[5]مرتب 155'!BD14-TRUNC('[5]مرتب 155'!BD14))*100) -> 65 | CV15: =IF('[5]مرتب 155'!BD14="","",TRUNC('[5]مرتب 155'!BD14)) -> 1112 | CW15: =IF('[5]مرتب 155'!BE14="","",('[5]مرتب 155'!BE14-TRUNC('[5]مرتب 155'!BE14))*100) ->  | CX15: =IF('[5]مرتب 155'!BE14="","",TRUNC('[5]مرتب 155'!BE14)) ->  | CY15: =IF('[5]مرتب 155'!BF14="","",('[5]مرتب 155'!BF14-TRUNC('[5]مرتب 155'!BF14))*100) ->  | CZ15: =IF('[5]مرتب 155'!BF14="","",TRUNC('[5]مرتب 155'!BF14)) ->  | DA15: =IF('[5]مرتب 155'!BG14="","",('[5]مرتب 155'!BG14-TRUNC('[5]مرتب 155'!BG14))*100) ->  | DB15: =IF('[5]مرتب 155'!BG14="","",TRUNC('[5]مرتب 155'!BG14)) ->  | DC15: =IF('[5]مرتب 155'!BH14="","",('[5]مرتب 155'!BH14-TRUNC('[5]مرتب 155'!BH14))*100) -> 0 | DD15: =IF('[5]مرتب 155'!BH14="","",TRUNC('[5]مرتب 155'!BH14)) -> 0 | DE15: =IF('[5]مرتب 155'!BI14="","",('[5]مرتب 155'!BI14-TRUNC('[5]مرتب 155'!BI14))*100) -> 50 | DF15: =IF('[5]مرتب 155'!BI14="","",TRUNC('[5]مرتب 155'!BI14)) -> 4 | DG15: =IF('[5]مرتب 155'!BJ14="","",('[5]مرتب 155'!BJ14-TRUNC('[5]مرتب 155'!BJ14))*100) -> 0 | DH15: =IF('[5]مرتب 155'!BJ14="","",TRUNC('[5]مرتب 155'!BJ14)) -> 105 | DI15: =IF('[5]مرتب 155'!BK14="","",('[5]مرتب 155'!BK14-TRUNC('[5]مرتب 155'!BK14))*100) ->  | DJ15: =IF('[5]مرتب 155'!BK14="","",TRUNC('[5]مرتب 155'!BK14)) ->  | DK15: =IF('[5]مرتب 155'!BL14="","",('[5]مرتب 155'!BL14-TRUNC('[5]مرتب 155'!BL14))*100) -> 0 | DL15: =IF('[5]مرتب 155'!BL14="","",TRUNC('[5]مرتب 155'!BL14)) -> 1 | DM15: =IF('[5]مرتب 155'!BM14="","",('[5]مرتب 155'!BM14-TRUNC('[5]مرتب 155'!BM14))*100) ->  | DN15: =IF('[5]مرتب 155'!BM14="","",TRUNC('[5]مرتب 155'!BM14)) ->  | DO15: =IF('[5]مرتب 155'!BN14="","",('[5]مرتب 155'!BN14-TRUNC('[5]مرتب 155'!BN14))*100) ->  | DP15: =IF('[5]مرتب 155'!BN14="","",TRUNC('[5]مرتب 155'!BN14)) ->  | DQ15: =IF('[5]مرتب 155'!BO14="","",('[5]مرتب 155'!BO14-TRUNC('[5]مرتب 155'!BO14))*100) -> 10 | DR15: =IF('[5]مرتب 155'!BO14="","",TRUNC('[5]مرتب 155'!BO14)) -> 7 | DS15: =IF('[5]مرتب 155'!BP14="","",('[5]مرتب 155'!BP14-TRUNC('[5]مرتب 155'!BP14))*100) ->  | DT15: =IF('[5]مرتب 155'!BP14="","",TRUNC('[5]مرتب 155'!BP14)) ->  | DU15: =IF('[5]مرتب 155'!BQ14="","",('[5]مرتب 155'!BQ14-TRUNC('[5]مرتب 155'!BQ14))*100) ->  | DV15: =IF('[5]مرتب 155'!BQ14="","",TRUNC('[5]مرتب 155'!BQ14)) ->  | DW15: =IF('[5]مرتب 155'!BR14="","",('[5]مرتب 155'!BR14-TRUNC('[5]مرتب 155'!BR14))*100) ->  | DX15: =IF('[5]مرتب 155'!BR14="","",TRUNC('[5]مرتب 155'!BR14)) ->  | DY15: =IF('[5]مرتب 155'!BS14="","",('[5]مرتب 155'!BS14-TRUNC('[5]مرتب 155'!BS14))*100) ->  | DZ15: =IF('[5]مرتب 155'!BS14="","",TRUNC('[5]مرتب 155'!BS14)) ->  | EA15: =IF('[5]مرتب 155'!BT14="","",('[5]مرتب 155'!BT14-TRUNC('[5]مرتب 155'!BT14))*100) -> 0 | EB15: =IF('[5]مرتب 155'!BT14="","",TRUNC('[5]مرتب 155'!BT14)) -> 0 | EC15: =IF('[5]مرتب 155'!BU14="","",('[5]مرتب 155'!BU14-TRUNC('[5]مرتب 155'!BU14))*100) ->  | ED15: =IF('[5]مرتب 155'!BU14="","",TRUNC('[5]مرتب 155'!BU14)) ->  | EE15: =IF('[5]مرتب 155'!BV14="","",('[5]مرتب 155'!BV14-TRUNC('[5]مرتب 155'!BV14))*100) ->  | EF15: =IF('[5]مرتب 155'!BV14="","",TRUNC('[5]مرتب 155'!BV14)) ->  | EG15: =IF('[5]مرتب 155'!BW14="","",('[5]مرتب 155'!BW14-TRUNC('[5]مرتب 155'!BW14))*100) -> 60 | EH15: =IF('[5]مرتب 155'!BW14="","",TRUNC('[5]مرتب 155'!BW14)) -> 117 | EI15: =IF('[5]مرتب 155'!BX14="","",('[5]مرتب 155'!BX14-TRUNC('[5]مرتب 155'!BX14))*100) ->  | EJ15: =IF('[5]مرتب 155'!BX14="","",TRUNC('[5]مرتب 155'!BX14)) ->  | EK15: =IF('[5]مرتب 155'!BY14="","",('[5]مرتب 155'!BY14-TRUNC('[5]مرتب 155'!BY14))*100) ->  | EL15: =IF('[5]مرتب 155'!BY14="","",TRUNC('[5]مرتب 155'!BY14)) ->  | EM15: =IF('[5]مرتب 155'!BZ14="","",('[5]مرتب 155'!BZ14-TRUNC('[5]مرتب 155'!BZ14))*100) ->  | EN15: =IF('[5]مرتب 155'!BZ14="","",TRUNC('[5]مرتب 155'!BZ14)) ->  | EO15: =IF('[5]مرتب 155'!CA14="","",('[5]مرتب 155'!CA14-TRUNC('[5]مرتب 155'!CA14))*100) ->  | EP15: =IF('[5]مرتب 155'!CA14="","",TRUNC('[5]مرتب 155'!CA14)) ->  | EQ15: =IF('[5]مرتب 155'!CB14="","",('[5]مرتب 155'!CB14-TRUNC('[5]مرتب 155'!CB14))*100) ->  | ER15: =IF('[5]مرتب 155'!CB14="","",TRUNC('[5]مرتب 155'!CB14)) ->  | ES15: =IF('[5]مرتب 155'!CC14="","",('[5]مرتب 155'!CC14-TRUNC('[5]مرتب 155'!CC14))*100) ->  | ET15: =IF('[5]مرتب 155'!CC14="","",TRUNC('[5]مرتب 155'!CC14)) ->  | EU15: =IF('[5]مرتب 155'!CD14="","",('[5]مرتب 155'!CD14-TRUNC('[5]مرتب 155'!CD14))*100) ->  | EV15: =IF('[5]مرتب 155'!CD14="","",TRUNC('[5]مرتب 155'!CD14)) ->  | EW15: =IF('[5]مرتب 155'!CE14="","",('[5]مرتب 155'!CE14-TRUNC('[5]مرتب 155'!CE14))*100) -> 0 | EX15: =IF('[5]مرتب 155'!CE14="","",TRUNC('[5]مرتب 155'!CE14)) -> 0 | EY15: =IF('[5]مرتب 155'!CF14="","",('[5]مرتب 155'!CF14-TRUNC('[5]مرتب 155'!CF14))*100) ->  | EZ15: =IF('[5]مرتب 155'!CF14="","",TRUNC('[5]مرتب 155'!CF14)) ->  | FA15: =IF('[5]مرتب 155'!CG14="","",('[5]مرتب 155'!CG14-TRUNC('[5]مرتب 155'!CG14))*100) ->  | FB15: =IF('[5]مرتب 155'!CG14="","",TRUNC('[5]مرتب 155'!CG14)) ->  | FC15: =IF('[5]مرتب 155'!CH14="","",('[5]مرتب 155'!CH14-TRUNC('[5]مرتب 155'!CH14))*100) ->  | FD15: =IF('[5]مرتب 155'!CH14="","",TRUNC('[5]مرتب 155'!CH14)) ->  | FE15: =IF('[5]مرتب 155'!CI14="","",('[5]مرتب 155'!CI14-TRUNC('[5]مرتب 155'!CI14))*100) -> 24 | FF15: =IF('[5]مرتب 155'!CI14="","",TRUNC('[5]مرتب 155'!CI14)) -> 14 | FG15: =IF('[5]مرتب 155'!CJ14="","",('[5]مرتب 155'!CJ14-TRUNC('[5]مرتب 155'!CJ14))*100) -> 50 | FH15: =IF('[5]مرتب 155'!CJ14="","",TRUNC('[5]مرتب 155'!CJ14)) -> 7 | FI15: =IF('[5]مرتب 155'!CK14="","",('[5]مرتب 155'!CK14-TRUNC('[5]مرتب 155'!CK14))*100) ->  | FJ15: =IF('[5]مرتب 155'!CK14="","",TRUNC('[5]مرتب 155'!CK14)) ->  | FM15: =IF('[5]مرتب 155'!CM14="","",('[5]مرتب 155'!CM14-TRUNC('[5]مرتب 155'!CM14))*100) ->  | FN15: =IF('[5]مرتب 155'!CM14="","",TRUNC('[5]مرتب 155'!CM14)) ->  | FO15: =IF('[5]مرتب 155'!CN14="","",('[5]مرتب 155'!CN14-TRUNC('[5]مرتب 155'!CN14))*100) ->  | FP15: =IF('[5]مرتب 155'!CN14="","",TRUNC('[5]مرتب 155'!CN14)) ->  | FQ15: =IF('[5]مرتب 155'!CO14="","",('[5]مرتب 155'!CO14-TRUNC('[5]مرتب 155'!CO14))*100) ->  | FR15: =IF('[5]مرتب 155'!CO14="","",TRUNC('[5]مرتب 155'!CO14)) ->  | FS15: =IF('[5]مرتب 155'!CP14="","",('[5]مرتب 155'!CP14-TRUNC('[5]مرتب 155'!CP14))*100) -> 65.95 | FT15: =IF('[5]مرتب 155'!CP14="","",TRUNC('[5]مرتب 155'!CP14)) -> 33 | FU15: =IF('[5]مرتب 155'!CQ14="","",('[5]مرتب 155'!CQ14-TRUNC('[5]مرتب 155'!CQ14))*100) -> 0.04999999996 | FV15: =IF('[5]مرتب 155'!CQ14="","",TRUNC('[5]مرتب 155'!CQ14)) -> 0 | FW15: =IF('[5]مرتب 155'!CR14="","",('[5]مرتب 155'!CR14-TRUNC('[5]مرتب 155'!CR14))*100) -> 65 | FX15: =IF('[5]مرتب 155'!CR14="","",TRUNC('[5]مرتب 155'!CR14)) -> 1285 | FY15: =IF('[5]مرتب 155'!CS14="","",('[5]مرتب 155'!CS14-TRUNC('[5]مرتب 155'!CS14))*100) -> 55 | FZ15: =IF('[5]مرتب 155'!CS14="","",TRUNC('[5]مرتب 155'!CS14)) -> 3823 | GA15: 8 | GB15: ='[5]مرتب 155'!CU14 -> البنك الأهلى | GC15: ='[5]مرتب 155'!CV14 ->  | GD15: 8 | GE15: 8 | GR15: 8 | GS15: 8 | GT15: =IF('[5]بيانات معلمين'!B14=0,"",'[5]بيانات معلمين'!B14) -> حسين حافظ عبدالباري عبدالنعيم | GU15: =IF('[5]بيانات معلمين'!C14=0,"",'[5]بيانات معلمين'!C14) -> معلم اول أ | GV15: =IF('[5]بيانات معلمين'!D14=0,"",'[5]بيانات معلمين'!D14) -> الاولى | GW15: 1 | GX15: 1 | GY15: دفع | GZ15: =IF(GT15="","",SUBTOTAL(3,GT$8:GT15)) -> 8 | HA15: =IF('[5]بيانات معلمين'!G14=0,"",IF($LF15=0,ROUND(($LE$5-$LE15)*'[5]بيانات معلمين'!G14/$LE$5,2),IF($LE15=0,ROUND($LF15*'[5]بيانات معلمين'!G14/$LE$5,2)))) -> 531.57 | HD15: 3938.54 | HE15: =IF('[5]بيانات معلمين'!K14=0,"",IF($LF15=0,ROUND(($LE$5-$LE15)*'[5]بيانات معلمين'!K14/$LE$5,2),IF($LE15=0,ROUND($LF15*'[5]بيانات معلمين'!K14/$LE$5,2)))) -> 1500 | HF15: =IF('[5]بيانات معلمين'!L14=0,0,IF($LF15=0,ROUND(($LE$5-$LE15)*'[5]بيانات معلمين'!L14/$LE$5,2),IF($LE15=0,ROUND($LF15*'[5]بيانات معلمين'!L14/$LE$5,2)))) -> 28.5 | HG15: =IF('[5]بيانات معلمين'!M14=0,0,IF($LF15=0,ROUND(($LE$5-$LE15)*'[5]بيانات معلمين'!M14/$LE$5,2),IF($LE15=0,ROUND($LF15*'[5]بيانات معلمين'!M14/$LE$5,2)))) -> 0 | HH15: 28.5 | HI15: =IF('[5]بيانات معلمين'!O14=0,"",IF($LF15=0,ROUND(($LE$5-$LE15)*'[5]بيانات معلمين'!O14/$LE$5,2),IF($LE15=0,ROUND($LF15*'[5]بيانات معلمين'!O14/$LE$5,2)))) -> 49.45 | HJ15: =IF('[5]بيانات معلمين'!P14=0,"",IF($LF15=0,ROUND(($LE$5-$LE15)*'[5]بيانات معلمين'!P14/$LE$5,2),IF($LE15=0,ROUND($LF15*'[5]بيانات معلمين'!P14/$LE$5,2)))) -> 53.16 | HK15: =IF($ASK$3=1,"",IF('[5]بيانات معلمين'!Q14=0,"",IF($LF15=0,ROUND(($LE$5-$LE15)*'[5]بيانات معلمين'!Q14/$LE$5,2),IF($LE15=0,ROUND($LF15*'[5]بيانات معلمين'!Q14/$LE$5,2))))) -> 265.79 | HL15: =IF($ASI$5=1,"",IF('[5]بيانات معلمين'!R14=0,"",IF($LF15=0,ROUND(($LE$5-$LE15)*'[5]بيانات معلمين'!R14/$LE$5,2),IF($LE15=0,ROUND($LF15*'[5]بيانات معلمين'!R14/$LE$5,2))))) -> 797.36 | HM15: =IF($ASL$6=1,"",IF('[5]بيانات معلمين'!S14=0,"",IF($LF15=0,ROUND(($LE$5-$LE15)*'[5]بيانات معلمين'!S14/$LE$5,2),IF($LE15=0,ROUND($LF15*'[5]بيانات معلمين'!S14/$LE$5,2))))) -> 132.89 | HN15: =IF($ASI$6=1,"",IF('[5]بيانات معلمين'!T14=0,"",IF($LF15=0,ROUND(($LE$5-$LE15)*'[5]بيانات معلمين'!T14/$LE$5,2),IF($LE15=0,ROUND($LF15*'[5]بيانات معلمين'!T14/$LE$5,2))))) -> 132.89 | HO15: =IF($ASI$4=1,"",IF('[5]بيانات معلمين'!U14=0,"",IF($LF15=0,ROUND(($LE$5-$LE15)*'[5]بيانات معلمين'!U14/$LE$5,2),IF($LE15=0,ROUND($LF15*'[5]بيانات معلمين'!U14/$LE$5,2))))) -> 350 | HP15: =IF('[5]بيانات معلمين'!V14=0,"",IF($LF15=0,ROUND(($LE$5-$LE15)*'[5]بيانات معلمين'!V14/$LE$5,2),IF($LE15=0,ROUND($LF15*'[5]بيانات معلمين'!V14/$LE$5,2)))) -> 6 | HQ15: =IF('[5]بيانات معلمين'!W14=0,"",IF($LF15=0,ROUND(($LE$5-$LE15)*'[5]بيانات معلمين'!W14/$LE$5,2),IF($LE15=0,ROUND($LF15*'[5]بيانات معلمين'!W14/$LE$5,2)))) -> 4 | HR15: =IF($ASB$4=1,"",IF('[5]بيانات معلمين'!X14=0,"",IF($LF15=0,ROUND(($LE$5-$LE15)*'[5]بيانات معلمين'!X14/$LE$5,2),IF($LE15=0,ROUND($LF15*'[5]بيانات معلمين'!X14/$LE$5,2))))) -> 100 | HS15: =IF('[5]بيانات معلمين'!Y14=0,"",IF($LF15=0,ROUND(($LE$5-$LE15)*'[5]بيانات معلمين'!Y14/$LE$5,2),IF($LE15=0,ROUND($LF15*'[5]بيانات معلمين'!Y14/$LE$5,2)))) -> 40 | HT15: =IF('[5]بيانات معلمين'!Z14=0,"",IF($LF15=0,ROUND(($LE$5-$LE15)*'[5]بيانات معلمين'!Z14/$LE$5,2),IF($LE15=0,ROUND($LF15*'[5]بيانات معلمين'!Z14/$LE$5,2)))) ->  | HU15: =IF('[5]بيانات معلمين'!AA14=0,"",IF($LF15=0,ROUND(($LE$5-$LE15)*'[5]بيانات معلمين'!AA14/$LE$5,2),IF($LE15=0,ROUND($LF15*'[5]بيانات معلمين'!AA14/$LE$5,2)))) ->  | HV15: =IF('[5]بيانات معلمين'!AB14=0,"",IF($LF15=0,ROUND(($LE$5-$LE15)*'[5]بيانات معلمين'!AB14/$LE$5,2),IF($LE15=0,ROUND($LF15*'[5]بيانات معلمين'!AB14/$LE$5,2)))) ->  | HW15: =IF('[5]بيانات معلمين'!AC14=0,"",IF($LF15=0,ROUND(($LE$5-$LE15)*'[5]بيانات معلمين'!AC14/$LE$5,2),IF($LE15=0,ROUND($LF15*'[5]بيانات معلمين'!AC14/$LE$5,2)))) ->  | HX15: =IF('[5]بيانات معلمين'!AD14=0,"",IF($LF15=0,ROUND(($LE$5-$LE15)*'[5]بيانات معلمين'!AD14/$LE$5,2),IF($LE15=0,ROUND($LF15*'[5]بيانات معلمين'!AD14/$LE$5,2)))) -> 450 | HY15: =IF('[5]بيانات معلمين'!AE14=0,"",IF($LF15=0,ROUND(($LE$5-$LE15)*'[5]بيانات معلمين'!AE14/$LE$5,2),IF($LE15=0,ROUND($LF15*'[5]بيانات معلمين'!AE14/$LE$5,2)))) ->  | HZ15: =IF('[5]بيانات معلمين'!AF14=0,"",IF($LF15=0,ROUND(($LE$5-$LE15)*'[5]بيانات معلمين'!AF14/$LE$5,2),IF($LE15=0,ROUND($LF15*'[5]بيانات معلمين'!AF14/$LE$5,2)))) ->  | IA15: =IF('[5]بيانات معلمين'!AG14=0,"",IF($LF15=0,ROUND(($LE$5-$LE15)*'[5]بيانات معلمين'!AG14/$LE$5,2),IF($LE15=0,ROUND($LF15*'[5]بيانات معلمين'!AG14/$LE$5,2)))) ->  | IB15: =IF('[5]بيانات معلمين'!AH14=0,"",IF($LF15=0,ROUND(($LE$5-$LE15)*'[5]بيانات معلمين'!AH14/$LE$5,2),IF($LE15=0,ROUND($LF15*'[5]بيانات معلمين'!AH14/$LE$5,2)))) ->  | IC15: =IF('[5]بيانات معلمين'!AI14=0,"",IF($LF15=0,ROUND(($LE$5-$LE15)*'[5]بيانات معلمين'!AI14/$LE$5,2),IF($LE15=0,ROUND($LF15*'[5]بيانات معلمين'!AI14/$LE$5,2)))) -> 28.5 | ID15: =IF('[5]بيانات معلمين'!AJ14=0,"",IF($LF15=0,ROUND(($LE$5-$LE15)*'[5]بيانات معلمين'!AJ14/$LE$5,2),IF($LE15=0,ROUND($LF15*'[5]بيانات معلمين'!AJ14/$LE$5,2)))) ->  | IE15: =IF('[5]بيانات معلمين'!AK14=0,"",IF($LF15=0,ROUND(($LE$5-$LE15)*'[5]بيانات معلمين'!AK14/$LE$5,2),IF($LE15=0,ROUND($LF15*'[5]بيانات معلمين'!AK14/$LE$5,2)))) ->  | IF15: =IF('[5]بيانات معلمين'!AL14=0,"",IF($LF15=0,ROUND(($LE$5-$LE15)*'[5]بيانات معلمين'!AL14/$LE$5,2),IF($LE15=0,ROUND($LF15*'[5]بيانات معلمين'!AL14/$LE$5,2)))) ->  | IG15: =IF('[5]بيانات معلمين'!AM14=0,"",IF($LF15=0,ROUND(($LE$5-$LE15)*'[5]بيانات معلمين'!AM14/$LE$5,2),IF($LE15=0,ROUND($LF15*'[5]بيانات معلمين'!AM14/$LE$5,2)))) ->  | IH15: =IF('[5]بيانات معلمين'!AN14=0,"",IF($LF15=0,ROUND(($LE$5-$LE15)*'[5]بيانات معلمين'!AN14/$LE$5,2),IF($LE15=0,ROUND($LF15*'[5]بيانات معلمين'!AN14/$LE$5,2)))) -> 472.62 | II15: =IF('[5]بيانات معلمين'!AO14=0,"",IF($LF15=0,ROUND(($LE$5-$LE15)*'[5]بيانات معلمين'!AO14/$LE$5,2),IF($LE15=0,ROUND($LF15*'[5]بيانات معلمين'!AO14/$LE$5,2)))) -> 118.16 | IJ15: =IF('[5]بيانات معلمين'!AP14=0,"",IF($LF15=0,ROUND(($LE$5-$LE15)*'[5]بيانات معلمين'!AP14/$LE$5,2),IF($LE15=0,ROUND($LF15*'[5]بيانات معلمين'!AP14/$LE$5,2)))) -> 39.39 | IK15: =IF('[5]بيانات معلمين'!AQ14=0,"",IF($LF15=0,ROUND(($LE$5-$LE15)*'[5]بيانات معلمين'!AQ14/$LE$5,2),IF($LE15=0,ROUND($LF15*'[5]بيانات معلمين'!AQ14/$LE$5,2)))) -> 49.23 | IL15: 679.4 | IM15: 40 | IN15: 679 | IO15: =IF('[5]بيانات معلمين'!AR14=0,"",IF($LF15=0,ROUND(($LE$5-$LE15)*'[5]بيانات معلمين'!AR14/$LE$5,2),IF($LE15=0,ROUND($LF15*'[5]بيانات معلمين'!AR14/$LE$5,2)))) -> 10 | IP15: =IF($ASH$2=1,"",IF('[5]بيانات معلمين'!AS14=0,"",IF($LF15=0,ROUND(($LE$5-$LE15)*'[5]بيانات معلمين'!AS14/$LE$5,2),IF($LE15=0,ROUND($LF15*'[5]بيانات معلمين'!AS14/$LE$5,2))))) -> 481.26 | IQ15: =IF('[5]بيانات معلمين'!AT14=0,"",ROUND(SUM(HE15,HH15:IK15,IO15,IP15),2)) -> 5109.2 | IR15: =IF('[5]بيانات معلمين'!AU14=0,"",IF($LF15=0,ROUND(($LE$5-$LE15)*'[5]بيانات معلمين'!AU14/$LE$5,2),IF($LE15=0,ROUND($LF15*'[5]بيانات معلمين'!AU14/$LE$5,2)))) -> 472.62 | IS15: =IF('[5]بيانات معلمين'!AV14=0,"",'[5]بيانات معلمين'!AV14) -> 354.47 | IT15: =IF('[5]بيانات معلمين'!AW14=0,"",IF($LF15=0,ROUND(($LE$5-$LE15)*'[5]بيانات معلمين'!AW14/$LE$5,2),IF($LE15=0,ROUND($LF15*'[5]بيانات معلمين'!AW14/$LE$5,2)))) -> 39.39 | IU15: =IF('[5]بيانات معلمين'!AX14=0,"",IF($LF15=0,ROUND(($LE$5-$LE15)*'[5]بيانات معلمين'!AX14/$LE$5,2),IF($LE15=0,ROUND($LF15*'[5]بيانات معلمين'!AX14/$LE$5,2)))) -> 118.16 | IV15: =IF('[5]بيانات معلمين'!AY14=0,"",'[5]بيانات معلمين'!AY14) -> 39.39 | IW15: =IF('[5]بيانات معلمين'!AZ14=0,"",'[5]بيانات معلمين'!AZ14) -> 39.39 | IX15: =IF('[5]بيانات معلمين'!BA14=0,"",IF($LF15=0,ROUND(($LE$5-$LE15)*'[5]بيانات معلمين'!BA14/$LE$5,2),IF($LE15=0,ROUND($LF15*'[5]بيانات معلمين'!BA14/$LE$5,2)))) -> 49.23 | IY15: 1112.65 | IZ15: =IF('[5]بيانات معلمين'!BC14=0,"",'[5]بيانات معلمين'!BC14) ->  | JA15: =IF('[5]بيانات معلمين'!BD14=0,"",'[5]بيانات معلمين'!BD14) ->  | JB15: =IF('[5]بيانات معلمين'!BE14=0,"",'[5]بيانات معلمين'!BE14) ->  | JC15: 0 | JD15: =IF('[5]بيانات معلمين'!BG14=0,"",'[5]بيانات معلمين'!BG14) -> 4.5 | JE15: =IF('[5]بيانات معلمين'!$BH14=0,0,'[5]بيانات معلمين'!$BH14)/('[5]بيانات معلمين'!$CY14) -> 105 | JF15: =IF('[5]بيانات معلمين'!BI14=0,"",'[5]بيانات معلمين'!BI14) ->  | JG15: =IF('[5]بيانات معلمين'!BJ14=0,"",'[5]بيانات معلمين'!BJ14) -> 1 | JH15: =IF('[5]بيانات معلمين'!BK14=0,"",'[5]بيانات معلمين'!BK14) ->  | JI15: =IF('[5]بيانات معلمين'!BL14=0,"",'[5]بيانات معلمين'!BL14) ->  | JJ15: =IF('[5]بيانات معلمين'!BM14=0,"",'[5]بيانات معلمين'!BM14) -> 7.1 | JK15: =IF('[5]بيانات معلمين'!BN14=0,"",'[5]بيانات معلمين'!BN14) ->  | JL15: =IF('[5]بيانات معلمين'!BO14=0,"",'[5]بيانات معلمين'!BO14) ->  | JM15: =IF('[5]بيانات معلمين'!BP14=0,"",'[5]بيانات معلمين'!BP14) ->  | JN15: =IF('[5]بيانات معلمين'!BQ14=0,"",'[5]بيانات معلمين'!BQ14) ->  | JO15: =IF('[5]بيانات معلمين'!$BR14=0,0,'[5]بيانات معلمين'!$BR14)/'[5]بيانات معلمين'!$CY14 -> 0 | JP15: =IF('[5]بيانات معلمين'!BS14=0,"",'[5]بيانات معلمين'!BS14) ->  | JQ15: =IF('[5]بيانات معلمين'!BT14=0,"",'[5]بيانات معلمين'!BT14) ->  | JR15: 117.6 | JS15: =IF('[5]بيانات معلمين'!BV14=0,"",'[5]بيانات معلمين'!BV14) ->  | JT15: =IF('[5]بيانات معلمين'!BW14=0,"",'[5]بيانات معلمين'!BW14) ->  | JU15: =IF('[5]بيانات معلمين'!BX14=0,"",'[5]بيانات معلمين'!BX14) ->  | JV15: =IF('[5]بيانات معلمين'!BY14=0,"",'[5]بيانات معلمين'!BY14) ->  | JW15: =IF('[5]بيانات معلمين'!BZ14=0,"",'[5]بيانات معلمين'!BZ14) ->  | JX15: =IF('[5]بيانات معلمين'!CA14=0,"",'[5]بيانات معلمين'!CA14) ->  | JY15: =IF('[5]بيانات معلمين'!CB14=0,"",'[5]بيانات معلمين'!CB14) ->  | JZ15: 0 | KA15: =IF('[5]بيانات معلمين'!CD14=0,"",'[5]بيانات معلمين'!CD14) ->  | KB15: =IF('[5]بيانات معلمين'!CE14=0,"",'[5]بيانات معلمين'!CE14) ->  | KC15: =IF('[5]بيانات معلمين'!CF14=0,"",'[5]بيانات معلمين'!CF14) ->  | KD15: =IF('[5]بيانات معلمين'!CG14=0,"",ROUND(IF(($HD15+($HE15*50%)-$HE15-(11%*$HD15)-$JC15-$JR15-$KE15-$HH15-HE15/47-2000)*0.025<=0,0,($HD15+($HE15*50%)-$HE15-(11%*$HD15)-$JC15-$JR15-$KE15-$HH15-HE15/47-2000)*0.025),2)) -> 14.24 | KE15: =IF('[5]بيانات معلمين'!CH14=0,"",'[5]بيانات معلمين'!CH14) -> 7.5 | KF15: =IF('[5]بيانات معلمين'!CI14=0,"",'[5]بيانات معلمين'!CI14) ->  | KG15: =IF('[5]بيانات معلمين'!CJ14=0,"",'[5]بيانات معلمين'!CJ14) ->  | KH15: =IF('[5]بيانات معلمين'!CK14=0,"",'[5]بيانات معلمين'!CK14) ->  | KI15: =IF('[5]بيانات معلمين'!CL14=0,"",'[5]بيانات معلمين'!CL14) ->  | KJ15: =IF('[5]بيانات معلمين'!CM14=0,"",'[5]بيانات معلمين'!CM14) ->  | KK15: =IF('[5]بيانات معلمين'!CN14=0,"",'[5]بيانات معلمين'!CN14) -> 33.6595 | KL15: 55.3995 | KM15: 39.95 | KN15: 55 | KO15: 0.0004999999996 | KP15: 1285.65 | KQ15: 3823.55 | KR15: =IF('[5]بيانات معلمين'!CR14=0,"",'[5]بيانات معلمين'!CR14) -> حسين حافظ عبدالباري عبدالنعيم | KS15: =IF('[5]بيانات معلمين'!CS14=0,"",'[5]بيانات معلمين'!CS14) -> البنك الأهلى | KT15: =IF('[5]بيانات معلمين'!CT14=0,"",'[5]بيانات معلمين'!CT14) ->  | KU15: =IF('[5]بيانات معلمين'!CU14=0,"",'[5]بيانات معلمين'!CU14) -> 26906252700274 | KW15: 8 | KY15: 3823.5505 | LE15: ='[5]جزاءات 155'!F14 -> 0 | LF15: ='[5]جزاءات 155'!E14 -> 0 | AES15: =IF('[5]استقطاعات 155'!Q14="","",'[5]مرتب 155'!M14) ->  | AEU15: 8 | AEY15: ='[5]استقطاعات 155'!Q14 -> 0 | AFA15: 0 | AFB15: 0 | AFC15: -10000 | AFD15: 0 | AFE15: 0 | AFF15: -40000 | AFG15: 0 | AFH15: 0 | AFI15: 0 | AFJ15: 0 | AFK15: 0 | AFL15: 0 | AFM15: 0
A16: 1 | B16: 1 | C16: ='[5]مرتب 155'!C15 -> معلم | D16: ='[5]مرتب 155'!D15 -> الثالثة | E16: 10 | F16: 1 | G16: ='[5]ادخال بيانات 155'!N15 -> أهلى | H16: =IF(B16="","",SUBTOTAL(3,$B$8:B16)) -> 9 | I16: =IF('[5]مرتب 155'!I15="","",('[5]مرتب 155'!I15-TRUNC('[5]مرتب 155'!I15))*100) -> 80 | J16: =IF('[5]مرتب 155'!I15="","",TRUNC('[5]مرتب 155'!I15)) -> 258 | K16: =IF('[5]مرتب 155'!J15="","",('[5]مرتب 155'!J15-TRUNC('[5]مرتب 155'!J15))*100) -> 0 | L16: =IF('[5]مرتب 155'!J15="","",TRUNC('[5]مرتب 155'!J15)) -> 84000 | M16: =IF('[5]مرتب 155'!K15="","",('[5]مرتب 155'!K15-TRUNC('[5]مرتب 155'!K15))*100) -> 23 | N16: =IF('[5]مرتب 155'!K15="","",TRUNC('[5]مرتب 155'!K15)) -> 25783 | O16: =IF('[5]مرتب 155'!L15="","",('[5]مرتب 155'!L15-TRUNC('[5]مرتب 155'!L15))*100) -> 34 | P16: =IF('[5]مرتب 155'!L15="","",TRUNC('[5]مرتب 155'!L15)) -> 2655 | Q16: =IF('[5]مرتب 155'!M15="","",('[5]مرتب 155'!M15-TRUNC('[5]مرتب 155'!M15))*100) -> 96 | R16: =IF('[5]مرتب 155'!M15="","",TRUNC('[5]مرتب 155'!M15)) -> 943 | S16: =IF($ASM$3=1,"",IF('[5]مرتب 155'!P15="","",('[5]مرتب 155'!P15-TRUNC('[5]مرتب 155'!P15))*100)) -> 40 | T16: =IF($ASM$3=1,"",IF('[5]مرتب 155'!P15="","",TRUNC('[5]مرتب 155'!P15))) -> 14 | U16: =IF('[5]مرتب 155'!$Q15="","",('[5]مرتب 155'!$Q15-TRUNC('[5]مرتب 155'!$Q15))*100) -> 0 | V16: =IF('[5]مرتب 155'!$Q15="","",TRUNC('[5]مرتب 155'!$Q15)) -> 27 | W16: =IF('[5]مرتب 155'!$R15="","",('[5]مرتب 155'!$R15-TRUNC('[5]مرتب 155'!$R15))*100) -> 88 | X16: =IF('[5]مرتب 155'!$R15="","",TRUNC('[5]مرتب 155'!$R15)) -> 29 | Y16: =IF($ASK$3=1,"",IF('[5]مرتب 155'!S15="","",('[5]مرتب 155'!S15-TRUNC('[5]مرتب 155'!S15))*100)) -> 40 | Z16: =IF($ASK$3=1,"",IF('[5]مرتب 155'!S15="","",TRUNC('[5]مرتب 155'!S15))) -> 129 | AA16: =IF($ASI$5=1,"",IF('[5]مرتب 155'!T15="","",('[5]مرتب 155'!T15-TRUNC('[5]مرتب 155'!T15))*100)) -> 80 | AB16: =IF($ASI$5=1,"",IF('[5]مرتب 155'!T15="","",TRUNC('[5]مرتب 155'!T15))) -> 258 | AC16: =IF($ASL$6=1,"",IF('[5]مرتب 155'!U15="","",('[5]مرتب 155'!U15-TRUNC('[5]مرتب 155'!U15))*100)) -> 70 | AD16: =IF($ASL$6=1,"",IF('[5]مرتب 155'!U15="","",TRUNC('[5]مرتب 155'!U15))) -> 64 | AE16: =IF($ASI$6=1,"",IF('[5]مرتب 155'!V15="","",('[5]مرتب 155'!V15-TRUNC('[5]مرتب 155'!V15))*100)) -> 10 | AF16: =IF($ASI$6=1,"",IF('[5]مرتب 155'!V15="","",TRUNC('[5]مرتب 155'!V15))) -> 194 | AG16: =IF($ASI$4=1,"",IF('[5]مرتب 155'!W15="","",('[5]مرتب 155'!W15-TRUNC('[5]مرتب 155'!W15))*100)) -> 0 | AH16: =IF($ASI$4=1,"",IF('[5]مرتب 155'!W15="","",TRUNC('[5]مرتب 155'!W15))) -> 400 | AI16: =IF('[5]مرتب 155'!X15="","",('[5]مرتب 155'!X15-TRUNC('[5]مرتب 155'!X15))*100) -> 0 | AJ16: =IF('[5]مرتب 155'!X15="","",TRUNC('[5]مرتب 155'!X15)) -> 2 | AK16: =IF('[5]مرتب 155'!Y15="","",('[5]مرتب 155'!Y15-TRUNC('[5]مرتب 155'!Y15))*100) -> 0 | AL16: =IF('[5]مرتب 155'!Y15="","",TRUNC('[5]مرتب 155'!Y15)) -> 4 | AM16: =IF($ASB$4=1,"",IF('[5]مرتب 155'!Z15="","",('[5]مرتب 155'!Z15-TRUNC('[5]مرتب 155'!Z15))*100)) -> 0 | AN16: =IF($ASB$4=1,"",IF('[5]مرتب 155'!Z15="","",TRUNC('[5]مرتب 155'!Z15))) -> 100 | AO16: =IF('[5]مرتب 155'!AA15="","",('[5]مرتب 155'!AA15-TRUNC('[5]مرتب 155'!AA15))*100) -> 0 | AP16: =IF('[5]مرتب 155'!AA15="","",TRUNC('[5]مرتب 155'!AA15)) -> 40 | AQ16: =IF('[5]مرتب 155'!AB15="","",('[5]مرتب 155'!AB15-TRUNC('[5]مرتب 155'!AB15))*100) ->  | AR16: =IF('[5]مرتب 155'!AB15="","",TRUNC('[5]مرتب 155'!AB15)) ->  | AS16: =IF('[5]مرتب 155'!AC15="","",('[5]مرتب 155'!AC15-TRUNC('[5]مرتب 155'!AC15))*100) ->  | AT16: =IF('[5]مرتب 155'!AC15="","",TRUNC('[5]مرتب 155'!AC15)) ->  | AU16: =IF('[5]مرتب 155'!AD15="","",('[5]مرتب 155'!AD15-TRUNC('[5]مرتب 155'!AD15))*100) ->  | AV16: =IF('[5]مرتب 155'!AD15="","",TRUNC('[5]مرتب 155'!AD15)) ->  | AW16: =IF('[5]مرتب 155'!AE15="","",('[5]مرتب 155'!AE15-TRUNC('[5]مرتب 155'!AE15))*100) ->  | AX16: =IF('[5]مرتب 155'!AE15="","",TRUNC('[5]مرتب 155'!AE15)) ->  | AY16: =IF('[5]مرتب 155'!AF15="","",('[5]مرتب 155'!AF15-TRUNC('[5]مرتب 155'!AF15))*100) -> 0 | AZ16: =IF('[5]مرتب 155'!AF15="","",TRUNC('[5]مرتب 155'!AF15)) -> 350 | BA16: =IF('[5]مرتب 155'!AG15="","",('[5]مرتب 155'!AG15-TRUNC('[5]مرتب 155'!AG15))*100) -> 10 | BB16: =IF('[5]مرتب 155'!AG15="","",TRUNC('[5]مرتب 155'!AG15)) -> 97 | BC16: =IF('[5]مرتب 155'!AH15="","",('[5]مرتب 155'!AH15-TRUNC('[5]مرتب 155'!AH15))*100) ->  | BD16: =IF('[5]مرتب 155'!AH15="","",TRUNC('[5]مرتب 155'!AH15)) ->  | BE16: =IF('[5]مرتب 155'!AI15="","",('[5]مرتب 155'!AI15-TRUNC('[5]مرتب 155'!AI15))*100) ->  | BF16: =IF('[5]مرتب 155'!AI15="","",TRUNC('[5]مرتب 155'!AI15)) ->  | BG16: =IF('[5]مرتب 155'!AJ15="","",('[5]مرتب 155'!AJ15-TRUNC('[5]مرتب 155'!AJ15))*100) ->  | BH16: =IF('[5]مرتب 155'!AJ15="","",TRUNC('[5]مرتب 155'!AJ15)) ->  | BI16: =IF('[5]مرتب 155'!AK15="","",('[5]مرتب 155'!AK15-TRUNC('[5]مرتب 155'!AK15))*100) ->  | BJ16: =IF('[5]مرتب 155'!AK15="","",TRUNC('[5]مرتب 155'!AK15)) ->  | BK16: =IF('[5]مرتب 155'!AL15="","",('[5]مرتب 155'!AL15-TRUNC('[5]مرتب 155'!AL15))*100) ->  | BL16: =IF('[5]مرتب 155'!AL15="","",TRUNC('[5]مرتب 155'!AL15)) ->  | BM16: =IF('[5]مرتب 155'!AM15="","",('[5]مرتب 155'!AM15-TRUNC('[5]مرتب 155'!AM15))*100) ->  | BN16: =IF('[5]مرتب 155'!AM15="","",TRUNC('[5]مرتب 155'!AM15)) ->  | BO16: =IF('[5]مرتب 155'!AN15="","",('[5]مرتب 155'!AN15-TRUNC('[5]مرتب 155'!AN15))*100) ->  | BP16: =IF('[5]مرتب 155'!AN15="","",TRUNC('[5]مرتب 155'!AN15)) ->  | BQ16: =IF('[5]مرتب 155'!AO15="","",('[5]مرتب 155'!AO15-TRUNC('[5]مرتب 155'!AO15))*100) ->  | BR16: =IF('[5]مرتب 155'!AO15="","",TRUNC('[5]مرتب 155'!AO15)) ->  | BS16: =IF('[5]مرتب 155'!AP15="","",('[5]مرتب 155'!AP15-TRUNC('[5]مرتب 155'!AP15))*100) -> 64 | BT16: =IF('[5]مرتب 155'!AP15="","",TRUNC('[5]مرتب 155'!AP15)) -> 318 | BU16: =IF('[5]مرتب 155'!AQ15="","",('[5]مرتب 155'!AQ15-TRUNC('[5]مرتب 155'!AQ15))*100) -> 66 | BV16: =IF('[5]مرتب 155'!AQ15="","",TRUNC('[5]مرتب 155'!AQ15)) -> 79 | BW16: =IF('[5]مرتب 155'!AR15="","",('[5]مرتب 155'!AR15-TRUNC('[5]مرتب 155'!AR15))*100) -> 55 | BX16: =IF('[5]مرتب 155'!AR15="","",TRUNC('[5]مرتب 155'!AR15)) -> 26 | BY16: =IF('[5]مرتب 155'!AS15="","",('[5]مرتب 155'!AS15-TRUNC('[5]مرتب 155'!AS15))*100) -> 19 | BZ16: =IF('[5]مرتب 155'!AS15="","",TRUNC('[5]مرتب 155'!AS15)) -> 33 | CA16: =IF('[5]مرتب 155'!AT15="","",('[5]مرتب 155'!AT15-TRUNC('[5]مرتب 155'!AT15))*100) -> 0 | CB16: =IF('[5]مرتب 155'!AT15="","",TRUNC('[5]مرتب 155'!AT15)) -> 10 | CC16: =IF($ASH$2=1,"",IF('[5]مرتب 155'!AU15="","",('[5]مرتب 155'!AU15-TRUNC('[5]مرتب 155'!AU15))*100)) -> 26 | CD16: =IF($ASH$2=1,"",IF('[5]مرتب 155'!AU15="","",TRUNC('[5]مرتب 155'!AU15))) -> 481 | CE16: =IF('[5]مرتب 155'!AV15="","",('[5]مرتب 155'!AV15-TRUNC('[5]مرتب 155'!AV15))*100) -> 64 | CF16: =IF('[5]مرتب 155'!AV15="","",TRUNC('[5]مرتب 155'!AV15)) -> 3604 | CG16: =IF('[5]مرتب 155'!AW15="","",('[5]مرتب 155'!AW15-TRUNC('[5]مرتب 155'!AW15))*100) -> 64 | CH16: =IF('[5]مرتب 155'!AW15="","",TRUNC('[5]مرتب 155'!AW15)) -> 318 | CI16: =IF('[5]مرتب 155'!AX15="","",('[5]مرتب 155'!AX15-TRUNC('[5]مرتب 155'!AX15))*100) -> 98 | CJ16: =IF('[5]مرتب 155'!AX15="","",TRUNC('[5]مرتب 155'!AX15)) -> 238 | CK16: =IF('[5]مرتب 155'!AY15="","",('[5]مرتب 155'!AY15-TRUNC('[5]مرتب 155'!AY15))*100) -> 55 | CL16: =IF('[5]مرتب 155'!AY15="","",TRUNC('[5]مرتب 155'!AY15)) -> 26 | CM16: =IF('[5]مرتب 155'!BB15="","",('[5]مرتب 155'!BB15-TRUNC('[5]مرتب 155'!BB15))*100) -> 55 | CN16: =IF('[5]مرتب 155'!BB15="","",TRUNC('[5]مرتب 155'!BB15)) -> 26 | CO16: =IF('[5]مرتب 155'!AZ15="","",('[5]مرتب 155'!AZ15-TRUNC('[5]مرتب 155'!AZ15))*100) -> 66 | CP16: =IF('[5]مرتب 155'!AZ15="","",TRUNC('[5]مرتب 155'!AZ15)) -> 79 | CQ16: =IF('[5]مرتب 155'!BA15="","",('[5]مرتب 155'!BA15-TRUNC('[5]مرتب 155'!BA15))*100) -> 55 | CR16: =IF('[5]مرتب 155'!BA15="","",TRUNC('[5]مرتب 155'!BA15)) -> 26 | CS16: =IF('[5]مرتب 155'!BC15="","",('[5]مرتب 155'!BC15-TRUNC('[5]مرتب 155'!BC15))*100) -> 19 | CT16: =IF('[5]مرتب 155'!BC15="","",TRUNC('[5]مرتب 155'!BC15)) -> 33 | CU16: =IF('[5]مرتب 155'!BD15="","",('[5]مرتب 155'!BD15-TRUNC('[5]مرتب 155'!BD15))*100) -> 12 | CV16: =IF('[5]مرتب 155'!BD15="","",TRUNC('[5]مرتب 155'!BD15)) -> 750 | CW16: =IF('[5]مرتب 155'!BE15="","",('[5]مرتب 155'!BE15-TRUNC('[5]مرتب 155'!BE15))*100) ->  | CX16: =IF('[5]مرتب 155'!BE15="","",TRUNC('[5]مرتب 155'!BE15)) ->  | CY16: =IF('[5]مرتب 155'!BF15="","",('[5]مرتب 155'!BF15-TRUNC('[5]مرتب 155'!BF15))*100) ->  | CZ16: =IF('[5]مرتب 155'!BF15="","",TRUNC('[5]مرتب 155'!BF15)) ->  | DA16: =IF('[5]مرتب 155'!BG15="","",('[5]مرتب 155'!BG15-TRUNC('[5]مرتب 155'!BG15))*100) ->  | DB16: =IF('[5]مرتب 155'!BG15="","",TRUNC('[5]مرتب 155'!BG15)) ->  | DC16: =IF('[5]مرتب 155'!BH15="","",('[5]مرتب 155'!BH15-TRUNC('[5]مرتب 155'!BH15))*100) -> 0 | DD16: =IF('[5]مرتب 155'!BH15="","",TRUNC('[5]مرتب 155'!BH15)) -> 0 | DE16: =IF('[5]مرتب 155'!BI15="","",('[5]مرتب 155'!BI15-TRUNC('[5]مرتب 155'!BI15))*100) -> 50 | DF16: =IF('[5]مرتب 155'!BI15="","",TRUNC('[5]مرتب 155'!BI15)) -> 4 | DG16: =IF('[5]مرتب 155'!BJ15="","",('[5]مرتب 155'!BJ15-TRUNC('[5]مرتب 155'!BJ15))*100) -> 8 | DH16: =IF('[5]مرتب 155'!BJ15="","",TRUNC('[5]مرتب 155'!BJ15)) -> 66 | DI16: =IF('[5]مرتب 155'!BK15="","",('[5]مرتب 155'!BK15-TRUNC('[5]مرتب 155'!BK15))*100) ->  | DJ16: =IF('[5]مرتب 155'!BK15="","",TRUNC('[5]مرتب 155'!BK15)) ->  | DK16: =IF('[5]مرتب 155'!BL15="","",('[5]مرتب 155'!BL15-TRUNC('[5]مرتب 155'!BL15))*100) -> 0 | DL16: =IF('[5]مرتب 155'!BL15="","",TRUNC('[5]مرتب 155'!BL15)) -> 1 | DM16: =IF('[5]مرتب 155'!BM15="","",('[5]مرتب 155'!BM15-TRUNC('[5]مرتب 155'!BM15))*100) ->  | DN16: =IF('[5]مرتب 155'!BM15="","",TRUNC('[5]مرتب 155'!BM15)) ->  | DO16: =IF('[5]مرتب 155'!BN15="","",('[5]مرتب 155'!BN15-TRUNC('[5]مرتب 155'!BN15))*100) ->  | DP16: =IF('[5]مرتب 155'!BN15="","",TRUNC('[5]مرتب 155'!BN15)) ->  | DQ16: =IF('[5]مرتب 155'!BO15="","",('[5]مرتب 155'!BO15-TRUNC('[5]مرتب 155'!BO15))*100) ->  | DR16: =IF('[5]مرتب 155'!BO15="","",TRUNC('[5]مرتب 155'!BO15)) ->  | DS16: =IF('[5]مرتب 155'!BP15="","",('[5]مرتب 155'!BP15-TRUNC('[5]مرتب 155'!BP15))*100) ->  | DT16: =IF('[5]مرتب 155'!BP15="","",TRUNC('[5]مرتب 155'!BP15)) ->  | DU16: =IF('[5]مرتب 155'!BQ15="","",('[5]مرتب 155'!BQ15-TRUNC('[5]مرتب 155'!BQ15))*100) -> 0 | DV16: =IF('[5]مرتب 155'!BQ15="","",TRUNC('[5]مرتب 155'!BQ15)) -> 5 | DW16: =IF('[5]مرتب 155'!BR15="","",('[5]مرتب 155'!BR15-TRUNC('[5]مرتب 155'!BR15))*100) ->  | DX16: =IF('[5]مرتب 155'!BR15="","",TRUNC('[5]مرتب 155'!BR15)) ->  | DY16: =IF('[5]مرتب 155'!BS15="","",('[5]مرتب 155'!BS15-TRUNC('[5]مرتب 155'!BS15))*100) ->  | DZ16: =IF('[5]مرتب 155'!BS15="","",TRUNC('[5]مرتب 155'!BS15)) ->  | EA16: =IF('[5]مرتب 155'!BT15="","",('[5]مرتب 155'!BT15-TRUNC('[5]مرتب 155'!BT15))*100) -> 0 | EB16: =IF('[5]مرتب 155'!BT15="","",TRUNC('[5]مرتب 155'!BT15)) -> 0 | EC16: =IF('[5]مرتب 155'!BU15="","",('[5]مرتب 155'!BU15-TRUNC('[5]مرتب 155'!BU15))*100) ->  | ED16: =IF('[5]مرتب 155'!BU15="","",TRUNC('[5]مرتب 155'!BU15)) ->  | EE16: =IF('[5]مرتب 155'!BV15="","",('[5]مرتب 155'!BV15-TRUNC('[5]مرتب 155'!BV15))*100) ->  | EF16: =IF('[5]مرتب 155'!BV15="","",TRUNC('[5]مرتب 155'!BV15)) ->  | EG16: =IF('[5]مرتب 155'!BW15="","",('[5]مرتب 155'!BW15-TRUNC('[5]مرتب 155'!BW15))*100) -> 58 | EH16: =IF('[5]مرتب 155'!BW15="","",TRUNC('[5]مرتب 155'!BW15)) -> 76 | EI16: =IF('[5]مرتب 155'!BX15="","",('[5]مرتب 155'!BX15-TRUNC('[5]مرتب 155'!BX15))*100) ->  | EJ16: =IF('[5]مرتب 155'!BX15="","",TRUNC('[5]مرتب 155'!BX15)) ->  | EK16: =IF('[5]مرتب 155'!BY15="","",('[5]مرتب 155'!BY15-TRUNC('[5]مرتب 155'!BY15))*100) ->  | EL16: =IF('[5]مرتب 155'!BY15="","",TRUNC('[5]مرتب 155'!BY15)) ->  | EM16: =IF('[5]مرتب 155'!BZ15="","",('[5]مرتب 155'!BZ15-TRUNC('[5]مرتب 155'!BZ15))*100) ->  | EN16: =IF('[5]مرتب 155'!BZ15="","",TRUNC('[5]مرتب 155'!BZ15)) ->  | EO16: =IF('[5]مرتب 155'!CA15="","",('[5]مرتب 155'!CA15-TRUNC('[5]مرتب 155'!CA15))*100) ->  | EP16: =IF('[5]مرتب 155'!CA15="","",TRUNC('[5]مرتب 155'!CA15)) ->  | EQ16: =IF('[5]مرتب 155'!CB15="","",('[5]مرتب 155'!CB15-TRUNC('[5]مرتب 155'!CB15))*100) ->  | ER16: =IF('[5]مرتب 155'!CB15="","",TRUNC('[5]مرتب 155'!CB15)) ->  | ES16: =IF('[5]مرتب 155'!CC15="","",('[5]مرتب 155'!CC15-TRUNC('[5]مرتب 155'!CC15))*100) ->  | ET16: =IF('[5]مرتب 155'!CC15="","",TRUNC('[5]مرتب 155'!CC15)) ->  | EU16: =IF('[5]مرتب 155'!CD15="","",('[5]مرتب 155'!CD15-TRUNC('[5]مرتب 155'!CD15))*100) ->  | EV16: =IF('[5]مرتب 155'!CD15="","",TRUNC('[5]مرتب 155'!CD15)) ->  | EW16: =IF('[5]مرتب 155'!CE15="","",('[5]مرتب 155'!CE15-TRUNC('[5]مرتب 155'!CE15))*100) -> 0 | EX16: =IF('[5]مرتب 155'!CE15="","",TRUNC('[5]مرتب 155'!CE15)) -> 0 | EY16: =IF('[5]مرتب 155'!CF15="","",('[5]مرتب 155'!CF15-TRUNC('[5]مرتب 155'!CF15))*100) ->  | EZ16: =IF('[5]مرتب 155'!CF15="","",TRUNC('[5]مرتب 155'!CF15)) ->  | FA16: =IF('[5]مرتب 155'!CG15="","",('[5]مرتب 155'!CG15-TRUNC('[5]مرتب 155'!CG15))*100) ->  | FB16: =IF('[5]مرتب 155'!CG15="","",TRUNC('[5]مرتب 155'!CG15)) ->  | FC16: =IF('[5]مرتب 155'!CH15="","",('[5]مرتب 155'!CH15-TRUNC('[5]مرتب 155'!CH15))*100) ->  | FD16: =IF('[5]مرتب 155'!CH15="","",TRUNC('[5]مرتب 155'!CH15)) ->  | FE16: =IF('[5]مرتب 155'!CI15="","",('[5]مرتب 155'!CI15-TRUNC('[5]مرتب 155'!CI15))*100) -> 0 | FF16: =IF('[5]مرتب 155'!CI15="","",TRUNC('[5]مرتب 155'!CI15)) -> 0 | FG16: =IF('[5]مرتب 155'!CJ15="","",('[5]مرتب 155'!CJ15-TRUNC('[5]مرتب 155'!CJ15))*100) -> 72 | FH16: =IF('[5]مرتب 155'!CJ15="","",TRUNC('[5]مرتب 155'!CJ15)) -> 4 | FI16: =IF('[5]مرتب 155'!CK15="","",('[5]مرتب 155'!CK15-TRUNC('[5]مرتب 155'!CK15))*100) ->  | FJ16: =IF('[5]مرتب 155'!CK15="","",TRUNC('[5]مرتب 155'!CK15)) ->  | FM16: =IF('[5]مرتب 155'!CM15="","",('[5]مرتب 155'!CM15-TRUNC('[5]مرتب 155'!CM15))*100) ->  | FN16: =IF('[5]مرتب 155'!CM15="","",TRUNC('[5]مرتب 155'!CM15)) ->  | FO16: =IF('[5]مرتب 155'!CN15="","",('[5]مرتب 155'!CN15-TRUNC('[5]مرتب 155'!CN15))*100) ->  | FP16: =IF('[5]مرتب 155'!CN15="","",TRUNC('[5]مرتب 155'!CN15)) ->  | FQ16: =IF('[5]مرتب 155'!CO15="","",('[5]مرتب 155'!CO15-TRUNC('[5]مرتب 155'!CO15))*100) ->  | FR16: =IF('[5]مرتب 155'!CO15="","",TRUNC('[5]مرتب 155'!CO15)) ->  | FS16: =IF('[5]مرتب 155'!CP15="","",('[5]مرتب 155'!CP15-TRUNC('[5]مرتب 155'!CP15))*100) -> 85.96 | FT16: =IF('[5]مرتب 155'!CP15="","",TRUNC('[5]مرتب 155'!CP15)) -> 22 | FU16: =IF('[5]مرتب 155'!CQ15="","",('[5]مرتب 155'!CQ15-TRUNC('[5]مرتب 155'!CQ15))*100) -> 1.04 | FV16: =IF('[5]مرتب 155'!CQ15="","",TRUNC('[5]مرتب 155'!CQ15)) -> 0 | FW16: =IF('[5]مرتب 155'!CR15="","",('[5]مرتب 155'!CR15-TRUNC('[5]مرتب 155'!CR15))*100) -> 29 | FX16: =IF('[5]مرتب 155'!CR15="","",TRUNC('[5]مرتب 155'!CR15)) -> 854 | FY16: =IF('[5]مرتب 155'!CS15="","",('[5]مرتب 155'!CS15-TRUNC('[5]مرتب 155'!CS15))*100) -> 35 | FZ16: =IF('[5]مرتب 155'!CS15="","",TRUNC('[5]مرتب 155'!CS15)) -> 2750 | GA16: 9 | GB16: ='[5]مرتب 155'!CU15 -> البنك الأهلى | GC16: ='[5]مرتب 155'!CV15 ->  | GD16: 9 | GE16: 9 | GR16: 9 | GS16: 9 | GT16: =IF('[5]بيانات معلمين'!B15=0,"",'[5]بيانات معلمين'!B15) -> حمادى محمد كامل حمادى | GU16: =IF('[5]بيانات معلمين'!C15=0,"",'[5]بيانات معلمين'!C15) -> معلم | GV16: =IF('[5]بيانات معلمين'!D15=0,"",'[5]بيانات معلمين'!D15) -> الثالثة | GW16: 1 | GX16: 1 | GY16: دفع | GZ16: =IF(GT16="","",SUBTOTAL(3,GT$8:GT16)) -> 9 | HA16: =IF('[5]بيانات معلمين'!G15=0,"",IF($LF16=0,ROUND(($LE$5-$LE16)*'[5]بيانات معلمين'!G15/$LE$5,2),IF($LE16=0,ROUND($LF16*'[5]بيانات معلمين'!G15/$LE$5,2)))) -> 258.8 | HD16: 2655.34 | HE16: =IF('[5]بيانات معلمين'!K15=0,"",IF($LF16=0,ROUND(($LE$5-$LE16)*'[5]بيانات معلمين'!K15/$LE$5,2),IF($LE16=0,ROUND($LF16*'[5]بيانات معلمين'!K15/$LE$5,2)))) -> 943.96 | HF16: =IF('[5]بيانات معلمين'!L15=0,0,IF($LF16=0,ROUND(($LE$5-$LE16)*'[5]بيانات معلمين'!L15/$LE$5,2),IF($LE16=0,ROUND($LF16*'[5]بيانات معلمين'!L15/$LE$5,2)))) -> 14.4 | HG16: =IF('[5]بيانات معلمين'!M15=0,0,IF($LF16=0,ROUND(($LE$5-$LE16)*'[5]بيانات معلمين'!M15/$LE$5,2),IF($LE16=0,ROUND($LF16*'[5]بيانات معلمين'!M15/$LE$5,2)))) -> 0 | HH16: 14.4 | HI16: =IF('[5]بيانات معلمين'!O15=0,"",IF($LF16=0,ROUND(($LE$5-$LE16)*'[5]بيانات معلمين'!O15/$LE$5,2),IF($LE16=0,ROUND($LF16*'[5]بيانات معلمين'!O15/$LE$5,2)))) -> 27 | HJ16: =IF('[5]بيانات معلمين'!P15=0,"",IF($LF16=0,ROUND(($LE$5-$LE16)*'[5]بيانات معلمين'!P15/$LE$5,2),IF($LE16=0,ROUND($LF16*'[5]بيانات معلمين'!P15/$LE$5,2)))) -> 29.88 | HK16: =IF($ASK$3=1,"",IF('[5]بيانات معلمين'!Q15=0,"",IF($LF16=0,ROUND(($LE$5-$LE16)*'[5]بيانات معلمين'!Q15/$LE$5,2),IF($LE16=0,ROUND($LF16*'[5]بيانات معلمين'!Q15/$LE$5,2))))) -> 129.4 | HL16: =IF($ASI$5=1,"",IF('[5]بيانات معلمين'!R15=0,"",IF($LF16=0,ROUND(($LE$5-$LE16)*'[5]بيانات معلمين'!R15/$LE$5,2),IF($LE16=0,ROUND($LF16*'[5]بيانات معلمين'!R15/$LE$5,2))))) -> 258.8 | HM16: =IF($ASL$6=1,"",IF('[5]بيانات معلمين'!S15=0,"",IF($LF16=0,ROUND(($LE$5-$LE16)*'[5]بيانات معلمين'!S15/$LE$5,2),IF($LE16=0,ROUND($LF16*'[5]بيانات معلمين'!S15/$LE$5,2))))) -> 64.7 | HN16: =IF($ASI$6=1,"",IF('[5]بيانات معلمين'!T15=0,"",IF($LF16=0,ROUND(($LE$5-$LE16)*'[5]بيانات معلمين'!T15/$LE$5,2),IF($LE16=0,ROUND($LF16*'[5]بيانات معلمين'!T15/$LE$5,2))))) -> 194.1 | HO16: =IF($ASI$4=1,"",IF('[5]بيانات معلمين'!U15=0,"",IF($LF16=0,ROUND(($LE$5-$LE16)*'[5]بيانات معلمين'!U15/$LE$5,2),IF($LE16=0,ROUND($LF16*'[5]بيانات معلمين'!U15/$LE$5,2))))) -> 400 | HP16: =IF('[5]بيانات معلمين'!V15=0,"",IF($LF16=0,ROUND(($LE$5-$LE16)*'[5]بيانات معلمين'!V15/$LE$5,2),IF($LE16=0,ROUND($LF16*'[5]بيانات معلمين'!V15/$LE$5,2)))) -> 2 | HQ16: =IF('[5]بيانات معلمين'!W15=0,"",IF($LF16=0,ROUND(($LE$5-$LE16)*'[5]بيانات معلمين'!W15/$LE$5,2),IF($LE16=0,ROUND($LF16*'[5]بيانات معلمين'!W15/$LE$5,2)))) -> 4 | HR16: =IF($ASB$4=1,"",IF('[5]بيانات معلمين'!X15=0,"",IF($LF16=0,ROUND(($LE$5-$LE16)*'[5]بيانات معلمين'!X15/$LE$5,2),IF($LE16=0,ROUND($LF16*'[5]بيانات معلمين'!X15/$LE$5,2))))) -> 100 | HS16: =IF('[5]بيانات معلمين'!Y15=0,"",IF($LF16=0,ROUND(($LE$5-$LE16)*'[5]بيانات معلمين'!Y15/$LE$5,2),IF($LE16=0,ROUND($LF16*'[5]بيانات معلمين'!Y15/$LE$5,2)))) -> 40 | HT16: =IF('[5]بيانات معلمين'!Z15=0,"",IF($LF16=0,ROUND(($LE$5-$LE16)*'[5]بيانات معلمين'!Z15/$LE$5,2),IF($LE16=0,ROUND($LF16*'[5]بيانات معلمين'!Z15/$LE$5,2)))) ->  | HU16: =IF('[5]بيانات معلمين'!AA15=0,"",IF($LF16=0,ROUND(($LE$5-$LE16)*'[5]بيانات معلمين'!AA15/$LE$5,2),IF($LE16=0,ROUND($LF16*'[5]بيانات معلمين'!AA15/$LE$5,2)))) ->  | HV16: =IF('[5]بيانات معلمين'!AB15=0,"",IF($LF16=0,ROUND(($LE$5-$LE16)*'[5]بيانات معلمين'!AB15/$LE$5,2),IF($LE16=0,ROUND($LF16*'[5]بيانات معلمين'!AB15/$LE$5,2)))) ->  | HW16: =IF('[5]بيانات معلمين'!AC15=0,"",IF($LF16=0,ROUND(($LE$5-$LE16)*'[5]بيانات معلمين'!AC15/$LE$5,2),IF($LE16=0,ROUND($LF16*'[5]بيانات معلمين'!AC15/$LE$5,2)))) ->  | HX16: =IF('[5]بيانات معلمين'!AD15=0,"",IF($LF16=0,ROUND(($LE$5-$LE16)*'[5]بيانات معلمين'!AD15/$LE$5,2),IF($LE16=0,ROUND($LF16*'[5]بيانات معلمين'!AD15/$LE$5,2)))) -> 350 | HY16: =IF('[5]بيانات معلمين'!AE15=0,"",IF($LF16=0,ROUND(($LE$5-$LE16)*'[5]بيانات معلمين'!AE15/$LE$5,2),IF($LE16=0,ROUND($LF16*'[5]بيانات معلمين'!AE15/$LE$5,2)))) -> 97.1 | HZ16: =IF('[5]بيانات معلمين'!AF15=0,"",IF($LF16=0,ROUND(($LE$5-$LE16)*'[5]بيانات معلمين'!AF15/$LE$5,2),IF($LE16=0,ROUND($LF16*'[5]بيانات معلمين'!AF15/$LE$5,2)))) ->  | IA16: =IF('[5]بيانات معلمين'!AG15=0,"",IF($LF16=0,ROUND(($LE$5-$LE16)*'[5]بيانات معلمين'!AG15/$LE$5,2),IF($LE16=0,ROUND($LF16*'[5]بيانات معلمين'!AG15/$LE$5,2)))) ->  | IB16: =IF('[5]بيانات معلمين'!AH15=0,"",IF($LF16=0,ROUND(($LE$5-$LE16)*'[5]بيانات معلمين'!AH15/$LE$5,2),IF($LE16=0,ROUND($LF16*'[5]بيانات معلمين'!AH15/$LE$5,2)))) ->  | IC16: =IF('[5]بيانات معلمين'!AI15=0,"",IF($LF16=0,ROUND(($LE$5-$LE16)*'[5]بيانات معلمين'!AI15/$LE$5,2),IF($LE16=0,ROUND($LF16*'[5]بيانات معلمين'!AI15/$LE$5,2)))) ->  | ID16: =IF('[5]بيانات معلمين'!AJ15=0,"",IF($LF16=0,ROUND(($LE$5-$LE16)*'[5]بيانات معلمين'!AJ15/$LE$5,2),IF($LE16=0,ROUND($LF16*'[5]بيانات معلمين'!AJ15/$LE$5,2)))) ->  | IE16: =IF('[5]بيانات معلمين'!AK15=0,"",IF($LF16=0,ROUND(($LE$5-$LE16)*'[5]بيانات معلمين'!AK15/$LE$5,2),IF($LE16=0,ROUND($LF16*'[5]بيانات معلمين'!AK15/$LE$5,2)))) ->  | IF16: =IF('[5]بيانات معلمين'!AL15=0,"",IF($LF16=0,ROUND(($LE$5-$LE16)*'[5]بيانات معلمين'!AL15/$LE$5,2),IF($LE16=0,ROUND($LF16*'[5]بيانات معلمين'!AL15/$LE$5,2)))) ->  | IG16: =IF('[5]بيانات معلمين'!AM15=0,"",IF($LF16=0,ROUND(($LE$5-$LE16)*'[5]بيانات معلمين'!AM15/$LE$5,2),IF($LE16=0,ROUND($LF16*'[5]بيانات معلمين'!AM15/$LE$5,2)))) ->  | IH16: =IF('[5]بيانات معلمين'!AN15=0,"",IF($LF16=0,ROUND(($LE$5-$LE16)*'[5]بيانات معلمين'!AN15/$LE$5,2),IF($LE16=0,ROUND($LF16*'[5]بيانات معلمين'!AN15/$LE$5,2)))) -> 318.64 | II16: =IF('[5]بيانات معلمين'!AO15=0,"",IF($LF16=0,ROUND(($LE$5-$LE16)*'[5]بيانات معلمين'!AO15/$LE$5,2),IF($LE16=0,ROUND($LF16*'[5]بيانات معلمين'!AO15/$LE$5,2)))) -> 79.66 | IJ16: =IF('[5]بيانات معلمين'!AP15=0,"",IF($LF16=0,ROUND(($LE$5-$LE16)*'[5]بيانات معلمين'!AP15/$LE$5,2),IF($LE16=0,ROUND($LF16*'[5]بيانات معلمين'!AP15/$LE$5,2)))) -> 26.55 | IK16: =IF('[5]بيانات معلمين'!AQ15=0,"",IF($LF16=0,ROUND(($LE$5-$LE16)*'[5]بيانات معلمين'!AQ15/$LE$5,2),IF($LE16=0,ROUND($LF16*'[5]بيانات معلمين'!AQ15/$LE$5,2)))) -> 33.19 | IL16: 458.04 | IM16: 4 | IN16: 458 | IO16: =IF('[5]بيانات معلمين'!AR15=0,"",IF($LF16=0,ROUND(($LE$5-$LE16)*'[5]بيانات معلمين'!AR15/$LE$5,2),IF($LE16=0,ROUND($LF16*'[5]بيانات معلمين'!AR15/$LE$5,2)))) -> 10 | IP16: =IF($ASH$2=1,"",IF('[5]بيانات معلمين'!AS15=0,"",IF($LF16=0,ROUND(($LE$5-$LE16)*'[5]بيانات معلمين'!AS15/$LE$5,2),IF($LE16=0,ROUND($LF16*'[5]بيانات معلمين'!AS15/$LE$5,2))))) -> 481.26 | IQ16: =IF('[5]بيانات معلمين'!AT15=0,"",ROUND(SUM(HE16,HH16:IK16,IO16,IP16),2)) -> 3604.64 | IR16: =IF('[5]بيانات معلمين'!AU15=0,"",IF($LF16=0,ROUND(($LE$5-$LE16)*'[5]بيانات معلمين'!AU15/$LE$5,2),IF($LE16=0,ROUND($LF16*'[5]بيانات معلمين'!AU15/$LE$5,2)))) -> 318.64 | IS16: =IF('[5]بيانات معلمين'!AV15=0,"",'[5]بيانات معلمين'!AV15) -> 238.98 | IT16: =IF('[5]بيانات معلمين'!AW15=0,"",IF($LF16=0,ROUND(($LE$5-$LE16)*'[5]بيانات معلمين'!AW15/$LE$5,2),IF($LE16=0,ROUND($LF16*'[5]بيانات معلمين'!AW15/$LE$5,2)))) -> 26.55 | IU16: =IF('[5]بيانات معلمين'!AX15=0,"",IF($LF16=0,ROUND(($LE$5-$LE16)*'[5]بيانات معلمين'!AX15/$LE$5,2),IF($LE16=0,ROUND($LF16*'[5]بيانات معلمين'!AX15/$LE$5,2)))) -> 79.66 | IV16: =IF('[5]بيانات معلمين'!AY15=0,"",'[5]بيانات معلمين'!AY15) -> 26.55 | IW16: =IF('[5]بيانات معلمين'!AZ15=0,"",'[5]بيانات معلمين'!AZ15) -> 26.55 | IX16: =IF('[5]بيانات معلمين'!BA15=0,"",IF($LF16=0,ROUND(($LE$5-$LE16)*'[5]بيانات معلمين'!BA15/$LE$5,2),IF($LE16=0,ROUND($LF16*'[5]بيانات معلمين'!BA15/$LE$5,2)))) -> 33.19 | IY16: 750.12 | IZ16: =IF('[5]بيانات معلمين'!BC15=0,"",'[5]بيانات معلمين'!BC15) ->  | JA16: =IF('[5]بيانات معلمين'!BD15=0,"",'[5]بيانات معلمين'!BD15) ->  | JB16: =IF('[5]بيانات معلمين'!BE15=0,"",'[5]بيانات معلمين'!BE15) ->  | JC16: 0 | JD16: =IF('[5]بيانات معلمين'!BG15=0,"",'[5]بيانات معلمين'!BG15) -> 4.5 | JE16: =IF('[5]بيانات معلمين'!$BH15=0,0,'[5]بيانات معلمين'!$BH15)/('[5]بيانات معلمين'!$CY15) -> 66.08 | JF16: =IF('[5]بيانات معلمين'!BI15=0,"",'[5]بيانات معلمين'!BI15) ->  | JG16: =IF('[5]بيانات معلمين'!BJ15=0,"",'[5]بيانات معلمين'!BJ15) -> 1 | JH16: =IF('[5]بيانات معلمين'!BK15=0,"",'[5]بيانات معلمين'!BK15) ->  | JI16: =IF('[5]بيانات معلمين'!BL15=0,"",'[5]بيانات معلمين'!BL15) ->  | JJ16: =IF('[5]بيانات معلمين'!BM15=0,"",'[5]بيانات معلمين'!BM15) ->  | JK16: =IF('[5]بيانات معلمين'!BN15=0,"",'[5]بيانات معلمين'!BN15) ->  | JL16: =IF('[5]بيانات معلمين'!BO15=0,"",'[5]بيانات معلمين'!BO15) -> 5 | JM16: =IF('[5]بيانات معلمين'!BP15=0,"",'[5]بيانات معلمين'!BP15) ->  | JN16: =IF('[5]بيانات معلمين'!BQ15=0,"",'[5]بيانات معلمين'!BQ15) ->  | JO16: =IF('[5]بيانات معلمين'!$BR15=0,0,'[5]بيانات معلمين'!$BR15)/'[5]بيانات معلمين'!$CY15 -> 0 | JP16: =IF('[5]بيانات معلمين'!BS15=0,"",'[5]بيانات معلمين'!BS15) ->  | JQ16: =IF('[5]بيانات معلمين'!BT15=0,"",'[5]بيانات معلمين'!BT15) ->  | JR16: 76.58 | JS16: =IF('[5]بيانات معلمين'!BV15=0,"",'[5]بيانات معلمين'!BV15) ->  | JT16: =IF('[5]بيانات معلمين'!BW15=0,"",'[5]بيانات معلمين'!BW15) ->  | JU16: =IF('[5]بيانات معلمين'!BX15=0,"",'[5]بيانات معلمين'!BX15) ->  | JV16: =IF('[5]بيانات معلمين'!BY15=0,"",'[5]بيانات معلمين'!BY15) ->  | JW16: =IF('[5]بيانات معلمين'!BZ15=0,"",'[5]بيانات معلمين'!BZ15) ->  | JX16: =IF('[5]بيانات معلمين'!CA15=0,"",'[5]بيانات معلمين'!CA15) ->  | JY16: =IF('[5]بيانات معلمين'!CB15=0,"",'[5]بيانات معلمين'!CB15) ->  | JZ16: 0 | KA16: =IF('[5]بيانات معلمين'!CD15=0,"",'[5]بيانات معلمين'!CD15) ->  | KB16: =IF('[5]بيانات معلمين'!CE15=0,"",'[5]بيانات معلمين'!CE15) ->  | KC16: =IF('[5]بيانات معلمين'!CF15=0,"",'[5]بيانات معلمين'!CF15) ->  | KD16: =IF('[5]بيانات معلمين'!CG15=0,"",ROUND(IF(($HD16+($HE16*50%)-$HE16-(11%*$HD16)-$JC16-$JR16-$KE16-$HH16-HE16/47-2000)*0.025<=0,0,($HD16+($HE16*50%)-$HE16-(11%*$HD16)-$JC16-$JR16-$KE16-$HH16-HE16/47-2000)*0.025),2)) ->  | KE16: =IF('[5]بيانات معلمين'!CH15=0,"",'[5]بيانات معلمين'!CH15) -> 4.72 | KF16: =IF('[5]بيانات معلمين'!CI15=0,"",'[5]بيانات معلمين'!CI15) ->  | KG16: =IF('[5]بيانات معلمين'!CJ15=0,"",'[5]بيانات معلمين'!CJ15) ->  | KH16: =IF('[5]بيانات معلمين'!CK15=0,"",'[5]بيانات معلمين'!CK15) ->  | KI16: =IF('[5]بيانات معلمين'!CL15=0,"",'[5]بيانات معلمين'!CL15) ->  | KJ16: =IF('[5]بيانات معلمين'!CM15=0,"",'[5]بيانات معلمين'!CM15) ->  | KK16: =IF('[5]بيانات معلمين'!CN15=0,"",'[5]بيانات معلمين'!CN15) -> 22.8596 | KL16: 27.5796 | KM16: 57.96 | KN16: 27 | KO16: 0.0104 | KP16: 854.29 | KQ16: 2750.35 | KR16: =IF('[5]بيانات معلمين'!CR15=0,"",'[5]بيانات معلمين'!CR15) -> حمادى محمد كامل حمادى | KS16: =IF('[5]بيانات معلمين'!CS15=0,"",'[5]بيانات معلمين'!CS15) -> البنك الأهلى | KT16: =IF('[5]بيانات معلمين'!CT15=0,"",'[5]بيانات معلمين'!CT15) ->  | KU16: =IF('[5]بيانات معلمين'!CU15=0,"",'[5]بيانات معلمين'!CU15) -> 28609202702414 | KW16: 9 | KY16: 2750.3604 | LE16: ='[5]جزاءات 155'!F15 -> 0 | LF16: ='[5]جزاءات 155'!E15 -> 0 | AES16: =IF('[5]استقطاعات 155'!Q15="","",'[5]مرتب 155'!M15) ->  | AEU16: 9 | AEY16: ='[5]استقطاعات 155'!Q15 -> 0 | AFA16: 0 | AFB16: 0 | AFC16: -10000 | AFD16: 0 | AFE16: 0 | AFF16: -40000 | AFG16: 0 | AFH16: 0 | AFI16: 0 | AFJ16: 0 | AFK16: 0 | AFL16: 0 | AFM16: 0
A17: 1 | B17: 1 | C17: ='[5]مرتب 155'!C16 -> معلم اول أ | D17: ='[5]مرتب 155'!D16 -> الاولى | E17: 11 | F17: 1 | G17: ='[5]ادخال بيانات 155'!N16 -> أهلى | H17: =IF(B17="","",SUBTOTAL(3,$B$8:B17)) -> 10 | I17: =IF('[5]مرتب 155'!I16="","",('[5]مرتب 155'!I16-TRUNC('[5]مرتب 155'!I16))*100) -> 39 | J17: =IF('[5]مرتب 155'!I16="","",TRUNC('[5]مرتب 155'!I16)) -> 459 | K17: =IF('[5]مرتب 155'!J16="","",('[5]مرتب 155'!J16-TRUNC('[5]مرتب 155'!J16))*100) -> 0 | L17: =IF('[5]مرتب 155'!J16="","",TRUNC('[5]مرتب 155'!J16)) -> 84000 | M17: =IF('[5]مرتب 155'!K16="","",('[5]مرتب 155'!K16-TRUNC('[5]مرتب 155'!K16))*100) -> 68 | N17: =IF('[5]مرتب 155'!K16="","",TRUNC('[5]مرتب 155'!K16)) -> 31775 | O17: =IF('[5]مرتب 155'!L16="","",('[5]مرتب 155'!L16-TRUNC('[5]مرتب 155'!L16))*100) -> 75 | P17: =IF('[5]مرتب 155'!L16="","",TRUNC('[5]مرتب 155'!L16)) -> 3116 | Q17: =IF('[5]مرتب 155'!M16="","",('[5]مرتب 155'!M16-TRUNC('[5]مرتب 155'!M16))*100) -> 12 | R17: =IF('[5]مرتب 155'!M16="","",TRUNC('[5]مرتب 155'!M16)) -> 1366 | S17: =IF($ASM$3=1,"",IF('[5]مرتب 155'!P16="","",('[5]مرتب 155'!P16-TRUNC('[5]مرتب 155'!P16))*100)) -> 50 | T17: =IF($ASM$3=1,"",IF('[5]مرتب 155'!P16="","",TRUNC('[5]مرتب 155'!P16))) -> 28 | U17: =IF('[5]مرتب 155'!$Q16="","",('[5]مرتب 155'!$Q16-TRUNC('[5]مرتب 155'!$Q16))*100) -> 55 | V17: =IF('[5]مرتب 155'!$Q16="","",TRUNC('[5]مرتب 155'!$Q16)) -> 42 | W17: =IF('[5]مرتب 155'!$R16="","",('[5]مرتب 155'!$R16-TRUNC('[5]مرتب 155'!$R16))*100) -> 94 | X17: =IF('[5]مرتب 155'!$R16="","",TRUNC('[5]مرتب 155'!$R16)) -> 45 | Y17: =IF($ASK$3=1,"",IF('[5]مرتب 155'!S16="","",('[5]مرتب 155'!S16-TRUNC('[5]مرتب 155'!S16))*100)) -> 70 | Z17: =IF($ASK$3=1,"",IF('[5]مرتب 155'!S16="","",TRUNC('[5]مرتب 155'!S16))) -> 229 | AA17: =IF($ASI$5=1,"",IF('[5]مرتب 155'!T16="","",('[5]مرتب 155'!T16-TRUNC('[5]مرتب 155'!T16))*100)) -> 9 | AB17: =IF($ASI$5=1,"",IF('[5]مرتب 155'!T16="","",TRUNC('[5]مرتب 155'!T16))) -> 689 | AC17: =IF($ASL$6=1,"",IF('[5]مرتب 155'!U16="","",('[5]مرتب 155'!U16-TRUNC('[5]مرتب 155'!U16))*100)) -> 85 | AD17: =IF($ASL$6=1,"",IF('[5]مرتب 155'!U16="","",TRUNC('[5]مرتب 155'!U16))) -> 114 | AE17: =IF($ASI$6=1,"",IF('[5]مرتب 155'!V16="","",('[5]مرتب 155'!V16-TRUNC('[5]مرتب 155'!V16))*100)) ->  | AF17: =IF($ASI$6=1,"",IF('[5]مرتب 155'!V16="","",TRUNC('[5]مرتب 155'!V16))) ->  | AG17: =IF($ASI$4=1,"",IF('[5]مرتب 155'!W16="","",('[5]مرتب 155'!W16-TRUNC('[5]مرتب 155'!W16))*100)) ->  | AH17: =IF($ASI$4=1,"",IF('[5]مرتب 155'!W16="","",TRUNC('[5]مرتب 155'!W16))) ->  | AI17: =IF('[5]مرتب 155'!X16="","",('[5]مرتب 155'!X16-TRUNC('[5]مرتب 155'!X16))*100) -> 0 | AJ17: =IF('[5]مرتب 155'!X16="","",TRUNC('[5]مرتب 155'!X16)) -> 6 | AK17: =IF('[5]مرتب 155'!Y16="","",('[5]مرتب 155'!Y16-TRUNC('[5]مرتب 155'!Y16))*100) -> 0 | AL17: =IF('[5]مرتب 155'!Y16="","",TRUNC('[5]مرتب 155'!Y16)) -> 4 | AM17: =IF($ASB$4=1,"",IF('[5]مرتب 155'!Z16="","",('[5]مرتب 155'!Z16-TRUNC('[5]مرتب 155'!Z16))*100)) -> 0 | AN17: =IF($ASB$4=1,"",IF('[5]مرتب 155'!Z16="","",TRUNC('[5]مرتب 155'!Z16))) -> 100 | AO17: =IF('[5]مرتب 155'!AA16="","",('[5]مرتب 155'!AA16-TRUNC('[5]مرتب 155'!AA16))*100) -> 0 | AP17: =IF('[5]مرتب 155'!AA16="","",TRUNC('[5]مرتب 155'!AA16)) -> 40 | AQ17: =IF('[5]مرتب 155'!AB16="","",('[5]مرتب 155'!AB16-TRUNC('[5]مرتب 155'!AB16))*100) ->  | AR17: =IF('[5]مرتب 155'!AB16="","",TRUNC('[5]مرتب 155'!AB16)) ->  | AS17: =IF('[5]مرتب 155'!AC16="","",('[5]مرتب 155'!AC16-TRUNC('[5]مرتب 155'!AC16))*100) ->  | AT17: =IF('[5]مرتب 155'!AC16="","",TRUNC('[5]مرتب 155'!AC16)) ->  | AU17: =IF('[5]مرتب 155'!AD16="","",('[5]مرتب 155'!AD16-TRUNC('[5]مرتب 155'!AD16))*100) ->  | AV17: =IF('[5]مرتب 155'!AD16="","",TRUNC('[5]مرتب 155'!AD16)) ->  | AW17: =IF('[5]مرتب 155'!AE16="","",('[5]مرتب 155'!AE16-TRUNC('[5]مرتب 155'!AE16))*100) ->  | AX17: =IF('[5]مرتب 155'!AE16="","",TRUNC('[5]مرتب 155'!AE16)) ->  | AY17: =IF('[5]مرتب 155'!AF16="","",('[5]مرتب 155'!AF16-TRUNC('[5]مرتب 155'!AF16))*100) -> 0 | AZ17: =IF('[5]مرتب 155'!AF16="","",TRUNC('[5]مرتب 155'!AF16)) -> 450 | BA17: =IF('[5]مرتب 155'!AG16="","",('[5]مرتب 155'!AG16-TRUNC('[5]مرتب 155'!AG16))*100) ->  | BB17: =IF('[5]مرتب 155'!AG16="","",TRUNC('[5]مرتب 155'!AG16)) ->  | BC17: =IF('[5]مرتب 155'!AH16="","",('[5]مرتب 155'!AH16-TRUNC('[5]مرتب 155'!AH16))*100) ->  | BD17: =IF('[5]مرتب 155'!AH16="","",TRUNC('[5]مرتب 155'!AH16)) ->  | BE17: =IF('[5]مرتب 155'!AI16="","",('[5]مرتب 155'!AI16-TRUNC('[5]مرتب 155'!AI16))*100) ->  | BF17: =IF('[5]مرتب 155'!AI16="","",TRUNC('[5]مرتب 155'!AI16)) ->  | BG17: =IF('[5]مرتب 155'!AJ16="","",('[5]مرتب 155'!AJ16-TRUNC('[5]مرتب 155'!AJ16))*100) ->  | BH17: =IF('[5]مرتب 155'!AJ16="","",TRUNC('[5]مرتب 155'!AJ16)) ->  | BI17: =IF('[5]مرتب 155'!AK16="","",('[5]مرتب 155'!AK16-TRUNC('[5]مرتب 155'!AK16))*100) ->  | BJ17: =IF('[5]مرتب 155'!AK16="","",TRUNC('[5]مرتب 155'!AK16)) ->  | BK17: =IF('[5]مرتب 155'!AL16="","",('[5]مرتب 155'!AL16-TRUNC('[5]مرتب 155'!AL16))*100) ->  | BL17: =IF('[5]مرتب 155'!AL16="","",TRUNC('[5]مرتب 155'!AL16)) ->  | BM17: =IF('[5]مرتب 155'!AM16="","",('[5]مرتب 155'!AM16-TRUNC('[5]مرتب 155'!AM16))*100) ->  | BN17: =IF('[5]مرتب 155'!AM16="","",TRUNC('[5]مرتب 155'!AM16)) ->  | BO17: =IF('[5]مرتب 155'!AN16="","",('[5]مرتب 155'!AN16-TRUNC('[5]مرتب 155'!AN16))*100) ->  | BP17: =IF('[5]مرتب 155'!AN16="","",TRUNC('[5]مرتب 155'!AN16)) ->  | BQ17: =IF('[5]مرتب 155'!AO16="","",('[5]مرتب 155'!AO16-TRUNC('[5]مرتب 155'!AO16))*100) ->  | BR17: =IF('[5]مرتب 155'!AO16="","",TRUNC('[5]مرتب 155'!AO16)) ->  | BS17: =IF('[5]مرتب 155'!AP16="","",('[5]مرتب 155'!AP16-TRUNC('[5]مرتب 155'!AP16))*100) -> 1 | BT17: =IF('[5]مرتب 155'!AP16="","",TRUNC('[5]مرتب 155'!AP16)) -> 374 | BU17: =IF('[5]مرتب 155'!AQ16="","",('[5]مرتب 155'!AQ16-TRUNC('[5]مرتب 155'!AQ16))*100) -> 50 | BV17: =IF('[5]مرتب 155'!AQ16="","",TRUNC('[5]مرتب 155'!AQ16)) -> 93 | BW17: =IF('[5]مرتب 155'!AR16="","",('[5]مرتب 155'!AR16-TRUNC('[5]مرتب 155'!AR16))*100) -> 17 | BX17: =IF('[5]مرتب 155'!AR16="","",TRUNC('[5]مرتب 155'!AR16)) -> 31 | BY17: =IF('[5]مرتب 155'!AS16="","",('[5]مرتب 155'!AS16-TRUNC('[5]مرتب 155'!AS16))*100) -> 96 | BZ17: =IF('[5]مرتب 155'!AS16="","",TRUNC('[5]مرتب 155'!AS16)) -> 38 | CA17: =IF('[5]مرتب 155'!AT16="","",('[5]مرتب 155'!AT16-TRUNC('[5]مرتب 155'!AT16))*100) -> 0 | CB17: =IF('[5]مرتب 155'!AT16="","",TRUNC('[5]مرتب 155'!AT16)) -> 10 | CC17: =IF($ASH$2=1,"",IF('[5]مرتب 155'!AU16="","",('[5]مرتب 155'!AU16-TRUNC('[5]مرتب 155'!AU16))*100)) -> 26 | CD17: =IF($ASH$2=1,"",IF('[5]مرتب 155'!AU16="","",TRUNC('[5]مرتب 155'!AU16))) -> 481 | CE17: =IF('[5]مرتب 155'!AV16="","",('[5]مرتب 155'!AV16-TRUNC('[5]مرتب 155'!AV16))*100) -> 65 | CF17: =IF('[5]مرتب 155'!AV16="","",TRUNC('[5]مرتب 155'!AV16)) -> 4145 | CG17: =IF('[5]مرتب 155'!AW16="","",('[5]مرتب 155'!AW16-TRUNC('[5]مرتب 155'!AW16))*100) -> 1 | CH17: =IF('[5]مرتب 155'!AW16="","",TRUNC('[5]مرتب 155'!AW16)) -> 374 | CI17: =IF('[5]مرتب 155'!AX16="","",('[5]مرتب 155'!AX16-TRUNC('[5]مرتب 155'!AX16))*100) -> 51 | CJ17: =IF('[5]مرتب 155'!AX16="","",TRUNC('[5]مرتب 155'!AX16)) -> 280 | CK17: =IF('[5]مرتب 155'!AY16="","",('[5]مرتب 155'!AY16-TRUNC('[5]مرتب 155'!AY16))*100) -> 17 | CL17: =IF('[5]مرتب 155'!AY16="","",TRUNC('[5]مرتب 155'!AY16)) -> 31 | CM17: =IF('[5]مرتب 155'!BB16="","",('[5]مرتب 155'!BB16-TRUNC('[5]مرتب 155'!BB16))*100) -> 17 | CN17: =IF('[5]مرتب 155'!BB16="","",TRUNC('[5]مرتب 155'!BB16)) -> 31 | CO17: =IF('[5]مرتب 155'!AZ16="","",('[5]مرتب 155'!AZ16-TRUNC('[5]مرتب 155'!AZ16))*100) -> 50 | CP17: =IF('[5]مرتب 155'!AZ16="","",TRUNC('[5]مرتب 155'!AZ16)) -> 93 | CQ17: =IF('[5]مرتب 155'!BA16="","",('[5]مرتب 155'!BA16-TRUNC('[5]مرتب 155'!BA16))*100) -> 17 | CR17: =IF('[5]مرتب 155'!BA16="","",TRUNC('[5]مرتب 155'!BA16)) -> 31 | CS17: =IF('[5]مرتب 155'!BC16="","",('[5]مرتب 155'!BC16-TRUNC('[5]مرتب 155'!BC16))*100) -> 96 | CT17: =IF('[5]مرتب 155'!BC16="","",TRUNC('[5]مرتب 155'!BC16)) -> 38 | CU17: =IF('[5]مرتب 155'!BD16="","",('[5]مرتب 155'!BD16-TRUNC('[5]مرتب 155'!BD16))*100) -> 49 | CV17: =IF('[5]مرتب 155'!BD16="","",TRUNC('[5]مرتب 155'!BD16)) -> 880 | CW17: =IF('[5]مرتب 155'!BE16="","",('[5]مرتب 155'!BE16-TRUNC('[5]مرتب 155'!BE16))*100) ->  | CX17: =IF('[5]مرتب 155'!BE16="","",TRUNC('[5]مرتب 155'!BE16)) ->  | CY17: =IF('[5]مرتب 155'!BF16="","",('[5]مرتب 155'!BF16-TRUNC('[5]مرتب 155'!BF16))*100) ->  | CZ17: =IF('[5]مرتب 155'!BF16="","",TRUNC('[5]مرتب 155'!BF16)) ->  | DA17: =IF('[5]مرتب 155'!BG16="","",('[5]مرتب 155'!BG16-TRUNC('[5]مرتب 155'!BG16))*100) ->  | DB17: =IF('[5]مرتب 155'!BG16="","",TRUNC('[5]مرتب 155'!BG16)) ->  | DC17: =IF('[5]مرتب 155'!BH16="","",('[5]مرتب 155'!BH16-TRUNC('[5]مرتب 155'!BH16))*100) -> 0 | DD17: =IF('[5]مرتب 155'!BH16="","",TRUNC('[5]مرتب 155'!BH16)) -> 0 | DE17: =IF('[5]مرتب 155'!BI16="","",('[5]مرتب 155'!BI16-TRUNC('[5]مرتب 155'!BI16))*100) -> 50 | DF17: =IF('[5]مرتب 155'!BI16="","",TRUNC('[5]مرتب 155'!BI16)) -> 4 | DG17: =IF('[5]مرتب 155'!BJ16="","",('[5]مرتب 155'!BJ16-TRUNC('[5]مرتب 155'!BJ16))*100) -> 63 | DH17: =IF('[5]مرتب 155'!BJ16="","",TRUNC('[5]مرتب 155'!BJ16)) -> 95 | DI17: =IF('[5]مرتب 155'!BK16="","",('[5]مرتب 155'!BK16-TRUNC('[5]مرتب 155'!BK16))*100) -> 0 | DJ17: =IF('[5]مرتب 155'!BK16="","",TRUNC('[5]مرتب 155'!BK16)) -> 3 | DK17: =IF('[5]مرتب 155'!BL16="","",('[5]مرتب 155'!BL16-TRUNC('[5]مرتب 155'!BL16))*100) -> 0 | DL17: =IF('[5]مرتب 155'!BL16="","",TRUNC('[5]مرتب 155'!BL16)) -> 1 | DM17: =IF('[5]مرتب 155'!BM16="","",('[5]مرتب 155'!BM16-TRUNC('[5]مرتب 155'!BM16))*100) ->  | DN17: =IF('[5]مرتب 155'!BM16="","",TRUNC('[5]مرتب 155'!BM16)) ->  | DO17: =IF('[5]مرتب 155'!BN16="","",('[5]مرتب 155'!BN16-TRUNC('[5]مرتب 155'!BN16))*100) ->  | DP17: =IF('[5]مرتب 155'!BN16="","",TRUNC('[5]مرتب 155'!BN16)) ->  | DQ17: =IF('[5]مرتب 155'!BO16="","",('[5]مرتب 155'!BO16-TRUNC('[5]مرتب 155'!BO16))*100) ->  | DR17: =IF('[5]مرتب 155'!BO16="","",TRUNC('[5]مرتب 155'!BO16)) ->  | DS17: =IF('[5]مرتب 155'!BP16="","",('[5]مرتب 155'!BP16-TRUNC('[5]مرتب 155'!BP16))*100) ->  | DT17: =IF('[5]مرتب 155'!BP16="","",TRUNC('[5]مرتب 155'!BP16)) ->  | DU17: =IF('[5]مرتب 155'!BQ16="","",('[5]مرتب 155'!BQ16-TRUNC('[5]مرتب 155'!BQ16))*100) ->  | DV17: =IF('[5]مرتب 155'!BQ16="","",TRUNC('[5]مرتب 155'!BQ16)) ->  | DW17: =IF('[5]مرتب 155'!BR16="","",('[5]مرتب 155'!BR16-TRUNC('[5]مرتب 155'!BR16))*100) ->  | DX17: =IF('[5]مرتب 155'!BR16="","",TRUNC('[5]مرتب 155'!BR16)) ->  | DY17: =IF('[5]مرتب 155'!BS16="","",('[5]مرتب 155'!BS16-TRUNC('[5]مرتب 155'!BS16))*100) ->  | DZ17: =IF('[5]مرتب 155'!BS16="","",TRUNC('[5]مرتب 155'!BS16)) ->  | EA17: =IF('[5]مرتب 155'!BT16="","",('[5]مرتب 155'!BT16-TRUNC('[5]مرتب 155'!BT16))*100) -> 0 | EB17: =IF('[5]مرتب 155'!BT16="","",TRUNC('[5]مرتب 155'!BT16)) -> 0 | EC17: =IF('[5]مرتب 155'!BU16="","",('[5]مرتب 155'!BU16-TRUNC('[5]مرتب 155'!BU16))*100) ->  | ED17: =IF('[5]مرتب 155'!BU16="","",TRUNC('[5]مرتب 155'!BU16)) ->  | EE17: =IF('[5]مرتب 155'!BV16="","",('[5]مرتب 155'!BV16-TRUNC('[5]مرتب 155'!BV16))*100) ->  | EF17: =IF('[5]مرتب 155'!BV16="","",TRUNC('[5]مرتب 155'!BV16)) ->  | EG17: =IF('[5]مرتب 155'!BW16="","",('[5]مرتب 155'!BW16-TRUNC('[5]مرتب 155'!BW16))*100) -> 13 | EH17: =IF('[5]مرتب 155'!BW16="","",TRUNC('[5]مرتب 155'!BW16)) -> 104 | EI17: =IF('[5]مرتب 155'!BX16="","",('[5]مرتب 155'!BX16-TRUNC('[5]مرتب 155'!BX16))*100) ->  | EJ17: =IF('[5]مرتب 155'!BX16="","",TRUNC('[5]مرتب 155'!BX16)) ->  | EK17: =IF('[5]مرتب 155'!BY16="","",('[5]مرتب 155'!BY16-TRUNC('[5]مرتب 155'!BY16))*100) ->  | EL17: =IF('[5]مرتب 155'!BY16="","",TRUNC('[5]مرتب 155'!BY16)) ->  | EM17: =IF('[5]مرتب 155'!BZ16="","",('[5]مرتب 155'!BZ16-TRUNC('[5]مرتب 155'!BZ16))*100) ->  | EN17: =IF('[5]مرتب 155'!BZ16="","",TRUNC('[5]مرتب 155'!BZ16)) ->  | EO17: =IF('[5]مرتب 155'!CA16="","",('[5]مرتب 155'!CA16-TRUNC('[5]مرتب 155'!CA16))*100) ->  | EP17: =IF('[5]مرتب 155'!CA16="","",TRUNC('[5]مرتب 155'!CA16)) ->  | EQ17: =IF('[5]مرتب 155'!CB16="","",('[5]مرتب 155'!CB16-TRUNC('[5]مرتب 155'!CB16))*100) ->  | ER17: =IF('[5]مرتب 155'!CB16="","",TRUNC('[5]مرتب 155'!CB16)) ->  | ES17: =IF('[5]مرتب 155'!CC16="","",('[5]مرتب 155'!CC16-TRUNC('[5]مرتب 155'!CC16))*100) ->  | ET17: =IF('[5]مرتب 155'!CC16="","",TRUNC('[5]مرتب 155'!CC16)) ->  | EU17: =IF('[5]مرتب 155'!CD16="","",('[5]مرتب 155'!CD16-TRUNC('[5]مرتب 155'!CD16))*100) ->  | EV17: =IF('[5]مرتب 155'!CD16="","",TRUNC('[5]مرتب 155'!CD16)) ->  | EW17: =IF('[5]مرتب 155'!CE16="","",('[5]مرتب 155'!CE16-TRUNC('[5]مرتب 155'!CE16))*100) -> 0 | EX17: =IF('[5]مرتب 155'!CE16="","",TRUNC('[5]مرتب 155'!CE16)) -> 0 | EY17: =IF('[5]مرتب 155'!CF16="","",('[5]مرتب 155'!CF16-TRUNC('[5]مرتب 155'!CF16))*100) ->  | EZ17: =IF('[5]مرتب 155'!CF16="","",TRUNC('[5]مرتب 155'!CF16)) ->  | FA17: =IF('[5]مرتب 155'!CG16="","",('[5]مرتب 155'!CG16-TRUNC('[5]مرتب 155'!CG16))*100) ->  | FB17: =IF('[5]مرتب 155'!CG16="","",TRUNC('[5]مرتب 155'!CG16)) ->  | FC17: =IF('[5]مرتب 155'!CH16="","",('[5]مرتب 155'!CH16-TRUNC('[5]مرتب 155'!CH16))*100) ->  | FD17: =IF('[5]مرتب 155'!CH16="","",TRUNC('[5]مرتب 155'!CH16)) ->  | FE17: =IF('[5]مرتب 155'!CI16="","",('[5]مرتب 155'!CI16-TRUNC('[5]مرتب 155'!CI16))*100) -> 0 | FF17: =IF('[5]مرتب 155'!CI16="","",TRUNC('[5]مرتب 155'!CI16)) -> 0 | FG17: =IF('[5]مرتب 155'!CJ16="","",('[5]مرتب 155'!CJ16-TRUNC('[5]مرتب 155'!CJ16))*100) -> 83 | FH17: =IF('[5]مرتب 155'!CJ16="","",TRUNC('[5]مرتب 155'!CJ16)) -> 6 | FI17: =IF('[5]مرتب 155'!CK16="","",('[5]مرتب 155'!CK16-TRUNC('[5]مرتب 155'!CK16))*100) ->  | FJ17: =IF('[5]مرتب 155'!CK16="","",TRUNC('[5]مرتب 155'!CK16)) ->  | FM17: =IF('[5]مرتب 155'!CM16="","",('[5]مرتب 155'!CM16-TRUNC('[5]مرتب 155'!CM16))*100) ->  | FN17: =IF('[5]مرتب 155'!CM16="","",TRUNC('[5]مرتب 155'!CM16)) ->  | FO17: =IF('[5]مرتب 155'!CN16="","",('[5]مرتب 155'!CN16-TRUNC('[5]مرتب 155'!CN16))*100) ->  | FP17: =IF('[5]مرتب 155'!CN16="","",TRUNC('[5]مرتب 155'!CN16)) ->  | FQ17: =IF('[5]مرتب 155'!CO16="","",('[5]مرتب 155'!CO16-TRUNC('[5]مرتب 155'!CO16))*100) ->  | FR17: =IF('[5]مرتب 155'!CO16="","",TRUNC('[5]مرتب 155'!CO16)) ->  | FS17: =IF('[5]مرتب 155'!CP16="","",('[5]مرتب 155'!CP16-TRUNC('[5]مرتب 155'!CP16))*100) -> 62.94 | FT17: =IF('[5]مرتب 155'!CP16="","",TRUNC('[5]مرتب 155'!CP16)) -> 26 | FU17: =IF('[5]مرتب 155'!CQ16="","",('[5]مرتب 155'!CQ16-TRUNC('[5]مرتب 155'!CQ16))*100) -> 2.06 | FV17: =IF('[5]مرتب 155'!CQ16="","",TRUNC('[5]مرتب 155'!CQ16)) -> 0 | FW17: =IF('[5]مرتب 155'!CR16="","",('[5]مرتب 155'!CR16-TRUNC('[5]مرتب 155'!CR16))*100) -> 10 | FX17: =IF('[5]مرتب 155'!CR16="","",TRUNC('[5]مرتب 155'!CR16)) -> 1018 | FY17: =IF('[5]مرتب 155'!CS16="","",('[5]مرتب 155'!CS16-TRUNC('[5]مرتب 155'!CS16))*100) -> 55 | FZ17: =IF('[5]مرتب 155'!CS16="","",TRUNC('[5]مرتب 155'!CS16)) -> 3127 | GA17: 10 | GB17: ='[5]مرتب 155'!CU16 -> البنك الأهلى | GC17: ='[5]مرتب 155'!CV16 ->  | GD17: 10 | GE17: 10 | GR17: 10 | GS17: 10 | GT17: =IF('[5]بيانات معلمين'!B16=0,"",'[5]بيانات معلمين'!B16) -> خالد عبدالراضى احمد عبدالرحمن | GU17: =IF('[5]بيانات معلمين'!C16=0,"",'[5]بيانات معلمين'!C16) -> معلم اول أ | GV17: =IF('[5]بيانات معلمين'!D16=0,"",'[5]بيانات معلمين'!D16) -> الاولى | GW17: 1 | GX17: 1 | GY17: دفع | GZ17: =IF(GT17="","",SUBTOTAL(3,GT$8:GT17)) -> 10 | HA17: =IF('[5]بيانات معلمين'!G16=0,"",IF($LF17=0,ROUND(($LE$5-$LE17)*'[5]بيانات معلمين'!G16/$LE$5,2),IF($LE17=0,ROUND($LF17*'[5]بيانات معلمين'!G16/$LE$5,2)))) -> 459.39 | HD17: 3116.75 | HE17: =IF('[5]بيانات معلمين'!K16=0,"",IF($LF17=0,ROUND(($LE$5-$LE17)*'[5]بيانات معلمين'!K16/$LE$5,2),IF($LE17=0,ROUND($LF17*'[5]بيانات معلمين'!K16/$LE$5,2)))) -> 1366.12 | HF17: =IF('[5]بيانات معلمين'!L16=0,0,IF($LF17=0,ROUND(($LE$5-$LE17)*'[5]بيانات معلمين'!L16/$LE$5,2),IF($LE17=0,ROUND($LF17*'[5]بيانات معلمين'!L16/$LE$5,2)))) -> 28.5 | HG17: =IF('[5]بيانات معلمين'!M16=0,0,IF($LF17=0,ROUND(($LE$5-$LE17)*'[5]بيانات معلمين'!M16/$LE$5,2),IF($LE17=0,ROUND($LF17*'[5]بيانات معلمين'!M16/$LE$5,2)))) -> 0 | HH17: 28.5 | HI17: =IF('[5]بيانات معلمين'!O16=0,"",IF($LF17=0,ROUND(($LE$5-$LE17)*'[5]بيانات معلمين'!O16/$LE$5,2),IF($LE17=0,ROUND($LF17*'[5]بيانات معلمين'!O16/$LE$5,2)))) -> 42.55 | HJ17: =IF('[5]بيانات معلمين'!P16=0,"",IF($LF17=0,ROUND(($LE$5-$LE17)*'[5]بيانات معلمين'!P16/$LE$5,2),IF($LE17=0,ROUND($LF17*'[5]بيانات معلمين'!P16/$LE$5,2)))) -> 45.94 | HK17: =IF($ASK$3=1,"",IF('[5]بيانات معلمين'!Q16=0,"",IF($LF17=0,ROUND(($LE$5-$LE17)*'[5]بيانات معلمين'!Q16/$LE$5,2),IF($LE17=0,ROUND($LF17*'[5]بيانات معلمين'!Q16/$LE$5,2))))) -> 229.7 | HL17: =IF($ASI$5=1,"",IF('[5]بيانات معلمين'!R16=0,"",IF($LF17=0,ROUND(($LE$5-$LE17)*'[5]بيانات معلمين'!R16/$LE$5,2),IF($LE17=0,ROUND($LF17*'[5]بيانات معلمين'!R16/$LE$5,2))))) -> 689.09 | HM17: =IF($ASL$6=1,"",IF('[5]بيانات معلمين'!S16=0,"",IF($LF17=0,ROUND(($LE$5-$LE17)*'[5]بيانات معلمين'!S16/$LE$5,2),IF($LE17=0,ROUND($LF17*'[5]بيانات معلمين'!S16/$LE$5,2))))) -> 114.85 | HN17: =IF($ASI$6=1,"",IF('[5]بيانات معلمين'!T16=0,"",IF($LF17=0,ROUND(($LE$5-$LE17)*'[5]بيانات معلمين'!T16/$LE$5,2),IF($LE17=0,ROUND($LF17*'[5]بيانات معلمين'!T16/$LE$5,2))))) ->  | HO17: =IF($ASI$4=1,"",IF('[5]بيانات معلمين'!U16=0,"",IF($LF17=0,ROUND(($LE$5-$LE17)*'[5]بيانات معلمين'!U16/$LE$5,2),IF($LE17=0,ROUND($LF17*'[5]بيانات معلمين'!U16/$LE$5,2))))) ->  | HP17: =IF('[5]بيانات معلمين'!V16=0,"",IF($LF17=0,ROUND(($LE$5-$LE17)*'[5]بيانات معلمين'!V16/$LE$5,2),IF($LE17=0,ROUND($LF17*'[5]بيانات معلمين'!V16/$LE$5,2)))) -> 6 | HQ17: =IF('[5]بيانات معلمين'!W16=0,"",IF($LF17=0,ROUND(($LE$5-$LE17)*'[5]بيانات معلمين'!W16/$LE$5,2),IF($LE17=0,ROUND($LF17*'[5]بيانات معلمين'!W16/$LE$5,2)))) -> 4 | HR17: =IF($ASB$4=1,"",IF('[5]بيانات معلمين'!X16=0,"",IF($LF17=0,ROUND(($LE$5-$LE17)*'[5]بيانات معلمين'!X16/$LE$5,2),IF($LE17=0,ROUND($LF17*'[5]بيانات معلمين'!X16/$LE$5,2))))) -> 100 | HS17: =IF('[5]بيانات معلمين'!Y16=0,"",IF($LF17=0,ROUND(($LE$5-$LE17)*'[5]بيانات معلمين'!Y16/$LE$5,2),IF($LE17=0,ROUND($LF17*'[5]بيانات معلمين'!Y16/$LE$5,2)))) -> 40 | HT17: =IF('[5]بيانات معلمين'!Z16=0,"",IF($LF17=0,ROUND(($LE$5-$LE17)*'[5]بيانات معلمين'!Z16/$LE$5,2),IF($LE17=0,ROUND($LF17*'[5]بيانات معلمين'!Z16/$LE$5,2)))) ->  | HU17: =IF('[5]بيانات معلمين'!AA16=0,"",IF($LF17=0,ROUND(($LE$5-$LE17)*'[5]بيانات معلمين'!AA16/$LE$5,2),IF($LE17=0,ROUND($LF17*'[5]بيانات معلمين'!AA16/$LE$5,2)))) ->  | HV17: =IF('[5]بيانات معلمين'!AB16=0,"",IF($LF17=0,ROUND(($LE$5-$LE17)*'[5]بيانات معلمين'!AB16/$LE$5,2),IF($LE17=0,ROUND($LF17*'[5]بيانات معلمين'!AB16/$LE$5,2)))) ->  | HW17: =IF('[5]بيانات معلمين'!AC16=0,"",IF($LF17=0,ROUND(($LE$5-$LE17)*'[5]بيانات معلمين'!AC16/$LE$5,2),IF($LE17=0,ROUND($LF17*'[5]بيانات معلمين'!AC16/$LE$5,2)))) ->  | HX17: =IF('[5]بيانات معلمين'!AD16=0,"",IF($LF17=0,ROUND(($LE$5-$LE17)*'[5]بيانات معلمين'!AD16/$LE$5,2),IF($LE17=0,ROUND($LF17*'[5]بيانات معلمين'!AD16/$LE$5,2)))) -> 450 | HY17: =IF('[5]بيانات معلمين'!AE16=0,"",IF($LF17=0,ROUND(($LE$5-$LE17)*'[5]بيانات معلمين'!AE16/$LE$5,2),IF($LE17=0,ROUND($LF17*'[5]بيانات معلمين'!AE16/$LE$5,2)))) ->  | HZ17: =IF('[5]بيانات معلمين'!AF16=0,"",IF($LF17=0,ROUND(($LE$5-$LE17)*'[5]بيانات معلمين'!AF16/$LE$5,2),IF($LE17=0,ROUND($LF17*'[5]بيانات معلمين'!AF16/$LE$5,2)))) ->  | IA17: =IF('[5]بيانات معلمين'!AG16=0,"",IF($LF17=0,ROUND(($LE$5-$LE17)*'[5]بيانات معلمين'!AG16/$LE$5,2),IF($LE17=0,ROUND($LF17*'[5]بيانات معلمين'!AG16/$LE$5,2)))) ->  | IB17: =IF('[5]بيانات معلمين'!AH16=0,"",IF($LF17=0,ROUND(($LE$5-$LE17)*'[5]بيانات معلمين'!AH16/$LE$5,2),IF($LE17=0,ROUND($LF17*'[5]بيانات معلمين'!AH16/$LE$5,2)))) ->  | IC17: =IF('[5]بيانات معلمين'!AI16=0,"",IF($LF17=0,ROUND(($LE$5-$LE17)*'[5]بيانات معلمين'!AI16/$LE$5,2),IF($LE17=0,ROUND($LF17*'[5]بيانات معلمين'!AI16/$LE$5,2)))) ->  | ID17: =IF('[5]بيانات معلمين'!AJ16=0,"",IF($LF17=0,ROUND(($LE$5-$LE17)*'[5]بيانات معلمين'!AJ16/$LE$5,2),IF($LE17=0,ROUND($LF17*'[5]بيانات معلمين'!AJ16/$LE$5,2)))) ->  | IE17: =IF('[5]بيانات معلمين'!AK16=0,"",IF($LF17=0,ROUND(($LE$5-$LE17)*'[5]بيانات معلمين'!AK16/$LE$5,2),IF($LE17=0,ROUND($LF17*'[5]بيانات معلمين'!AK16/$LE$5,2)))) ->  | IF17: =IF('[5]بيانات معلمين'!AL16=0,"",IF($LF17=0,ROUND(($LE$5-$LE17)*'[5]بيانات معلمين'!AL16/$LE$5,2),IF($LE17=0,ROUND($LF17*'[5]بيانات معلمين'!AL16/$LE$5,2)))) ->  | IG17: =IF('[5]بيانات معلمين'!AM16=0,"",IF($LF17=0,ROUND(($LE$5-$LE17)*'[5]بيانات معلمين'!AM16/$LE$5,2),IF($LE17=0,ROUND($LF17*'[5]بيانات معلمين'!AM16/$LE$5,2)))) ->  | IH17: =IF('[5]بيانات معلمين'!AN16=0,"",IF($LF17=0,ROUND(($LE$5-$LE17)*'[5]بيانات معلمين'!AN16/$LE$5,2),IF($LE17=0,ROUND($LF17*'[5]بيانات معلمين'!AN16/$LE$5,2)))) -> 374.01 | II17: =IF('[5]بيانات معلمين'!AO16=0,"",IF($LF17=0,ROUND(($LE$5-$LE17)*'[5]بيانات معلمين'!AO16/$LE$5,2),IF($LE17=0,ROUND($LF17*'[5]بيانات معلمين'!AO16/$LE$5,2)))) -> 93.5 | IJ17: =IF('[5]بيانات معلمين'!AP16=0,"",IF($LF17=0,ROUND(($LE$5-$LE17)*'[5]بيانات معلمين'!AP16/$LE$5,2),IF($LE17=0,ROUND($LF17*'[5]بيانات معلمين'!AP16/$LE$5,2)))) -> 31.17 | IK17: =IF('[5]بيانات معلمين'!AQ16=0,"",IF($LF17=0,ROUND(($LE$5-$LE17)*'[5]بيانات معلمين'!AQ16/$LE$5,2),IF($LE17=0,ROUND($LF17*'[5]بيانات معلمين'!AQ16/$LE$5,2)))) -> 38.96 | IL17: 537.64 | IM17: 64 | IN17: 537 | IO17: =IF('[5]بيانات معلمين'!AR16=0,"",IF($LF17=0,ROUND(($LE$5-$LE17)*'[5]بيانات معلمين'!AR16/$LE$5,2),IF($LE17=0,ROUND($LF17*'[5]بيانات معلمين'!AR16/$LE$5,2)))) -> 10 | IP17: =IF($ASH$2=1,"",IF('[5]بيانات معلمين'!AS16=0,"",IF($LF17=0,ROUND(($LE$5-$LE17)*'[5]بيانات معلمين'!AS16/$LE$5,2),IF($LE17=0,ROUND($LF17*'[5]بيانات معلمين'!AS16/$LE$5,2))))) -> 481.26 | IQ17: =IF('[5]بيانات معلمين'!AT16=0,"",ROUND(SUM(HE17,HH17:IK17,IO17,IP17),2)) -> 4145.65 | IR17: =IF('[5]بيانات معلمين'!AU16=0,"",IF($LF17=0,ROUND(($LE$5-$LE17)*'[5]بيانات معلمين'!AU16/$LE$5,2),IF($LE17=0,ROUND($LF17*'[5]بيانات معلمين'!AU16/$LE$5,2)))) -> 374.01 | IS17: =IF('[5]بيانات معلمين'!AV16=0,"",'[5]بيانات معلمين'!AV16) -> 280.51 | IT17: =IF('[5]بيانات معلمين'!AW16=0,"",IF($LF17=0,ROUND(($LE$5-$LE17)*'[5]بيانات معلمين'!AW16/$LE$5,2),IF($LE17=0,ROUND($LF17*'[5]بيانات معلمين'!AW16/$LE$5,2)))) -> 31.17 | IU17: =IF('[5]بيانات معلمين'!AX16=0,"",IF($LF17=0,ROUND(($LE$5-$LE17)*'[5]بيانات معلمين'!AX16/$LE$5,2),IF($LE17=0,ROUND($LF17*'[5]بيانات معلمين'!AX16/$LE$5,2)))) -> 93.5 | IV17: =IF('[5]بيانات معلمين'!AY16=0,"",'[5]بيانات معلمين'!AY16) -> 31.17 | IW17: =IF('[5]بيانات معلمين'!AZ16=0,"",'[5]بيانات معلمين'!AZ16) -> 31.17 | IX17: =IF('[5]بيانات معلمين'!BA16=0,"",IF($LF17=0,ROUND(($LE$5-$LE17)*'[5]بيانات معلمين'!BA16/$LE$5,2),IF($LE17=0,ROUND($LF17*'[5]بيانات معلمين'!BA16/$LE$5,2)))) -> 38.96 | IY17: 880.49 | IZ17: =IF('[5]بيانات معلمين'!BC16=0,"",'[5]بيانات معلمين'!BC16) ->  | JA17: =IF('[5]بيانات معلمين'!BD16=0,"",'[5]بيانات معلمين'!BD16) ->  | JB17: =IF('[5]بيانات معلمين'!BE16=0,"",'[5]بيانات معلمين'!BE16) ->  | JC17: 0 | JD17: =IF('[5]بيانات معلمين'!BG16=0,"",'[5]بيانات معلمين'!BG16) -> 4.5 | JE17: =IF('[5]بيانات معلمين'!$BH16=0,0,'[5]بيانات معلمين'!$BH16)/('[5]بيانات معلمين'!$CY16) -> 95.63 | JF17: =IF('[5]بيانات معلمين'!BI16=0,"",'[5]بيانات معلمين'!BI16) -> 3 | JG17: =IF('[5]بيانات معلمين'!BJ16=0,"",'[5]بيانات معلمين'!BJ16) -> 1 | JH17: =IF('[5]بيانات معلمين'!BK16=0,"",'[5]بيانات معلمين'!BK16) ->  | JI17: =IF('[5]بيانات معلمين'!BL16=0,"",'[5]بيانات معلمين'!BL16) ->  | JJ17: =IF('[5]بيانات معلمين'!BM16=0,"",'[5]بيانات معلمين'!BM16) ->  | JK17: =IF('[5]بيانات معلمين'!BN16=0,"",'[5]بيانات معلمين'!BN16) ->  | JL17: =IF('[5]بيانات معلمين'!BO16=0,"",'[5]بيانات معلمين'!BO16) ->  | JM17: =IF('[5]بيانات معلمين'!BP16=0,"",'[5]بيانات معلمين'!BP16) ->  | JN17: =IF('[5]بيانات معلمين'!BQ16=0,"",'[5]بيانات معلمين'!BQ16) ->  | JO17: =IF('[5]بيانات معلمين'!$BR16=0,0,'[5]بيانات معلمين'!$BR16)/'[5]بيانات معلمين'!$CY16 -> 0 | JP17: =IF('[5]بيانات معلمين'!BS16=0,"",'[5]بيانات معلمين'!BS16) ->  | JQ17: =IF('[5]بيانات معلمين'!BT16=0,"",'[5]بيانات معلمين'!BT16) ->  | JR17: 104.13 | JS17: =IF('[5]بيانات معلمين'!BV16=0,"",'[5]بيانات معلمين'!BV16) ->  | JT17: =IF('[5]بيانات معلمين'!BW16=0,"",'[5]بيانات معلمين'!BW16) ->  | JU17: =IF('[5]بيانات معلمين'!BX16=0,"",'[5]بيانات معلمين'!BX16) ->  | JV17: =IF('[5]بيانات معلمين'!BY16=0,"",'[5]بيانات معلمين'!BY16) ->  | JW17: =IF('[5]بيانات معلمين'!BZ16=0,"",'[5]بيانات معلمين'!BZ16) ->  | JX17: =IF('[5]بيانات معلمين'!CA16=0,"",'[5]بيانات معلمين'!CA16) ->  | JY17: =IF('[5]بيانات معلمين'!CB16=0,"",'[5]بيانات معلمين'!CB16) ->  | JZ17: 0 | KA17: =IF('[5]بيانات معلمين'!CD16=0,"",'[5]بيانات معلمين'!CD16) ->  | KB17: =IF('[5]بيانات معلمين'!CE16=0,"",'[5]بيانات معلمين'!CE16) ->  | KC17: =IF('[5]بيانات معلمين'!CF16=0,"",'[5]بيانات معلمين'!CF16) ->  | KD17: =IF('[5]بيانات معلمين'!CG16=0,"",ROUND(IF(($HD17+($HE17*50%)-$HE17-(11%*$HD17)-$JC17-$JR17-$KE17-$HH17-HE17/47-2000)*0.025<=0,0,($HD17+($HE17*50%)-$HE17-(11%*$HD17)-$JC17-$JR17-$KE17-$HH17-HE17/47-2000)*0.025),2)) ->  | KE17: =IF('[5]بيانات معلمين'!CH16=0,"",'[5]بيانات معلمين'!CH16) -> 6.83 | KF17: =IF('[5]بيانات معلمين'!CI16=0,"",'[5]بيانات معلمين'!CI16) ->  | KG17: =IF('[5]بيانات معلمين'!CJ16=0,"",'[5]بيانات معلمين'!CJ16) ->  | KH17: =IF('[5]بيانات معلمين'!CK16=0,"",'[5]بيانات معلمين'!CK16) ->  | KI17: =IF('[5]بيانات معلمين'!CL16=0,"",'[5]بيانات معلمين'!CL16) ->  | KJ17: =IF('[5]بيانات معلمين'!CM16=0,"",'[5]بيانات معلمين'!CM16) ->  | KK17: =IF('[5]بيانات معلمين'!CN16=0,"",'[5]بيانات معلمين'!CN16) -> 26.6294 | KL17: 33.4594 | KM17: 45.94 | KN17: 33 | KO17: 0.0206 | KP17: 1018.1 | KQ17: 3127.55 | KR17: =IF('[5]بيانات معلمين'!CR16=0,"",'[5]بيانات معلمين'!CR16) -> خالد عبدالراضى احمد عبدالرحمن | KS17: =IF('[5]بيانات معلمين'!CS16=0,"",'[5]بيانات معلمين'!CS16) -> البنك الأهلى | KT17: =IF('[5]بيانات معلمين'!CT16=0,"",'[5]بيانات معلمين'!CT16) ->  | KU17: =IF('[5]بيانات معلمين'!CU16=0,"",'[5]بيانات معلمين'!CU16) -> 27404142700579 | KW17: 10 | KY17: 3127.5706 | LE17: ='[5]جزاءات 155'!F16 -> 0 | LF17: ='[5]جزاءات 155'!E16 -> 0 | AES17: =IF('[5]استقطاعات 155'!Q16="","",'[5]مرتب 155'!M16) ->  | AEU17: 10 | AEY17: ='[5]استقطاعات 155'!Q16 -> 0 | AFA17: 0 | AFB17: 0 | AFC17: -10000 | AFD17: 0 | AFE17: 0 | AFF17: -40000 | AFG17: 0 | AFH17: 0 | AFI17: 0 | AFJ17: 0 | AFK17: 0 | AFL17: 0 | AFM17: 0
A18: 1 | B18: 1 | C18: ='[5]مرتب 155'!C17 -> معلم خبير | D18: ='[5]مرتب 155'!D17 -> مدير عام | E18: 12 | F18: 1 | G18: ='[5]ادخال بيانات 155'!N17 -> أهلى | H18: =IF(B18="","",SUBTOTAL(3,$B$8:B18)) -> 11 | I18: =IF('[5]مرتب 155'!I17="","",('[5]مرتب 155'!I17-TRUNC('[5]مرتب 155'!I17))*100) -> 31 | J18: =IF('[5]مرتب 155'!I17="","",TRUNC('[5]مرتب 155'!I17)) -> 546 | K18: =IF('[5]مرتب 155'!J17="","",('[5]مرتب 155'!J17-TRUNC('[5]مرتب 155'!J17))*100) -> 0 | L18: =IF('[5]مرتب 155'!J17="","",TRUNC('[5]مرتب 155'!J17)) -> 84000 | M18: =IF('[5]مرتب 155'!K17="","",('[5]مرتب 155'!K17-TRUNC('[5]مرتب 155'!K17))*100) -> 27 | N18: =IF('[5]مرتب 155'!K17="","",TRUNC('[5]مرتب 155'!K17)) -> 40639 | O18: =IF('[5]مرتب 155'!L17="","",('[5]مرتب 155'!L17-TRUNC('[5]مرتب 155'!L17))*100) -> 36 | P18: =IF('[5]مرتب 155'!L17="","",TRUNC('[5]مرتب 155'!L17)) -> 4138 | Q18: =IF('[5]مرتب 155'!M17="","",('[5]مرتب 155'!M17-TRUNC('[5]مرتب 155'!M17))*100) -> 56 | R18: =IF('[5]مرتب 155'!M17="","",TRUNC('[5]مرتب 155'!M17)) -> 1542 | S18: =IF($ASM$3=1,"",IF('[5]مرتب 155'!P17="","",('[5]مرتب 155'!P17-TRUNC('[5]مرتب 155'!P17))*100)) -> 50 | T18: =IF($ASM$3=1,"",IF('[5]مرتب 155'!P17="","",TRUNC('[5]مرتب 155'!P17))) -> 37 | U18: =IF('[5]مرتب 155'!$Q17="","",('[5]مرتب 155'!$Q17-TRUNC('[5]مرتب 155'!$Q17))*100) -> 31 | V18: =IF('[5]مرتب 155'!$Q17="","",TRUNC('[5]مرتب 155'!$Q17)) -> 51 | W18: =IF('[5]مرتب 155'!$R17="","",('[5]مرتب 155'!$R17-TRUNC('[5]مرتب 155'!$R17))*100) -> 63 | X18: =IF('[5]مرتب 155'!$R17="","",TRUNC('[5]مرتب 155'!$R17)) -> 54 | Y18: =IF($ASK$3=1,"",IF('[5]مرتب 155'!S17="","",('[5]مرتب 155'!S17-TRUNC('[5]مرتب 155'!S17))*100)) -> 16 | Z18: =IF($ASK$3=1,"",IF('[5]مرتب 155'!S17="","",TRUNC('[5]مرتب 155'!S17))) -> 273 | AA18: =IF($ASI$5=1,"",IF('[5]مرتب 155'!T17="","",('[5]مرتب 155'!T17-TRUNC('[5]مرتب 155'!T17))*100)) -> 4 | AB18: =IF($ASI$5=1,"",IF('[5]مرتب 155'!T17="","",TRUNC('[5]مرتب 155'!T17))) -> 956 | AC18: =IF($ASL$6=1,"",IF('[5]مرتب 155'!U17="","",('[5]مرتب 155'!U17-TRUNC('[5]مرتب 155'!U17))*100)) -> 58 | AD18: =IF($ASL$6=1,"",IF('[5]مرتب 155'!U17="","",TRUNC('[5]مرتب 155'!U17))) -> 136 | AE18: =IF($ASI$6=1,"",IF('[5]مرتب 155'!V17="","",('[5]مرتب 155'!V17-TRUNC('[5]مرتب 155'!V17))*100)) -> 58 | AF18: =IF($ASI$6=1,"",IF('[5]مرتب 155'!V17="","",TRUNC('[5]مرتب 155'!V17))) -> 136 | AG18: =IF($ASI$4=1,"",IF('[5]مرتب 155'!W17="","",('[5]مرتب 155'!W17-TRUNC('[5]مرتب 155'!W17))*100)) -> 0 | AH18: =IF($ASI$4=1,"",IF('[5]مرتب 155'!W17="","",TRUNC('[5]مرتب 155'!W17))) -> 325 | AI18: =IF('[5]مرتب 155'!X17="","",('[5]مرتب 155'!X17-TRUNC('[5]مرتب 155'!X17))*100) -> 0 | AJ18: =IF('[5]مرتب 155'!X17="","",TRUNC('[5]مرتب 155'!X17)) -> 6 | AK18: =IF('[5]مرتب 155'!Y17="","",('[5]مرتب 155'!Y17-TRUNC('[5]مرتب 155'!Y17))*100) -> 0 | AL18: =IF('[5]مرتب 155'!Y17="","",TRUNC('[5]مرتب 155'!Y17)) -> 4 | AM18: =IF($ASB$4=1,"",IF('[5]مرتب 155'!Z17="","",('[5]مرتب 155'!Z17-TRUNC('[5]مرتب 155'!Z17))*100)) -> 0 | AN18: =IF($ASB$4=1,"",IF('[5]مرتب 155'!Z17="","",TRUNC('[5]مرتب 155'!Z17))) -> 100 | AO18: =IF('[5]مرتب 155'!AA17="","",('[5]مرتب 155'!AA17-TRUNC('[5]مرتب 155'!AA17))*100) -> 0 | AP18: =IF('[5]مرتب 155'!AA17="","",TRUNC('[5]مرتب 155'!AA17)) -> 40 | AQ18: =IF('[5]مرتب 155'!AB17="","",('[5]مرتب 155'!AB17-TRUNC('[5]مرتب 155'!AB17))*100) ->  | AR18: =IF('[5]مرتب 155'!AB17="","",TRUNC('[5]مرتب 155'!AB17)) ->  | AS18: =IF('[5]مرتب 155'!AC17="","",('[5]مرتب 155'!AC17-TRUNC('[5]مرتب 155'!AC17))*100) ->  | AT18: =IF('[5]مرتب 155'!AC17="","",TRUNC('[5]مرتب 155'!AC17)) ->  | AU18: =IF('[5]مرتب 155'!AD17="","",('[5]مرتب 155'!AD17-TRUNC('[5]مرتب 155'!AD17))*100) ->  | AV18: =IF('[5]مرتب 155'!AD17="","",TRUNC('[5]مرتب 155'!AD17)) ->  | AW18: =IF('[5]مرتب 155'!AE17="","",('[5]مرتب 155'!AE17-TRUNC('[5]مرتب 155'!AE17))*100) ->  | AX18: =IF('[5]مرتب 155'!AE17="","",TRUNC('[5]مرتب 155'!AE17)) ->  | AY18: =IF('[5]مرتب 155'!AF17="","",('[5]مرتب 155'!AF17-TRUNC('[5]مرتب 155'!AF17))*100) -> 0 | AZ18: =IF('[5]مرتب 155'!AF17="","",TRUNC('[5]مرتب 155'!AF17)) -> 475 | BA18: =IF('[5]مرتب 155'!AG17="","",('[5]مرتب 155'!AG17-TRUNC('[5]مرتب 155'!AG17))*100) ->  | BB18: =IF('[5]مرتب 155'!AG17="","",TRUNC('[5]مرتب 155'!AG17)) ->  | BC18: =IF('[5]مرتب 155'!AH17="","",('[5]مرتب 155'!AH17-TRUNC('[5]مرتب 155'!AH17))*100) ->  | BD18: =IF('[5]مرتب 155'!AH17="","",TRUNC('[5]مرتب 155'!AH17)) ->  | BE18: =IF('[5]مرتب 155'!AI17="","",('[5]مرتب 155'!AI17-TRUNC('[5]مرتب 155'!AI17))*100) ->  | BF18: =IF('[5]مرتب 155'!AI17="","",TRUNC('[5]مرتب 155'!AI17)) ->  | BG18: =IF('[5]مرتب 155'!AJ17="","",('[5]مرتب 155'!AJ17-TRUNC('[5]مرتب 155'!AJ17))*100) ->  | BH18: =IF('[5]مرتب 155'!AJ17="","",TRUNC('[5]مرتب 155'!AJ17)) ->  | BI18: =IF('[5]مرتب 155'!AK17="","",('[5]مرتب 155'!AK17-TRUNC('[5]مرتب 155'!AK17))*100) ->  | BJ18: =IF('[5]مرتب 155'!AK17="","",TRUNC('[5]مرتب 155'!AK17)) ->  | BK18: =IF('[5]مرتب 155'!AL17="","",('[5]مرتب 155'!AL17-TRUNC('[5]مرتب 155'!AL17))*100) ->  | BL18: =IF('[5]مرتب 155'!AL17="","",TRUNC('[5]مرتب 155'!AL17)) ->  | BM18: =IF('[5]مرتب 155'!AM17="","",('[5]مرتب 155'!AM17-TRUNC('[5]مرتب 155'!AM17))*100) ->  | BN18: =IF('[5]مرتب 155'!AM17="","",TRUNC('[5]مرتب 155'!AM17)) ->  | BO18: =IF('[5]مرتب 155'!AN17="","",('[5]مرتب 155'!AN17-TRUNC('[5]مرتب 155'!AN17))*100) ->  | BP18: =IF('[5]مرتب 155'!AN17="","",TRUNC('[5]مرتب 155'!AN17)) ->  | BQ18: =IF('[5]مرتب 155'!AO17="","",('[5]مرتب 155'!AO17-TRUNC('[5]مرتب 155'!AO17))*100) ->  | BR18: =IF('[5]مرتب 155'!AO17="","",TRUNC('[5]مرتب 155'!AO17)) ->  | BS18: =IF('[5]مرتب 155'!AP17="","",('[5]مرتب 155'!AP17-TRUNC('[5]مرتب 155'!AP17))*100) -> 60 | BT18: =IF('[5]مرتب 155'!AP17="","",TRUNC('[5]مرتب 155'!AP17)) -> 496 | BU18: =IF('[5]مرتب 155'!AQ17="","",('[5]مرتب 155'!AQ17-TRUNC('[5]مرتب 155'!AQ17))*100) -> 15 | BV18: =IF('[5]مرتب 155'!AQ17="","",TRUNC('[5]مرتب 155'!AQ17)) -> 124 | BW18: =IF('[5]مرتب 155'!AR17="","",('[5]مرتب 155'!AR17-TRUNC('[5]مرتب 155'!AR17))*100) -> 38 | BX18: =IF('[5]مرتب 155'!AR17="","",TRUNC('[5]مرتب 155'!AR17)) -> 41 | BY18: =IF('[5]مرتب 155'!AS17="","",('[5]مرتب 155'!AS17-TRUNC('[5]مرتب 155'!AS17))*100) -> 73 | BZ18: =IF('[5]مرتب 155'!AS17="","",TRUNC('[5]مرتب 155'!AS17)) -> 51 | CA18: =IF('[5]مرتب 155'!AT17="","",('[5]مرتب 155'!AT17-TRUNC('[5]مرتب 155'!AT17))*100) -> 0 | CB18: =IF('[5]مرتب 155'!AT17="","",TRUNC('[5]مرتب 155'!AT17)) -> 10 | CC18: =IF($ASH$2=1,"",IF('[5]مرتب 155'!AU17="","",('[5]مرتب 155'!AU17-TRUNC('[5]مرتب 155'!AU17))*100)) -> 26 | CD18: =IF($ASH$2=1,"",IF('[5]مرتب 155'!AU17="","",TRUNC('[5]مرتب 155'!AU17))) -> 481 | CE18: =IF('[5]مرتب 155'!AV17="","",('[5]مرتب 155'!AV17-TRUNC('[5]مرتب 155'!AV17))*100) -> 48 | CF18: =IF('[5]مرتب 155'!AV17="","",TRUNC('[5]مرتب 155'!AV17)) -> 5343 | CG18: =IF('[5]مرتب 155'!AW17="","",('[5]مرتب 155'!AW17-TRUNC('[5]مرتب 155'!AW17))*100) -> 60 | CH18: =IF('[5]مرتب 155'!AW17="","",TRUNC('[5]مرتب 155'!AW17)) -> 496 | CI18: =IF('[5]مرتب 155'!AX17="","",('[5]مرتب 155'!AX17-TRUNC('[5]مرتب 155'!AX17))*100) -> 45 | CJ18: =IF('[5]مرتب 155'!AX17="","",TRUNC('[5]مرتب 155'!AX17)) -> 372 | CK18: =IF('[5]مرتب 155'!AY17="","",('[5]مرتب 155'!AY17-TRUNC('[5]مرتب 155'!AY17))*100) -> 38 | CL18: =IF('[5]مرتب 155'!AY17="","",TRUNC('[5]مرتب 155'!AY17)) -> 41 | CM18: =IF('[5]مرتب 155'!BB17="","",('[5]مرتب 155'!BB17-TRUNC('[5]مرتب 155'!BB17))*100) -> 38 | CN18: =IF('[5]مرتب 155'!BB17="","",TRUNC('[5]مرتب 155'!BB17)) -> 41 | CO18: =IF('[5]مرتب 155'!AZ17="","",('[5]مرتب 155'!AZ17-TRUNC('[5]مرتب 155'!AZ17))*100) -> 15 | CP18: =IF('[5]مرتب 155'!AZ17="","",TRUNC('[5]مرتب 155'!AZ17)) -> 124 | CQ18: =IF('[5]مرتب 155'!BA17="","",('[5]مرتب 155'!BA17-TRUNC('[5]مرتب 155'!BA17))*100) -> 38 | CR18: =IF('[5]مرتب 155'!BA17="","",TRUNC('[5]مرتب 155'!BA17)) -> 41 | CS18: =IF('[5]مرتب 155'!BC17="","",('[5]مرتب 155'!BC17-TRUNC('[5]مرتب 155'!BC17))*100) -> 73 | CT18: =IF('[5]مرتب 155'!BC17="","",TRUNC('[5]مرتب 155'!BC17)) -> 51 | CU18: =IF('[5]مرتب 155'!BD17="","",('[5]مرتب 155'!BD17-TRUNC('[5]مرتب 155'!BD17))*100) -> 7 | CV18: =IF('[5]مرتب 155'!BD17="","",TRUNC('[5]مرتب 155'!BD17)) -> 1169 | CW18: =IF('[5]مرتب 155'!BE17="","",('[5]مرتب 155'!BE17-TRUNC('[5]مرتب 155'!BE17))*100) ->  | CX18: =IF('[5]مرتب 155'!BE17="","",TRUNC('[5]مرتب 155'!BE17)) ->  | CY18: =IF('[5]مرتب 155'!BF17="","",('[5]مرتب 155'!BF17-TRUNC('[5]مرتب 155'!BF17))*100) ->  | CZ18: =IF('[5]مرتب 155'!BF17="","",TRUNC('[5]مرتب 155'!BF17)) ->  | DA18: =IF('[5]مرتب 155'!BG17="","",('[5]مرتب 155'!BG17-TRUNC('[5]مرتب 155'!BG17))*100) ->  | DB18: =IF('[5]مرتب 155'!BG17="","",TRUNC('[5]مرتب 155'!BG17)) ->  | DC18: =IF('[5]مرتب 155'!BH17="","",('[5]مرتب 155'!BH17-TRUNC('[5]مرتب 155'!BH17))*100) -> 0 | DD18: =IF('[5]مرتب 155'!BH17="","",TRUNC('[5]مرتب 155'!BH17)) -> 0 | DE18: =IF('[5]مرتب 155'!BI17="","",('[5]مرتب 155'!BI17-TRUNC('[5]مرتب 155'!BI17))*100) -> 50 | DF18: =IF('[5]مرتب 155'!BI17="","",TRUNC('[5]مرتب 155'!BI17)) -> 4 | DG18: =IF('[5]مرتب 155'!BJ17="","",('[5]مرتب 155'!BJ17-TRUNC('[5]مرتب 155'!BJ17))*100) -> 98 | DH18: =IF('[5]مرتب 155'!BJ17="","",TRUNC('[5]مرتب 155'!BJ17)) -> 107 | DI18: =IF('[5]مرتب 155'!BK17="","",('[5]مرتب 155'!BK17-TRUNC('[5]مرتب 155'!BK17))*100) -> 0 | DJ18: =IF('[5]مرتب 155'!BK17="","",TRUNC('[5]مرتب 155'!BK17)) -> 3 | DK18: =IF('[5]مرتب 155'!BL17="","",('[5]مرتب 155'!BL17-TRUNC('[5]مرتب 155'!BL17))*100) -> 0 | DL18: =IF('[5]مرتب 155'!BL17="","",TRUNC('[5]مرتب 155'!BL17)) -> 1 | DM18: =IF('[5]مرتب 155'!BM17="","",('[5]مرتب 155'!BM17-TRUNC('[5]مرتب 155'!BM17))*100) ->  | DN18: =IF('[5]مرتب 155'!BM17="","",TRUNC('[5]مرتب 155'!BM17)) ->  | DO18: =IF('[5]مرتب 155'!BN17="","",('[5]مرتب 155'!BN17-TRUNC('[5]مرتب 155'!BN17))*100) ->  | DP18: =IF('[5]مرتب 155'!BN17="","",TRUNC('[5]مرتب 155'!BN17)) ->  | DQ18: =IF('[5]مرتب 155'!BO17="","",('[5]مرتب 155'!BO17-TRUNC('[5]مرتب 155'!BO17))*100) ->  | DR18: =IF('[5]مرتب 155'!BO17="","",TRUNC('[5]مرتب 155'!BO17)) ->  | DS18: =IF('[5]مرتب 155'!BP17="","",('[5]مرتب 155'!BP17-TRUNC('[5]مرتب 155'!BP17))*100) ->  | DT18: =IF('[5]مرتب 155'!BP17="","",TRUNC('[5]مرتب 155'!BP17)) ->  | DU18: =IF('[5]مرتب 155'!BQ17="","",('[5]مرتب 155'!BQ17-TRUNC('[5]مرتب 155'!BQ17))*100) ->  | DV18: =IF('[5]مرتب 155'!BQ17="","",TRUNC('[5]مرتب 155'!BQ17)) ->  | DW18: =IF('[5]مرتب 155'!BR17="","",('[5]مرتب 155'!BR17-TRUNC('[5]مرتب 155'!BR17))*100) ->  | DX18: =IF('[5]مرتب 155'!BR17="","",TRUNC('[5]مرتب 155'!BR17)) ->  | DY18: =IF('[5]مرتب 155'!BS17="","",('[5]مرتب 155'!BS17-TRUNC('[5]مرتب 155'!BS17))*100) ->  | DZ18: =IF('[5]مرتب 155'!BS17="","",TRUNC('[5]مرتب 155'!BS17)) ->  | EA18: =IF('[5]مرتب 155'!BT17="","",('[5]مرتب 155'!BT17-TRUNC('[5]مرتب 155'!BT17))*100) -> 0 | EB18: =IF('[5]مرتب 155'!BT17="","",TRUNC('[5]مرتب 155'!BT17)) -> 0 | EC18: =IF('[5]مرتب 155'!BU17="","",('[5]مرتب 155'!BU17-TRUNC('[5]مرتب 155'!BU17))*100) ->  | ED18: =IF('[5]مرتب 155'!BU17="","",TRUNC('[5]مرتب 155'!BU17)) ->  | EE18: =IF('[5]مرتب 155'!BV17="","",('[5]مرتب 155'!BV17-TRUNC('[5]مرتب 155'!BV17))*100) ->  | EF18: =IF('[5]مرتب 155'!BV17="","",TRUNC('[5]مرتب 155'!BV17)) ->  | EG18: =IF('[5]مرتب 155'!BW17="","",('[5]مرتب 155'!BW17-TRUNC('[5]مرتب 155'!BW17))*100) -> 48 | EH18: =IF('[5]مرتب 155'!BW17="","",TRUNC('[5]مرتب 155'!BW17)) -> 116 | EI18: =IF('[5]مرتب 155'!BX17="","",('[5]مرتب 155'!BX17-TRUNC('[5]مرتب 155'!BX17))*100) ->  | EJ18: =IF('[5]مرتب 155'!BX17="","",TRUNC('[5]مرتب 155'!BX17)) ->  | EK18: =IF('[5]مرتب 155'!BY17="","",('[5]مرتب 155'!BY17-TRUNC('[5]مرتب 155'!BY17))*100) ->  | EL18: =IF('[5]مرتب 155'!BY17="","",TRUNC('[5]مرتب 155'!BY17)) ->  | EM18: =IF('[5]مرتب 155'!BZ17="","",('[5]مرتب 155'!BZ17-TRUNC('[5]مرتب 155'!BZ17))*100) ->  | EN18: =IF('[5]مرتب 155'!BZ17="","",TRUNC('[5]مرتب 155'!BZ17)) ->  | EO18: =IF('[5]مرتب 155'!CA17="","",('[5]مرتب 155'!CA17-TRUNC('[5]مرتب 155'!CA17))*100) ->  | EP18: =IF('[5]مرتب 155'!CA17="","",TRUNC('[5]مرتب 155'!CA17)) ->  | EQ18: =IF('[5]مرتب 155'!CB17="","",('[5]مرتب 155'!CB17-TRUNC('[5]مرتب 155'!CB17))*100) ->  | ER18: =IF('[5]مرتب 155'!CB17="","",TRUNC('[5]مرتب 155'!CB17)) ->  | ES18: =IF('[5]مرتب 155'!CC17="","",('[5]مرتب 155'!CC17-TRUNC('[5]مرتب 155'!CC17))*100) ->  | ET18: =IF('[5]مرتب 155'!CC17="","",TRUNC('[5]مرتب 155'!CC17)) ->  | EU18: =IF('[5]مرتب 155'!CD17="","",('[5]مرتب 155'!CD17-TRUNC('[5]مرتب 155'!CD17))*100) ->  | EV18: =IF('[5]مرتب 155'!CD17="","",TRUNC('[5]مرتب 155'!CD17)) ->  | EW18: =IF('[5]مرتب 155'!CE17="","",('[5]مرتب 155'!CE17-TRUNC('[5]مرتب 155'!CE17))*100) -> 0 | EX18: =IF('[5]مرتب 155'!CE17="","",TRUNC('[5]مرتب 155'!CE17)) -> 0 | EY18: =IF('[5]مرتب 155'!CF17="","",('[5]مرتب 155'!CF17-TRUNC('[5]مرتب 155'!CF17))*100) ->  | EZ18: =IF('[5]مرتب 155'!CF17="","",TRUNC('[5]مرتب 155'!CF17)) ->  | FA18: =IF('[5]مرتب 155'!CG17="","",('[5]مرتب 155'!CG17-TRUNC('[5]مرتب 155'!CG17))*100) ->  | FB18: =IF('[5]مرتب 155'!CG17="","",TRUNC('[5]مرتب 155'!CG17)) ->  | FC18: =IF('[5]مرتب 155'!CH17="","",('[5]مرتب 155'!CH17-TRUNC('[5]مرتب 155'!CH17))*100) ->  | FD18: =IF('[5]مرتب 155'!CH17="","",TRUNC('[5]مرتب 155'!CH17)) ->  | FE18: =IF('[5]مرتب 155'!CI17="","",('[5]مرتب 155'!CI17-TRUNC('[5]مرتب 155'!CI17))*100) -> 93 | FF18: =IF('[5]مرتب 155'!CI17="","",TRUNC('[5]مرتب 155'!CI17)) -> 17 | FG18: =IF('[5]مرتب 155'!CJ17="","",('[5]مرتب 155'!CJ17-TRUNC('[5]مرتب 155'!CJ17))*100) -> 71 | FH18: =IF('[5]مرتب 155'!CJ17="","",TRUNC('[5]مرتب 155'!CJ17)) -> 7 | FI18: =IF('[5]مرتب 155'!CK17="","",('[5]مرتب 155'!CK17-TRUNC('[5]مرتب 155'!CK17))*100) ->  | FJ18: =IF('[5]مرتب 155'!CK17="","",TRUNC('[5]مرتب 155'!CK17)) ->  | FM18: =IF('[5]مرتب 155'!CM17="","",('[5]مرتب 155'!CM17-TRUNC('[5]مرتب 155'!CM17))*100) ->  | FN18: =IF('[5]مرتب 155'!CM17="","",TRUNC('[5]مرتب 155'!CM17)) ->  | FO18: =IF('[5]مرتب 155'!CN17="","",('[5]مرتب 155'!CN17-TRUNC('[5]مرتب 155'!CN17))*100) ->  | FP18: =IF('[5]مرتب 155'!CN17="","",TRUNC('[5]مرتب 155'!CN17)) ->  | FQ18: =IF('[5]مرتب 155'!CO17="","",('[5]مرتب 155'!CO17-TRUNC('[5]مرتب 155'!CO17))*100) ->  | FR18: =IF('[5]مرتب 155'!CO17="","",TRUNC('[5]مرتب 155'!CO17)) ->  | FS18: =IF('[5]مرتب 155'!CP17="","",('[5]مرتب 155'!CP17-TRUNC('[5]مرتب 155'!CP17))*100) -> 41.03 | FT18: =IF('[5]مرتب 155'!CP17="","",TRUNC('[5]مرتب 155'!CP17)) -> 35 | FU18: =IF('[5]مرتب 155'!CQ17="","",('[5]مرتب 155'!CQ17-TRUNC('[5]مرتب 155'!CQ17))*100) -> 2.97 | FV18: =IF('[5]مرتب 155'!CQ17="","",TRUNC('[5]مرتب 155'!CQ17)) -> 0 | FW18: =IF('[5]مرتب 155'!CR17="","",('[5]مرتب 155'!CR17-TRUNC('[5]مرتب 155'!CR17))*100) -> 63 | FX18: =IF('[5]مرتب 155'!CR17="","",TRUNC('[5]مرتب 155'!CR17)) -> 1346 | FY18: =IF('[5]مرتب 155'!CS17="","",('[5]مرتب 155'!CS17-TRUNC('[5]مرتب 155'!CS17))*100) -> 85 | FZ18: =IF('[5]مرتب 155'!CS17="","",TRUNC('[5]مرتب 155'!CS17)) -> 3996 | GA18: 11 | GB18: ='[5]مرتب 155'!CU17 -> البنك الأهلى | GC18: ='[5]مرتب 155'!CV17 ->  | GD18: 11 | GE18: 11 | GR18: 11 | GS18: 11 | GT18: =IF('[5]بيانات معلمين'!B17=0,"",'[5]بيانات معلمين'!B17) -> سعيد محمد عطيه محمد | GU18: =IF('[5]بيانات معلمين'!C17=0,"",'[5]بيانات معلمين'!C17) -> معلم خبير | GV18: =IF('[5]بيانات معلمين'!D17=0,"",'[5]بيانات معلمين'!D17) -> مدير عام | GW18: 1 | GX18: 1 | GY18: دفع | GZ18: =IF(GT18="","",SUBTOTAL(3,GT$8:GT18)) -> 11 | HA18: =IF('[5]بيانات معلمين'!G17=0,"",IF($LF18=0,ROUND(($LE$5-$LE18)*'[5]بيانات معلمين'!G17/$LE$5,2),IF($LE18=0,ROUND($LF18*'[5]بيانات معلمين'!G17/$LE$5,2)))) -> 546.31 | HD18: 4138.36 | HE18: =IF('[5]بيانات معلمين'!K17=0,"",IF($LF18=0,ROUND(($LE$5-$LE18)*'[5]بيانات معلمين'!K17/$LE$5,2),IF($LE18=0,ROUND($LF18*'[5]بيانات معلمين'!K17/$LE$5,2)))) -> 1542.56 | HF18: =IF('[5]بيانات معلمين'!L17=0,0,IF($LF18=0,ROUND(($LE$5-$LE18)*'[5]بيانات معلمين'!L17/$LE$5,2),IF($LE18=0,ROUND($LF18*'[5]بيانات معلمين'!L17/$LE$5,2)))) -> 37.5 | HG18: =IF('[5]بيانات معلمين'!M17=0,0,IF($LF18=0,ROUND(($LE$5-$LE18)*'[5]بيانات معلمين'!M17/$LE$5,2),IF($LE18=0,ROUND($LF18*'[5]بيانات معلمين'!M17/$LE$5,2)))) -> 0 | HH18: 37.5 | HI18: =IF('[5]بيانات معلمين'!O17=0,"",IF($LF18=0,ROUND(($LE$5-$LE18)*'[5]بيانات معلمين'!O17/$LE$5,2),IF($LE18=0,ROUND($LF18*'[5]بيانات معلمين'!O17/$LE$5,2)))) -> 51.31 | HJ18: =IF('[5]بيانات معلمين'!P17=0,"",IF($LF18=0,ROUND(($LE$5-$LE18)*'[5]بيانات معلمين'!P17/$LE$5,2),IF($LE18=0,ROUND($LF18*'[5]بيانات معلمين'!P17/$LE$5,2)))) -> 54.63 | HK18: =IF($ASK$3=1,"",IF('[5]بيانات معلمين'!Q17=0,"",IF($LF18=0,ROUND(($LE$5-$LE18)*'[5]بيانات معلمين'!Q17/$LE$5,2),IF($LE18=0,ROUND($LF18*'[5]بيانات معلمين'!Q17/$LE$5,2))))) -> 273.16 | HL18: =IF($ASI$5=1,"",IF('[5]بيانات معلمين'!R17=0,"",IF($LF18=0,ROUND(($LE$5-$LE18)*'[5]بيانات معلمين'!R17/$LE$5,2),IF($LE18=0,ROUND($LF18*'[5]بيانات معلمين'!R17/$LE$5,2))))) -> 956.04 | HM18: =IF($ASL$6=1,"",IF('[5]بيانات معلمين'!S17=0,"",IF($LF18=0,ROUND(($LE$5-$LE18)*'[5]بيانات معلمين'!S17/$LE$5,2),IF($LE18=0,ROUND($LF18*'[5]بيانات معلمين'!S17/$LE$5,2))))) -> 136.58 | HN18: =IF($ASI$6=1,"",IF('[5]بيانات معلمين'!T17=0,"",IF($LF18=0,ROUND(($LE$5-$LE18)*'[5]بيانات معلمين'!T17/$LE$5,2),IF($LE18=0,ROUND($LF18*'[5]بيانات معلمين'!T17/$LE$5,2))))) -> 136.58 | HO18: =IF($ASI$4=1,"",IF('[5]بيانات معلمين'!U17=0,"",IF($LF18=0,ROUND(($LE$5-$LE18)*'[5]بيانات معلمين'!U17/$LE$5,2),IF($LE18=0,ROUND($LF18*'[5]بيانات معلمين'!U17/$LE$5,2))))) -> 325 | HP18: =IF('[5]بيانات معلمين'!V17=0,"",IF($LF18=0,ROUND(($LE$5-$LE18)*'[5]بيانات معلمين'!V17/$LE$5,2),IF($LE18=0,ROUND($LF18*'[5]بيانات معلمين'!V17/$LE$5,2)))) -> 6 | HQ18: =IF('[5]بيانات معلمين'!W17=0,"",IF($LF18=0,ROUND(($LE$5-$LE18)*'[5]بيانات معلمين'!W17/$LE$5,2),IF($LE18=0,ROUND($LF18*'[5]بيانات معلمين'!W17/$LE$5,2)))) -> 4 | HR18: =IF($ASB$4=1,"",IF('[5]بيانات معلمين'!X17=0,"",IF($LF18=0,ROUND(($LE$5-$LE18)*'[5]بيانات معلمين'!X17/$LE$5,2),IF($LE18=0,ROUND($LF18*'[5]بيانات معلمين'!X17/$LE$5,2))))) -> 100 | HS18: =IF('[5]بيانات معلمين'!Y17=0,"",IF($LF18=0,ROUND(($LE$5-$LE18)*'[5]بيانات معلمين'!Y17/$LE$5,2),IF($LE18=0,ROUND($LF18*'[5]بيانات معلمين'!Y17/$LE$5,2)))) -> 40 | HT18: =IF('[5]بيانات معلمين'!Z17=0,"",IF($LF18=0,ROUND(($LE$5-$LE18)*'[5]بيانات معلمين'!Z17/$LE$5,2),IF($LE18=0,ROUND($LF18*'[5]بيانات معلمين'!Z17/$LE$5,2)))) ->  | HU18: =IF('[5]بيانات معلمين'!AA17=0,"",IF($LF18=0,ROUND(($LE$5-$LE18)*'[5]بيانات معلمين'!AA17/$LE$5,2),IF($LE18=0,ROUND($LF18*'[5]بيانات معلمين'!AA17/$LE$5,2)))) ->  | HV18: =IF('[5]بيانات معلمين'!AB17=0,"",IF($LF18=0,ROUND(($LE$5-$LE18)*'[5]بيانات معلمين'!AB17/$LE$5,2),IF($LE18=0,ROUND($LF18*'[5]بيانات معلمين'!AB17/$LE$5,2)))) ->  | HW18: =IF('[5]بيانات معلمين'!AC17=0,"",IF($LF18=0,ROUND(($LE$5-$LE18)*'[5]بيانات معلمين'!AC17/$LE$5,2),IF($LE18=0,ROUND($LF18*'[5]بيانات معلمين'!AC17/$LE$5,2)))) ->  | HX18: =IF('[5]بيانات معلمين'!AD17=0,"",IF($LF18=0,ROUND(($LE$5-$LE18)*'[5]بيانات معلمين'!AD17/$LE$5,2),IF($LE18=0,ROUND($LF18*'[5]بيانات معلمين'!AD17/$LE$5,2)))) -> 475 | HY18: =IF('[5]بيانات معلمين'!AE17=0,"",IF($LF18=0,ROUND(($LE$5-$LE18)*'[5]بيانات معلمين'!AE17/$LE$5,2),IF($LE18=0,ROUND($LF18*'[5]بيانات معلمين'!AE17/$LE$5,2)))) ->  | HZ18: =IF('[5]بيانات معلمين'!AF17=0,"",IF($LF18=0,ROUND(($LE$5-$LE18)*'[5]بيانات معلمين'!AF17/$LE$5,2),IF($LE18=0,ROUND($LF18*'[5]بيانات معلمين'!AF17/$LE$5,2)))) ->  | IA18: =IF('[5]بيانات معلمين'!AG17=0,"",IF($LF18=0,ROUND(($LE$5-$LE18)*'[5]بيانات معلمين'!AG17/$LE$5,2),IF($LE18=0,ROUND($LF18*'[5]بيانات معلمين'!AG17/$LE$5,2)))) ->  | IB18: =IF('[5]بيانات معلمين'!AH17=0,"",IF($LF18=0,ROUND(($LE$5-$LE18)*'[5]بيانات معلمين'!AH17/$LE$5,2),IF($LE18=0,ROUND($LF18*'[5]بيانات معلمين'!AH17/$LE$5,2)))) ->  | IC18: =IF('[5]بيانات معلمين'!AI17=0,"",IF($LF18=0,ROUND(($LE$5-$LE18)*'[5]بيانات معلمين'!AI17/$LE$5,2),IF($LE18=0,ROUND($LF18*'[5]بيانات معلمين'!AI17/$LE$5,2)))) ->  | ID18: =IF('[5]بيانات معلمين'!AJ17=0,"",IF($LF18=0,ROUND(($LE$5-$LE18)*'[5]بيانات معلمين'!AJ17/$LE$5,2),IF($LE18=0,ROUND($LF18*'[5]بيانات معلمين'!AJ17/$LE$5,2)))) ->  | IE18: =IF('[5]بيانات معلمين'!AK17=0,"",IF($LF18=0,ROUND(($LE$5-$LE18)*'[5]بيانات معلمين'!AK17/$LE$5,2),IF($LE18=0,ROUND($LF18*'[5]بيانات معلمين'!AK17/$LE$5,2)))) ->  | IF18: =IF('[5]بيانات معلمين'!AL17=0,"",IF($LF18=0,ROUND(($LE$5-$LE18)*'[5]بيانات معلمين'!AL17/$LE$5,2),IF($LE18=0,ROUND($LF18*'[5]بيانات معلمين'!AL17/$LE$5,2)))) ->  | IG18: =IF('[5]بيانات معلمين'!AM17=0,"",IF($LF18=0,ROUND(($LE$5-$LE18)*'[5]بيانات معلمين'!AM17/$LE$5,2),IF($LE18=0,ROUND($LF18*'[5]بيانات معلمين'!AM17/$LE$5,2)))) ->  | IH18: =IF('[5]بيانات معلمين'!AN17=0,"",IF($LF18=0,ROUND(($LE$5-$LE18)*'[5]بيانات معلمين'!AN17/$LE$5,2),IF($LE18=0,ROUND($LF18*'[5]بيانات معلمين'!AN17/$LE$5,2)))) -> 496.6 | II18: =IF('[5]بيانات معلمين'!AO17=0,"",IF($LF18=0,ROUND(($LE$5-$LE18)*'[5]بيانات معلمين'!AO17/$LE$5,2),IF($LE18=0,ROUND($LF18*'[5]بيانات معلمين'!AO17/$LE$5,2)))) -> 124.15 | IJ18: =IF('[5]بيانات معلمين'!AP17=0,"",IF($LF18=0,ROUND(($LE$5-$LE18)*'[5]بيانات معلمين'!AP17/$LE$5,2),IF($LE18=0,ROUND($LF18*'[5]بيانات معلمين'!AP17/$LE$5,2)))) -> 41.38 | IK18: =IF('[5]بيانات معلمين'!AQ17=0,"",IF($LF18=0,ROUND(($LE$5-$LE18)*'[5]بيانات معلمين'!AQ17/$LE$5,2),IF($LE18=0,ROUND($LF18*'[5]بيانات معلمين'!AQ17/$LE$5,2)))) -> 51.73 | IL18: 713.86 | IM18: 86 | IN18: 713 | IO18: =IF('[5]بيانات معلمين'!AR17=0,"",IF($LF18=0,ROUND(($LE$5-$LE18)*'[5]بيانات معلمين'!AR17/$LE$5,2),IF($LE18=0,ROUND($LF18*'[5]بيانات معلمين'!AR17/$LE$5,2)))) -> 10 | IP18: =IF($ASH$2=1,"",IF('[5]بيانات معلمين'!AS17=0,"",IF($LF18=0,ROUND(($LE$5-$LE18)*'[5]بيانات معلمين'!AS17/$LE$5,2),IF($LE18=0,ROUND($LF18*'[5]بيانات معلمين'!AS17/$LE$5,2))))) -> 481.26 | IQ18: =IF('[5]بيانات معلمين'!AT17=0,"",ROUND(SUM(HE18,HH18:IK18,IO18,IP18),2)) -> 5343.48 | IR18: =IF('[5]بيانات معلمين'!AU17=0,"",IF($LF18=0,ROUND(($LE$5-$LE18)*'[5]بيانات معلمين'!AU17/$LE$5,2),IF($LE18=0,ROUND($LF18*'[5]بيانات معلمين'!AU17/$LE$5,2)))) -> 496.6 | IS18: =IF('[5]بيانات معلمين'!AV17=0,"",'[5]بيانات معلمين'!AV17) -> 372.45 | IT18: =IF('[5]بيانات معلمين'!AW17=0,"",IF($LF18=0,ROUND(($LE$5-$LE18)*'[5]بيانات معلمين'!AW17/$LE$5,2),IF($LE18=0,ROUND($LF18*'[5]بيانات معلمين'!AW17/$LE$5,2)))) -> 41.38 | IU18: =IF('[5]بيانات معلمين'!AX17=0,"",IF($LF18=0,ROUND(($LE$5-$LE18)*'[5]بيانات معلمين'!AX17/$LE$5,2),IF($LE18=0,ROUND($LF18*'[5]بيانات معلمين'!AX17/$LE$5,2)))) -> 124.15 | IV18: =IF('[5]بيانات معلمين'!AY17=0,"",'[5]بيانات معلمين'!AY17) -> 41.38 | IW18: =IF('[5]بيانات معلمين'!AZ17=0,"",'[5]بيانات معلمين'!AZ17) -> 41.38 | IX18: =IF('[5]بيانات معلمين'!BA17=0,"",IF($LF18=0,ROUND(($LE$5-$LE18)*'[5]بيانات معلمين'!BA17/$LE$5,2),IF($LE18=0,ROUND($LF18*'[5]بيانات معلمين'!BA17/$LE$5,2)))) -> 51.73 | IY18: 1169.07 | IZ18: =IF('[5]بيانات معلمين'!BC17=0,"",'[5]بيانات معلمين'!BC17) ->  | JA18: =IF('[5]بيانات معلمين'!BD17=0,"",'[5]بيانات معلمين'!BD17) ->  | JB18: =IF('[5]بيانات معلمين'!BE17=0,"",'[5]بيانات معلمين'!BE17) ->  | JC18: 0 | JD18: =IF('[5]بيانات معلمين'!BG17=0,"",'[5]بيانات معلمين'!BG17) -> 4.5 | JE18: =IF('[5]بيانات معلمين'!$BH17=0,0,'[5]بيانات معلمين'!$BH17)/('[5]بيانات معلمين'!$CY17) -> 107.98 | JF18: =IF('[5]بيانات معلمين'!BI17=0,"",'[5]بيانات معلمين'!BI17) -> 3 | JG18: =IF('[5]بيانات معلمين'!BJ17=0,"",'[5]بيانات معلمين'!BJ17) -> 1 | JH18: =IF('[5]بيانات معلمين'!BK17=0,"",'[5]بيانات معلمين'!BK17) ->  | JI18: =IF('[5]بيانات معلمين'!BL17=0,"",'[5]بيانات معلمين'!BL17) ->  | JJ18: =IF('[5]بيانات معلمين'!BM17=0,"",'[5]بيانات معلمين'!BM17) ->  | JK18: =IF('[5]بيانات معلمين'!BN17=0,"",'[5]بيانات معلمين'!BN17) ->  | JL18: =IF('[5]بيانات معلمين'!BO17=0,"",'[5]بيانات معلمين'!BO17) ->  | JM18: =IF('[5]بيانات معلمين'!BP17=0,"",'[5]بيانات معلمين'!BP17) ->  | JN18: =IF('[5]بيانات معلمين'!BQ17=0,"",'[5]بيانات معلمين'!BQ17) ->  | JO18: =IF('[5]بيانات معلمين'!$BR17=0,0,'[5]بيانات معلمين'!$BR17)/'[5]بيانات معلمين'!$CY17 -> 0 | JP18: =IF('[5]بيانات معلمين'!BS17=0,"",'[5]بيانات معلمين'!BS17) ->  | JQ18: =IF('[5]بيانات معلمين'!BT17=0,"",'[5]بيانات معلمين'!BT17) ->  | JR18: 116.48 | JS18: =IF('[5]بيانات معلمين'!BV17=0,"",'[5]بيانات معلمين'!BV17) ->  | JT18: =IF('[5]بيانات معلمين'!BW17=0,"",'[5]بيانات معلمين'!BW17) ->  | JU18: =IF('[5]بيانات معلمين'!BX17=0,"",'[5]بيانات معلمين'!BX17) ->  | JV18: =IF('[5]بيانات معلمين'!BY17=0,"",'[5]بيانات معلمين'!BY17) ->  | JW18: =IF('[5]بيانات معلمين'!BZ17=0,"",'[5]بيانات معلمين'!BZ17) ->  | JX18: =IF('[5]بيانات معلمين'!CA17=0,"",'[5]بيانات معلمين'!CA17) ->  | JY18: =IF('[5]بيانات معلمين'!CB17=0,"",'[5]بيانات معلمين'!CB17) ->  | JZ18: 0 | KA18: =IF('[5]بيانات معلمين'!CD17=0,"",'[5]بيانات معلمين'!CD17) ->  | KB18: =IF('[5]بيانات معلمين'!CE17=0,"",'[5]بيانات معلمين'!CE17) ->  | KC18: =IF('[5]بيانات معلمين'!CF17=0,"",'[5]بيانات معلمين'!CF17) ->  | KD18: =IF('[5]بيانات معلمين'!CG17=0,"",ROUND(IF(($HD18+($HE18*50%)-$HE18-(11%*$HD18)-$JC18-$JR18-$KE18-$HH18-HE18/47-2000)*0.025<=0,0,($HD18+($HE18*50%)-$HE18-(11%*$HD18)-$JC18-$JR18-$KE18-$HH18-HE18/47-2000)*0.025),2)) -> 17.93 | KE18: =IF('[5]بيانات معلمين'!CH17=0,"",'[5]بيانات معلمين'!CH17) -> 7.71 | KF18: =IF('[5]بيانات معلمين'!CI17=0,"",'[5]بيانات معلمين'!CI17) ->  | KG18: =IF('[5]بيانات معلمين'!CJ17=0,"",'[5]بيانات معلمين'!CJ17) ->  | KH18: =IF('[5]بيانات معلمين'!CK17=0,"",'[5]بيانات معلمين'!CK17) ->  | KI18: =IF('[5]بيانات معلمين'!CL17=0,"",'[5]بيانات معلمين'!CL17) ->  | KJ18: =IF('[5]بيانات معلمين'!CM17=0,"",'[5]بيانات معلمين'!CM17) ->  | KK18: =IF('[5]بيانات معلمين'!CN17=0,"",'[5]بيانات معلمين'!CN17) -> 35.4103 | KL18: 61.0503 | KM18: 5.03 | KN18: 61 | KO18: 0.0297 | KP18: 1346.63 | KQ18: 3996.85 | KR18: =IF('[5]بيانات معلمين'!CR17=0,"",'[5]بيانات معلمين'!CR17) -> سعيد محمد عطيه محمد | KS18: =IF('[5]بيانات معلمين'!CS17=0,"",'[5]بيانات معلمين'!CS17) -> البنك الأهلى | KT18: =IF('[5]بيانات معلمين'!CT17=0,"",'[5]بيانات معلمين'!CT17) ->  | KU18: =IF('[5]بيانات معلمين'!CU17=0,"",'[5]بيانات معلمين'!CU17) -> 26909272700415 | KW18: 11 | KY18: 3996.8797 | LE18: ='[5]جزاءات 155'!F17 -> 0 | LF18: ='[5]جزاءات 155'!E17 -> 0 | AES18: =IF('[5]استقطاعات 155'!Q17="","",'[5]مرتب 155'!M17) ->  | AEU18: 11 | AEY18: ='[5]استقطاعات 155'!Q17 -> 0 | AFA18: 0 | AFB18: 0 | AFC18: -10000 | AFD18: 0 | AFE18: 0 | AFF18: -40000 | AFG18: 0 | AFH18: 0 | AFI18: 0 | AFJ18: 0 | AFK18: 0 | AFL18: 0 | AFM18: 0
